Workbook

Sheet INTRO
B2: Joint request for selected PC medicines v.4.1 (Loa)
B4: As part of global efforts to accelerate expansion of preventive chemotherapy (PC) for control and elimination of lymphatic filariasis, schistosomiasis and soil-transmitted helminthiases, the World Health Organization (WHO) facilitates the supply of albendazole 400 mg tablets (GSK) to national lymphatic filariasis elimination programmes and national soil-transmitted helminth control programmes; diethylcarbamazine citrate 100 mg tablets (Eisai) to national lymphatic filariasis elimination programmes; mebendazole 500 mg tablets (J&J) for national soil-transmitted helminth control programmes; and praziquantel 600 mg tablets (Merck KGaA) for school-age children to national schistosomiasis control programmes. WHO also collaborates to supply ivermectin 3 mg tablets (Merck) for onchocerciasis and lymphatic filariasis donation programmes. This Excel-based tool is designed to assist countries in quantifying the number of tablets of relevant PC medicines required to reach the planned target population and districts for the year of request. Output of the tool is a joint request for PC medicines, which can be printed, signed and submitted to WHO to request these medicines.
B6: Structure of the application (worksheets):
B8: INTRO | C8: This worksheet includes guides on how to complete the joint request for selected PC medicines and information about the status of PC for endemic diseases in the country.
B9: COUNTRY_INFO | C9: This worksheet includes information about administrative structure of the country, population by age group, status of endemicity for each disease, population requiring PC and planned interventions.
B10: DEC, ALB_MBD, PZQ and IVM | C10: These worksheets include information about endemic districts targeted for treatment with specified PC medicines, treatment plan, and number of tablets required and requested.
B11: SUMMARY | C11: This worksheet includes summary of number of tablets requested, information about stock, and date for submission of requested medicines. Before generating the report (run macros) please select the medicine for which the report is needed. Follow the same rule to see the number of people to be treated for the specific disease. This worksheet should be printed and submitted as a joint request for selected PC medicines (see the instruction for submission in the SUMMARY worksheet).
B13: Instruction for data entry
B15: Most of the cells in the above-mentioned worksheets include formula that are calculated automatically according to the treatment policy recommended by WHO for each disease. See the link https://www.who.int/publications/i/item/9789241599993.
B17: Please enter your data into the cells according to their colour code:
C19: White - cell is not protected. Please enter the value of the requested indicator.
C21: Yellow - cell is protected and includes name of indicator. No data entry required.
C23: Orange - cell is not protected and includes a drop-down menu. Please select the value from the drop-down list.
C26: Green - cell is not protected and includes formula. Please change the value only if your data are different from those that are calculated automatically.
C29: Blue - cell is protected and includes formula. No data entry required.
B31: Country data
B33: COUNTRY | E33: Angola
E34: 5
B35: Year for request of the medicine | E35: 2024
B37: Is country endemic for lymphatic filariasis (LF)? | E37: Endemic
B39: Is country endemic for onchocerciasis (ONCHO)? | E39: Endemic
B41: Is country endemic for soil-transmitted helminthiases (STH)? | E41: Endemic
B43: Is country endemic for schistosomiasis (SCH)? | E43: Endemic
B45: How many administrative units in the country? | E45: 164
B47: If demographical data at the second administrative level are not available by age group, please enter the proportion (%) of population by age group in the country. If data are available, please leave these cells blank.
B48: 1-4 years age | C48: Preschool-age children (PreSAC) | E48: 0.1364
B49: 5-14 years age | C49: School-age children (SAC) | E49: 0.2784
B50: 15 years + | C50: Adults | E50: 0.5482
B51: 15-49 years | C51: Women of reproductive age (WRA) | E51: 0.2311

Sheet COUNTRY_INFO
A1: COUNTRY INFORMATION
A2: Administrative structure, population by age group, status of endemicity and planned interventions
A4: TOTAL | D4: =SUBTOTAL(9,D$10:D$1010) -> 33819137.58 | E4: =SUBTOTAL(9,E$10:E$1010) -> 4612928 | F4: 9415244 | G4: 18539650 | M4: =SUBTOTAL(9,M$10:M$1010) -> 4197449.101 | N4: 6575112.029 | O4: 1821483 | P4: 3717755 | Q4: 3086114 | R4: 8625352 | S4: 2375696 | T4: 6465195 | U4: 12730681 | V4: 21571572
A6: Country administrative structure | D6: Population | H6: Endemicity | M6: Population requiring PC | W6: Number of treatment rounds planned for the year | AA6: Epidemiological surveys planned for the year
A7: Country | B7: Province/State | C7: District | D7: Total | E7: PreSAC | F7: SAC | G7: Adults | H7: LF | I7: Oncho | J7: STH | K7: SCH | L7: Loa | M7: LF | N7: ONCHO | O7: STH | S7: SCH | W7: LF | X7: Oncho | Y7: STH | Z7: SCH | AA7: LF | AB7: Oncho | AC7: STH | AD7: SCH
O8: PreSAC | P8: SAC | Q8: WRA | R8: TOTAL | S8: PreSAC | T8: SAC | U8: Adults | V8: TOTAL
A10: =IF(INTRO!$E$33<>0,INTRO!$E$33, " ") -> Angola | B10: BENGO | C10: AMBRIZ | D10: 32235.68243 | E10: =IF(INTRO!$E$48="","",ROUND($D10*INTRO!$E$48,0)) -> 4397 | F10: =IF(INTRO!$E$49="","",ROUND($D10*INTRO!$E$49,0)) -> 8974 | G10: =IF(INTRO!$E$50="","",ROUND($D10*INTRO!$E$50,0)) -> 17672 | H10: 1 | I10: 4 | J10: 1 | K10: 3 | L10: 1 | M10: =IF(INTRO!$E$37="Endemic",IF($H10>0,IF($H10=4,"Unknown",IF($H10=99,"Stopped",$D10)),0),"Not required") -> 32235.68243 | N10: =IF(INTRO!$E$39="Endemic", IF($I10>0, IF($I10=4,"Unknown",IF($I10=99,"Stopped",$D10)), 0),"Not required") -> Unknown | O10: =IF(INTRO!$E$41="Endemic", IF($J10>1, IF($J10=4, "Unknown", IF($J10=99, "Surveillance", E10)), 0),"Not required") -> 0 | P10: =IF(INTRO!$E$41="Endemic", IF($J10>1, IF($J10=4, "Unknown", IF($J10=99, "Surveillance", F10)), 0),"Not required") -> 0 | Q10: =IF(INTRO!$E$41="Endemic", IF($J10>1, IF($J10=4, "Unknown", IF($J10=99, "Surveillance", ROUND(D10*INTRO!$E$51,0))), 0),"Not required") -> 0 | R10: =IF(INTRO!$E$41="Endemic", IF($J10>1, IF($J10=4, "Unknown", IF($J10=99, "Surveillance", SUM($O10:$Q10))), 0),"Not required") -> 0 | S10: =IF(INTRO!$E$43="Endemic", IF($K10>1, IF($K10=4, "Unknown", IF($K10=99, "Surveillance", ROUND(E10*0.75,0))), 0),"Not required") -> 3298 | T10: =IF(INTRO!$E$43="Endemic", IF($K10>1, IF($K10=4, "Unknown", IF($K10=99, "Surveillance", F10)), 0),"Not required") -> 8974 | U10: =IF(INTRO!$E$43="Endemic", IF($K10>1, IF($K10=4, "Unknown", IF($K10=99, "Surveillance", G10)), 0),"Not required") -> 17672 | V10: =IF(INTRO!$E$43="Endemic", IF($K10>1, IF($K10=4, "Unknown", IF($K10=99, "Surveillance", SUM($S10:$U10))), 0),"Not required") -> 29944 | W10: 1 | X10: 0 | Y10: 0 | Z10: 1
A11: =IF(INTRO!$E$33<>0,INTRO!$E$33, " ") -> Angola | B11: BENGO | C11: BULA ATUMBA | D11: 19096.92327 | E11: =IF(INTRO!$E$48="","",ROUND($D11*INTRO!$E$48,0)) -> 2605 | F11: =IF(INTRO!$E$49="","",ROUND($D11*INTRO!$E$49,0)) -> 5317 | G11: =IF(INTRO!$E$50="","",ROUND($D11*INTRO!$E$50,0)) -> 10469 | H11: 1 | I11: 4 | J11: 3 | K11: 1 | L11: 1 | M11: =IF(INTRO!$E$37="Endemic",IF($H11>0,IF($H11=4,"Unknown",IF($H11=99,"Stopped",$D11)),0),"Not required") -> 19096.92327 | N11: =IF(INTRO!$E$39="Endemic", IF($I11>0, IF($I11=4,"Unknown",IF($I11=99,"Stopped",$D11)), 0),"Not required") -> Unknown | O11: =IF(INTRO!$E$41="Endemic", IF($J11>1, IF($J11=4, "Unknown", IF($J11=99, "Surveillance", E11)), 0),"Not required") -> 2605 | P11: =IF(INTRO!$E$41="Endemic", IF($J11>1, IF($J11=4, "Unknown", IF($J11=99, "Surveillance", F11)), 0),"Not required") -> 5317 | Q11: =IF(INTRO!$E$41="Endemic", IF($J11>1, IF($J11=4, "Unknown", IF($J11=99, "Surveillance", ROUND(D11*INTRO!$E$51,0))), 0),"Not required") -> 4413 | R11: =IF(INTRO!$E$41="Endemic", IF($J11>1, IF($J11=4, "Unknown", IF($J11=99, "Surveillance", SUM($O11:$Q11))), 0),"Not required") -> 12335 | S11: =IF(INTRO!$E$43="Endemic", IF($K11>1, IF($K11=4, "Unknown", IF($K11=99, "Surveillance", ROUND(E11*0.75,0))), 0),"Not required") -> 0 | T11: =IF(INTRO!$E$43="Endemic", IF($K11>1, IF($K11=4, "Unknown", IF($K11=99, "Surveillance", F11)), 0),"Not required") -> 0 | U11: =IF(INTRO!$E$43="Endemic", IF($K11>1, IF($K11=4, "Unknown", IF($K11=99, "Surveillance", G11)), 0),"Not required") -> 0 | V11: =IF(INTRO!$E$43="Endemic", IF($K11>1, IF($K11=4, "Unknown", IF($K11=99, "Surveillance", SUM($S11:$U11))), 0),"Not required") -> 0 | W11: 1 | X11: 0 | Y11: 2 | Z11: 0
A12: =IF(INTRO!$E$33<>0,INTRO!$E$33, " ") -> Angola | B12: BENGO | C12: DANDE | D12: 315845.9822 | E12: =IF(INTRO!$E$48="","",ROUND($D12*INTRO!$E$48,0)) -> 43081 | F12: =IF(INTRO!$E$49="","",ROUND($D12*INTRO!$E$49,0)) -> 87932 | G12: =IF(INTRO!$E$50="","",ROUND($D12*INTRO!$E$50,0)) -> 173147 | H12: 1 | I12: 4 | J12: 1 | K12: 3 | L12: 1 | M12: =IF(INTRO!$E$37="Endemic",IF($H12>0,IF($H12=4,"Unknown",IF($H12=99,"Stopped",$D12)),0),"Not required") -> 315845.9822 | N12: =IF(INTRO!$E$39="Endemic", IF($I12>0, IF($I12=4,"Unknown",IF($I12=99,"Stopped",$D12)), 0),"Not required") -> Unknown | O12: =IF(INTRO!$E$41="Endemic", IF($J12>1, IF($J12=4, "Unknown", IF($J12=99, "Surveillance", E12)), 0),"Not required") -> 0 | P12: =IF(INTRO!$E$41="Endemic", IF($J12>1, IF($J12=4, "Unknown", IF($J12=99, "Surveillance", F12)), 0),"Not required") -> 0 | Q12: =IF(INTRO!$E$41="Endemic", IF($J12>1, IF($J12=4, "Unknown", IF($J12=99, "Surveillance", ROUND(D12*INTRO!$E$51,0))), 0),"Not required") -> 0 | R12: =IF(INTRO!$E$41="Endemic", IF($J12>1, IF($J12=4, "Unknown", IF($J12=99, "Surveillance", SUM($O12:$Q12))), 0),"Not required") -> 0 | S12: =IF(INTRO!$E$43="Endemic", IF($K12>1, IF($K12=4, "Unknown", IF($K12=99, "Surveillance", ROUND(E12*0.75,0))), 0),"Not required") -> 32311 | T12: =IF(INTRO!$E$43="Endemic", IF($K12>1, IF($K12=4, "Unknown", IF($K12=99, "Surveillance", F12)), 0),"Not required") -> 87932 | U12: =IF(INTRO!$E$43="Endemic", IF($K12>1, IF($K12=4, "Unknown", IF($K12=99, "Surveillance", G12)), 0),"Not required") -> 173147 | V12: =IF(INTRO!$E$43="Endemic", IF($K12>1, IF($K12=4, "Unknown", IF($K12=99, "Surveillance", SUM($S12:$U12))), 0),"Not required") -> 293390 | W12: 1 | X12: 0 | Y12: 0 | Z12: 1
A13: =IF(INTRO!$E$33<>0,INTRO!$E$33, " ") -> Angola | B13: BENGO | C13: DEMBOS | D13: 42661.67859 | E13: =IF(INTRO!$E$48="","",ROUND($D13*INTRO!$E$48,0)) -> 5819 | F13: =IF(INTRO!$E$49="","",ROUND($D13*INTRO!$E$49,0)) -> 11877 | G13: =IF(INTRO!$E$50="","",ROUND($D13*INTRO!$E$50,0)) -> 23387 | H13: 1 | I13: 4 | J13: 3 | K13: 1 | L13: 1 | M13: =IF(INTRO!$E$37="Endemic",IF($H13>0,IF($H13=4,"Unknown",IF($H13=99,"Stopped",$D13)),0),"Not required") -> 42661.67859 | N13: =IF(INTRO!$E$39="Endemic", IF($I13>0, IF($I13=4,"Unknown",IF($I13=99,"Stopped",$D13)), 0),"Not required") -> Unknown | O13: =IF(INTRO!$E$41="Endemic", IF($J13>1, IF($J13=4, "Unknown", IF($J13=99, "Surveillance", E13)), 0),"Not required") -> 5819 | P13: =IF(INTRO!$E$41="Endemic", IF($J13>1, IF($J13=4, "Unknown", IF($J13=99, "Surveillance", F13)), 0),"Not required") -> 11877 | Q13: =IF(INTRO!$E$41="Endemic", IF($J13>1, IF($J13=4, "Unknown", IF($J13=99, "Surveillance", ROUND(D13*INTRO!$E$51,0))), 0),"Not required") -> 9859 | R13: =IF(INTRO!$E$41="Endemic", IF($J13>1, IF($J13=4, "Unknown", IF($J13=99, "Surveillance", SUM($O13:$Q13))), 0),"Not required") -> 27555 | S13: =IF(INTRO!$E$43="Endemic", IF($K13>1, IF($K13=4, "Unknown", IF($K13=99, "Surveillance", ROUND(E13*0.75,0))), 0),"Not required") -> 0 | T13: =IF(INTRO!$E$43="Endemic", IF($K13>1, IF($K13=4, "Unknown", IF($K13=99, "Surveillance", F13)), 0),"Not required") -> 0 | U13: =IF(INTRO!$E$43="Endemic", IF($K13>1, IF($K13=4, "Unknown", IF($K13=99, "Surveillance", G13)), 0),"Not required") -> 0 | V13: =IF(INTRO!$E$43="Endemic", IF($K13>1, IF($K13=4, "Unknown", IF($K13=99, "Surveillance", SUM($S13:$U13))), 0),"Not required") -> 0 | W13: 1 | X13: 0 | Y13: 2 | Z13: 0
A14: =IF(INTRO!$E$33<>0,INTRO!$E$33, " ") -> Angola | B14: BENGO | C14: NAMBUANGONGO | D14: 86415.0017 | E14: =IF(INTRO!$E$48="","",ROUND($D14*INTRO!$E$48,0)) -> 11787 | F14: =IF(INTRO!$E$49="","",ROUND($D14*INTRO!$E$49,0)) -> 24058 | G14: =IF(INTRO!$E$50="","",ROUND($D14*INTRO!$E$50,0)) -> 47373 | H14: 1 | I14: 4 | J14: 2 | K14: 2 | L14: 1 | M14: =IF(INTRO!$E$37="Endemic",IF($H14>0,IF($H14=4,"Unknown",IF($H14=99,"Stopped",$D14)),0),"Not required") -> 86415.0017 | N14: =IF(INTRO!$E$39="Endemic", IF($I14>0, IF($I14=4,"Unknown",IF($I14=99,"Stopped",$D14)), 0),"Not required") -> Unknown | O14: =IF(INTRO!$E$41="Endemic", IF($J14>1, IF($J14=4, "Unknown", IF($J14=99, "Surveillance", E14)), 0),"Not required") -> 11787 | P14: =IF(INTRO!$E$41="Endemic", IF($J14>1, IF($J14=4, "Unknown", IF($J14=99, "Surveillance", F14)), 0),"Not required") -> 24058 | Q14: =IF(INTRO!$E$41="Endemic", IF($J14>1, IF($J14=4, "Unknown", IF($J14=99, "Surveillance", ROUND(D14*INTRO!$E$51,0))), 0),"Not required") -> 19971 | R14: =IF(INTRO!$E$41="Endemic", IF($J14>1, IF($J14=4, "Unknown", IF($J14=99, "Surveillance", SUM($O14:$Q14))), 0),"Not required") -> 55816 | S14: =IF(INTRO!$E$43="Endemic", IF($K14>1, IF($K14=4, "Unknown", IF($K14=99, "Surveillance", ROUND(E14*0.75,0))), 0),"Not required") -> 8840 | T14: =IF(INTRO!$E$43="Endemic", IF($K14>1, IF($K14=4, "Unknown", IF($K14=99, "Surveillance", F14)), 0),"Not required") -> 24058 | U14: =IF(INTRO!$E$43="Endemic", IF($K14>1, IF($K14=4, "Unknown", IF($K14=99, "Surveillance", G14)), 0),"Not required") -> 47373 | V14: =IF(INTRO!$E$43="Endemic", IF($K14>1, IF($K14=4, "Unknown", IF($K14=99, "Surveillance", SUM($S14:$U14))), 0),"Not required") -> 80271 | W14: 1 | X14: 0 | Y14: 1 | Z14: 1
A15: =IF(INTRO!$E$33<>0,INTRO!$E$33, " ") -> Angola | B15: BENGO | C15: PANGO ALUQUEM | D15: 9942.930283 | E15: =IF(INTRO!$E$48="","",ROUND($D15*INTRO!$E$48,0)) -> 1356 | F15: =IF(INTRO!$E$49="","",ROUND($D15*INTRO!$E$49,0)) -> 2768 | G15: =IF(INTRO!$E$50="","",ROUND($D15*INTRO!$E$50,0)) -> 5451 | H15: 0 | I15: 4 | J15: 3 | K15: 2 | L15: 1 | M15: =IF(INTRO!$E$37="Endemic",IF($H15>0,IF($H15=4,"Unknown",IF($H15=99,"Stopped",$D15)),0),"Not required") -> 0 | N15: =IF(INTRO!$E$39="Endemic", IF($I15>0, IF($I15=4,"Unknown",IF($I15=99,"Stopped",$D15)), 0),"Not required") -> Unknown | O15: =IF(INTRO!$E$41="Endemic", IF($J15>1, IF($J15=4, "Unknown", IF($J15=99, "Surveillance", E15)), 0),"Not required") -> 1356 | P15: =IF(INTRO!$E$41="Endemic", IF($J15>1, IF($J15=4, "Unknown", IF($J15=99, "Surveillance", F15)), 0),"Not required") -> 2768 | Q15: =IF(INTRO!$E$41="Endemic", IF($J15>1, IF($J15=4, "Unknown", IF($J15=99, "Surveillance", ROUND(D15*INTRO!$E$51,0))), 0),"Not required") -> 2298 | R15: =IF(INTRO!$E$41="Endemic", IF($J15>1, IF($J15=4, "Unknown", IF($J15=99, "Surveillance", SUM($O15:$Q15))), 0),"Not required") -> 6422 | S15: =IF(INTRO!$E$43="Endemic", IF($K15>1, IF($K15=4, "Unknown", IF($K15=99, "Surveillance", ROUND(E15*0.75,0))), 0),"Not required") -> 1017 | T15: =IF(INTRO!$E$43="Endemic", IF($K15>1, IF($K15=4, "Unknown", IF($K15=99, "Surveillance", F15)), 0),"Not required") -> 2768 | U15: =IF(INTRO!$E$43="Endemic", IF($K15>1, IF($K15=4, "Unknown", IF($K15=99, "Surveillance", G15)), 0),"Not required") -> 5451 | V15: =IF(INTRO!$E$43="Endemic", IF($K15>1, IF($K15=4, "Unknown", IF($K15=99, "Surveillance", SUM($S15:$U15))), 0),"Not required") -> 9236 | W15: 0 | X15: 0 | Y15: 2 | Z15: 1
A16: =IF(INTRO!$E$33<>0,INTRO!$E$33, " ") -> Angola | B16: BENGUELA | C16: BAIA FARTA | D16: 136592.6791 | E16: =IF(INTRO!$E$48="","",ROUND($D16*INTRO!$E$48,0)) -> 18631 | F16: =IF(INTRO!$E$49="","",ROUND($D16*INTRO!$E$49,0)) -> 38027 | G16: =IF(INTRO!$E$50="","",ROUND($D16*INTRO!$E$50,0)) -> 74880 | H16: 0 | I16: 4 | J16: 0 | K16: 2 | L16: 0 | M16: =IF(INTRO!$E$37="Endemic",IF($H16>0,IF($H16=4,"Unknown",IF($H16=99,"Stopped",$D16)),0),"Not required") -> 0 | N16: =IF(INTRO!$E$39="Endemic", IF($I16>0, IF($I16=4,"Unknown",IF($I16=99,"Stopped",$D16)), 0),"Not required") -> Unknown | O16: =IF(INTRO!$E$41="Endemic", IF($J16>1, IF($J16=4, "Unknown", IF($J16=99, "Surveillance", E16)), 0),"Not required") -> 0 | P16: =IF(INTRO!$E$41="Endemic", IF($J16>1, IF($J16=4, "Unknown", IF($J16=99, "Surveillance", F16)), 0),"Not required") -> 0 | Q16: =IF(INTRO!$E$41="Endemic", IF($J16>1, IF($J16=4, "Unknown", IF($J16=99, "Surveillance", ROUND(D16*INTRO!$E$51,0))), 0),"Not required") -> 0 | R16: =IF(INTRO!$E$41="Endemic", IF($J16>1, IF($J16=4, "Unknown", IF($J16=99, "Surveillance", SUM($O16:$Q16))), 0),"Not required") -> 0 | S16: =IF(INTRO!$E$43="Endemic", IF($K16>1, IF($K16=4, "Unknown", IF($K16=99, "Surveillance", ROUND(E16*0.75,0))), 0),"Not required") -> 13973 | T16: =IF(INTRO!$E$43="Endemic", IF($K16>1, IF($K16=4, "Unknown", IF($K16=99, "Surveillance", F16)), 0),"Not required") -> 38027 | U16: =IF(INTRO!$E$43="Endemic", IF($K16>1, IF($K16=4, "Unknown", IF($K16=99, "Surveillance", G16)), 0),"Not required") -> 74880 | V16: =IF(INTRO!$E$43="Endemic", IF($K16>1, IF($K16=4, "Unknown", IF($K16=99, "Surveillance", SUM($S16:$U16))), 0),"Not required") -> 126880 | W16: 0 | X16: 0 | Y16: 0 | Z16: 1
A17: =IF(INTRO!$E$33<>0,INTRO!$E$33, " ") -> Angola | B17: BENGUELA | C17: BALOMBO | D17: 138016.5633 | E17: =IF(INTRO!$E$48="","",ROUND($D17*INTRO!$E$48,0)) -> 18825 | F17: =IF(INTRO!$E$49="","",ROUND($D17*INTRO!$E$49,0)) -> 38424 | G17: =IF(INTRO!$E$50="","",ROUND($D17*INTRO!$E$50,0)) -> 75661 | H17: 0 | I17: 4 | J17: 1 | K17: 2 | L17: 0 | M17: =IF(INTRO!$E$37="Endemic",IF($H17>0,IF($H17=4,"Unknown",IF($H17=99,"Stopped",$D17)),0),"Not required") -> 0 | N17: =IF(INTRO!$E$39="Endemic", IF($I17>0, IF($I17=4,"Unknown",IF($I17=99,"Stopped",$D17)), 0),"Not required") -> Unknown | O17: =IF(INTRO!$E$41="Endemic", IF($J17>1, IF($J17=4, "Unknown", IF($J17=99, "Surveillance", E17)), 0),"Not required") -> 0 | P17: =IF(INTRO!$E$41="Endemic", IF($J17>1, IF($J17=4, "Unknown", IF($J17=99, "Surveillance", F17)), 0),"Not required") -> 0 | Q17: =IF(INTRO!$E$41="Endemic", IF($J17>1, IF($J17=4, "Unknown", IF($J17=99, "Surveillance", ROUND(D17*INTRO!$E$51,0))), 0),"Not required") -> 0 | R17: =IF(INTRO!$E$41="Endemic", IF($J17>1, IF($J17=4, "Unknown", IF($J17=99, "Surveillance", SUM($O17:$Q17))), 0),"Not required") -> 0 | S17: =IF(INTRO!$E$43="Endemic", IF($K17>1, IF($K17=4, "Unknown", IF($K17=99, "Surveillance", ROUND(E17*0.75,0))), 0),"Not required") -> 14119 | T17: =IF(INTRO!$E$43="Endemic", IF($K17>1, IF($K17=4, "Unknown", IF($K17=99, "Surveillance", F17)), 0),"Not required") -> 38424 | U17: =IF(INTRO!$E$43="Endemic", IF($K17>1, IF($K17=4, "Unknown", IF($K17=99, "Surveillance", G17)), 0),"Not required") -> 75661 | V17: =IF(INTRO!$E$43="Endemic", IF($K17>1, IF($K17=4, "Unknown", IF($K17=99, "Surveillance", SUM($S17:$U17))), 0),"Not required") -> 128204 | W17: 0 | X17: 0 | Y17: 0 | Z17: 1
A18: =IF(INTRO!$E$33<>0,INTRO!$E$33, " ") -> Angola | B18: BENGUELA | C18: BENGUELA | D18: 711549.7158 | E18: =IF(INTRO!$E$48="","",ROUND($D18*INTRO!$E$48,0)) -> 97055 | F18: =IF(INTRO!$E$49="","",ROUND($D18*INTRO!$E$49,0)) -> 198095 | G18: =IF(INTRO!$E$50="","",ROUND($D18*INTRO!$E$50,0)) -> 390072 | H18: 0 | I18: 4 | J18: 1 | K18: 1 | L18: 0 | M18: =IF(INTRO!$E$37="Endemic",IF($H18>0,IF($H18=4,"Unknown",IF($H18=99,"Stopped",$D18)),0),"Not required") -> 0 | N18: =IF(INTRO!$E$39="Endemic", IF($I18>0, IF($I18=4,"Unknown",IF($I18=99,"Stopped",$D18)), 0),"Not required") -> Unknown | O18: =IF(INTRO!$E$41="Endemic", IF($J18>1, IF($J18=4, "Unknown", IF($J18=99, "Surveillance", E18)), 0),"Not required") -> 0 | P18: =IF(INTRO!$E$41="Endemic", IF($J18>1, IF($J18=4, "Unknown", IF($J18=99, "Surveillance", F18)), 0),"Not required") -> 0 | Q18: =IF(INTRO!$E$41="Endemic", IF($J18>1, IF($J18=4, "Unknown", IF($J18=99, "Surveillance", ROUND(D18*INTRO!$E$51,0))), 0),"Not required") -> 0 | R18: =IF(INTRO!$E$41="Endemic", IF($J18>1, IF($J18=4, "Unknown", IF($J18=99, "Surveillance", SUM($O18:$Q18))), 0),"Not required") -> 0 | S18: =IF(INTRO!$E$43="Endemic", IF($K18>1, IF($K18=4, "Unknown", IF($K18=99, "Surveillance", ROUND(E18*0.75,0))), 0),"Not required") -> 0 | T18: =IF(INTRO!$E$43="Endemic", IF($K18>1, IF($K18=4, "Unknown", IF($K18=99, "Surveillance", F18)), 0),"Not required") -> 0 | U18: =IF(INTRO!$E$43="Endemic", IF($K18>1, IF($K18=4, "Unknown", IF($K18=99, "Surveillance", G18)), 0),"Not required") -> 0 | V18: =IF(INTRO!$E$43="Endemic", IF($K18>1, IF($K18=4, "Unknown", IF($K18=99, "Surveillance", SUM($S18:$U18))), 0),"Not required") -> 0 | W18: 0 | X18: 0 | Y18: 0 | Z18: 0
A19: =IF(INTRO!$E$33<>0,INTRO!$E$33, " ") -> Angola | B19: BENGUELA | C19: BOCOIO | D19: 208591.6449 | E19: =IF(INTRO!$E$48="","",ROUND($D19*INTRO!$E$48,0)) -> 28452 | F19: =IF(INTRO!$E$49="","",ROUND($D19*INTRO!$E$49,0)) -> 58072 | G19: =IF(INTRO!$E$50="","",ROUND($D19*INTRO!$E$50,0)) -> 114350 | H19: 0 | I19: 4 | J19: 1 | K19: 3 | L19: 0 | M19: =IF(INTRO!$E$37="Endemic",IF($H19>0,IF($H19=4,"Unknown",IF($H19=99,"Stopped",$D19)),0),"Not required") -> 0 | N19: =IF(INTRO!$E$39="Endemic", IF($I19>0, IF($I19=4,"Unknown",IF($I19=99,"Stopped",$D19)), 0),"Not required") -> Unknown | O19: =IF(INTRO!$E$41="Endemic", IF($J19>1, IF($J19=4, "Unknown", IF($J19=99, "Surveillance", E19)), 0),"Not required") -> 0 | P19: =IF(INTRO!$E$41="Endemic", IF($J19>1, IF($J19=4, "Unknown", IF($J19=99, "Surveillance", F19)), 0),"Not required") -> 0 | Q19: =IF(INTRO!$E$41="Endemic", IF($J19>1, IF($J19=4, "Unknown", IF($J19=99, "Surveillance", ROUND(D19*INTRO!$E$51,0))), 0),"Not required") -> 0 | R19: =IF(INTRO!$E$41="Endemic", IF($J19>1, IF($J19=4, "Unknown", IF($J19=99, "Surveillance", SUM($O19:$Q19))), 0),"Not required") -> 0 | S19: =IF(INTRO!$E$43="Endemic", IF($K19>1, IF($K19=4, "Unknown", IF($K19=99, "Surveillance", ROUND(E19*0.75,0))), 0),"Not required") -> 21339 | T19: =IF(INTRO!$E$43="Endemic", IF($K19>1, IF($K19=4, "Unknown", IF($K19=99, "Surveillance", F19)), 0),"Not required") -> 58072 | U19: =IF(INTRO!$E$43="Endemic", IF($K19>1, IF($K19=4, "Unknown", IF($K19=99, "Surveillance", G19)), 0),"Not required") -> 114350 | V19: =IF(INTRO!$E$43="Endemic", IF($K19>1, IF($K19=4, "Unknown", IF($K19=99, "Surveillance", SUM($S19:$U19))), 0),"Not required") -> 193761 | W19: 0 | X19: 0 | Y19: 0 | Z19: 1
A20: =IF(INTRO!$E$33<>0,INTRO!$E$33, " ") -> Angola | B20: BENGUELA | C20: CAIMBAMBO | D20: 115055.113 | E20: =IF(INTRO!$E$48="","",ROUND($D20*INTRO!$E$48,0)) -> 15694 | F20: =IF(INTRO!$E$49="","",ROUND($D20*INTRO!$E$49,0)) -> 32031 | G20: =IF(INTRO!$E$50="","",ROUND($D20*INTRO!$E$50,0)) -> 63073 | H20: 0 | I20: 4 | J20: 1 | K20: 3 | L20: 0 | M20: =IF(INTRO!$E$37="Endemic",IF($H20>0,IF($H20=4,"Unknown",IF($H20=99,"Stopped",$D20)),0),"Not required") -> 0 | N20: =IF(INTRO!$E$39="Endemic", IF($I20>0, IF($I20=4,"Unknown",IF($I20=99,"Stopped",$D20)), 0),"Not required") -> Unknown | O20: =IF(INTRO!$E$41="Endemic", IF($J20>1, IF($J20=4, "Unknown", IF($J20=99, "Surveillance", E20)), 0),"Not required") -> 0 | P20: =IF(INTRO!$E$41="Endemic", IF($J20>1, IF($J20=4, "Unknown", IF($J20=99, "Surveillance", F20)), 0),"Not required") -> 0 | Q20: =IF(INTRO!$E$41="Endemic", IF($J20>1, IF($J20=4, "Unknown", IF($J20=99, "Surveillance", ROUND(D20*INTRO!$E$51,0))), 0),"Not required") -> 0 | R20: =IF(INTRO!$E$41="Endemic", IF($J20>1, IF($J20=4, "Unknown", IF($J20=99, "Surveillance", SUM($O20:$Q20))), 0),"Not required") -> 0 | S20: =IF(INTRO!$E$43="Endemic", IF($K20>1, IF($K20=4, "Unknown", IF($K20=99, "Surveillance", ROUND(E20*0.75,0))), 0),"Not required") -> 11771 | T20: =IF(INTRO!$E$43="Endemic", IF($K20>1, IF($K20=4, "Unknown", IF($K20=99, "Surveillance", F20)), 0),"Not required") -> 32031 | U20: =IF(INTRO!$E$43="Endemic", IF($K20>1, IF($K20=4, "Unknown", IF($K20=99, "Surveillance", G20)), 0),"Not required") -> 63073 | V20: =IF(INTRO!$E$43="Endemic", IF($K20>1, IF($K20=4, "Unknown", IF($K20=99, "Surveillance", SUM($S20:$U20))), 0),"Not required") -> 106875 | W20: 0 | X20: 0 | Y20: 0 | Z20: 1
A21: =IF(INTRO!$E$33<>0,INTRO!$E$33, " ") -> Angola | B21: BENGUELA | C21: CATUMBELA | D21: 222677.5507 | E21: =IF(INTRO!$E$48="","",ROUND($D21*INTRO!$E$48,0)) -> 30373 | F21: =IF(INTRO!$E$49="","",ROUND($D21*INTRO!$E$49,0)) -> 61993 | G21: =IF(INTRO!$E$50="","",ROUND($D21*INTRO!$E$50,0)) -> 122072 | H21: 0 | I21: 4 | J21: 0 | K21: 0 | L21: 1 | M21: =IF(INTRO!$E$37="Endemic",IF($H21>0,IF($H21=4,"Unknown",IF($H21=99,"Stopped",$D21)),0),"Not required") -> 0 | N21: =IF(INTRO!$E$39="Endemic", IF($I21>0, IF($I21=4,"Unknown",IF($I21=99,"Stopped",$D21)), 0),"Not required") -> Unknown | O21: =IF(INTRO!$E$41="Endemic", IF($J21>1, IF($J21=4, "Unknown", IF($J21=99, "Surveillance", E21)), 0),"Not required") -> 0 | P21: =IF(INTRO!$E$41="Endemic", IF($J21>1, IF($J21=4, "Unknown", IF($J21=99, "Surveillance", F21)), 0),"Not required") -> 0 | Q21: =IF(INTRO!$E$41="Endemic", IF($J21>1, IF($J21=4, "Unknown", IF($J21=99, "Surveillance", ROUND(D21*INTRO!$E$51,0))), 0),"Not required") -> 0 | R21: =IF(INTRO!$E$41="Endemic", IF($J21>1, IF($J21=4, "Unknown", IF($J21=99, "Surveillance", SUM($O21:$Q21))), 0),"Not required") -> 0 | S21: =IF(INTRO!$E$43="Endemic", IF($K21>1, IF($K21=4, "Unknown", IF($K21=99, "Surveillance", ROUND(E21*0.75,0))), 0),"Not required") -> 0 | T21: =IF(INTRO!$E$43="Endemic", IF($K21>1, IF($K21=4, "Unknown", IF($K21=99, "Surveillance", F21)), 0),"Not required") -> 0 | U21: =IF(INTRO!$E$43="Endemic", IF($K21>1, IF($K21=4, "Unknown", IF($K21=99, "Surveillance", G21)), 0),"Not required") -> 0 | V21: =IF(INTRO!$E$43="Endemic", IF($K21>1, IF($K21=4, "Unknown", IF($K21=99, "Surveillance", SUM($S21:$U21))), 0),"Not required") -> 0 | W21: 0 | X21: 0 | Y21: 0 | Z21: 0
A22: =IF(INTRO!$E$33<>0,INTRO!$E$33, " ") -> Angola | B22: BENGUELA | C22: CHONGOROI | D22: 110548.2559 | E22: =IF(INTRO!$E$48="","",ROUND($D22*INTRO!$E$48,0)) -> 15079 | F22: =IF(INTRO!$E$49="","",ROUND($D22*INTRO!$E$49,0)) -> 30777 | G22: =IF(INTRO!$E$50="","",ROUND($D22*INTRO!$E$50,0)) -> 60603 | H22: 0 | I22: 4 | J22: 0 | K22: 3 | L22: 0 | M22: =IF(INTRO!$E$37="Endemic",IF($H22>0,IF($H22=4,"Unknown",IF($H22=99,"Stopped",$D22)),0),"Not required") -> 0 | N22: =IF(INTRO!$E$39="Endemic", IF($I22>0, IF($I22=4,"Unknown",IF($I22=99,"Stopped",$D22)), 0),"Not required") -> Unknown | O22: =IF(INTRO!$E$41="Endemic", IF($J22>1, IF($J22=4, "Unknown", IF($J22=99, "Surveillance", E22)), 0),"Not required") -> 0 | P22: =IF(INTRO!$E$41="Endemic", IF($J22>1, IF($J22=4, "Unknown", IF($J22=99, "Surveillance", F22)), 0),"Not required") -> 0 | Q22: =IF(INTRO!$E$41="Endemic", IF($J22>1, IF($J22=4, "Unknown", IF($J22=99, "Surveillance", ROUND(D22*INTRO!$E$51,0))), 0),"Not required") -> 0 | R22: =IF(INTRO!$E$41="Endemic", IF($J22>1, IF($J22=4, "Unknown", IF($J22=99, "Surveillance", SUM($O22:$Q22))), 0),"Not required") -> 0 | S22: =IF(INTRO!$E$43="Endemic", IF($K22>1, IF($K22=4, "Unknown", IF($K22=99, "Surveillance", ROUND(E22*0.75,0))), 0),"Not required") -> 11309 | T22: =IF(INTRO!$E$43="Endemic", IF($K22>1, IF($K22=4, "Unknown", IF($K22=99, "Surveillance", F22)), 0),"Not required") -> 30777 | U22: =IF(INTRO!$E$43="Endemic", IF($K22>1, IF($K22=4, "Unknown", IF($K22=99, "Surveillance", G22)), 0),"Not required") -> 60603 | V22: =IF(INTRO!$E$43="Endemic", IF($K22>1, IF($K22=4, "Unknown", IF($K22=99, "Surveillance", SUM($S22:$U22))), 0),"Not required") -> 102689 | W22: 0 | X22: 0 | Y22: 0 | Z22: 1
A23: =IF(INTRO!$E$33<>0,INTRO!$E$33, " ") -> Angola | B23: BENGUELA | C23: CUBAL | D23: 387116.1301 | E23: =IF(INTRO!$E$48="","",ROUND($D23*INTRO!$E$48,0)) -> 52803 | F23: =IF(INTRO!$E$49="","",ROUND($D23*INTRO!$E$49,0)) -> 107773 | G23: =IF(INTRO!$E$50="","",ROUND($D23*INTRO!$E$50,0)) -> 212217 | H23: 0 | I23: 4 | J23: 1 | K23: 3 | L23: 0 | M23: =IF(INTRO!$E$37="Endemic",IF($H23>0,IF($H23=4,"Unknown",IF($H23=99,"Stopped",$D23)),0),"Not required") -> 0 | N23: =IF(INTRO!$E$39="Endemic", IF($I23>0, IF($I23=4,"Unknown",IF($I23=99,"Stopped",$D23)), 0),"Not required") -> Unknown | O23: =IF(INTRO!$E$41="Endemic", IF($J23>1, IF($J23=4, "Unknown", IF($J23=99, "Surveillance", E23)), 0),"Not required") -> 0 | P23: =IF(INTRO!$E$41="Endemic", IF($J23>1, IF($J23=4, "Unknown", IF($J23=99, "Surveillance", F23)), 0),"Not required") -> 0 | Q23: =IF(INTRO!$E$41="Endemic", IF($J23>1, IF($J23=4, "Unknown", IF($J23=99, "Surveillance", ROUND(D23*INTRO!$E$51,0))), 0),"Not required") -> 0 | R23: =IF(INTRO!$E$41="Endemic", IF($J23>1, IF($J23=4, "Unknown", IF($J23=99, "Surveillance", SUM($O23:$Q23))), 0),"Not required") -> 0 | S23: =IF(INTRO!$E$43="Endemic", IF($K23>1, IF($K23=4, "Unknown", IF($K23=99, "Surveillance", ROUND(E23*0.75,0))), 0),"Not required") -> 39602 | T23: =IF(INTRO!$E$43="Endemic", IF($K23>1, IF($K23=4, "Unknown", IF($K23=99, "Surveillance", F23)), 0),"Not required") -> 107773 | U23: =IF(INTRO!$E$43="Endemic", IF($K23>1, IF($K23=4, "Unknown", IF($K23=99, "Surveillance", G23)), 0),"Not required") -> 212217 | V23: =IF(INTRO!$E$43="Endemic", IF($K23>1, IF($K23=4, "Unknown", IF($K23=99, "Surveillance", SUM($S23:$U23))), 0),"Not required") -> 359592 | W23: 0 | X23: 0 | Y23: 0 | Z23: 1
A24: =IF(INTRO!$E$33<>0,INTRO!$E$33, " ") -> Angola | B24: BENGUELA | C24: GANDA | D24: 298268.9234 | E24: =IF(INTRO!$E$48="","",ROUND($D24*INTRO!$E$48,0)) -> 40684 | F24: =IF(INTRO!$E$49="","",ROUND($D24*INTRO!$E$49,0)) -> 83038 | G24: =IF(INTRO!$E$50="","",ROUND($D24*INTRO!$E$50,0)) -> 163511 | H24: 0 | I24: 4 | J24: 1 | K24: 3 | L24: 0 | M24: =IF(INTRO!$E$37="Endemic",IF($H24>0,IF($H24=4,"Unknown",IF($H24=99,"Stopped",$D24)),0),"Not required") -> 0 | N24: =IF(INTRO!$E$39="Endemic", IF($I24>0, IF($I24=4,"Unknown",IF($I24=99,"Stopped",$D24)), 0),"Not required") -> Unknown | O24: =IF(INTRO!$E$41="Endemic", IF($J24>1, IF($J24=4, "Unknown", IF($J24=99, "Surveillance", E24)), 0),"Not required") -> 0 | P24: =IF(INTRO!$E$41="Endemic", IF($J24>1, IF($J24=4, "Unknown", IF($J24=99, "Surveillance", F24)), 0),"Not required") -> 0 | Q24: =IF(INTRO!$E$41="Endemic", IF($J24>1, IF($J24=4, "Unknown", IF($J24=99, "Surveillance", ROUND(D24*INTRO!$E$51,0))), 0),"Not required") -> 0 | R24: =IF(INTRO!$E$41="Endemic", IF($J24>1, IF($J24=4, "Unknown", IF($J24=99, "Surveillance", SUM($O24:$Q24))), 0),"Not required") -> 0 | S24: =IF(INTRO!$E$43="Endemic", IF($K24>1, IF($K24=4, "Unknown", IF($K24=99, "Surveillance", ROUND(E24*0.75,0))), 0),"Not required") -> 30513 | T24: =IF(INTRO!$E$43="Endemic", IF($K24>1, IF($K24=4, "Unknown", IF($K24=99, "Surveillance", F24)), 0),"Not required") -> 83038 | U24: =IF(INTRO!$E$43="Endemic", IF($K24>1, IF($K24=4, "Unknown", IF($K24=99, "Surveillance", G24)), 0),"Not required") -> 163511 | V24: =IF(INTRO!$E$43="Endemic", IF($K24>1, IF($K24=4, "Unknown", IF($K24=99, "Surveillance", SUM($S24:$U24))), 0),"Not required") -> 277062 | W24: 0 | X24: 0 | Y24: 0 | Z24: 1
A25: =IF(INTRO!$E$33<>0,INTRO!$E$33, " ") -> Angola | B25: BENGUELA | C25: LOBITO | D25: 497878.4961 | E25: =IF(INTRO!$E$48="","",ROUND($D25*INTRO!$E$48,0)) -> 67911 | F25: =IF(INTRO!$E$49="","",ROUND($D25*INTRO!$E$49,0)) -> 138609 | G25: =IF(INTRO!$E$50="","",ROUND($D25*INTRO!$E$50,0)) -> 272937 | H25: 1 | I25: 4 | J25: 1 | K25: 1 | L25: 0 | M25: =IF(INTRO!$E$37="Endemic",IF($H25>0,IF($H25=4,"Unknown",IF($H25=99,"Stopped",$D25)),0),"Not required") -> 497878.4961 | N25: =IF(INTRO!$E$39="Endemic", IF($I25>0, IF($I25=4,"Unknown",IF($I25=99,"Stopped",$D25)), 0),"Not required") -> Unknown | O25: =IF(INTRO!$E$41="Endemic", IF($J25>1, IF($J25=4, "Unknown", IF($J25=99, "Surveillance", E25)), 0),"Not required") -> 0 | P25: =IF(INTRO!$E$41="Endemic", IF($J25>1, IF($J25=4, "Unknown", IF($J25=99, "Surveillance", F25)), 0),"Not required") -> 0 | Q25: =IF(INTRO!$E$41="Endemic", IF($J25>1, IF($J25=4, "Unknown", IF($J25=99, "Surveillance", ROUND(D25*INTRO!$E$51,0))), 0),"Not required") -> 0 | R25: =IF(INTRO!$E$41="Endemic", IF($J25>1, IF($J25=4, "Unknown", IF($J25=99, "Surveillance", SUM($O25:$Q25))), 0),"Not required") -> 0 | S25: =IF(INTRO!$E$43="Endemic", IF($K25>1, IF($K25=4, "Unknown", IF($K25=99, "Surveillance", ROUND(E25*0.75,0))), 0),"Not required") -> 0 | T25: =IF(INTRO!$E$43="Endemic", IF($K25>1, IF($K25=4, "Unknown", IF($K25=99, "Surveillance", F25)), 0),"Not required") -> 0 | U25: =IF(INTRO!$E$43="Endemic", IF($K25>1, IF($K25=4, "Unknown", IF($K25=99, "Surveillance", G25)), 0),"Not required") -> 0 | V25: =IF(INTRO!$E$43="Endemic", IF($K25>1, IF($K25=4, "Unknown", IF($K25=99, "Surveillance", SUM($S25:$U25))), 0),"Not required") -> 0 | W25: 1 | X25: 0 | Y25: 0 | Z25: 0
A26: =IF(INTRO!$E$33<>0,INTRO!$E$33, " ") -> Angola | B26: BIE | C26: ANDULO | D26: 341182.6822 | E26: =IF(INTRO!$E$48="","",ROUND($D26*INTRO!$E$48,0)) -> 46537 | F26: =IF(INTRO!$E$49="","",ROUND($D26*INTRO!$E$49,0)) -> 94985 | G26: =IF(INTRO!$E$50="","",ROUND($D26*INTRO!$E$50,0)) -> 187036 | H26: 0 | I26: 1 | J26: 1 | K26: 1 | L26: 1 | M26: =IF(INTRO!$E$37="Endemic",IF($H26>0,IF($H26=4,"Unknown",IF($H26=99,"Stopped",$D26)),0),"Not required") -> 0 | N26: =IF(INTRO!$E$39="Endemic", IF($I26>0, IF($I26=4,"Unknown",IF($I26=99,"Stopped",$D26)), 0),"Not required") -> 341182.6822 | O26: =IF(INTRO!$E$41="Endemic", IF($J26>1, IF($J26=4, "Unknown", IF($J26=99, "Surveillance", E26)), 0),"Not required") -> 0 | P26: =IF(INTRO!$E$41="Endemic", IF($J26>1, IF($J26=4, "Unknown", IF($J26=99, "Surveillance", F26)), 0),"Not required") -> 0 | Q26: =IF(INTRO!$E$41="Endemic", IF($J26>1, IF($J26=4, "Unknown", IF($J26=99, "Surveillance", ROUND(D26*INTRO!$E$51,0))), 0),"Not required") -> 0 | R26: =IF(INTRO!$E$41="Endemic", IF($J26>1, IF($J26=4, "Unknown", IF($J26=99, "Surveillance", SUM($O26:$Q26))), 0),"Not required") -> 0 | S26: =IF(INTRO!$E$43="Endemic", IF($K26>1, IF($K26=4, "Unknown", IF($K26=99, "Surveillance", ROUND(E26*0.75,0))), 0),"Not required") -> 0 | T26: =IF(INTRO!$E$43="Endemic", IF($K26>1, IF($K26=4, "Unknown", IF($K26=99, "Surveillance", F26)), 0),"Not required") -> 0 | U26: =IF(INTRO!$E$43="Endemic", IF($K26>1, IF($K26=4, "Unknown", IF($K26=99, "Surveillance", G26)), 0),"Not required") -> 0 | V26: =IF(INTRO!$E$43="Endemic", IF($K26>1, IF($K26=4, "Unknown", IF($K26=99, "Surveillance", SUM($S26:$U26))), 0),"Not required") -> 0 | W26: 0 | X26: 1 | Y26: 0 | Z26: 0
A27: =IF(INTRO!$E$33<>0,INTRO!$E$33, " ") -> Angola | B27: BIE | C27: CAMACUPA | D27: 204750.3219 | E27: =IF(INTRO!$E$48="","",ROUND($D27*INTRO!$E$48,0)) -> 27928 | F27: =IF(INTRO!$E$49="","",ROUND($D27*INTRO!$E$49,0)) -> 57002 | G27: =IF(INTRO!$E$50="","",ROUND($D27*INTRO!$E$50,0)) -> 112244 | H27: 0 | I27: 1 | J27: 1 | K27: 2 | L27: 0 | M27: =IF(INTRO!$E$37="Endemic",IF($H27>0,IF($H27=4,"Unknown",IF($H27=99,"Stopped",$D27)),0),"Not required") -> 0 | N27: =IF(INTRO!$E$39="Endemic", IF($I27>0, IF($I27=4,"Unknown",IF($I27=99,"Stopped",$D27)), 0),"Not required") -> 204750.3219 | O27: =IF(INTRO!$E$41="Endemic", IF($J27>1, IF($J27=4, "Unknown", IF($J27=99, "Surveillance", E27)), 0),"Not required") -> 0 | P27: =IF(INTRO!$E$41="Endemic", IF($J27>1, IF($J27=4, "Unknown", IF($J27=99, "Surveillance", F27)), 0),"Not required") -> 0 | Q27: =IF(INTRO!$E$41="Endemic", IF($J27>1, IF($J27=4, "Unknown", IF($J27=99, "Surveillance", ROUND(D27*INTRO!$E$51,0))), 0),"Not required") -> 0 | R27: =IF(INTRO!$E$41="Endemic", IF($J27>1, IF($J27=4, "Unknown", IF($J27=99, "Surveillance", SUM($O27:$Q27))), 0),"Not required") -> 0 | S27: =IF(INTRO!$E$43="Endemic", IF($K27>1, IF($K27=4, "Unknown", IF($K27=99, "Surveillance", ROUND(E27*0.75,0))), 0),"Not required") -> 20946 | T27: =IF(INTRO!$E$43="Endemic", IF($K27>1, IF($K27=4, "Unknown", IF($K27=99, "Surveillance", F27)), 0),"Not required") -> 57002 | U27: =IF(INTRO!$E$43="Endemic", IF($K27>1, IF($K27=4, "Unknown", IF($K27=99, "Surveillance", G27)), 0),"Not required") -> 112244 | V27: =IF(INTRO!$E$43="Endemic", IF($K27>1, IF($K27=4, "Unknown", IF($K27=99, "Surveillance", SUM($S27:$U27))), 0),"Not required") -> 190192 | W27: 0 | X27: 1 | Y27: 0 | Z27: 1
A28: =IF(INTRO!$E$33<>0,INTRO!$E$33, " ") -> Angola | B28: BIE | C28: CATABOLA | D28: 167353.8504 | E28: =IF(INTRO!$E$48="","",ROUND($D28*INTRO!$E$48,0)) -> 22827 | F28: =IF(INTRO!$E$49="","",ROUND($D28*INTRO!$E$49,0)) -> 46591 | G28: =IF(INTRO!$E$50="","",ROUND($D28*INTRO!$E$50,0)) -> 91743 | H28: 0 | I28: 1 | J28: 1 | K28: 2 | L28: 1 | M28: =IF(INTRO!$E$37="Endemic",IF($H28>0,IF($H28=4,"Unknown",IF($H28=99,"Stopped",$D28)),0),"Not required") -> 0 | N28: =IF(INTRO!$E$39="Endemic", IF($I28>0, IF($I28=4,"Unknown",IF($I28=99,"Stopped",$D28)), 0),"Not required") -> 167353.8504 | O28: =IF(INTRO!$E$41="Endemic", IF($J28>1, IF($J28=4, "Unknown", IF($J28=99, "Surveillance", E28)), 0),"Not required") -> 0 | P28: =IF(INTRO!$E$41="Endemic", IF($J28>1, IF($J28=4, "Unknown", IF($J28=99, "Surveillance", F28)), 0),"Not required") -> 0 | Q28: =IF(INTRO!$E$41="Endemic", IF($J28>1, IF($J28=4, "Unknown", IF($J28=99, "Surveillance", ROUND(D28*INTRO!$E$51,0))), 0),"Not required") -> 0 | R28: =IF(INTRO!$E$41="Endemic", IF($J28>1, IF($J28=4, "Unknown", IF($J28=99, "Surveillance", SUM($O28:$Q28))), 0),"Not required") -> 0 | S28: =IF(INTRO!$E$43="Endemic", IF($K28>1, IF($K28=4, "Unknown", IF($K28=99, "Surveillance", ROUND(E28*0.75,0))), 0),"Not required") -> 17120 | T28: =IF(INTRO!$E$43="Endemic", IF($K28>1, IF($K28=4, "Unknown", IF($K28=99, "Surveillance", F28)), 0),"Not required") -> 46591 | U28: =IF(INTRO!$E$43="Endemic", IF($K28>1, IF($K28=4, "Unknown", IF($K28=99, "Surveillance", G28)), 0),"Not required") -> 91743 | V28: =IF(INTRO!$E$43="Endemic", IF($K28>1, IF($K28=4, "Unknown", IF($K28=99, "Surveillance", SUM($S28:$U28))), 0),"Not required") -> 155454 | W28: 0 | X28: 1 | Y28: 0 | Z28: 1
A29: =IF(INTRO!$E$33<>0,INTRO!$E$33, " ") -> Angola | B29: BIE | C29: CHINGUAR | D29: 170971.5709 | E29: =IF(INTRO!$E$48="","",ROUND($D29*INTRO!$E$48,0)) -> 23321 | F29: =IF(INTRO!$E$49="","",ROUND($D29*INTRO!$E$49,0)) -> 47598 | G29: =IF(INTRO!$E$50="","",ROUND($D29*INTRO!$E$50,0)) -> 93727 | H29: 0 | I29: 1 | J29: 1 | K29: 1 | L29: 1 | M29: =IF(INTRO!$E$37="Endemic",IF($H29>0,IF($H29=4,"Unknown",IF($H29=99,"Stopped",$D29)),0),"Not required") -> 0 | N29: =IF(INTRO!$E$39="Endemic", IF($I29>0, IF($I29=4,"Unknown",IF($I29=99,"Stopped",$D29)), 0),"Not required") -> 170971.5709 | O29: =IF(INTRO!$E$41="Endemic", IF($J29>1, IF($J29=4, "Unknown", IF($J29=99, "Surveillance", E29)), 0),"Not required") -> 0 | P29: =IF(INTRO!$E$41="Endemic", IF($J29>1, IF($J29=4, "Unknown", IF($J29=99, "Surveillance", F29)), 0),"Not required") -> 0 | Q29: =IF(INTRO!$E$41="Endemic", IF($J29>1, IF($J29=4, "Unknown", IF($J29=99, "Surveillance", ROUND(D29*INTRO!$E$51,0))), 0),"Not required") -> 0 | R29: =IF(INTRO!$E$41="Endemic", IF($J29>1, IF($J29=4, "Unknown", IF($J29=99, "Surveillance", SUM($O29:$Q29))), 0),"Not required") -> 0 | S29: =IF(INTRO!$E$43="Endemic", IF($K29>1, IF($K29=4, "Unknown", IF($K29=99, "Surveillance", ROUND(E29*0.75,0))), 0),"Not required") -> 0 | T29: =IF(INTRO!$E$43="Endemic", IF($K29>1, IF($K29=4, "Unknown", IF($K29=99, "Surveillance", F29)), 0),"Not required") -> 0 | U29: =IF(INTRO!$E$43="Endemic", IF($K29>1, IF($K29=4, "Unknown", IF($K29=99, "Surveillance", G29)), 0),"Not required") -> 0 | V29: =IF(INTRO!$E$43="Endemic", IF($K29>1, IF($K29=4, "Unknown", IF($K29=99, "Surveillance", SUM($S29:$U29))), 0),"Not required") -> 0 | W29: 0 | X29: 1 | Y29: 0 | Z29: 0
A30: =IF(INTRO!$E$33<>0,INTRO!$E$33, " ") -> Angola | B30: BIE | C30: CHITEMBO | D30: 103290.6657 | E30: =IF(INTRO!$E$48="","",ROUND($D30*INTRO!$E$48,0)) -> 14089 | F30: =IF(INTRO!$E$49="","",ROUND($D30*INTRO!$E$49,0)) -> 28756 | G30: =IF(INTRO!$E$50="","",ROUND($D30*INTRO!$E$50,0)) -> 56624 | H30: 0 | I30: 4 | J30: 1 | K30: 2 | L30: 1 | M30: =IF(INTRO!$E$37="Endemic",IF($H30>0,IF($H30=4,"Unknown",IF($H30=99,"Stopped",$D30)),0),"Not required") -> 0 | N30: =IF(INTRO!$E$39="Endemic", IF($I30>0, IF($I30=4,"Unknown",IF($I30=99,"Stopped",$D30)), 0),"Not required") -> Unknown | O30: =IF(INTRO!$E$41="Endemic", IF($J30>1, IF($J30=4, "Unknown", IF($J30=99, "Surveillance", E30)), 0),"Not required") -> 0 | P30: =IF(INTRO!$E$41="Endemic", IF($J30>1, IF($J30=4, "Unknown", IF($J30=99, "Surveillance", F30)), 0),"Not required") -> 0 | Q30: =IF(INTRO!$E$41="Endemic", IF($J30>1, IF($J30=4, "Unknown", IF($J30=99, "Surveillance", ROUND(D30*INTRO!$E$51,0))), 0),"Not required") -> 0 | R30: =IF(INTRO!$E$41="Endemic", IF($J30>1, IF($J30=4, "Unknown", IF($J30=99, "Surveillance", SUM($O30:$Q30))), 0),"Not required") -> 0 | S30: =IF(INTRO!$E$43="Endemic", IF($K30>1, IF($K30=4, "Unknown", IF($K30=99, "Surveillance", ROUND(E30*0.75,0))), 0),"Not required") -> 10567 | T30: =IF(INTRO!$E$43="Endemic", IF($K30>1, IF($K30=4, "Unknown", IF($K30=99, "Surveillance", F30)), 0),"Not required") -> 28756 | U30: =IF(INTRO!$E$43="Endemic", IF($K30>1, IF($K30=4, "Unknown", IF($K30=99, "Surveillance", G30)), 0),"Not required") -> 56624 | V30: =IF(INTRO!$E$43="Endemic", IF($K30>1, IF($K30=4, "Unknown", IF($K30=99, "Surveillance", SUM($S30:$U30))), 0),"Not required") -> 95947 | W30: 0 | X30: 0 | Y30: 0 | Z30: 1
A31: =IF(INTRO!$E$33<>0,INTRO!$E$33, " ") -> Angola | B31: BIE | C31: CUEMBA | D31: 75282.3371 | E31: =IF(INTRO!$E$48="","",ROUND($D31*INTRO!$E$48,0)) -> 10269 | F31: =IF(INTRO!$E$49="","",ROUND($D31*INTRO!$E$49,0)) -> 20959 | G31: =IF(INTRO!$E$50="","",ROUND($D31*INTRO!$E$50,0)) -> 41270 | H31: 1 | I31: 1 | J31: 1 | K31: 1 | L31: 0 | M31: =IF(INTRO!$E$37="Endemic",IF($H31>0,IF($H31=4,"Unknown",IF($H31=99,"Stopped",$D31)),0),"Not required") -> 75282.3371 | N31: =IF(INTRO!$E$39="Endemic", IF($I31>0, IF($I31=4,"Unknown",IF($I31=99,"Stopped",$D31)), 0),"Not required") -> 75282.3371 | O31: =IF(INTRO!$E$41="Endemic", IF($J31>1, IF($J31=4, "Unknown", IF($J31=99, "Surveillance", E31)), 0),"Not required") -> 0 | P31: =IF(INTRO!$E$41="Endemic", IF($J31>1, IF($J31=4, "Unknown", IF($J31=99, "Surveillance", F31)), 0),"Not required") -> 0 | Q31: =IF(INTRO!$E$41="Endemic", IF($J31>1, IF($J31=4, "Unknown", IF($J31=99, "Surveillance", ROUND(D31*INTRO!$E$51,0))), 0),"Not required") -> 0 | R31: =IF(INTRO!$E$41="Endemic", IF($J31>1, IF($J31=4, "Unknown", IF($J31=99, "Surveillance", SUM($O31:$Q31))), 0),"Not required") -> 0 | S31: =IF(INTRO!$E$43="Endemic", IF($K31>1, IF($K31=4, "Unknown", IF($K31=99, "Surveillance", ROUND(E31*0.75,0))), 0),"Not required") -> 0 | T31: =IF(INTRO!$E$43="Endemic", IF($K31>1, IF($K31=4, "Unknown", IF($K31=99, "Surveillance", F31)), 0),"Not required") -> 0 | U31: =IF(INTRO!$E$43="Endemic", IF($K31>1, IF($K31=4, "Unknown", IF($K31=99, "Surveillance", G31)), 0),"Not required") -> 0 | V31: =IF(INTRO!$E$43="Endemic", IF($K31>1, IF($K31=4, "Unknown", IF($K31=99, "Surveillance", SUM($S31:$U31))), 0),"Not required") -> 0 | W31: 1 | X31: 1 | Y31: 0 | Z31: 0
A32: =IF(INTRO!$E$33<>0,INTRO!$E$33, " ") -> Angola | B32: BIE | C32: CUITO | D32: 595879.6958 | E32: =IF(INTRO!$E$48="","",ROUND($D32*INTRO!$E$48,0)) -> 81278 | F32: =IF(INTRO!$E$49="","",ROUND($D32*INTRO!$E$49,0)) -> 165893 | G32: =IF(INTRO!$E$50="","",ROUND($D32*INTRO!$E$50,0)) -> 326661 | H32: 0 | I32: 1 | J32: 1 | K32: 3 | L32: 1 | M32: =IF(INTRO!$E$37="Endemic",IF($H32>0,IF($H32=4,"Unknown",IF($H32=99,"Stopped",$D32)),0),"Not required") -> 0 | N32: =IF(INTRO!$E$39="Endemic", IF($I32>0, IF($I32=4,"Unknown",IF($I32=99,"Stopped",$D32)), 0),"Not required") -> 595879.6958 | O32: =IF(INTRO!$E$41="Endemic", IF($J32>1, IF($J32=4, "Unknown", IF($J32=99, "Surveillance", E32)), 0),"Not required") -> 0 | P32: =IF(INTRO!$E$41="Endemic", IF($J32>1, IF($J32=4, "Unknown", IF($J32=99, "Surveillance", F32)), 0),"Not required") -> 0 | Q32: =IF(INTRO!$E$41="Endemic", IF($J32>1, IF($J32=4, "Unknown", IF($J32=99, "Surveillance", ROUND(D32*INTRO!$E$51,0))), 0),"Not required") -> 0 | R32: =IF(INTRO!$E$41="Endemic", IF($J32>1, IF($J32=4, "Unknown", IF($J32=99, "Surveillance", SUM($O32:$Q32))), 0),"Not required") -> 0 | S32: =IF(INTRO!$E$43="Endemic", IF($K32>1, IF($K32=4, "Unknown", IF($K32=99, "Surveillance", ROUND(E32*0.75,0))), 0),"Not required") -> 60959 | T32: =IF(INTRO!$E$43="Endemic", IF($K32>1, IF($K32=4, "Unknown", IF($K32=99, "Surveillance", F32)), 0),"Not required") -> 165893 | U32: =IF(INTRO!$E$43="Endemic", IF($K32>1, IF($K32=4, "Unknown", IF($K32=99, "Surveillance", G32)), 0),"Not required") -> 326661 | V32: =IF(INTRO!$E$43="Endemic", IF($K32>1, IF($K32=4, "Unknown", IF($K32=99, "Surveillance", SUM($S32:$U32))), 0),"Not required") -> 553513 | W32: 0 | X32: 1 | Y32: 0 | Z32: 1
A33: =IF(INTRO!$E$33<>0,INTRO!$E$33, " ") -> Angola | B33: BIE | C33: CUNHINGA | D33: 97567.70614 | E33: =IF(INTRO!$E$48="","",ROUND($D33*INTRO!$E$48,0)) -> 13308 | F33: =IF(INTRO!$E$49="","",ROUND($D33*INTRO!$E$49,0)) -> 27163 | G33: =IF(INTRO!$E$50="","",ROUND($D33*INTRO!$E$50,0)) -> 53487 | H33: 0 | I33: 1 | J33: 1 | K33: 1 | L33: 1 | M33: =IF(INTRO!$E$37="Endemic",IF($H33>0,IF($H33=4,"Unknown",IF($H33=99,"Stopped",$D33)),0),"Not required") -> 0 | N33: =IF(INTRO!$E$39="Endemic", IF($I33>0, IF($I33=4,"Unknown",IF($I33=99,"Stopped",$D33)), 0),"Not required") -> 97567.70614 | O33: =IF(INTRO!$E$41="Endemic", IF($J33>1, IF($J33=4, "Unknown", IF($J33=99, "Surveillance", E33)), 0),"Not required") -> 0 | P33: =IF(INTRO!$E$41="Endemic", IF($J33>1, IF($J33=4, "Unknown", IF($J33=99, "Surveillance", F33)), 0),"Not required") -> 0 | Q33: =IF(INTRO!$E$41="Endemic", IF($J33>1, IF($J33=4, "Unknown", IF($J33=99, "Surveillance", ROUND(D33*INTRO!$E$51,0))), 0),"Not required") -> 0 | R33: =IF(INTRO!$E$41="Endemic", IF($J33>1, IF($J33=4, "Unknown", IF($J33=99, "Surveillance", SUM($O33:$Q33))), 0),"Not required") -> 0 | S33: =IF(INTRO!$E$43="Endemic", IF($K33>1, IF($K33=4, "Unknown", IF($K33=99, "Surveillance", ROUND(E33*0.75,0))), 0),"Not required") -> 0 | T33: =IF(INTRO!$E$43="Endemic", IF($K33>1, IF($K33=4, "Unknown", IF($K33=99, "Surveillance", F33)), 0),"Not required") -> 0 | U33: =IF(INTRO!$E$43="Endemic", IF($K33>1, IF($K33=4, "Unknown", IF($K33=99, "Surveillance", G33)), 0),"Not required") -> 0 | V33: =IF(INTRO!$E$43="Endemic", IF($K33>1, IF($K33=4, "Unknown", IF($K33=99, "Surveillance", SUM($S33:$U33))), 0),"Not required") -> 0 | W33: 0 | X33: 1 | Y33: 0 | Z33: 0
A34: =IF(INTRO!$E$33<>0,INTRO!$E$33, " ") -> Angola | B34: BIE | C34: NHAREA | D34: 166967.8196 | E34: =IF(INTRO!$E$48="","",ROUND($D34*INTRO!$E$48,0)) -> 22774 | F34: =IF(INTRO!$E$49="","",ROUND($D34*INTRO!$E$49,0)) -> 46484 | G34: =IF(INTRO!$E$50="","",ROUND($D34*INTRO!$E$50,0)) -> 91532 | H34: 0 | I34: 1 | J34: 1 | K34: 1 | L34: 1 | M34: =IF(INTRO!$E$37="Endemic",IF($H34>0,IF($H34=4,"Unknown",IF($H34=99,"Stopped",$D34)),0),"Not required") -> 0 | N34: =IF(INTRO!$E$39="Endemic", IF($I34>0, IF($I34=4,"Unknown",IF($I34=99,"Stopped",$D34)), 0),"Not required") -> 166967.8196 | O34: =IF(INTRO!$E$41="Endemic", IF($J34>1, IF($J34=4, "Unknown", IF($J34=99, "Surveillance", E34)), 0),"Not required") -> 0 | P34: =IF(INTRO!$E$41="Endemic", IF($J34>1, IF($J34=4, "Unknown", IF($J34=99, "Surveillance", F34)), 0),"Not required") -> 0 | Q34: =IF(INTRO!$E$41="Endemic", IF($J34>1, IF($J34=4, "Unknown", IF($J34=99, "Surveillance", ROUND(D34*INTRO!$E$51,0))), 0),"Not required") -> 0 | R34: =IF(INTRO!$E$41="Endemic", IF($J34>1, IF($J34=4, "Unknown", IF($J34=99, "Surveillance", SUM($O34:$Q34))), 0),"Not required") -> 0 | S34: =IF(INTRO!$E$43="Endemic", IF($K34>1, IF($K34=4, "Unknown", IF($K34=99, "Surveillance", ROUND(E34*0.75,0))), 0),"Not required") -> 0 | T34: =IF(INTRO!$E$43="Endemic", IF($K34>1, IF($K34=4, "Unknown", IF($K34=99, "Surveillance", F34)), 0),"Not required") -> 0 | U34: =IF(INTRO!$E$43="Endemic", IF($K34>1, IF($K34=4, "Unknown", IF($K34=99, "Surveillance", G34)), 0),"Not required") -> 0 | V34: =IF(INTRO!$E$43="Endemic", IF($K34>1, IF($K34=4, "Unknown", IF($K34=99, "Surveillance", SUM($S34:$U34))), 0),"Not required") -> 0 | W34: 0 | X34: 1 | Y34: 0 | Z34: 0
A35: =IF(INTRO!$E$33<>0,INTRO!$E$33, " ") -> Angola | B35: CABINDA | C35: BELIZE | D35: 25088.83872 | E35: =IF(INTRO!$E$48="","",ROUND($D35*INTRO!$E$48,0)) -> 3422 | F35: =IF(INTRO!$E$49="","",ROUND($D35*INTRO!$E$49,0)) -> 6985 | G35: =IF(INTRO!$E$50="","",ROUND($D35*INTRO!$E$50,0)) -> 13754 | H35: 1 | I35: 4 | J35: 2 | K35: 0 | L35: 1 | M35: =IF(INTRO!$E$37="Endemic",IF($H35>0,IF($H35=4,"Unknown",IF($H35=99,"Stopped",$D35)),0),"Not required") -> 25088.83872 | N35: =IF(INTRO!$E$39="Endemic", IF($I35>0, IF($I35=4,"Unknown",IF($I35=99,"Stopped",$D35)), 0),"Not required") -> Unknown | O35: =IF(INTRO!$E$41="Endemic", IF($J35>1, IF($J35=4, "Unknown", IF($J35=99, "Surveillance", E35)), 0),"Not required") -> 3422 | P35: =IF(INTRO!$E$41="Endemic", IF($J35>1, IF($J35=4, "Unknown", IF($J35=99, "Surveillance", F35)), 0),"Not required") -> 6985 | Q35: =IF(INTRO!$E$41="Endemic", IF($J35>1, IF($J35=4, "Unknown", IF($J35=99, "Surveillance", ROUND(D35*INTRO!$E$51,0))), 0),"Not required") -> 5798 | R35: =IF(INTRO!$E$41="Endemic", IF($J35>1, IF($J35=4, "Unknown", IF($J35=99, "Surveillance", SUM($O35:$Q35))), 0),"Not required") -> 16205 | S35: =IF(INTRO!$E$43="Endemic", IF($K35>1, IF($K35=4, "Unknown", IF($K35=99, "Surveillance", ROUND(E35*0.75,0))), 0),"Not required") -> 0 | T35: =IF(INTRO!$E$43="Endemic", IF($K35>1, IF($K35=4, "Unknown", IF($K35=99, "Surveillance", F35)), 0),"Not required") -> 0 | U35: =IF(INTRO!$E$43="Endemic", IF($K35>1, IF($K35=4, "Unknown", IF($K35=99, "Surveillance", G35)), 0),"Not required") -> 0 | V35: =IF(INTRO!$E$43="Endemic", IF($K35>1, IF($K35=4, "Unknown", IF($K35=99, "Surveillance", SUM($S35:$U35))), 0),"Not required") -> 0 | W35: 1 | X35: 0 | Y35: 1 | Z35: 0
A36: =IF(INTRO!$E$33<>0,INTRO!$E$33, " ") -> Angola | B36: CABINDA | C36: BUCO ZAU | D36: 42057.31887 | E36: =IF(INTRO!$E$48="","",ROUND($D36*INTRO!$E$48,0)) -> 5737 | F36: =IF(INTRO!$E$49="","",ROUND($D36*INTRO!$E$49,0)) -> 11709 | G36: =IF(INTRO!$E$50="","",ROUND($D36*INTRO!$E$50,0)) -> 23056 | H36: 1 | I36: 4 | J36: 2 | K36: 2 | L36: 1 | M36: =IF(INTRO!$E$37="Endemic",IF($H36>0,IF($H36=4,"Unknown",IF($H36=99,"Stopped",$D36)),0),"Not required") -> 42057.31887 | N36: =IF(INTRO!$E$39="Endemic", IF($I36>0, IF($I36=4,"Unknown",IF($I36=99,"Stopped",$D36)), 0),"Not required") -> Unknown | O36: =IF(INTRO!$E$41="Endemic", IF($J36>1, IF($J36=4, "Unknown", IF($J36=99, "Surveillance", E36)), 0),"Not required") -> 5737 | P36: =IF(INTRO!$E$41="Endemic", IF($J36>1, IF($J36=4, "Unknown", IF($J36=99, "Surveillance", F36)), 0),"Not required") -> 11709 | Q36: =IF(INTRO!$E$41="Endemic", IF($J36>1, IF($J36=4, "Unknown", IF($J36=99, "Surveillance", ROUND(D36*INTRO!$E$51,0))), 0),"Not required") -> 9719 | R36: =IF(INTRO!$E$41="Endemic", IF($J36>1, IF($J36=4, "Unknown", IF($J36=99, "Surveillance", SUM($O36:$Q36))), 0),"Not required") -> 27165 | S36: =IF(INTRO!$E$43="Endemic", IF($K36>1, IF($K36=4, "Unknown", IF($K36=99, "Surveillance", ROUND(E36*0.75,0))), 0),"Not required") -> 4303 | T36: =IF(INTRO!$E$43="Endemic", IF($K36>1, IF($K36=4, "Unknown", IF($K36=99, "Surveillance", F36)), 0),"Not required") -> 11709 | U36: =IF(INTRO!$E$43="Endemic", IF($K36>1, IF($K36=4, "Unknown", IF($K36=99, "Surveillance", G36)), 0),"Not required") -> 23056 | V36: =IF(INTRO!$E$43="Endemic", IF($K36>1, IF($K36=4, "Unknown", IF($K36=99, "Surveillance", SUM($S36:$U36))), 0),"Not required") -> 39068 | W36: 1 | X36: 0 | Y36: 1 | Z36: 1
A37: =IF(INTRO!$E$33<>0,INTRO!$E$33, " ") -> Angola | B37: CABINDA | C37: CABINDA | D37: 801148.9444 | E37: =IF(INTRO!$E$48="","",ROUND($D37*INTRO!$E$48,0)) -> 109277 | F37: =IF(INTRO!$E$49="","",ROUND($D37*INTRO!$E$49,0)) -> 223040 | G37: =IF(INTRO!$E$50="","",ROUND($D37*INTRO!$E$50,0)) -> 439190 | H37: 1 | I37: 4 | J37: 1 | K37: 3 | L37: 1 | M37: =IF(INTRO!$E$37="Endemic",IF($H37>0,IF($H37=4,"Unknown",IF($H37=99,"Stopped",$D37)),0),"Not required") -> 801148.9444 | N37: =IF(INTRO!$E$39="Endemic", IF($I37>0, IF($I37=4,"Unknown",IF($I37=99,"Stopped",$D37)), 0),"Not required") -> Unknown | O37: =IF(INTRO!$E$41="Endemic", IF($J37>1, IF($J37=4, "Unknown", IF($J37=99, "Surveillance", E37)), 0),"Not required") -> 0 | P37: =IF(INTRO!$E$41="Endemic", IF($J37>1, IF($J37=4, "Unknown", IF($J37=99, "Surveillance", F37)), 0),"Not required") -> 0 | Q37: =IF(INTRO!$E$41="Endemic", IF($J37>1, IF($J37=4, "Unknown", IF($J37=99, "Surveillance", ROUND(D37*INTRO!$E$51,0))), 0),"Not required") -> 0 | R37: =IF(INTRO!$E$41="Endemic", IF($J37>1, IF($J37=4, "Unknown", IF($J37=99, "Surveillance", SUM($O37:$Q37))), 0),"Not required") -> 0 | S37: =IF(INTRO!$E$43="Endemic", IF($K37>1, IF($K37=4, "Unknown", IF($K37=99, "Surveillance", ROUND(E37*0.75,0))), 0),"Not required") -> 81958 | T37: =IF(INTRO!$E$43="Endemic", IF($K37>1, IF($K37=4, "Unknown", IF($K37=99, "Surveillance", F37)), 0),"Not required") -> 223040 | U37: =IF(INTRO!$E$43="Endemic", IF($K37>1, IF($K37=4, "Unknown", IF($K37=99, "Surveillance", G37)), 0),"Not required") -> 439190 | V37: =IF(INTRO!$E$43="Endemic", IF($K37>1, IF($K37=4, "Unknown", IF($K37=99, "Surveillance", SUM($S37:$U37))), 0),"Not required") -> 744188 | W37: 1 | X37: 0 | Y37: 0 | Z37: 1
A38: =IF(INTRO!$E$33<>0,INTRO!$E$33, " ") -> Angola | B38: CABINDA | C38: CACONGO | D38: 50117.55789 | E38: =IF(INTRO!$E$48="","",ROUND($D38*INTRO!$E$48,0)) -> 6836 | F38: =IF(INTRO!$E$49="","",ROUND($D38*INTRO!$E$49,0)) -> 13953 | G38: =IF(INTRO!$E$50="","",ROUND($D38*INTRO!$E$50,0)) -> 27474 | H38: 1 | I38: 4 | J38: 1 | K38: 1 | L38: 1 | M38: =IF(INTRO!$E$37="Endemic",IF($H38>0,IF($H38=4,"Unknown",IF($H38=99,"Stopped",$D38)),0),"Not required") -> 50117.55789 | N38: =IF(INTRO!$E$39="Endemic", IF($I38>0, IF($I38=4,"Unknown",IF($I38=99,"Stopped",$D38)), 0),"Not required") -> Unknown | O38: =IF(INTRO!$E$41="Endemic", IF($J38>1, IF($J38=4, "Unknown", IF($J38=99, "Surveillance", E38)), 0),"Not required") -> 0 | P38: =IF(INTRO!$E$41="Endemic", IF($J38>1, IF($J38=4, "Unknown", IF($J38=99, "Surveillance", F38)), 0),"Not required") -> 0 | Q38: =IF(INTRO!$E$41="Endemic", IF($J38>1, IF($J38=4, "Unknown", IF($J38=99, "Surveillance", ROUND(D38*INTRO!$E$51,0))), 0),"Not required") -> 0 | R38: =IF(INTRO!$E$41="Endemic", IF($J38>1, IF($J38=4, "Unknown", IF($J38=99, "Surveillance", SUM($O38:$Q38))), 0),"Not required") -> 0 | S38: =IF(INTRO!$E$43="Endemic", IF($K38>1, IF($K38=4, "Unknown", IF($K38=99, "Surveillance", ROUND(E38*0.75,0))), 0),"Not required") -> 0 | T38: =IF(INTRO!$E$43="Endemic", IF($K38>1, IF($K38=4, "Unknown", IF($K38=99, "Surveillance", F38)), 0),"Not required") -> 0 | U38: =IF(INTRO!$E$43="Endemic", IF($K38>1, IF($K38=4, "Unknown", IF($K38=99, "Surveillance", G38)), 0),"Not required") -> 0 | V38: =IF(INTRO!$E$43="Endemic", IF($K38>1, IF($K38=4, "Unknown", IF($K38=99, "Surveillance", SUM($S38:$U38))), 0),"Not required") -> 0 | W38: 1 | X38: 0 | Y38: 0 | Z38: 0
A39: =IF(INTRO!$E$33<>0,INTRO!$E$33, " ") -> Angola | B39: CUANDO CUBANGO | C39: CALAI | D39: 29434.3222 | E39: =IF(INTRO!$E$48="","",ROUND($D39*INTRO!$E$48,0)) -> 4015 | F39: =IF(INTRO!$E$49="","",ROUND($D39*INTRO!$E$49,0)) -> 8195 | G39: =IF(INTRO!$E$50="","",ROUND($D39*INTRO!$E$50,0)) -> 16136 | H39: 0 | I39: 4 | J39: 1 | K39: 2 | L39: 1 | M39: =IF(INTRO!$E$37="Endemic",IF($H39>0,IF($H39=4,"Unknown",IF($H39=99,"Stopped",$D39)),0),"Not required") -> 0 | N39: =IF(INTRO!$E$39="Endemic", IF($I39>0, IF($I39=4,"Unknown",IF($I39=99,"Stopped",$D39)), 0),"Not required") -> Unknown | O39: =IF(INTRO!$E$41="Endemic", IF($J39>1, IF($J39=4, "Unknown", IF($J39=99, "Surveillance", E39)), 0),"Not required") -> 0 | P39: =IF(INTRO!$E$41="Endemic", IF($J39>1, IF($J39=4, "Unknown", IF($J39=99, "Surveillance", F39)), 0),"Not required") -> 0 | Q39: =IF(INTRO!$E$41="Endemic", IF($J39>1, IF($J39=4, "Unknown", IF($J39=99, "Surveillance", ROUND(D39*INTRO!$E$51,0))), 0),"Not required") -> 0 | R39: =IF(INTRO!$E$41="Endemic", IF($J39>1, IF($J39=4, "Unknown", IF($J39=99, "Surveillance", SUM($O39:$Q39))), 0),"Not required") -> 0 | S39: =IF(INTRO!$E$43="Endemic", IF($K39>1, IF($K39=4, "Unknown", IF($K39=99, "Surveillance", ROUND(E39*0.75,0))), 0),"Not required") -> 3011 | T39: =IF(INTRO!$E$43="Endemic", IF($K39>1, IF($K39=4, "Unknown", IF($K39=99, "Surveillance", F39)), 0),"Not required") -> 8195 | U39: =IF(INTRO!$E$43="Endemic", IF($K39>1, IF($K39=4, "Unknown", IF($K39=99, "Surveillance", G39)), 0),"Not required") -> 16136 | V39: =IF(INTRO!$E$43="Endemic", IF($K39>1, IF($K39=4, "Unknown", IF($K39=99, "Surveillance", SUM($S39:$U39))), 0),"Not required") -> 27342 | W39: 0 | X39: 0 | Y39: 0 | Z39: 1
A40: =IF(INTRO!$E$33<>0,INTRO!$E$33, " ") -> Angola | B40: CUANDO CUBANGO | C40: CUANGAR | D40: 36977.74401 | E40: =IF(INTRO!$E$48="","",ROUND($D40*INTRO!$E$48,0)) -> 5044 | F40: =IF(INTRO!$E$49="","",ROUND($D40*INTRO!$E$49,0)) -> 10295 | G40: =IF(INTRO!$E$50="","",ROUND($D40*INTRO!$E$50,0)) -> 20271 | H40: 0 | I40: 1 | J40: 1 | K40: 2 | L40: 1 | M40: =IF(INTRO!$E$37="Endemic",IF($H40>0,IF($H40=4,"Unknown",IF($H40=99,"Stopped",$D40)),0),"Not required") -> 0 | N40: =IF(INTRO!$E$39="Endemic", IF($I40>0, IF($I40=4,"Unknown",IF($I40=99,"Stopped",$D40)), 0),"Not required") -> 36977.74401 | O40: =IF(INTRO!$E$41="Endemic", IF($J40>1, IF($J40=4, "Unknown", IF($J40=99, "Surveillance", E40)), 0),"Not required") -> 0 | P40: =IF(INTRO!$E$41="Endemic", IF($J40>1, IF($J40=4, "Unknown", IF($J40=99, "Surveillance", F40)), 0),"Not required") -> 0 | Q40: =IF(INTRO!$E$41="Endemic", IF($J40>1, IF($J40=4, "Unknown", IF($J40=99, "Surveillance", ROUND(D40*INTRO!$E$51,0))), 0),"Not required") -> 0 | R40: =IF(INTRO!$E$41="Endemic", IF($J40>1, IF($J40=4, "Unknown", IF($J40=99, "Surveillance", SUM($O40:$Q40))), 0),"Not required") -> 0 | S40: =IF(INTRO!$E$43="Endemic", IF($K40>1, IF($K40=4, "Unknown", IF($K40=99, "Surveillance", ROUND(E40*0.75,0))), 0),"Not required") -> 3783 | T40: =IF(INTRO!$E$43="Endemic", IF($K40>1, IF($K40=4, "Unknown", IF($K40=99, "Surveillance", F40)), 0),"Not required") -> 10295 | U40: =IF(INTRO!$E$43="Endemic", IF($K40>1, IF($K40=4, "Unknown", IF($K40=99, "Surveillance", G40)), 0),"Not required") -> 20271 | V40: =IF(INTRO!$E$43="Endemic", IF($K40>1, IF($K40=4, "Unknown", IF($K40=99, "Surveillance", SUM($S40:$U40))), 0),"Not required") -> 34349 | W40: 0 | X40: 1 | Y40: 0 | Z40: 1
A41: =IF(INTRO!$E$33<>0,INTRO!$E$33, " ") -> Angola | B41: CUANDO CUBANGO | C41: CUCHI | D41: 55836.29853 | E41: =IF(INTRO!$E$48="","",ROUND($D41*INTRO!$E$48,0)) -> 7616 | F41: =IF(INTRO!$E$49="","",ROUND($D41*INTRO!$E$49,0)) -> 15545 | G41: =IF(INTRO!$E$50="","",ROUND($D41*INTRO!$E$50,0)) -> 30609 | H41: 0 | I41: 1 | J41: 0 | K41: 2 | L41: 1 | M41: =IF(INTRO!$E$37="Endemic",IF($H41>0,IF($H41=4,"Unknown",IF($H41=99,"Stopped",$D41)),0),"Not required") -> 0 | N41: =IF(INTRO!$E$39="Endemic", IF($I41>0, IF($I41=4,"Unknown",IF($I41=99,"Stopped",$D41)), 0),"Not required") -> 55836.29853 | O41: =IF(INTRO!$E$41="Endemic", IF($J41>1, IF($J41=4, "Unknown", IF($J41=99, "Surveillance", E41)), 0),"Not required") -> 0 | P41: =IF(INTRO!$E$41="Endemic", IF($J41>1, IF($J41=4, "Unknown", IF($J41=99, "Surveillance", F41)), 0),"Not required") -> 0 | Q41: =IF(INTRO!$E$41="Endemic", IF($J41>1, IF($J41=4, "Unknown", IF($J41=99, "Surveillance", ROUND(D41*INTRO!$E$51,0))), 0),"Not required") -> 0 | R41: =IF(INTRO!$E$41="Endemic", IF($J41>1, IF($J41=4, "Unknown", IF($J41=99, "Surveillance", SUM($O41:$Q41))), 0),"Not required") -> 0 | S41: =IF(INTRO!$E$43="Endemic", IF($K41>1, IF($K41=4, "Unknown", IF($K41=99, "Surveillance", ROUND(E41*0.75,0))), 0),"Not required") -> 5712 | T41: =IF(INTRO!$E$43="Endemic", IF($K41>1, IF($K41=4, "Unknown", IF($K41=99, "Surveillance", F41)), 0),"Not required") -> 15545 | U41: =IF(INTRO!$E$43="Endemic", IF($K41>1, IF($K41=4, "Unknown", IF($K41=99, "Surveillance", G41)), 0),"Not required") -> 30609 | V41: =IF(INTRO!$E$43="Endemic", IF($K41>1, IF($K41=4, "Unknown", IF($K41=99, "Surveillance", SUM($S41:$U41))), 0),"Not required") -> 51866 | W41: 0 | X41: 1 | Y41: 0 | Z41: 1
A42: =IF(INTRO!$E$33<>0,INTRO!$E$33, " ") -> Angola | B42: CUANDO CUBANGO | C42: CUITO CUANAVALE | D42: 53049.70451 | E42: =IF(INTRO!$E$48="","",ROUND($D42*INTRO!$E$48,0)) -> 7236 | F42: =IF(INTRO!$E$49="","",ROUND($D42*INTRO!$E$49,0)) -> 14769 | G42: =IF(INTRO!$E$50="","",ROUND($D42*INTRO!$E$50,0)) -> 29082 | H42: 0 | I42: 1 | J42: 1 | K42: 2 | L42: 1 | M42: =IF(INTRO!$E$37="Endemic",IF($H42>0,IF($H42=4,"Unknown",IF($H42=99,"Stopped",$D42)),0),"Not required") -> 0 | N42: =IF(INTRO!$E$39="Endemic", IF($I42>0, IF($I42=4,"Unknown",IF($I42=99,"Stopped",$D42)), 0),"Not required") -> 53049.70451 | O42: =IF(INTRO!$E$41="Endemic", IF($J42>1, IF($J42=4, "Unknown", IF($J42=99, "Surveillance", E42)), 0),"Not required") -> 0 | P42: =IF(INTRO!$E$41="Endemic", IF($J42>1, IF($J42=4, "Unknown", IF($J42=99, "Surveillance", F42)), 0),"Not required") -> 0 | Q42: =IF(INTRO!$E$41="Endemic", IF($J42>1, IF($J42=4, "Unknown", IF($J42=99, "Surveillance", ROUND(D42*INTRO!$E$51,0))), 0),"Not required") -> 0 | R42: =IF(INTRO!$E$41="Endemic", IF($J42>1, IF($J42=4, "Unknown", IF($J42=99, "Surveillance", SUM($O42:$Q42))), 0),"Not required") -> 0 | S42: =IF(INTRO!$E$43="Endemic", IF($K42>1, IF($K42=4, "Unknown", IF($K42=99, "Surveillance", ROUND(E42*0.75,0))), 0),"Not required") -> 5427 | T42: =IF(INTRO!$E$43="Endemic", IF($K42>1, IF($K42=4, "Unknown", IF($K42=99, "Surveillance", F42)), 0),"Not required") -> 14769 | U42: =IF(INTRO!$E$43="Endemic", IF($K42>1, IF($K42=4, "Unknown", IF($K42=99, "Surveillance", G42)), 0),"Not required") -> 29082 | V42: =IF(INTRO!$E$43="Endemic", IF($K42>1, IF($K42=4, "Unknown", IF($K42=99, "Surveillance", SUM($S42:$U42))), 0),"Not required") -> 49278 | W42: 0 | X42: 1 | Y42: 0 | Z42: 1
A43: =IF(INTRO!$E$33<>0,INTRO!$E$33, " ") -> Angola | B43: CUANDO CUBANGO | C43: DIRICO | D43: 19653.82019 | E43: =IF(INTRO!$E$48="","",ROUND($D43*INTRO!$E$48,0)) -> 2681 | F43: =IF(INTRO!$E$49="","",ROUND($D43*INTRO!$E$49,0)) -> 5472 | G43: =IF(INTRO!$E$50="","",ROUND($D43*INTRO!$E$50,0)) -> 10774 | H43: 0 | I43: 4 | J43: 1 | K43: 2 | L43: 1 | M43: =IF(INTRO!$E$37="Endemic",IF($H43>0,IF($H43=4,"Unknown",IF($H43=99,"Stopped",$D43)),0),"Not required") -> 0 | N43: =IF(INTRO!$E$39="Endemic", IF($I43>0, IF($I43=4,"Unknown",IF($I43=99,"Stopped",$D43)), 0),"Not required") -> Unknown | O43: =IF(INTRO!$E$41="Endemic", IF($J43>1, IF($J43=4, "Unknown", IF($J43=99, "Surveillance", E43)), 0),"Not required") -> 0 | P43: =IF(INTRO!$E$41="Endemic", IF($J43>1, IF($J43=4, "Unknown", IF($J43=99, "Surveillance", F43)), 0),"Not required") -> 0 | Q43: =IF(INTRO!$E$41="Endemic", IF($J43>1, IF($J43=4, "Unknown", IF($J43=99, "Surveillance", ROUND(D43*INTRO!$E$51,0))), 0),"Not required") -> 0 | R43: =IF(INTRO!$E$41="Endemic", IF($J43>1, IF($J43=4, "Unknown", IF($J43=99, "Surveillance", SUM($O43:$Q43))), 0),"Not required") -> 0 | S43: =IF(INTRO!$E$43="Endemic", IF($K43>1, IF($K43=4, "Unknown", IF($K43=99, "Surveillance", ROUND(E43*0.75,0))), 0),"Not required") -> 2011 | T43: =IF(INTRO!$E$43="Endemic", IF($K43>1, IF($K43=4, "Unknown", IF($K43=99, "Surveillance", F43)), 0),"Not required") -> 5472 | U43: =IF(INTRO!$E$43="Endemic", IF($K43>1, IF($K43=4, "Unknown", IF($K43=99, "Surveillance", G43)), 0),"Not required") -> 10774 | V43: =IF(INTRO!$E$43="Endemic", IF($K43>1, IF($K43=4, "Unknown", IF($K43=99, "Surveillance", SUM($S43:$U43))), 0),"Not required") -> 18257 | W43: 0 | X43: 0 | Y43: 0 | Z43: 1
A44: =IF(INTRO!$E$33<>0,INTRO!$E$33, " ") -> Angola | B44: CUANDO CUBANGO | C44: MAVINGA | D44: 35336.58569 | E44: =IF(INTRO!$E$48="","",ROUND($D44*INTRO!$E$48,0)) -> 4820 | F44: =IF(INTRO!$E$49="","",ROUND($D44*INTRO!$E$49,0)) -> 9838 | G44: =IF(INTRO!$E$50="","",ROUND($D44*INTRO!$E$50,0)) -> 19372 | H44: 0 | I44: 4 | J44: 1 | K44: 1 | L44: 1 | M44: =IF(INTRO!$E$37="Endemic",IF($H44>0,IF($H44=4,"Unknown",IF($H44=99,"Stopped",$D44)),0),"Not required") -> 0 | N44: =IF(INTRO!$E$39="Endemic", IF($I44>0, IF($I44=4,"Unknown",IF($I44=99,"Stopped",$D44)), 0),"Not required") -> Unknown | O44: =IF(INTRO!$E$41="Endemic", IF($J44>1, IF($J44=4, "Unknown", IF($J44=99, "Surveillance", E44)), 0),"Not required") -> 0 | P44: =IF(INTRO!$E$41="Endemic", IF($J44>1, IF($J44=4, "Unknown", IF($J44=99, "Surveillance", F44)), 0),"Not required") -> 0 | Q44: =IF(INTRO!$E$41="Endemic", IF($J44>1, IF($J44=4, "Unknown", IF($J44=99, "Surveillance", ROUND(D44*INTRO!$E$51,0))), 0),"Not required") -> 0 | R44: =IF(INTRO!$E$41="Endemic", IF($J44>1, IF($J44=4, "Unknown", IF($J44=99, "Surveillance", SUM($O44:$Q44))), 0),"Not required") -> 0 | S44: =IF(INTRO!$E$43="Endemic", IF($K44>1, IF($K44=4, "Unknown", IF($K44=99, "Surveillance", ROUND(E44*0.75,0))), 0),"Not required") -> 0 | T44: =IF(INTRO!$E$43="Endemic", IF($K44>1, IF($K44=4, "Unknown", IF($K44=99, "Surveillance", F44)), 0),"Not required") -> 0 | U44: =IF(INTRO!$E$43="Endemic", IF($K44>1, IF($K44=4, "Unknown", IF($K44=99, "Surveillance", G44)), 0),"Not required") -> 0 | V44: =IF(INTRO!$E$43="Endemic", IF($K44>1, IF($K44=4, "Unknown", IF($K44=99, "Surveillance", SUM($S44:$U44))), 0),"Not required") -> 0 | W44: 0 | X44: 0 | Y44: 0 | Z44: 0
A45: =IF(INTRO!$E$33<>0,INTRO!$E$33, " ") -> Angola | B45: CUANDO CUBANGO | C45: MENONGUE | D45: 416969.1798 | E45: =IF(INTRO!$E$48="","",ROUND($D45*INTRO!$E$48,0)) -> 56875 | F45: =IF(INTRO!$E$49="","",ROUND($D45*INTRO!$E$49,0)) -> 116084 | G45: =IF(INTRO!$E$50="","",ROUND($D45*INTRO!$E$50,0)) -> 228583 | H45: 0 | I45: 1 | J45: 1 | K45: 2 | L45: 1 | M45: =IF(INTRO!$E$37="Endemic",IF($H45>0,IF($H45=4,"Unknown",IF($H45=99,"Stopped",$D45)),0),"Not required") -> 0 | N45: =IF(INTRO!$E$39="Endemic", IF($I45>0, IF($I45=4,"Unknown",IF($I45=99,"Stopped",$D45)), 0),"Not required") -> 416969.1798 | O45: =IF(INTRO!$E$41="Endemic", IF($J45>1, IF($J45=4, "Unknown", IF($J45=99, "Surveillance", E45)), 0),"Not required") -> 0 | P45: =IF(INTRO!$E$41="Endemic", IF($J45>1, IF($J45=4, "Unknown", IF($J45=99, "Surveillance", F45)), 0),"Not required") -> 0 | Q45: =IF(INTRO!$E$41="Endemic", IF($J45>1, IF($J45=4, "Unknown", IF($J45=99, "Surveillance", ROUND(D45*INTRO!$E$51,0))), 0),"Not required") -> 0 | R45: =IF(INTRO!$E$41="Endemic", IF($J45>1, IF($J45=4, "Unknown", IF($J45=99, "Surveillance", SUM($O45:$Q45))), 0),"Not required") -> 0 | S45: =IF(INTRO!$E$43="Endemic", IF($K45>1, IF($K45=4, "Unknown", IF($K45=99, "Surveillance", ROUND(E45*0.75,0))), 0),"Not required") -> 42656 | T45: =IF(INTRO!$E$43="Endemic", IF($K45>1, IF($K45=4, "Unknown", IF($K45=99, "Surveillance", F45)), 0),"Not required") -> 116084 | U45: =IF(INTRO!$E$43="Endemic", IF($K45>1, IF($K45=4, "Unknown", IF($K45=99, "Surveillance", G45)), 0),"Not required") -> 228583 | V45: =IF(INTRO!$E$43="Endemic", IF($K45>1, IF($K45=4, "Unknown", IF($K45=99, "Surveillance", SUM($S45:$U45))), 0),"Not required") -> 387323 | W45: 0 | X45: 1 | Y45: 0 | Z45: 1
A46: =IF(INTRO!$E$33<>0,INTRO!$E$33, " ") -> Angola | B46: CUANDO CUBANGO | C46: NANKOVA | D46: 3633.541405 | E46: =IF(INTRO!$E$48="","",ROUND($D46*INTRO!$E$48,0)) -> 496 | F46: =IF(INTRO!$E$49="","",ROUND($D46*INTRO!$E$49,0)) -> 1012 | G46: =IF(INTRO!$E$50="","",ROUND($D46*INTRO!$E$50,0)) -> 1992 | H46: 0 | I46: 1 | J46: 1 | K46: 0 | L46: 1 | M46: =IF(INTRO!$E$37="Endemic",IF($H46>0,IF($H46=4,"Unknown",IF($H46=99,"Stopped",$D46)),0),"Not required") -> 0 | N46: =IF(INTRO!$E$39="Endemic", IF($I46>0, IF($I46=4,"Unknown",IF($I46=99,"Stopped",$D46)), 0),"Not required") -> 3633.541405 | O46: =IF(INTRO!$E$41="Endemic", IF($J46>1, IF($J46=4, "Unknown", IF($J46=99, "Surveillance", E46)), 0),"Not required") -> 0 | P46: =IF(INTRO!$E$41="Endemic", IF($J46>1, IF($J46=4, "Unknown", IF($J46=99, "Surveillance", F46)), 0),"Not required") -> 0 | Q46: =IF(INTRO!$E$41="Endemic", IF($J46>1, IF($J46=4, "Unknown", IF($J46=99, "Surveillance", ROUND(D46*INTRO!$E$51,0))), 0),"Not required") -> 0 | R46: =IF(INTRO!$E$41="Endemic", IF($J46>1, IF($J46=4, "Unknown", IF($J46=99, "Surveillance", SUM($O46:$Q46))), 0),"Not required") -> 0 | S46: =IF(INTRO!$E$43="Endemic", IF($K46>1, IF($K46=4, "Unknown", IF($K46=99, "Surveillance", ROUND(E46*0.75,0))), 0),"Not required") -> 0 | T46: =IF(INTRO!$E$43="Endemic", IF($K46>1, IF($K46=4, "Unknown", IF($K46=99, "Surveillance", F46)), 0),"Not required") -> 0 | U46: =IF(INTRO!$E$43="Endemic", IF($K46>1, IF($K46=4, "Unknown", IF($K46=99, "Surveillance", G46)), 0),"Not required") -> 0 | V46: =IF(INTRO!$E$43="Endemic", IF($K46>1, IF($K46=4, "Unknown", IF($K46=99, "Surveillance", SUM($S46:$U46))), 0),"Not required") -> 0 | W46: 0 | X46: 1 | Y46: 0 | Z46: 0
A47: =IF(INTRO!$E$33<>0,INTRO!$E$33, " ") -> Angola | B47: CUANDO CUBANGO | C47: RIVUNGO | D47: 42946.45542 | E47: =IF(INTRO!$E$48="","",ROUND($D47*INTRO!$E$48,0)) -> 5858 | F47: =IF(INTRO!$E$49="","",ROUND($D47*INTRO!$E$49,0)) -> 11956 | G47: =IF(INTRO!$E$50="","",ROUND($D47*INTRO!$E$50,0)) -> 23543 | H47: 0 | I47: 4 | J47: 1 | K47: 1 | L47: 0 | M47: =IF(INTRO!$E$37="Endemic",IF($H47>0,IF($H47=4,"Unknown",IF($H47=99,"Stopped",$D47)),0),"Not required") -> 0 | N47: =IF(INTRO!$E$39="Endemic", IF($I47>0, IF($I47=4,"Unknown",IF($I47=99,"Stopped",$D47)), 0),"Not required") -> Unknown | O47: =IF(INTRO!$E$41="Endemic", IF($J47>1, IF($J47=4, "Unknown", IF($J47=99, "Surveillance", E47)), 0),"Not required") -> 0 | P47: =IF(INTRO!$E$41="Endemic", IF($J47>1, IF($J47=4, "Unknown", IF($J47=99, "Surveillance", F47)), 0),"Not required") -> 0 | Q47: =IF(INTRO!$E$41="Endemic", IF($J47>1, IF($J47=4, "Unknown", IF($J47=99, "Surveillance", ROUND(D47*INTRO!$E$51,0))), 0),"Not required") -> 0 | R47: =IF(INTRO!$E$41="Endemic", IF($J47>1, IF($J47=4, "Unknown", IF($J47=99, "Surveillance", SUM($O47:$Q47))), 0),"Not required") -> 0 | S47: =IF(INTRO!$E$43="Endemic", IF($K47>1, IF($K47=4, "Unknown", IF($K47=99, "Surveillance", ROUND(E47*0.75,0))), 0),"Not required") -> 0 | T47: =IF(INTRO!$E$43="Endemic", IF($K47>1, IF($K47=4, "Unknown", IF($K47=99, "Surveillance", F47)), 0),"Not required") -> 0 | U47: =IF(INTRO!$E$43="Endemic", IF($K47>1, IF($K47=4, "Unknown", IF($K47=99, "Surveillance", G47)), 0),"Not required") -> 0 | V47: =IF(INTRO!$E$43="Endemic", IF($K47>1, IF($K47=4, "Unknown", IF($K47=99, "Surveillance", SUM($S47:$U47))), 0),"Not required") -> 0 | W47: 0 | X47: 0 | Y47: 0 | Z47: 0
A48: =IF(INTRO!$E$33<>0,INTRO!$E$33, " ") -> Angola | B48: CUANZA NORTE | C48: AMBACA | D48: 79269.21272 | E48: =IF(INTRO!$E$48="","",ROUND($D48*INTRO!$E$48,0)) -> 10812 | F48: =IF(INTRO!$E$49="","",ROUND($D48*INTRO!$E$49,0)) -> 22069 | G48: =IF(INTRO!$E$50="","",ROUND($D48*INTRO!$E$50,0)) -> 43455 | H48: 1 | I48: 1 | J48: 3 | K48: 1 | L48: 1 | M48: =IF(INTRO!$E$37="Endemic",IF($H48>0,IF($H48=4,"Unknown",IF($H48=99,"Stopped",$D48)),0),"Not required") -> 79269.21272 | N48: =IF(INTRO!$E$39="Endemic", IF($I48>0, IF($I48=4,"Unknown",IF($I48=99,"Stopped",$D48)), 0),"Not required") -> 79269.21272 | O48: =IF(INTRO!$E$41="Endemic", IF($J48>1, IF($J48=4, "Unknown", IF($J48=99, "Surveillance", E48)), 0),"Not required") -> 10812 | P48: =IF(INTRO!$E$41="Endemic", IF($J48>1, IF($J48=4, "Unknown", IF($J48=99, "Surveillance", F48)), 0),"Not required") -> 22069 | Q48: =IF(INTRO!$E$41="Endemic", IF($J48>1, IF($J48=4, "Unknown", IF($J48=99, "Surveillance", ROUND(D48*INTRO!$E$51,0))), 0),"Not required") -> 18319 | R48: =IF(INTRO!$E$41="Endemic", IF($J48>1, IF($J48=4, "Unknown", IF($J48=99, "Surveillance", SUM($O48:$Q48))), 0),"Not required") -> 51200 | S48: =IF(INTRO!$E$43="Endemic", IF($K48>1, IF($K48=4, "Unknown", IF($K48=99, "Surveillance", ROUND(E48*0.75,0))), 0),"Not required") -> 0 | T48: =IF(INTRO!$E$43="Endemic", IF($K48>1, IF($K48=4, "Unknown", IF($K48=99, "Surveillance", F48)), 0),"Not required") -> 0 | U48: =IF(INTRO!$E$43="Endemic", IF($K48>1, IF($K48=4, "Unknown", IF($K48=99, "Surveillance", G48)), 0),"Not required") -> 0 | V48: =IF(INTRO!$E$43="Endemic", IF($K48>1, IF($K48=4, "Unknown", IF($K48=99, "Surveillance", SUM($S48:$U48))), 0),"Not required") -> 0 | W48: 1 | X48: 1 | Y48: 2 | Z48: 0
A49: =IF(INTRO!$E$33<>0,INTRO!$E$33, " ") -> Angola | B49: CUANZA NORTE | C49: BANGA | D49: 13287.47594 | E49: =IF(INTRO!$E$48="","",ROUND($D49*INTRO!$E$48,0)) -> 1812 | F49: =IF(INTRO!$E$49="","",ROUND($D49*INTRO!$E$49,0)) -> 3699 | G49: =IF(INTRO!$E$50="","",ROUND($D49*INTRO!$E$50,0)) -> 7284 | H49: 1 | I49: 1 | J49: 3 | K49: 1 | L49: 1 | M49: =IF(INTRO!$E$37="Endemic",IF($H49>0,IF($H49=4,"Unknown",IF($H49=99,"Stopped",$D49)),0),"Not required") -> 13287.47594 | N49: =IF(INTRO!$E$39="Endemic", IF($I49>0, IF($I49=4,"Unknown",IF($I49=99,"Stopped",$D49)), 0),"Not required") -> 13287.47594 | O49: =IF(INTRO!$E$41="Endemic", IF($J49>1, IF($J49=4, "Unknown", IF($J49=99, "Surveillance", E49)), 0),"Not required") -> 1812 | P49: =IF(INTRO!$E$41="Endemic", IF($J49>1, IF($J49=4, "Unknown", IF($J49=99, "Surveillance", F49)), 0),"Not required") -> 3699 | Q49: =IF(INTRO!$E$41="Endemic", IF($J49>1, IF($J49=4, "Unknown", IF($J49=99, "Surveillance", ROUND(D49*INTRO!$E$51,0))), 0),"Not required") -> 3071 | R49: =IF(INTRO!$E$41="Endemic", IF($J49>1, IF($J49=4, "Unknown", IF($J49=99, "Surveillance", SUM($O49:$Q49))), 0),"Not required") -> 8582 | S49: =IF(INTRO!$E$43="Endemic", IF($K49>1, IF($K49=4, "Unknown", IF($K49=99, "Surveillance", ROUND(E49*0.75,0))), 0),"Not required") -> 0 | T49: =IF(INTRO!$E$43="Endemic", IF($K49>1, IF($K49=4, "Unknown", IF($K49=99, "Surveillance", F49)), 0),"Not required") -> 0 | U49: =IF(INTRO!$E$43="Endemic", IF($K49>1, IF($K49=4, "Unknown", IF($K49=99, "Surveillance", G49)), 0),"Not required") -> 0 | V49: =IF(INTRO!$E$43="Endemic", IF($K49>1, IF($K49=4, "Unknown", IF($K49=99, "Surveillance", SUM($S49:$U49))), 0),"Not required") -> 0 | W49: 1 | X49: 1 | Y49: 2 | Z49: 0
A50: =IF(INTRO!$E$33<>0,INTRO!$E$33, " ") -> Angola | B50: CUANZA NORTE | C50: BOLONGONGO | D50: 16707.96209 | E50: =IF(INTRO!$E$48="","",ROUND($D50*INTRO!$E$48,0)) -> 2279 | F50: =IF(INTRO!$E$49="","",ROUND($D50*INTRO!$E$49,0)) -> 4651 | G50: =IF(INTRO!$E$50="","",ROUND($D50*INTRO!$E$50,0)) -> 9159 | H50: 1 | I50: 1 | J50: 3 | K50: 0 | L50: 1 | M50: =IF(INTRO!$E$37="Endemic",IF($H50>0,IF($H50=4,"Unknown",IF($H50=99,"Stopped",$D50)),0),"Not required") -> 16707.96209 | N50: =IF(INTRO!$E$39="Endemic", IF($I50>0, IF($I50=4,"Unknown",IF($I50=99,"Stopped",$D50)), 0),"Not required") -> 16707.96209 | O50: =IF(INTRO!$E$41="Endemic", IF($J50>1, IF($J50=4, "Unknown", IF($J50=99, "Surveillance", E50)), 0),"Not required") -> 2279 | P50: =IF(INTRO!$E$41="Endemic", IF($J50>1, IF($J50=4, "Unknown", IF($J50=99, "Surveillance", F50)), 0),"Not required") -> 4651 | Q50: =IF(INTRO!$E$41="Endemic", IF($J50>1, IF($J50=4, "Unknown", IF($J50=99, "Surveillance", ROUND(D50*INTRO!$E$51,0))), 0),"Not required") -> 3861 | R50: =IF(INTRO!$E$41="Endemic", IF($J50>1, IF($J50=4, "Unknown", IF($J50=99, "Surveillance", SUM($O50:$Q50))), 0),"Not required") -> 10791 | S50: =IF(INTRO!$E$43="Endemic", IF($K50>1, IF($K50=4, "Unknown", IF($K50=99, "Surveillance", ROUND(E50*0.75,0))), 0),"Not required") -> 0 | T50: =IF(INTRO!$E$43="Endemic", IF($K50>1, IF($K50=4, "Unknown", IF($K50=99, "Surveillance", F50)), 0),"Not required") -> 0 | U50: =IF(INTRO!$E$43="Endemic", IF($K50>1, IF($K50=4, "Unknown", IF($K50=99, "Surveillance", G50)), 0),"Not required") -> 0 | V50: =IF(INTRO!$E$43="Endemic", IF($K50>1, IF($K50=4, "Unknown", IF($K50=99, "Surveillance", SUM($S50:$U50))), 0),"Not required") -> 0 | W50: 1 | X50: 1 | Y50: 2 | Z50: 0
A51: =IF(INTRO!$E$33<>0,INTRO!$E$33, " ") -> Angola | B51: CUANZA NORTE | C51: CAMBAMBE | D51: 116483.216 | E51: =IF(INTRO!$E$48="","",ROUND($D51*INTRO!$E$48,0)) -> 15888 | F51: =IF(INTRO!$E$49="","",ROUND($D51*INTRO!$E$49,0)) -> 32429 | G51: =IF(INTRO!$E$50="","",ROUND($D51*INTRO!$E$50,0)) -> 63856 | H51: 0 | I51: 4 | J51: 2 | K51: 3 | L51: 0 | M51: =IF(INTRO!$E$37="Endemic",IF($H51>0,IF($H51=4,"Unknown",IF($H51=99,"Stopped",$D51)),0),"Not required") -> 0 | N51: =IF(INTRO!$E$39="Endemic", IF($I51>0, IF($I51=4,"Unknown",IF($I51=99,"Stopped",$D51)), 0),"Not required") -> Unknown | O51: =IF(INTRO!$E$41="Endemic", IF($J51>1, IF($J51=4, "Unknown", IF($J51=99, "Surveillance", E51)), 0),"Not required") -> 15888 | P51: =IF(INTRO!$E$41="Endemic", IF($J51>1, IF($J51=4, "Unknown", IF($J51=99, "Surveillance", F51)), 0),"Not required") -> 32429 | Q51: =IF(INTRO!$E$41="Endemic", IF($J51>1, IF($J51=4, "Unknown", IF($J51=99, "Surveillance", ROUND(D51*INTRO!$E$51,0))), 0),"Not required") -> 26919 | R51: =IF(INTRO!$E$41="Endemic", IF($J51>1, IF($J51=4, "Unknown", IF($J51=99, "Surveillance", SUM($O51:$Q51))), 0),"Not required") -> 75236 | S51: =IF(INTRO!$E$43="Endemic", IF($K51>1, IF($K51=4, "Unknown", IF($K51=99, "Surveillance", ROUND(E51*0.75,0))), 0),"Not required") -> 11916 | T51: =IF(INTRO!$E$43="Endemic", IF($K51>1, IF($K51=4, "Unknown", IF($K51=99, "Surveillance", F51)), 0),"Not required") -> 32429 | U51: =IF(INTRO!$E$43="Endemic", IF($K51>1, IF($K51=4, "Unknown", IF($K51=99, "Surveillance", G51)), 0),"Not required") -> 63856 | V51: =IF(INTRO!$E$43="Endemic", IF($K51>1, IF($K51=4, "Unknown", IF($K51=99, "Surveillance", SUM($S51:$U51))), 0),"Not required") -> 108201 | W51: 0 | X51: 0 | Y51: 1 | Z51: 1
A52: =IF(INTRO!$E$33<>0,INTRO!$E$33, " ") -> Angola | B52: CUANZA NORTE | C52: CAZENGO | D52: 220402.5002 | E52: =IF(INTRO!$E$48="","",ROUND($D52*INTRO!$E$48,0)) -> 30063 | F52: =IF(INTRO!$E$49="","",ROUND($D52*INTRO!$E$49,0)) -> 61360 | G52: =IF(INTRO!$E$50="","",ROUND($D52*INTRO!$E$50,0)) -> 120825 | H52: 1 | I52: 4 | J52: 3 | K52: 2 | L52: 0 | M52: =IF(INTRO!$E$37="Endemic",IF($H52>0,IF($H52=4,"Unknown",IF($H52=99,"Stopped",$D52)),0),"Not required") -> 220402.5002 | N52: =IF(INTRO!$E$39="Endemic", IF($I52>0, IF($I52=4,"Unknown",IF($I52=99,"Stopped",$D52)), 0),"Not required") -> Unknown | O52: =IF(INTRO!$E$41="Endemic", IF($J52>1, IF($J52=4, "Unknown", IF($J52=99, "Surveillance", E52)), 0),"Not required") -> 30063 | P52: =IF(INTRO!$E$41="Endemic", IF($J52>1, IF($J52=4, "Unknown", IF($J52=99, "Surveillance", F52)), 0),"Not required") -> 61360 | Q52: =IF(INTRO!$E$41="Endemic", IF($J52>1, IF($J52=4, "Unknown", IF($J52=99, "Surveillance", ROUND(D52*INTRO!$E$51,0))), 0),"Not required") -> 50935 | R52: =IF(INTRO!$E$41="Endemic", IF($J52>1, IF($J52=4, "Unknown", IF($J52=99, "Surveillance", SUM($O52:$Q52))), 0),"Not required") -> 142358 | S52: =IF(INTRO!$E$43="Endemic", IF($K52>1, IF($K52=4, "Unknown", IF($K52=99, "Surveillance", ROUND(E52*0.75,0))), 0),"Not required") -> 22547 | T52: =IF(INTRO!$E$43="Endemic", IF($K52>1, IF($K52=4, "Unknown", IF($K52=99, "Surveillance", F52)), 0),"Not required") -> 61360 | U52: =IF(INTRO!$E$43="Endemic", IF($K52>1, IF($K52=4, "Unknown", IF($K52=99, "Surveillance", G52)), 0),"Not required") -> 120825 | V52: =IF(INTRO!$E$43="Endemic", IF($K52>1, IF($K52=4, "Unknown", IF($K52=99, "Surveillance", SUM($S52:$U52))), 0),"Not required") -> 204732 | W52: 1 | X52: 0 | Y52: 2 | Z52: 1
A53: =IF(INTRO!$E$33<>0,INTRO!$E$33, " ") -> Angola | B53: CUANZA NORTE | C53: GOLUNGO ALTO | D53: 43421.08347 | E53: =IF(INTRO!$E$48="","",ROUND($D53*INTRO!$E$48,0)) -> 5923 | F53: =IF(INTRO!$E$49="","",ROUND($D53*INTRO!$E$49,0)) -> 12088 | G53: =IF(INTRO!$E$50="","",ROUND($D53*INTRO!$E$50,0)) -> 23803 | H53: 1 | I53: 1 | J53: 3 | K53: 3 | L53: 0 | M53: =IF(INTRO!$E$37="Endemic",IF($H53>0,IF($H53=4,"Unknown",IF($H53=99,"Stopped",$D53)),0),"Not required") -> 43421.08347 | N53: =IF(INTRO!$E$39="Endemic", IF($I53>0, IF($I53=4,"Unknown",IF($I53=99,"Stopped",$D53)), 0),"Not required") -> 43421.08347 | O53: =IF(INTRO!$E$41="Endemic", IF($J53>1, IF($J53=4, "Unknown", IF($J53=99, "Surveillance", E53)), 0),"Not required") -> 5923 | P53: =IF(INTRO!$E$41="Endemic", IF($J53>1, IF($J53=4, "Unknown", IF($J53=99, "Surveillance", F53)), 0),"Not required") -> 12088 | Q53: =IF(INTRO!$E$41="Endemic", IF($J53>1, IF($J53=4, "Unknown", IF($J53=99, "Surveillance", ROUND(D53*INTRO!$E$51,0))), 0),"Not required") -> 10035 | R53: =IF(INTRO!$E$41="Endemic", IF($J53>1, IF($J53=4, "Unknown", IF($J53=99, "Surveillance", SUM($O53:$Q53))), 0),"Not required") -> 28046 | S53: =IF(INTRO!$E$43="Endemic", IF($K53>1, IF($K53=4, "Unknown", IF($K53=99, "Surveillance", ROUND(E53*0.75,0))), 0),"Not required") -> 4442 | T53: =IF(INTRO!$E$43="Endemic", IF($K53>1, IF($K53=4, "Unknown", IF($K53=99, "Surveillance", F53)), 0),"Not required") -> 12088 | U53: =IF(INTRO!$E$43="Endemic", IF($K53>1, IF($K53=4, "Unknown", IF($K53=99, "Surveillance", G53)), 0),"Not required") -> 23803 | V53: =IF(INTRO!$E$43="Endemic", IF($K53>1, IF($K53=4, "Unknown", IF($K53=99, "Surveillance", SUM($S53:$U53))), 0),"Not required") -> 40333 | W53: 1 | X53: 1 | Y53: 2 | Z53: 1
A54: =IF(INTRO!$E$33<>0,INTRO!$E$33, " ") -> Angola | B54: CUANZA NORTE | C54: GONGUEMBO | D54: 9722.491922 | E54: =IF(INTRO!$E$48="","",ROUND($D54*INTRO!$E$48,0)) -> 1326 | F54: =IF(INTRO!$E$49="","",ROUND($D54*INTRO!$E$49,0)) -> 2707 | G54: =IF(INTRO!$E$50="","",ROUND($D54*INTRO!$E$50,0)) -> 5330 | H54: 1 | I54: 1 | J54: 3 | K54: 1 | L54: 0 | M54: =IF(INTRO!$E$37="Endemic",IF($H54>0,IF($H54=4,"Unknown",IF($H54=99,"Stopped",$D54)),0),"Not required") -> 9722.491922 | N54: =IF(INTRO!$E$39="Endemic", IF($I54>0, IF($I54=4,"Unknown",IF($I54=99,"Stopped",$D54)), 0),"Not required") -> 9722.491922 | O54: =IF(INTRO!$E$41="Endemic", IF($J54>1, IF($J54=4, "Unknown", IF($J54=99, "Surveillance", E54)), 0),"Not required") -> 1326 | P54: =IF(INTRO!$E$41="Endemic", IF($J54>1, IF($J54=4, "Unknown", IF($J54=99, "Surveillance", F54)), 0),"Not required") -> 2707 | Q54: =IF(INTRO!$E$41="Endemic", IF($J54>1, IF($J54=4, "Unknown", IF($J54=99, "Surveillance", ROUND(D54*INTRO!$E$51,0))), 0),"Not required") -> 2247 | R54: =IF(INTRO!$E$41="Endemic", IF($J54>1, IF($J54=4, "Unknown", IF($J54=99, "Surveillance", SUM($O54:$Q54))), 0),"Not required") -> 6280 | S54: =IF(INTRO!$E$43="Endemic", IF($K54>1, IF($K54=4, "Unknown", IF($K54=99, "Surveillance", ROUND(E54*0.75,0))), 0),"Not required") -> 0 | T54: =IF(INTRO!$E$43="Endemic", IF($K54>1, IF($K54=4, "Unknown", IF($K54=99, "Surveillance", F54)), 0),"Not required") -> 0 | U54: =IF(INTRO!$E$43="Endemic", IF($K54>1, IF($K54=4, "Unknown", IF($K54=99, "Surveillance", G54)), 0),"Not required") -> 0 | V54: =IF(INTRO!$E$43="Endemic", IF($K54>1, IF($K54=4, "Unknown", IF($K54=99, "Surveillance", SUM($S54:$U54))), 0),"Not required") -> 0 | W54: 1 | X54: 1 | Y54: 2 | Z54: 0
A55: =IF(INTRO!$E$33<>0,INTRO!$E$33, " ") -> Angola | B55: CUANZA NORTE | C55: LUCALA | D55: 29098.91838 | E55: =IF(INTRO!$E$48="","",ROUND($D55*INTRO!$E$48,0)) -> 3969 | F55: =IF(INTRO!$E$49="","",ROUND($D55*INTRO!$E$49,0)) -> 8101 | G55: =IF(INTRO!$E$50="","",ROUND($D55*INTRO!$E$50,0)) -> 15952 | H55: 0 | I55: 4 | J55: 3 | K55: 2 | L55: 0 | M55: =IF(INTRO!$E$37="Endemic",IF($H55>0,IF($H55=4,"Unknown",IF($H55=99,"Stopped",$D55)),0),"Not required") -> 0 | N55: =IF(INTRO!$E$39="Endemic", IF($I55>0, IF($I55=4,"Unknown",IF($I55=99,"Stopped",$D55)), 0),"Not required") -> Unknown | O55: =IF(INTRO!$E$41="Endemic", IF($J55>1, IF($J55=4, "Unknown", IF($J55=99, "Surveillance", E55)), 0),"Not required") -> 3969 | P55: =IF(INTRO!$E$41="Endemic", IF($J55>1, IF($J55=4, "Unknown", IF($J55=99, "Surveillance", F55)), 0),"Not required") -> 8101 | Q55: =IF(INTRO!$E$41="Endemic", IF($J55>1, IF($J55=4, "Unknown", IF($J55=99, "Surveillance", ROUND(D55*INTRO!$E$51,0))), 0),"Not required") -> 6725 | R55: =IF(INTRO!$E$41="Endemic", IF($J55>1, IF($J55=4, "Unknown", IF($J55=99, "Surveillance", SUM($O55:$Q55))), 0),"Not required") -> 18795 | S55: =IF(INTRO!$E$43="Endemic", IF($K55>1, IF($K55=4, "Unknown", IF($K55=99, "Surveillance", ROUND(E55*0.75,0))), 0),"Not required") -> 2977 | T55: =IF(INTRO!$E$43="Endemic", IF($K55>1, IF($K55=4, "Unknown", IF($K55=99, "Surveillance", F55)), 0),"Not required") -> 8101 | U55: =IF(INTRO!$E$43="Endemic", IF($K55>1, IF($K55=4, "Unknown", IF($K55=99, "Surveillance", G55)), 0),"Not required") -> 15952 | V55: =IF(INTRO!$E$43="Endemic", IF($K55>1, IF($K55=4, "Unknown", IF($K55=99, "Surveillance", SUM($S55:$U55))), 0),"Not required") -> 27030 | W55: 0 | X55: 0 | Y55: 2 | Z55: 1
A56: =IF(INTRO!$E$33<>0,INTRO!$E$33, " ") -> Angola | B56: CUANZA NORTE | C56: QUICULUNGO | D56: 12489.04609 | E56: =IF(INTRO!$E$48="","",ROUND($D56*INTRO!$E$48,0)) -> 1704 | F56: =IF(INTRO!$E$49="","",ROUND($D56*INTRO!$E$49,0)) -> 3477 | G56: =IF(INTRO!$E$50="","",ROUND($D56*INTRO!$E$50,0)) -> 6846 | H56: 1 | I56: 4 | J56: 3 | K56: 3 | L56: 0 | M56: =IF(INTRO!$E$37="Endemic",IF($H56>0,IF($H56=4,"Unknown",IF($H56=99,"Stopped",$D56)),0),"Not required") -> 12489.04609 | N56: =IF(INTRO!$E$39="Endemic", IF($I56>0, IF($I56=4,"Unknown",IF($I56=99,"Stopped",$D56)), 0),"Not required") -> Unknown | O56: =IF(INTRO!$E$41="Endemic", IF($J56>1, IF($J56=4, "Unknown", IF($J56=99, "Surveillance", E56)), 0),"Not required") -> 1704 | P56: =IF(INTRO!$E$41="Endemic", IF($J56>1, IF($J56=4, "Unknown", IF($J56=99, "Surveillance", F56)), 0),"Not required") -> 3477 | Q56: =IF(INTRO!$E$41="Endemic", IF($J56>1, IF($J56=4, "Unknown", IF($J56=99, "Surveillance", ROUND(D56*INTRO!$E$51,0))), 0),"Not required") -> 2886 | R56: =IF(INTRO!$E$41="Endemic", IF($J56>1, IF($J56=4, "Unknown", IF($J56=99, "Surveillance", SUM($O56:$Q56))), 0),"Not required") -> 8067 | S56: =IF(INTRO!$E$43="Endemic", IF($K56>1, IF($K56=4, "Unknown", IF($K56=99, "Surveillance", ROUND(E56*0.75,0))), 0),"Not required") -> 1278 | T56: =IF(INTRO!$E$43="Endemic", IF($K56>1, IF($K56=4, "Unknown", IF($K56=99, "Surveillance", F56)), 0),"Not required") -> 3477 | U56: =IF(INTRO!$E$43="Endemic", IF($K56>1, IF($K56=4, "Unknown", IF($K56=99, "Surveillance", G56)), 0),"Not required") -> 6846 | V56: =IF(INTRO!$E$43="Endemic", IF($K56>1, IF($K56=4, "Unknown", IF($K56=99, "Surveillance", SUM($S56:$U56))), 0),"Not required") -> 11601 | W56: 1 | X56: 0 | Y56: 2 | Z56: 1
A57: =IF(INTRO!$E$33<>0,INTRO!$E$33, " ") -> Angola | B57: CUANZA NORTE | C57: SAMBA CAJU | D57: 28128.5677 | E57: =IF(INTRO!$E$48="","",ROUND($D57*INTRO!$E$48,0)) -> 3837 | F57: =IF(INTRO!$E$49="","",ROUND($D57*INTRO!$E$49,0)) -> 7831 | G57: =IF(INTRO!$E$50="","",ROUND($D57*INTRO!$E$50,0)) -> 15420 | H57: 1 | I57: 4 | J57: 3 | K57: 1 | L57: 0 | M57: =IF(INTRO!$E$37="Endemic",IF($H57>0,IF($H57=4,"Unknown",IF($H57=99,"Stopped",$D57)),0),"Not required") -> 28128.5677 | N57: =IF(INTRO!$E$39="Endemic", IF($I57>0, IF($I57=4,"Unknown",IF($I57=99,"Stopped",$D57)), 0),"Not required") -> Unknown | O57: =IF(INTRO!$E$41="Endemic", IF($J57>1, IF($J57=4, "Unknown", IF($J57=99, "Surveillance", E57)), 0),"Not required") -> 3837 | P57: =IF(INTRO!$E$41="Endemic", IF($J57>1, IF($J57=4, "Unknown", IF($J57=99, "Surveillance", F57)), 0),"Not required") -> 7831 | Q57: =IF(INTRO!$E$41="Endemic", IF($J57>1, IF($J57=4, "Unknown", IF($J57=99, "Surveillance", ROUND(D57*INTRO!$E$51,0))), 0),"Not required") -> 6501 | R57: =IF(INTRO!$E$41="Endemic", IF($J57>1, IF($J57=4, "Unknown", IF($J57=99, "Surveillance", SUM($O57:$Q57))), 0),"Not required") -> 18169 | S57: =IF(INTRO!$E$43="Endemic", IF($K57>1, IF($K57=4, "Unknown", IF($K57=99, "Surveillance", ROUND(E57*0.75,0))), 0),"Not required") -> 0 | T57: =IF(INTRO!$E$43="Endemic", IF($K57>1, IF($K57=4, "Unknown", IF($K57=99, "Surveillance", F57)), 0),"Not required") -> 0 | U57: =IF(INTRO!$E$43="Endemic", IF($K57>1, IF($K57=4, "Unknown", IF($K57=99, "Surveillance", G57)), 0),"Not required") -> 0 | V57: =IF(INTRO!$E$43="Endemic", IF($K57>1, IF($K57=4, "Unknown", IF($K57=99, "Surveillance", SUM($S57:$U57))), 0),"Not required") -> 0 | W57: 1 | X57: 0 | Y57: 2 | Z57: 0
A58: =IF(INTRO!$E$33<>0,INTRO!$E$33, " ") -> Angola | B58: CUANZA SUL | C58: AMBOIM | D58: 312907.5072 | E58: =IF(INTRO!$E$48="","",ROUND($D58*INTRO!$E$48,0)) -> 42681 | F58: =IF(INTRO!$E$49="","",ROUND($D58*INTRO!$E$49,0)) -> 87113 | G58: =IF(INTRO!$E$50="","",ROUND($D58*INTRO!$E$50,0)) -> 171536 | H58: 0 | I58: 4 | J58: 2 | K58: 2 | L58: 0 | M58: =IF(INTRO!$E$37="Endemic",IF($H58>0,IF($H58=4,"Unknown",IF($H58=99,"Stopped",$D58)),0),"Not required") -> 0 | N58: =IF(INTRO!$E$39="Endemic", IF($I58>0, IF($I58=4,"Unknown",IF($I58=99,"Stopped",$D58)), 0),"Not required") -> Unknown | O58: =IF(INTRO!$E$41="Endemic", IF($J58>1, IF($J58=4, "Unknown", IF($J58=99, "Surveillance", E58)), 0),"Not required") -> 42681 | P58: =IF(INTRO!$E$41="Endemic", IF($J58>1, IF($J58=4, "Unknown", IF($J58=99, "Surveillance", F58)), 0),"Not required") -> 87113 | Q58: =IF(INTRO!$E$41="Endemic", IF($J58>1, IF($J58=4, "Unknown", IF($J58=99, "Surveillance", ROUND(D58*INTRO!$E$51,0))), 0),"Not required") -> 72313 | R58: =IF(INTRO!$E$41="Endemic", IF($J58>1, IF($J58=4, "Unknown", IF($J58=99, "Surveillance", SUM($O58:$Q58))), 0),"Not required") -> 202107 | S58: =IF(INTRO!$E$43="Endemic", IF($K58>1, IF($K58=4, "Unknown", IF($K58=99, "Surveillance", ROUND(E58*0.75,0))), 0),"Not required") -> 32011 | T58: =IF(INTRO!$E$43="Endemic", IF($K58>1, IF($K58=4, "Unknown", IF($K58=99, "Surveillance", F58)), 0),"Not required") -> 87113 | U58: =IF(INTRO!$E$43="Endemic", IF($K58>1, IF($K58=4, "Unknown", IF($K58=99, "Surveillance", G58)), 0),"Not required") -> 171536 | V58: =IF(INTRO!$E$43="Endemic", IF($K58>1, IF($K58=4, "Unknown", IF($K58=99, "Surveillance", SUM($S58:$U58))), 0),"Not required") -> 290660 | W58: 0 | X58: 0 | Y58: 1 | Z58: 1
A59: =IF(INTRO!$E$33<>0,INTRO!$E$33, " ") -> Angola | B59: CUANZA SUL | C59: CASSONGUE | D59: 196068.8475 | E59: =IF(INTRO!$E$48="","",ROUND($D59*INTRO!$E$48,0)) -> 26744 | F59: =IF(INTRO!$E$49="","",ROUND($D59*INTRO!$E$49,0)) -> 54586 | G59: =IF(INTRO!$E$50="","",ROUND($D59*INTRO!$E$50,0)) -> 107485 | H59: 0 | I59: 4 | J59: 1 | K59: 2 | L59: 0 | M59: =IF(INTRO!$E$37="Endemic",IF($H59>0,IF($H59=4,"Unknown",IF($H59=99,"Stopped",$D59)),0),"Not required") -> 0 | N59: =IF(INTRO!$E$39="Endemic", IF($I59>0, IF($I59=4,"Unknown",IF($I59=99,"Stopped",$D59)), 0),"Not required") -> Unknown | O59: =IF(INTRO!$E$41="Endemic", IF($J59>1, IF($J59=4, "Unknown", IF($J59=99, "Surveillance", E59)), 0),"Not required") -> 0 | P59: =IF(INTRO!$E$41="Endemic", IF($J59>1, IF($J59=4, "Unknown", IF($J59=99, "Surveillance", F59)), 0),"Not required") -> 0 | Q59: =IF(INTRO!$E$41="Endemic", IF($J59>1, IF($J59=4, "Unknown", IF($J59=99, "Surveillance", ROUND(D59*INTRO!$E$51,0))), 0),"Not required") -> 0 | R59: =IF(INTRO!$E$41="Endemic", IF($J59>1, IF($J59=4, "Unknown", IF($J59=99, "Surveillance", SUM($O59:$Q59))), 0),"Not required") -> 0 | S59: =IF(INTRO!$E$43="Endemic", IF($K59>1, IF($K59=4, "Unknown", IF($K59=99, "Surveillance", ROUND(E59*0.75,0))), 0),"Not required") -> 20058 | T59: =IF(INTRO!$E$43="Endemic", IF($K59>1, IF($K59=4, "Unknown", IF($K59=99, "Surveillance", F59)), 0),"Not required") -> 54586 | U59: =IF(INTRO!$E$43="Endemic", IF($K59>1, IF($K59=4, "Unknown", IF($K59=99, "Surveillance", G59)), 0),"Not required") -> 107485 | V59: =IF(INTRO!$E$43="Endemic", IF($K59>1, IF($K59=4, "Unknown", IF($K59=99, "Surveillance", SUM($S59:$U59))), 0),"Not required") -> 182129 | W59: 0 | X59: 0 | Y59: 0 | Z59: 1
A60: =IF(INTRO!$E$33<>0,INTRO!$E$33, " ") -> Angola | B60: CUANZA SUL | C60: CELA (Waku Kungo) | D60: 291065.1243 | E60: =IF(INTRO!$E$48="","",ROUND($D60*INTRO!$E$48,0)) -> 39701 | F60: =IF(INTRO!$E$49="","",ROUND($D60*INTRO!$E$49,0)) -> 81033 | G60: =IF(INTRO!$E$50="","",ROUND($D60*INTRO!$E$50,0)) -> 159562 | H60: 0 | I60: 4 | J60: 1 | K60: 2 | L60: 0 | M60: =IF(INTRO!$E$37="Endemic",IF($H60>0,IF($H60=4,"Unknown",IF($H60=99,"Stopped",$D60)),0),"Not required") -> 0 | N60: =IF(INTRO!$E$39="Endemic", IF($I60>0, IF($I60=4,"Unknown",IF($I60=99,"Stopped",$D60)), 0),"Not required") -> Unknown | O60: =IF(INTRO!$E$41="Endemic", IF($J60>1, IF($J60=4, "Unknown", IF($J60=99, "Surveillance", E60)), 0),"Not required") -> 0 | P60: =IF(INTRO!$E$41="Endemic", IF($J60>1, IF($J60=4, "Unknown", IF($J60=99, "Surveillance", F60)), 0),"Not required") -> 0 | Q60: =IF(INTRO!$E$41="Endemic", IF($J60>1, IF($J60=4, "Unknown", IF($J60=99, "Surveillance", ROUND(D60*INTRO!$E$51,0))), 0),"Not required") -> 0 | R60: =IF(INTRO!$E$41="Endemic", IF($J60>1, IF($J60=4, "Unknown", IF($J60=99, "Surveillance", SUM($O60:$Q60))), 0),"Not required") -> 0 | S60: =IF(INTRO!$E$43="Endemic", IF($K60>1, IF($K60=4, "Unknown", IF($K60=99, "Surveillance", ROUND(E60*0.75,0))), 0),"Not required") -> 29776 | T60: =IF(INTRO!$E$43="Endemic", IF($K60>1, IF($K60=4, "Unknown", IF($K60=99, "Surveillance", F60)), 0),"Not required") -> 81033 | U60: =IF(INTRO!$E$43="Endemic", IF($K60>1, IF($K60=4, "Unknown", IF($K60=99, "Surveillance", G60)), 0),"Not required") -> 159562 | V60: =IF(INTRO!$E$43="Endemic", IF($K60>1, IF($K60=4, "Unknown", IF($K60=99, "Surveillance", SUM($S60:$U60))), 0),"Not required") -> 270371 | W60: 0 | X60: 0 | Y60: 0 | Z60: 1
A61: =IF(INTRO!$E$33<>0,INTRO!$E$33, " ") -> Angola | B61: CUANZA SUL | C61: CONDA | D61: 115485.4424 | E61: =IF(INTRO!$E$48="","",ROUND($D61*INTRO!$E$48,0)) -> 15752 | F61: =IF(INTRO!$E$49="","",ROUND($D61*INTRO!$E$49,0)) -> 32151 | G61: =IF(INTRO!$E$50="","",ROUND($D61*INTRO!$E$50,0)) -> 63309 | H61: 0 | I61: 4 | J61: 1 | K61: 2 | L61: 0 | M61: =IF(INTRO!$E$37="Endemic",IF($H61>0,IF($H61=4,"Unknown",IF($H61=99,"Stopped",$D61)),0),"Not required") -> 0 | N61: =IF(INTRO!$E$39="Endemic", IF($I61>0, IF($I61=4,"Unknown",IF($I61=99,"Stopped",$D61)), 0),"Not required") -> Unknown | O61: =IF(INTRO!$E$41="Endemic", IF($J61>1, IF($J61=4, "Unknown", IF($J61=99, "Surveillance", E61)), 0),"Not required") -> 0 | P61: =IF(INTRO!$E$41="Endemic", IF($J61>1, IF($J61=4, "Unknown", IF($J61=99, "Surveillance", F61)), 0),"Not required") -> 0 | Q61: =IF(INTRO!$E$41="Endemic", IF($J61>1, IF($J61=4, "Unknown", IF($J61=99, "Surveillance", ROUND(D61*INTRO!$E$51,0))), 0),"Not required") -> 0 | R61: =IF(INTRO!$E$41="Endemic", IF($J61>1, IF($J61=4, "Unknown", IF($J61=99, "Surveillance", SUM($O61:$Q61))), 0),"Not required") -> 0 | S61: =IF(INTRO!$E$43="Endemic", IF($K61>1, IF($K61=4, "Unknown", IF($K61=99, "Surveillance", ROUND(E61*0.75,0))), 0),"Not required") -> 11814 | T61: =IF(INTRO!$E$43="Endemic", IF($K61>1, IF($K61=4, "Unknown", IF($K61=99, "Surveillance", F61)), 0),"Not required") -> 32151 | U61: =IF(INTRO!$E$43="Endemic", IF($K61>1, IF($K61=4, "Unknown", IF($K61=99, "Surveillance", G61)), 0),"Not required") -> 63309 | V61: =IF(INTRO!$E$43="Endemic", IF($K61>1, IF($K61=4, "Unknown", IF($K61=99, "Surveillance", SUM($S61:$U61))), 0),"Not required") -> 107274 | W61: 0 | X61: 0 | Y61: 0 | Z61: 1
A62: =IF(INTRO!$E$33<>0,INTRO!$E$33, " ") -> Angola | B62: CUANZA SUL | C62: EBO | D62: 213122.7607 | E62: =IF(INTRO!$E$48="","",ROUND($D62*INTRO!$E$48,0)) -> 29070 | F62: =IF(INTRO!$E$49="","",ROUND($D62*INTRO!$E$49,0)) -> 59333 | G62: =IF(INTRO!$E$50="","",ROUND($D62*INTRO!$E$50,0)) -> 116834 | H62: 0 | I62: 4 | J62: 2 | K62: 2 | L62: 0 | M62: =IF(INTRO!$E$37="Endemic",IF($H62>0,IF($H62=4,"Unknown",IF($H62=99,"Stopped",$D62)),0),"Not required") -> 0 | N62: =IF(INTRO!$E$39="Endemic", IF($I62>0, IF($I62=4,"Unknown",IF($I62=99,"Stopped",$D62)), 0),"Not required") -> Unknown | O62: =IF(INTRO!$E$41="Endemic", IF($J62>1, IF($J62=4, "Unknown", IF($J62=99, "Surveillance", E62)), 0),"Not required") -> 29070 | P62: =IF(INTRO!$E$41="Endemic", IF($J62>1, IF($J62=4, "Unknown", IF($J62=99, "Surveillance", F62)), 0),"Not required") -> 59333 | Q62: =IF(INTRO!$E$41="Endemic", IF($J62>1, IF($J62=4, "Unknown", IF($J62=99, "Surveillance", ROUND(D62*INTRO!$E$51,0))), 0),"Not required") -> 49253 | R62: =IF(INTRO!$E$41="Endemic", IF($J62>1, IF($J62=4, "Unknown", IF($J62=99, "Surveillance", SUM($O62:$Q62))), 0),"Not required") -> 137656 | S62: =IF(INTRO!$E$43="Endemic", IF($K62>1, IF($K62=4, "Unknown", IF($K62=99, "Surveillance", ROUND(E62*0.75,0))), 0),"Not required") -> 21803 | T62: =IF(INTRO!$E$43="Endemic", IF($K62>1, IF($K62=4, "Unknown", IF($K62=99, "Surveillance", F62)), 0),"Not required") -> 59333 | U62: =IF(INTRO!$E$43="Endemic", IF($K62>1, IF($K62=4, "Unknown", IF($K62=99, "Surveillance", G62)), 0),"Not required") -> 116834 | V62: =IF(INTRO!$E$43="Endemic", IF($K62>1, IF($K62=4, "Unknown", IF($K62=99, "Surveillance", SUM($S62:$U62))), 0),"Not required") -> 197970 | W62: 0 | X62: 0 | Y62: 1 | Z62: 1
A63: =IF(INTRO!$E$33<>0,INTRO!$E$33, " ") -> Angola | B63: CUANZA SUL | C63: LIBOLO | D63: 118826.8239 | E63: =IF(INTRO!$E$48="","",ROUND($D63*INTRO!$E$48,0)) -> 16208 | F63: =IF(INTRO!$E$49="","",ROUND($D63*INTRO!$E$49,0)) -> 33081 | G63: =IF(INTRO!$E$50="","",ROUND($D63*INTRO!$E$50,0)) -> 65141 | H63: 0 | I63: 4 | J63: 2 | K63: 3 | L63: 0 | M63: =IF(INTRO!$E$37="Endemic",IF($H63>0,IF($H63=4,"Unknown",IF($H63=99,"Stopped",$D63)),0),"Not required") -> 0 | N63: =IF(INTRO!$E$39="Endemic", IF($I63>0, IF($I63=4,"Unknown",IF($I63=99,"Stopped",$D63)), 0),"Not required") -> Unknown | O63: =IF(INTRO!$E$41="Endemic", IF($J63>1, IF($J63=4, "Unknown", IF($J63=99, "Surveillance", E63)), 0),"Not required") -> 16208 | P63: =IF(INTRO!$E$41="Endemic", IF($J63>1, IF($J63=4, "Unknown", IF($J63=99, "Surveillance", F63)), 0),"Not required") -> 33081 | Q63: =IF(INTRO!$E$41="Endemic", IF($J63>1, IF($J63=4, "Unknown", IF($J63=99, "Surveillance", ROUND(D63*INTRO!$E$51,0))), 0),"Not required") -> 27461 | R63: =IF(INTRO!$E$41="Endemic", IF($J63>1, IF($J63=4, "Unknown", IF($J63=99, "Surveillance", SUM($O63:$Q63))), 0),"Not required") -> 76750 | S63: =IF(INTRO!$E$43="Endemic", IF($K63>1, IF($K63=4, "Unknown", IF($K63=99, "Surveillance", ROUND(E63*0.75,0))), 0),"Not required") -> 12156 | T63: =IF(INTRO!$E$43="Endemic", IF($K63>1, IF($K63=4, "Unknown", IF($K63=99, "Surveillance", F63)), 0),"Not required") -> 33081 | U63: =IF(INTRO!$E$43="Endemic", IF($K63>1, IF($K63=4, "Unknown", IF($K63=99, "Surveillance", G63)), 0),"Not required") -> 65141 | V63: =IF(INTRO!$E$43="Endemic", IF($K63>1, IF($K63=4, "Unknown", IF($K63=99, "Surveillance", SUM($S63:$U63))), 0),"Not required") -> 110378 | W63: 0 | X63: 0 | Y63: 1 | Z63: 1
A64: =IF(INTRO!$E$33<>0,INTRO!$E$33, " ") -> Angola | B64: CUANZA SUL | C64: MUSSENDE | D64: 106536.0668 | E64: =IF(INTRO!$E$48="","",ROUND($D64*INTRO!$E$48,0)) -> 14532 | F64: =IF(INTRO!$E$49="","",ROUND($D64*INTRO!$E$49,0)) -> 29660 | G64: =IF(INTRO!$E$50="","",ROUND($D64*INTRO!$E$50,0)) -> 58403 | H64: 0 | I64: 1 | J64: 1 | K64: 2 | L64: 0 | M64: =IF(INTRO!$E$37="Endemic",IF($H64>0,IF($H64=4,"Unknown",IF($H64=99,"Stopped",$D64)),0),"Not required") -> 0 | N64: =IF(INTRO!$E$39="Endemic", IF($I64>0, IF($I64=4,"Unknown",IF($I64=99,"Stopped",$D64)), 0),"Not required") -> 106536.0668 | O64: =IF(INTRO!$E$41="Endemic", IF($J64>1, IF($J64=4, "Unknown", IF($J64=99, "Surveillance", E64)), 0),"Not required") -> 0 | P64: =IF(INTRO!$E$41="Endemic", IF($J64>1, IF($J64=4, "Unknown", IF($J64=99, "Surveillance", F64)), 0),"Not required") -> 0 | Q64: =IF(INTRO!$E$41="Endemic", IF($J64>1, IF($J64=4, "Unknown", IF($J64=99, "Surveillance", ROUND(D64*INTRO!$E$51,0))), 0),"Not required") -> 0 | R64: =IF(INTRO!$E$41="Endemic", IF($J64>1, IF($J64=4, "Unknown", IF($J64=99, "Surveillance", SUM($O64:$Q64))), 0),"Not required") -> 0 | S64: =IF(INTRO!$E$43="Endemic", IF($K64>1, IF($K64=4, "Unknown", IF($K64=99, "Surveillance", ROUND(E64*0.75,0))), 0),"Not required") -> 10899 | T64: =IF(INTRO!$E$43="Endemic", IF($K64>1, IF($K64=4, "Unknown", IF($K64=99, "Surveillance", F64)), 0),"Not required") -> 29660 | U64: =IF(INTRO!$E$43="Endemic", IF($K64>1, IF($K64=4, "Unknown", IF($K64=99, "Surveillance", G64)), 0),"Not required") -> 58403 | V64: =IF(INTRO!$E$43="Endemic", IF($K64>1, IF($K64=4, "Unknown", IF($K64=99, "Surveillance", SUM($S64:$U64))), 0),"Not required") -> 98962 | W64: 0 | X64: 1 | Y64: 0 | Z64: 1
A65: =IF(INTRO!$E$33<>0,INTRO!$E$33, " ") -> Angola | B65: CUANZA SUL | C65: PORTO AMBOIM | D65: 162580.147 | E65: =IF(INTRO!$E$48="","",ROUND($D65*INTRO!$E$48,0)) -> 22176 | F65: =IF(INTRO!$E$49="","",ROUND($D65*INTRO!$E$49,0)) -> 45262 | G65: =IF(INTRO!$E$50="","",ROUND($D65*INTRO!$E$50,0)) -> 89126 | H65: 1 | I65: 1 | J65: 1 | K65: 3 | L65: 1 | M65: =IF(INTRO!$E$37="Endemic",IF($H65>0,IF($H65=4,"Unknown",IF($H65=99,"Stopped",$D65)),0),"Not required") -> 162580.147 | N65: =IF(INTRO!$E$39="Endemic", IF($I65>0, IF($I65=4,"Unknown",IF($I65=99,"Stopped",$D65)), 0),"Not required") -> 162580.147 | O65: =IF(INTRO!$E$41="Endemic", IF($J65>1, IF($J65=4, "Unknown", IF($J65=99, "Surveillance", E65)), 0),"Not required") -> 0 | P65: =IF(INTRO!$E$41="Endemic", IF($J65>1, IF($J65=4, "Unknown", IF($J65=99, "Surveillance", F65)), 0),"Not required") -> 0 | Q65: =IF(INTRO!$E$41="Endemic", IF($J65>1, IF($J65=4, "Unknown", IF($J65=99, "Surveillance", ROUND(D65*INTRO!$E$51,0))), 0),"Not required") -> 0 | R65: =IF(INTRO!$E$41="Endemic", IF($J65>1, IF($J65=4, "Unknown", IF($J65=99, "Surveillance", SUM($O65:$Q65))), 0),"Not required") -> 0 | S65: =IF(INTRO!$E$43="Endemic", IF($K65>1, IF($K65=4, "Unknown", IF($K65=99, "Surveillance", ROUND(E65*0.75,0))), 0),"Not required") -> 16632 | T65: =IF(INTRO!$E$43="Endemic", IF($K65>1, IF($K65=4, "Unknown", IF($K65=99, "Surveillance", F65)), 0),"Not required") -> 45262 | U65: =IF(INTRO!$E$43="Endemic", IF($K65>1, IF($K65=4, "Unknown", IF($K65=99, "Surveillance", G65)), 0),"Not required") -> 89126 | V65: =IF(INTRO!$E$43="Endemic", IF($K65>1, IF($K65=4, "Unknown", IF($K65=99, "Surveillance", SUM($S65:$U65))), 0),"Not required") -> 151020 | W65: 1 | X65: 1 | Y65: 0 | Z65: 1
A66: =IF(INTRO!$E$33<>0,INTRO!$E$33, " ") -> Angola | B66: CUANZA SUL | C66: QUIBALA | D66: 183344.5968 | E66: =IF(INTRO!$E$48="","",ROUND($D66*INTRO!$E$48,0)) -> 25008 | F66: =IF(INTRO!$E$49="","",ROUND($D66*INTRO!$E$49,0)) -> 51043 | G66: =IF(INTRO!$E$50="","",ROUND($D66*INTRO!$E$50,0)) -> 100510 | H66: 0 | I66: 4 | J66: 2 | K66: 2 | L66: 0 | M66: =IF(INTRO!$E$37="Endemic",IF($H66>0,IF($H66=4,"Unknown",IF($H66=99,"Stopped",$D66)),0),"Not required") -> 0 | N66: =IF(INTRO!$E$39="Endemic", IF($I66>0, IF($I66=4,"Unknown",IF($I66=99,"Stopped",$D66)), 0),"Not required") -> Unknown | O66: =IF(INTRO!$E$41="Endemic", IF($J66>1, IF($J66=4, "Unknown", IF($J66=99, "Surveillance", E66)), 0),"Not required") -> 25008 | P66: =IF(INTRO!$E$41="Endemic", IF($J66>1, IF($J66=4, "Unknown", IF($J66=99, "Surveillance", F66)), 0),"Not required") -> 51043 | Q66: =IF(INTRO!$E$41="Endemic", IF($J66>1, IF($J66=4, "Unknown", IF($J66=99, "Surveillance", ROUND(D66*INTRO!$E$51,0))), 0),"Not required") -> 42371 | R66: =IF(INTRO!$E$41="Endemic", IF($J66>1, IF($J66=4, "Unknown", IF($J66=99, "Surveillance", SUM($O66:$Q66))), 0),"Not required") -> 118422 | S66: =IF(INTRO!$E$43="Endemic", IF($K66>1, IF($K66=4, "Unknown", IF($K66=99, "Surveillance", ROUND(E66*0.75,0))), 0),"Not required") -> 18756 | T66: =IF(INTRO!$E$43="Endemic", IF($K66>1, IF($K66=4, "Unknown", IF($K66=99, "Surveillance", F66)), 0),"Not required") -> 51043 | U66: =IF(INTRO!$E$43="Endemic", IF($K66>1, IF($K66=4, "Unknown", IF($K66=99, "Surveillance", G66)), 0),"Not required") -> 100510 | V66: =IF(INTRO!$E$43="Endemic", IF($K66>1, IF($K66=4, "Unknown", IF($K66=99, "Surveillance", SUM($S66:$U66))), 0),"Not required") -> 170309 | W66: 0 | X66: 0 | Y66: 1 | Z66: 1
A67: =IF(INTRO!$E$33<>0,INTRO!$E$33, " ") -> Angola | B67: CUANZA SUL | C67: QUILENDA | D67: 126028.5135 | E67: =IF(INTRO!$E$48="","",ROUND($D67*INTRO!$E$48,0)) -> 17190 | F67: =IF(INTRO!$E$49="","",ROUND($D67*INTRO!$E$49,0)) -> 35086 | G67: =IF(INTRO!$E$50="","",ROUND($D67*INTRO!$E$50,0)) -> 69089 | H67: 0 | I67: 4 | J67: 2 | K67: 3 | L67: 1 | M67: =IF(INTRO!$E$37="Endemic",IF($H67>0,IF($H67=4,"Unknown",IF($H67=99,"Stopped",$D67)),0),"Not required") -> 0 | N67: =IF(INTRO!$E$39="Endemic", IF($I67>0, IF($I67=4,"Unknown",IF($I67=99,"Stopped",$D67)), 0),"Not required") -> Unknown | O67: =IF(INTRO!$E$41="Endemic", IF($J67>1, IF($J67=4, "Unknown", IF($J67=99, "Surveillance", E67)), 0),"Not required") -> 17190 | P67: =IF(INTRO!$E$41="Endemic", IF($J67>1, IF($J67=4, "Unknown", IF($J67=99, "Surveillance", F67)), 0),"Not required") -> 35086 | Q67: =IF(INTRO!$E$41="Endemic", IF($J67>1, IF($J67=4, "Unknown", IF($J67=99, "Surveillance", ROUND(D67*INTRO!$E$51,0))), 0),"Not required") -> 29125 | R67: =IF(INTRO!$E$41="Endemic", IF($J67>1, IF($J67=4, "Unknown", IF($J67=99, "Surveillance", SUM($O67:$Q67))), 0),"Not required") -> 81401 | S67: =IF(INTRO!$E$43="Endemic", IF($K67>1, IF($K67=4, "Unknown", IF($K67=99, "Surveillance", ROUND(E67*0.75,0))), 0),"Not required") -> 12893 | T67: =IF(INTRO!$E$43="Endemic", IF($K67>1, IF($K67=4, "Unknown", IF($K67=99, "Surveillance", F67)), 0),"Not required") -> 35086 | U67: =IF(INTRO!$E$43="Endemic", IF($K67>1, IF($K67=4, "Unknown", IF($K67=99, "Surveillance", G67)), 0),"Not required") -> 69089 | V67: =IF(INTRO!$E$43="Endemic", IF($K67>1, IF($K67=4, "Unknown", IF($K67=99, "Surveillance", SUM($S67:$U67))), 0),"Not required") -> 117068 | W67: 0 | X67: 0 | Y67: 1 | Z67: 1
A68: =IF(INTRO!$E$33<>0,INTRO!$E$33, " ") -> Angola | B68: CUANZA SUL | C68: SELES | D68: 241513.9559 | E68: =IF(INTRO!$E$48="","",ROUND($D68*INTRO!$E$48,0)) -> 32943 | F68: =IF(INTRO!$E$49="","",ROUND($D68*INTRO!$E$49,0)) -> 67237 | G68: =IF(INTRO!$E$50="","",ROUND($D68*INTRO!$E$50,0)) -> 132398 | H68: 0 | I68: 4 | J68: 1 | K68: 3 | L68: 0 | M68: =IF(INTRO!$E$37="Endemic",IF($H68>0,IF($H68=4,"Unknown",IF($H68=99,"Stopped",$D68)),0),"Not required") -> 0 | N68: =IF(INTRO!$E$39="Endemic", IF($I68>0, IF($I68=4,"Unknown",IF($I68=99,"Stopped",$D68)), 0),"Not required") -> Unknown | O68: =IF(INTRO!$E$41="Endemic", IF($J68>1, IF($J68=4, "Unknown", IF($J68=99, "Surveillance", E68)), 0),"Not required") -> 0 | P68: =IF(INTRO!$E$41="Endemic", IF($J68>1, IF($J68=4, "Unknown", IF($J68=99, "Surveillance", F68)), 0),"Not required") -> 0 | Q68: =IF(INTRO!$E$41="Endemic", IF($J68>1, IF($J68=4, "Unknown", IF($J68=99, "Surveillance", ROUND(D68*INTRO!$E$51,0))), 0),"Not required") -> 0 | R68: =IF(INTRO!$E$41="Endemic", IF($J68>1, IF($J68=4, "Unknown", IF($J68=99, "Surveillance", SUM($O68:$Q68))), 0),"Not required") -> 0 | S68: =IF(INTRO!$E$43="Endemic", IF($K68>1, IF($K68=4, "Unknown", IF($K68=99, "Surveillance", ROUND(E68*0.75,0))), 0),"Not required") -> 24707 | T68: =IF(INTRO!$E$43="Endemic", IF($K68>1, IF($K68=4, "Unknown", IF($K68=99, "Surveillance", F68)), 0),"Not required") -> 67237 | U68: =IF(INTRO!$E$43="Endemic", IF($K68>1, IF($K68=4, "Unknown", IF($K68=99, "Surveillance", G68)), 0),"Not required") -> 132398 | V68: =IF(INTRO!$E$43="Endemic", IF($K68>1, IF($K68=4, "Unknown", IF($K68=99, "Surveillance", SUM($S68:$U68))), 0),"Not required") -> 224342 | W68: 0 | X68: 0 | Y68: 0 | Z68: 1
A69: =IF(INTRO!$E$33<>0,INTRO!$E$33, " ") -> Angola | B69: CUANZA SUL | C69: SUMBE | D69: 361337.4987 | E69: =IF(INTRO!$E$48="","",ROUND($D69*INTRO!$E$48,0)) -> 49286 | F69: =IF(INTRO!$E$49="","",ROUND($D69*INTRO!$E$49,0)) -> 100596 | G69: =IF(INTRO!$E$50="","",ROUND($D69*INTRO!$E$50,0)) -> 198085 | H69: 0 | I69: 4 | J69: 1 | K69: 2 | L69: 0 | M69: =IF(INTRO!$E$37="Endemic",IF($H69>0,IF($H69=4,"Unknown",IF($H69=99,"Stopped",$D69)),0),"Not required") -> 0 | N69: =IF(INTRO!$E$39="Endemic", IF($I69>0, IF($I69=4,"Unknown",IF($I69=99,"Stopped",$D69)), 0),"Not required") -> Unknown | O69: =IF(INTRO!$E$41="Endemic", IF($J69>1, IF($J69=4, "Unknown", IF($J69=99, "Surveillance", E69)), 0),"Not required") -> 0 | P69: =IF(INTRO!$E$41="Endemic", IF($J69>1, IF($J69=4, "Unknown", IF($J69=99, "Surveillance", F69)), 0),"Not required") -> 0 | Q69: =IF(INTRO!$E$41="Endemic", IF($J69>1, IF($J69=4, "Unknown", IF($J69=99, "Surveillance", ROUND(D69*INTRO!$E$51,0))), 0),"Not required") -> 0 | R69: =IF(INTRO!$E$41="Endemic", IF($J69>1, IF($J69=4, "Unknown", IF($J69=99, "Surveillance", SUM($O69:$Q69))), 0),"Not required") -> 0 | S69: =IF(INTRO!$E$43="Endemic", IF($K69>1, IF($K69=4, "Unknown", IF($K69=99, "Surveillance", ROUND(E69*0.75,0))), 0),"Not required") -> 36965 | T69: =IF(INTRO!$E$43="Endemic", IF($K69>1, IF($K69=4, "Unknown", IF($K69=99, "Surveillance", F69)), 0),"Not required") -> 100596 | U69: =IF(INTRO!$E$43="Endemic", IF($K69>1, IF($K69=4, "Unknown", IF($K69=99, "Surveillance", G69)), 0),"Not required") -> 198085 | V69: =IF(INTRO!$E$43="Endemic", IF($K69>1, IF($K69=4, "Unknown", IF($K69=99, "Surveillance", SUM($S69:$U69))), 0),"Not required") -> 335646 | W69: 0 | X69: 0 | Y69: 0 | Z69: 1
A70: =IF(INTRO!$E$33<>0,INTRO!$E$33, " ") -> Angola | B70: CUNENE | C70: CAHAMA | D70: 91991.35392 | E70: =IF(INTRO!$E$48="","",ROUND($D70*INTRO!$E$48,0)) -> 12548 | F70: =IF(INTRO!$E$49="","",ROUND($D70*INTRO!$E$49,0)) -> 25610 | G70: =IF(INTRO!$E$50="","",ROUND($D70*INTRO!$E$50,0)) -> 50430 | H70: 0 | I70: 4 | J70: 1 | K70: 1 | L70: 0 | M70: =IF(INTRO!$E$37="Endemic",IF($H70>0,IF($H70=4,"Unknown",IF($H70=99,"Stopped",$D70)),0),"Not required") -> 0 | N70: =IF(INTRO!$E$39="Endemic", IF($I70>0, IF($I70=4,"Unknown",IF($I70=99,"Stopped",$D70)), 0),"Not required") -> Unknown | O70: =IF(INTRO!$E$41="Endemic", IF($J70>1, IF($J70=4, "Unknown", IF($J70=99, "Surveillance", E70)), 0),"Not required") -> 0 | P70: =IF(INTRO!$E$41="Endemic", IF($J70>1, IF($J70=4, "Unknown", IF($J70=99, "Surveillance", F70)), 0),"Not required") -> 0 | Q70: =IF(INTRO!$E$41="Endemic", IF($J70>1, IF($J70=4, "Unknown", IF($J70=99, "Surveillance", ROUND(D70*INTRO!$E$51,0))), 0),"Not required") -> 0 | R70: =IF(INTRO!$E$41="Endemic", IF($J70>1, IF($J70=4, "Unknown", IF($J70=99, "Surveillance", SUM($O70:$Q70))), 0),"Not required") -> 0 | S70: =IF(INTRO!$E$43="Endemic", IF($K70>1, IF($K70=4, "Unknown", IF($K70=99, "Surveillance", ROUND(E70*0.75,0))), 0),"Not required") -> 0 | T70: =IF(INTRO!$E$43="Endemic", IF($K70>1, IF($K70=4, "Unknown", IF($K70=99, "Surveillance", F70)), 0),"Not required") -> 0 | U70: =IF(INTRO!$E$43="Endemic", IF($K70>1, IF($K70=4, "Unknown", IF($K70=99, "Surveillance", G70)), 0),"Not required") -> 0 | V70: =IF(INTRO!$E$43="Endemic", IF($K70>1, IF($K70=4, "Unknown", IF($K70=99, "Surveillance", SUM($S70:$U70))), 0),"Not required") -> 0 | W70: 0 | X70: 0 | Y70: 0 | Z70: 0
A71: =IF(INTRO!$E$33<>0,INTRO!$E$33, " ") -> Angola | B71: CUNENE | C71: CUANHAMA | D71: 491760.0131 | E71: =IF(INTRO!$E$48="","",ROUND($D71*INTRO!$E$48,0)) -> 67076 | F71: =IF(INTRO!$E$49="","",ROUND($D71*INTRO!$E$49,0)) -> 136906 | G71: =IF(INTRO!$E$50="","",ROUND($D71*INTRO!$E$50,0)) -> 269583 | H71: 0 | I71: 4 | J71: 1 | K71: 3 | L71: 1 | M71: =IF(INTRO!$E$37="Endemic",IF($H71>0,IF($H71=4,"Unknown",IF($H71=99,"Stopped",$D71)),0),"Not required") -> 0 | N71: =IF(INTRO!$E$39="Endemic", IF($I71>0, IF($I71=4,"Unknown",IF($I71=99,"Stopped",$D71)), 0),"Not required") -> Unknown | O71: =IF(INTRO!$E$41="Endemic", IF($J71>1, IF($J71=4, "Unknown", IF($J71=99, "Surveillance", E71)), 0),"Not required") -> 0 | P71: =IF(INTRO!$E$41="Endemic", IF($J71>1, IF($J71=4, "Unknown", IF($J71=99, "Surveillance", F71)), 0),"Not required") -> 0 | Q71: =IF(INTRO!$E$41="Endemic", IF($J71>1, IF($J71=4, "Unknown", IF($J71=99, "Surveillance", ROUND(D71*INTRO!$E$51,0))), 0),"Not required") -> 0 | R71: =IF(INTRO!$E$41="Endemic", IF($J71>1, IF($J71=4, "Unknown", IF($J71=99, "Surveillance", SUM($O71:$Q71))), 0),"Not required") -> 0 | S71: =IF(INTRO!$E$43="Endemic", IF($K71>1, IF($K71=4, "Unknown", IF($K71=99, "Surveillance", ROUND(E71*0.75,0))), 0),"Not required") -> 50307 | T71: =IF(INTRO!$E$43="Endemic", IF($K71>1, IF($K71=4, "Unknown", IF($K71=99, "Surveillance", F71)), 0),"Not required") -> 136906 | U71: =IF(INTRO!$E$43="Endemic", IF($K71>1, IF($K71=4, "Unknown", IF($K71=99, "Surveillance", G71)), 0),"Not required") -> 269583 | V71: =IF(INTRO!$E$43="Endemic", IF($K71>1, IF($K71=4, "Unknown", IF($K71=99, "Surveillance", SUM($S71:$U71))), 0),"Not required") -> 456796 | W71: 0 | X71: 0 | Y71: 0 | Z71: 1
A72: =IF(INTRO!$E$33<>0,INTRO!$E$33, " ") -> Angola | B72: CUNENE | C72: CUROCA | D72: 53947.27889 | E72: =IF(INTRO!$E$48="","",ROUND($D72*INTRO!$E$48,0)) -> 7358 | F72: =IF(INTRO!$E$49="","",ROUND($D72*INTRO!$E$49,0)) -> 15019 | G72: =IF(INTRO!$E$50="","",ROUND($D72*INTRO!$E$50,0)) -> 29574 | H72: 0 | I72: 4 | J72: 0 | K72: 2 | L72: 0 | M72: =IF(INTRO!$E$37="Endemic",IF($H72>0,IF($H72=4,"Unknown",IF($H72=99,"Stopped",$D72)),0),"Not required") -> 0 | N72: =IF(INTRO!$E$39="Endemic", IF($I72>0, IF($I72=4,"Unknown",IF($I72=99,"Stopped",$D72)), 0),"Not required") -> Unknown | O72: =IF(INTRO!$E$41="Endemic", IF($J72>1, IF($J72=4, "Unknown", IF($J72=99, "Surveillance", E72)), 0),"Not required") -> 0 | P72: =IF(INTRO!$E$41="Endemic", IF($J72>1, IF($J72=4, "Unknown", IF($J72=99, "Surveillance", F72)), 0),"Not required") -> 0 | Q72: =IF(INTRO!$E$41="Endemic", IF($J72>1, IF($J72=4, "Unknown", IF($J72=99, "Surveillance", ROUND(D72*INTRO!$E$51,0))), 0),"Not required") -> 0 | R72: =IF(INTRO!$E$41="Endemic", IF($J72>1, IF($J72=4, "Unknown", IF($J72=99, "Surveillance", SUM($O72:$Q72))), 0),"Not required") -> 0 | S72: =IF(INTRO!$E$43="Endemic", IF($K72>1, IF($K72=4, "Unknown", IF($K72=99, "Surveillance", ROUND(E72*0.75,0))), 0),"Not required") -> 5519 | T72: =IF(INTRO!$E$43="Endemic", IF($K72>1, IF($K72=4, "Unknown", IF($K72=99, "Surveillance", F72)), 0),"Not required") -> 15019 | U72: =IF(INTRO!$E$43="Endemic", IF($K72>1, IF($K72=4, "Unknown", IF($K72=99, "Surveillance", G72)), 0),"Not required") -> 29574 | V72: =IF(INTRO!$E$43="Endemic", IF($K72>1, IF($K72=4, "Unknown", IF($K72=99, "Surveillance", SUM($S72:$U72))), 0),"Not required") -> 50112 | W72: 0 | X72: 0 | Y72: 0 | Z72: 1
A73: =IF(INTRO!$E$33<>0,INTRO!$E$33, " ") -> Angola | B73: CUNENE | C73: CUVELAI | D73: 75363.55124 | E73: =IF(INTRO!$E$48="","",ROUND($D73*INTRO!$E$48,0)) -> 10280 | F73: =IF(INTRO!$E$49="","",ROUND($D73*INTRO!$E$49,0)) -> 20981 | G73: =IF(INTRO!$E$50="","",ROUND($D73*INTRO!$E$50,0)) -> 41314 | H73: 4 | I73: 4 | J73: 1 | K73: 3 | L73: 1 | M73: =IF(INTRO!$E$37="Endemic",IF($H73>0,IF($H73=4,"Unknown",IF($H73=99,"Stopped",$D73)),0),"Not required") -> Unknown | N73: =IF(INTRO!$E$39="Endemic", IF($I73>0, IF($I73=4,"Unknown",IF($I73=99,"Stopped",$D73)), 0),"Not required") -> Unknown | O73: =IF(INTRO!$E$41="Endemic", IF($J73>1, IF($J73=4, "Unknown", IF($J73=99, "Surveillance", E73)), 0),"Not required") -> 0 | P73: =IF(INTRO!$E$41="Endemic", IF($J73>1, IF($J73=4, "Unknown", IF($J73=99, "Surveillance", F73)), 0),"Not required") -> 0 | Q73: =IF(INTRO!$E$41="Endemic", IF($J73>1, IF($J73=4, "Unknown", IF($J73=99, "Surveillance", ROUND(D73*INTRO!$E$51,0))), 0),"Not required") -> 0 | R73: =IF(INTRO!$E$41="Endemic", IF($J73>1, IF($J73=4, "Unknown", IF($J73=99, "Surveillance", SUM($O73:$Q73))), 0),"Not required") -> 0 | S73: =IF(INTRO!$E$43="Endemic", IF($K73>1, IF($K73=4, "Unknown", IF($K73=99, "Surveillance", ROUND(E73*0.75,0))), 0),"Not required") -> 7710 | T73: =IF(INTRO!$E$43="Endemic", IF($K73>1, IF($K73=4, "Unknown", IF($K73=99, "Surveillance", F73)), 0),"Not required") -> 20981 | U73: =IF(INTRO!$E$43="Endemic", IF($K73>1, IF($K73=4, "Unknown", IF($K73=99, "Surveillance", G73)), 0),"Not required") -> 41314 | V73: =IF(INTRO!$E$43="Endemic", IF($K73>1, IF($K73=4, "Unknown", IF($K73=99, "Surveillance", SUM($S73:$U73))), 0),"Not required") -> 70005 | W73: 0 | X73: 0 | Y73: 0 | Z73: 1
A74: =IF(INTRO!$E$33<>0,INTRO!$E$33, " ") -> Angola | B74: CUNENE | C74: NAMACUNDE | D74: 186508.7838 | E74: =IF(INTRO!$E$48="","",ROUND($D74*INTRO!$E$48,0)) -> 25440 | F74: =IF(INTRO!$E$49="","",ROUND($D74*INTRO!$E$49,0)) -> 51924 | G74: =IF(INTRO!$E$50="","",ROUND($D74*INTRO!$E$50,0)) -> 102244 | H74: 0 | I74: 4 | J74: 1 | K74: 2 | L74: 1 | M74: =IF(INTRO!$E$37="Endemic",IF($H74>0,IF($H74=4,"Unknown",IF($H74=99,"Stopped",$D74)),0),"Not required") -> 0 | N74: =IF(INTRO!$E$39="Endemic", IF($I74>0, IF($I74=4,"Unknown",IF($I74=99,"Stopped",$D74)), 0),"Not required") -> Unknown | O74: =IF(INTRO!$E$41="Endemic", IF($J74>1, IF($J74=4, "Unknown", IF($J74=99, "Surveillance", E74)), 0),"Not required") -> 0 | P74: =IF(INTRO!$E$41="Endemic", IF($J74>1, IF($J74=4, "Unknown", IF($J74=99, "Surveillance", F74)), 0),"Not required") -> 0 | Q74: =IF(INTRO!$E$41="Endemic", IF($J74>1, IF($J74=4, "Unknown", IF($J74=99, "Surveillance", ROUND(D74*INTRO!$E$51,0))), 0),"Not required") -> 0 | R74: =IF(INTRO!$E$41="Endemic", IF($J74>1, IF($J74=4, "Unknown", IF($J74=99, "Surveillance", SUM($O74:$Q74))), 0),"Not required") -> 0 | S74: =IF(INTRO!$E$43="Endemic", IF($K74>1, IF($K74=4, "Unknown", IF($K74=99, "Surveillance", ROUND(E74*0.75,0))), 0),"Not required") -> 19080 | T74: =IF(INTRO!$E$43="Endemic", IF($K74>1, IF($K74=4, "Unknown", IF($K74=99, "Surveillance", F74)), 0),"Not required") -> 51924 | U74: =IF(INTRO!$E$43="Endemic", IF($K74>1, IF($K74=4, "Unknown", IF($K74=99, "Surveillance", G74)), 0),"Not required") -> 102244 | V74: =IF(INTRO!$E$43="Endemic", IF($K74>1, IF($K74=4, "Unknown", IF($K74=99, "Surveillance", SUM($S74:$U74))), 0),"Not required") -> 173248 | W74: 0 | X74: 0 | Y74: 0 | Z74: 1
A75: =IF(INTRO!$E$33<>0,INTRO!$E$33, " ") -> Angola | B75: CUNENE | C75: OMBADJA | D75: 400420.4817 | E75: =IF(INTRO!$E$48="","",ROUND($D75*INTRO!$E$48,0)) -> 54617 | F75: =IF(INTRO!$E$49="","",ROUND($D75*INTRO!$E$49,0)) -> 111477 | G75: =IF(INTRO!$E$50="","",ROUND($D75*INTRO!$E$50,0)) -> 219511 | H75: 0 | I75: 4 | J75: 2 | K75: 3 | L75: 1 | M75: =IF(INTRO!$E$37="Endemic",IF($H75>0,IF($H75=4,"Unknown",IF($H75=99,"Stopped",$D75)),0),"Not required") -> 0 | N75: =IF(INTRO!$E$39="Endemic", IF($I75>0, IF($I75=4,"Unknown",IF($I75=99,"Stopped",$D75)), 0),"Not required") -> Unknown | O75: =IF(INTRO!$E$41="Endemic", IF($J75>1, IF($J75=4, "Unknown", IF($J75=99, "Surveillance", E75)), 0),"Not required") -> 54617 | P75: =IF(INTRO!$E$41="Endemic", IF($J75>1, IF($J75=4, "Unknown", IF($J75=99, "Surveillance", F75)), 0),"Not required") -> 111477 | Q75: =IF(INTRO!$E$41="Endemic", IF($J75>1, IF($J75=4, "Unknown", IF($J75=99, "Surveillance", ROUND(D75*INTRO!$E$51,0))), 0),"Not required") -> 92537 | R75: =IF(INTRO!$E$41="Endemic", IF($J75>1, IF($J75=4, "Unknown", IF($J75=99, "Surveillance", SUM($O75:$Q75))), 0),"Not required") -> 258631 | S75: =IF(INTRO!$E$43="Endemic", IF($K75>1, IF($K75=4, "Unknown", IF($K75=99, "Surveillance", ROUND(E75*0.75,0))), 0),"Not required") -> 40963 | T75: =IF(INTRO!$E$43="Endemic", IF($K75>1, IF($K75=4, "Unknown", IF($K75=99, "Surveillance", F75)), 0),"Not required") -> 111477 | U75: =IF(INTRO!$E$43="Endemic", IF($K75>1, IF($K75=4, "Unknown", IF($K75=99, "Surveillance", G75)), 0),"Not required") -> 219511 | V75: =IF(INTRO!$E$43="Endemic", IF($K75>1, IF($K75=4, "Unknown", IF($K75=99, "Surveillance", SUM($S75:$U75))), 0),"Not required") -> 371951 | W75: 0 | X75: 0 | Y75: 1 | Z75: 1
A76: =IF(INTRO!$E$33<>0,INTRO!$E$33, " ") -> Angola | B76: HUAMBO | C76: BAILUNDO | D76: 393271.5286 | E76: =IF(INTRO!$E$48="","",ROUND($D76*INTRO!$E$48,0)) -> 53642 | F76: =IF(INTRO!$E$49="","",ROUND($D76*INTRO!$E$49,0)) -> 109487 | G76: =IF(INTRO!$E$50="","",ROUND($D76*INTRO!$E$50,0)) -> 215591 | H76: 0 | I76: 4 | J76: 22 | K76: 21 | L76: 1 | M76: =IF(INTRO!$E$37="Endemic",IF($H76>0,IF($H76=4,"Unknown",IF($H76=99,"Stopped",$D76)),0),"Not required") -> 0 | N76: =IF(INTRO!$E$39="Endemic", IF($I76>0, IF($I76=4,"Unknown",IF($I76=99,"Stopped",$D76)), 0),"Not required") -> Unknown | O76: =IF(INTRO!$E$41="Endemic", IF($J76>1, IF($J76=4, "Unknown", IF($J76=99, "Surveillance", E76)), 0),"Not required") -> 53642 | P76: =IF(INTRO!$E$41="Endemic", IF($J76>1, IF($J76=4, "Unknown", IF($J76=99, "Surveillance", F76)), 0),"Not required") -> 109487 | Q76: =IF(INTRO!$E$41="Endemic", IF($J76>1, IF($J76=4, "Unknown", IF($J76=99, "Surveillance", ROUND(D76*INTRO!$E$51,0))), 0),"Not required") -> 90885 | R76: =IF(INTRO!$E$41="Endemic", IF($J76>1, IF($J76=4, "Unknown", IF($J76=99, "Surveillance", SUM($O76:$Q76))), 0),"Not required") -> 254014 | S76: =IF(INTRO!$E$43="Endemic", IF($K76>1, IF($K76=4, "Unknown", IF($K76=99, "Surveillance", ROUND(E76*0.75,0))), 0),"Not required") -> 40232 | T76: =IF(INTRO!$E$43="Endemic", IF($K76>1, IF($K76=4, "Unknown", IF($K76=99, "Surveillance", F76)), 0),"Not required") -> 109487 | U76: =IF(INTRO!$E$43="Endemic", IF($K76>1, IF($K76=4, "Unknown", IF($K76=99, "Surveillance", G76)), 0),"Not required") -> 215591 | V76: =IF(INTRO!$E$43="Endemic", IF($K76>1, IF($K76=4, "Unknown", IF($K76=99, "Surveillance", SUM($S76:$U76))), 0),"Not required") -> 365310 | W76: 0 | X76: 0 | Y76: 1 | Z76: 1
A77: =IF(INTRO!$E$33<>0,INTRO!$E$33, " ") -> Angola | B77: HUAMBO | C77: CAALA | D77: 373639.8577 | E77: =IF(INTRO!$E$48="","",ROUND($D77*INTRO!$E$48,0)) -> 50964 | F77: =IF(INTRO!$E$49="","",ROUND($D77*INTRO!$E$49,0)) -> 104021 | G77: =IF(INTRO!$E$50="","",ROUND($D77*INTRO!$E$50,0)) -> 204829 | H77: 0 | I77: 4 | J77: 22 | K77: 11 | L77: 0 | M77: =IF(INTRO!$E$37="Endemic",IF($H77>0,IF($H77=4,"Unknown",IF($H77=99,"Stopped",$D77)),0),"Not required") -> 0 | N77: =IF(INTRO!$E$39="Endemic", IF($I77>0, IF($I77=4,"Unknown",IF($I77=99,"Stopped",$D77)), 0),"Not required") -> Unknown | O77: =IF(INTRO!$E$41="Endemic", IF($J77>1, IF($J77=4, "Unknown", IF($J77=99, "Surveillance", E77)), 0),"Not required") -> 50964 | P77: =IF(INTRO!$E$41="Endemic", IF($J77>1, IF($J77=4, "Unknown", IF($J77=99, "Surveillance", F77)), 0),"Not required") -> 104021 | Q77: =IF(INTRO!$E$41="Endemic", IF($J77>1, IF($J77=4, "Unknown", IF($J77=99, "Surveillance", ROUND(D77*INTRO!$E$51,0))), 0),"Not required") -> 86348 | R77: =IF(INTRO!$E$41="Endemic", IF($J77>1, IF($J77=4, "Unknown", IF($J77=99, "Surveillance", SUM($O77:$Q77))), 0),"Not required") -> 241333 | S77: =IF(INTRO!$E$43="Endemic", IF($K77>1, IF($K77=4, "Unknown", IF($K77=99, "Surveillance", ROUND(E77*0.75,0))), 0),"Not required") -> 38223 | T77: =IF(INTRO!$E$43="Endemic", IF($K77>1, IF($K77=4, "Unknown", IF($K77=99, "Surveillance", F77)), 0),"Not required") -> 104021 | U77: =IF(INTRO!$E$43="Endemic", IF($K77>1, IF($K77=4, "Unknown", IF($K77=99, "Surveillance", G77)), 0),"Not required") -> 204829 | V77: =IF(INTRO!$E$43="Endemic", IF($K77>1, IF($K77=4, "Unknown", IF($K77=99, "Surveillance", SUM($S77:$U77))), 0),"Not required") -> 347073 | W77: 0 | X77: 0 | Y77: 1 | Z77: 1
A78: =IF(INTRO!$E$33<>0,INTRO!$E$33, " ") -> Angola | B78: HUAMBO | C78: CACHIUNGO | D78: 161155.2081 | E78: =IF(INTRO!$E$48="","",ROUND($D78*INTRO!$E$48,0)) -> 21982 | F78: =IF(INTRO!$E$49="","",ROUND($D78*INTRO!$E$49,0)) -> 44866 | G78: =IF(INTRO!$E$50="","",ROUND($D78*INTRO!$E$50,0)) -> 88345 | H78: 0 | I78: 4 | J78: 11 | K78: 11 | L78: 0 | M78: =IF(INTRO!$E$37="Endemic",IF($H78>0,IF($H78=4,"Unknown",IF($H78=99,"Stopped",$D78)),0),"Not required") -> 0 | N78: =IF(INTRO!$E$39="Endemic", IF($I78>0, IF($I78=4,"Unknown",IF($I78=99,"Stopped",$D78)), 0),"Not required") -> Unknown | O78: =IF(INTRO!$E$41="Endemic", IF($J78>1, IF($J78=4, "Unknown", IF($J78=99, "Surveillance", E78)), 0),"Not required") -> 21982 | P78: =IF(INTRO!$E$41="Endemic", IF($J78>1, IF($J78=4, "Unknown", IF($J78=99, "Surveillance", F78)), 0),"Not required") -> 44866 | Q78: =IF(INTRO!$E$41="Endemic", IF($J78>1, IF($J78=4, "Unknown", IF($J78=99, "Surveillance", ROUND(D78*INTRO!$E$51,0))), 0),"Not required") -> 37243 | R78: =IF(INTRO!$E$41="Endemic", IF($J78>1, IF($J78=4, "Unknown", IF($J78=99, "Surveillance", SUM($O78:$Q78))), 0),"Not required") -> 104091 | S78: =IF(INTRO!$E$43="Endemic", IF($K78>1, IF($K78=4, "Unknown", IF($K78=99, "Surveillance", ROUND(E78*0.75,0))), 0),"Not required") -> 16487 | T78: =IF(INTRO!$E$43="Endemic", IF($K78>1, IF($K78=4, "Unknown", IF($K78=99, "Surveillance", F78)), 0),"Not required") -> 44866 | U78: =IF(INTRO!$E$43="Endemic", IF($K78>1, IF($K78=4, "Unknown", IF($K78=99, "Surveillance", G78)), 0),"Not required") -> 88345 | V78: =IF(INTRO!$E$43="Endemic", IF($K78>1, IF($K78=4, "Unknown", IF($K78=99, "Surveillance", SUM($S78:$U78))), 0),"Not required") -> 149698 | W78: 0 | X78: 0 | Y78: 1 | Z78: 1
A79: =IF(INTRO!$E$33<>0,INTRO!$E$33, " ") -> Angola | B79: HUAMBO | C79: CHICALA CHOLOHANGA | D79: 138409.9772 | E79: =IF(INTRO!$E$48="","",ROUND($D79*INTRO!$E$48,0)) -> 18879 | F79: =IF(INTRO!$E$49="","",ROUND($D79*INTRO!$E$49,0)) -> 38533 | G79: =IF(INTRO!$E$50="","",ROUND($D79*INTRO!$E$50,0)) -> 75876 | H79: 0 | I79: 4 | J79: 21 | K79: 21 | L79: 0 | M79: =IF(INTRO!$E$37="Endemic",IF($H79>0,IF($H79=4,"Unknown",IF($H79=99,"Stopped",$D79)),0),"Not required") -> 0 | N79: =IF(INTRO!$E$39="Endemic", IF($I79>0, IF($I79=4,"Unknown",IF($I79=99,"Stopped",$D79)), 0),"Not required") -> Unknown | O79: =IF(INTRO!$E$41="Endemic", IF($J79>1, IF($J79=4, "Unknown", IF($J79=99, "Surveillance", E79)), 0),"Not required") -> 18879 | P79: =IF(INTRO!$E$41="Endemic", IF($J79>1, IF($J79=4, "Unknown", IF($J79=99, "Surveillance", F79)), 0),"Not required") -> 38533 | Q79: =IF(INTRO!$E$41="Endemic", IF($J79>1, IF($J79=4, "Unknown", IF($J79=99, "Surveillance", ROUND(D79*INTRO!$E$51,0))), 0),"Not required") -> 31987 | R79: =IF(INTRO!$E$41="Endemic", IF($J79>1, IF($J79=4, "Unknown", IF($J79=99, "Surveillance", SUM($O79:$Q79))), 0),"Not required") -> 89399 | S79: =IF(INTRO!$E$43="Endemic", IF($K79>1, IF($K79=4, "Unknown", IF($K79=99, "Surveillance", ROUND(E79*0.75,0))), 0),"Not required") -> 14159 | T79: =IF(INTRO!$E$43="Endemic", IF($K79>1, IF($K79=4, "Unknown", IF($K79=99, "Surveillance", F79)), 0),"Not required") -> 38533 | U79: =IF(INTRO!$E$43="Endemic", IF($K79>1, IF($K79=4, "Unknown", IF($K79=99, "Surveillance", G79)), 0),"Not required") -> 75876 | V79: =IF(INTRO!$E$43="Endemic", IF($K79>1, IF($K79=4, "Unknown", IF($K79=99, "Surveillance", SUM($S79:$U79))), 0),"Not required") -> 128568 | W79: 0 | X79: 0 | Y79: 1 | Z79: 1
A80: =IF(INTRO!$E$33<>0,INTRO!$E$33, " ") -> Angola | B80: HUAMBO | C80: CHINDJENJE | D80: 40654.5293 | E80: =IF(INTRO!$E$48="","",ROUND($D80*INTRO!$E$48,0)) -> 5545 | F80: =IF(INTRO!$E$49="","",ROUND($D80*INTRO!$E$49,0)) -> 11318 | G80: =IF(INTRO!$E$50="","",ROUND($D80*INTRO!$E$50,0)) -> 22287 | H80: 0 | I80: 4 | J80: 11 | K80: 21 | L80: 0 | M80: =IF(INTRO!$E$37="Endemic",IF($H80>0,IF($H80=4,"Unknown",IF($H80=99,"Stopped",$D80)),0),"Not required") -> 0 | N80: =IF(INTRO!$E$39="Endemic", IF($I80>0, IF($I80=4,"Unknown",IF($I80=99,"Stopped",$D80)), 0),"Not required") -> Unknown | O80: =IF(INTRO!$E$41="Endemic", IF($J80>1, IF($J80=4, "Unknown", IF($J80=99, "Surveillance", E80)), 0),"Not required") -> 5545 | P80: =IF(INTRO!$E$41="Endemic", IF($J80>1, IF($J80=4, "Unknown", IF($J80=99, "Surveillance", F80)), 0),"Not required") -> 11318 | Q80: =IF(INTRO!$E$41="Endemic", IF($J80>1, IF($J80=4, "Unknown", IF($J80=99, "Surveillance", ROUND(D80*INTRO!$E$51,0))), 0),"Not required") -> 9395 | R80: =IF(INTRO!$E$41="Endemic", IF($J80>1, IF($J80=4, "Unknown", IF($J80=99, "Surveillance", SUM($O80:$Q80))), 0),"Not required") -> 26258 | S80: =IF(INTRO!$E$43="Endemic", IF($K80>1, IF($K80=4, "Unknown", IF($K80=99, "Surveillance", ROUND(E80*0.75,0))), 0),"Not required") -> 4159 | T80: =IF(INTRO!$E$43="Endemic", IF($K80>1, IF($K80=4, "Unknown", IF($K80=99, "Surveillance", F80)), 0),"Not required") -> 11318 | U80: =IF(INTRO!$E$43="Endemic", IF($K80>1, IF($K80=4, "Unknown", IF($K80=99, "Surveillance", G80)), 0),"Not required") -> 22287 | V80: =IF(INTRO!$E$43="Endemic", IF($K80>1, IF($K80=4, "Unknown", IF($K80=99, "Surveillance", SUM($S80:$U80))), 0),"Not required") -> 37764 | W80: 0 | X80: 0 | Y80: 1 | Z80: 1
A81: =IF(INTRO!$E$33<>0,INTRO!$E$33, " ") -> Angola | B81: HUAMBO | C81: ECUNHA | D81: 110226.5636 | E81: =IF(INTRO!$E$48="","",ROUND($D81*INTRO!$E$48,0)) -> 15035 | F81: =IF(INTRO!$E$49="","",ROUND($D81*INTRO!$E$49,0)) -> 30687 | G81: =IF(INTRO!$E$50="","",ROUND($D81*INTRO!$E$50,0)) -> 60426 | H81: 0 | I81: 4 | J81: 21 | K81: 21 | L81: 0 | M81: =IF(INTRO!$E$37="Endemic",IF($H81>0,IF($H81=4,"Unknown",IF($H81=99,"Stopped",$D81)),0),"Not required") -> 0 | N81: =IF(INTRO!$E$39="Endemic", IF($I81>0, IF($I81=4,"Unknown",IF($I81=99,"Stopped",$D81)), 0),"Not required") -> Unknown | O81: =IF(INTRO!$E$41="Endemic", IF($J81>1, IF($J81=4, "Unknown", IF($J81=99, "Surveillance", E81)), 0),"Not required") -> 15035 | P81: =IF(INTRO!$E$41="Endemic", IF($J81>1, IF($J81=4, "Unknown", IF($J81=99, "Surveillance", F81)), 0),"Not required") -> 30687 | Q81: =IF(INTRO!$E$41="Endemic", IF($J81>1, IF($J81=4, "Unknown", IF($J81=99, "Surveillance", ROUND(D81*INTRO!$E$51,0))), 0),"Not required") -> 25473 | R81: =IF(INTRO!$E$41="Endemic", IF($J81>1, IF($J81=4, "Unknown", IF($J81=99, "Surveillance", SUM($O81:$Q81))), 0),"Not required") -> 71195 | S81: =IF(INTRO!$E$43="Endemic", IF($K81>1, IF($K81=4, "Unknown", IF($K81=99, "Surveillance", ROUND(E81*0.75,0))), 0),"Not required") -> 11276 | T81: =IF(INTRO!$E$43="Endemic", IF($K81>1, IF($K81=4, "Unknown", IF($K81=99, "Surveillance", F81)), 0),"Not required") -> 30687 | U81: =IF(INTRO!$E$43="Endemic", IF($K81>1, IF($K81=4, "Unknown", IF($K81=99, "Surveillance", G81)), 0),"Not required") -> 60426 | V81: =IF(INTRO!$E$43="Endemic", IF($K81>1, IF($K81=4, "Unknown", IF($K81=99, "Surveillance", SUM($S81:$U81))), 0),"Not required") -> 102389 | W81: 0 | X81: 0 | Y81: 1 | Z81: 1
A82: =IF(INTRO!$E$33<>0,INTRO!$E$33, " ") -> Angola | B82: HUAMBO | C82: HUAMBO | D82: 952331.6898 | E82: =IF(INTRO!$E$48="","",ROUND($D82*INTRO!$E$48,0)) -> 129898 | F82: =IF(INTRO!$E$49="","",ROUND($D82*INTRO!$E$49,0)) -> 265129 | G82: =IF(INTRO!$E$50="","",ROUND($D82*INTRO!$E$50,0)) -> 522068 | H82: 0 | I82: 4 | J82: 22 | K82: 21 | L82: 0 | M82: =IF(INTRO!$E$37="Endemic",IF($H82>0,IF($H82=4,"Unknown",IF($H82=99,"Stopped",$D82)),0),"Not required") -> 0 | N82: =IF(INTRO!$E$39="Endemic", IF($I82>0, IF($I82=4,"Unknown",IF($I82=99,"Stopped",$D82)), 0),"Not required") -> Unknown | O82: =IF(INTRO!$E$41="Endemic", IF($J82>1, IF($J82=4, "Unknown", IF($J82=99, "Surveillance", E82)), 0),"Not required") -> 129898 | P82: =IF(INTRO!$E$41="Endemic", IF($J82>1, IF($J82=4, "Unknown", IF($J82=99, "Surveillance", F82)), 0),"Not required") -> 265129 | Q82: =IF(INTRO!$E$41="Endemic", IF($J82>1, IF($J82=4, "Unknown", IF($J82=99, "Surveillance", ROUND(D82*INTRO!$E$51,0))), 0),"Not required") -> 220084 | R82: =IF(INTRO!$E$41="Endemic", IF($J82>1, IF($J82=4, "Unknown", IF($J82=99, "Surveillance", SUM($O82:$Q82))), 0),"Not required") -> 615111 | S82: =IF(INTRO!$E$43="Endemic", IF($K82>1, IF($K82=4, "Unknown", IF($K82=99, "Surveillance", ROUND(E82*0.75,0))), 0),"Not required") -> 97424 | T82: =IF(INTRO!$E$43="Endemic", IF($K82>1, IF($K82=4, "Unknown", IF($K82=99, "Surveillance", F82)), 0),"Not required") -> 265129 | U82: =IF(INTRO!$E$43="Endemic", IF($K82>1, IF($K82=4, "Unknown", IF($K82=99, "Surveillance", G82)), 0),"Not required") -> 522068 | V82: =IF(INTRO!$E$43="Endemic", IF($K82>1, IF($K82=4, "Unknown", IF($K82=99, "Surveillance", SUM($S82:$U82))), 0),"Not required") -> 884621 | W82: 0 | X82: 0 | Y82: 1 | Z82: 1
A83: =IF(INTRO!$E$33<>0,INTRO!$E$33, " ") -> Angola | B83: HUAMBO | C83: LONDUIMBALI | D83: 179283.8901 | E83: =IF(INTRO!$E$48="","",ROUND($D83*INTRO!$E$48,0)) -> 24454 | F83: =IF(INTRO!$E$49="","",ROUND($D83*INTRO!$E$49,0)) -> 49913 | G83: =IF(INTRO!$E$50="","",ROUND($D83*INTRO!$E$50,0)) -> 98283 | H83: 0 | I83: 4 | J83: 21 | K83: 21 | L83: 0 | M83: =IF(INTRO!$E$37="Endemic",IF($H83>0,IF($H83=4,"Unknown",IF($H83=99,"Stopped",$D83)),0),"Not required") -> 0 | N83: =IF(INTRO!$E$39="Endemic", IF($I83>0, IF($I83=4,"Unknown",IF($I83=99,"Stopped",$D83)), 0),"Not required") -> Unknown | O83: =IF(INTRO!$E$41="Endemic", IF($J83>1, IF($J83=4, "Unknown", IF($J83=99, "Surveillance", E83)), 0),"Not required") -> 24454 | P83: =IF(INTRO!$E$41="Endemic", IF($J83>1, IF($J83=4, "Unknown", IF($J83=99, "Surveillance", F83)), 0),"Not required") -> 49913 | Q83: =IF(INTRO!$E$41="Endemic", IF($J83>1, IF($J83=4, "Unknown", IF($J83=99, "Surveillance", ROUND(D83*INTRO!$E$51,0))), 0),"Not required") -> 41433 | R83: =IF(INTRO!$E$41="Endemic", IF($J83>1, IF($J83=4, "Unknown", IF($J83=99, "Surveillance", SUM($O83:$Q83))), 0),"Not required") -> 115800 | S83: =IF(INTRO!$E$43="Endemic", IF($K83>1, IF($K83=4, "Unknown", IF($K83=99, "Surveillance", ROUND(E83*0.75,0))), 0),"Not required") -> 18341 | T83: =IF(INTRO!$E$43="Endemic", IF($K83>1, IF($K83=4, "Unknown", IF($K83=99, "Surveillance", F83)), 0),"Not required") -> 49913 | U83: =IF(INTRO!$E$43="Endemic", IF($K83>1, IF($K83=4, "Unknown", IF($K83=99, "Surveillance", G83)), 0),"Not required") -> 98283 | V83: =IF(INTRO!$E$43="Endemic", IF($K83>1, IF($K83=4, "Unknown", IF($K83=99, "Surveillance", SUM($S83:$U83))), 0),"Not required") -> 166537 | W83: 0 | X83: 0 | Y83: 1 | Z83: 1
A84: =IF(INTRO!$E$33<>0,INTRO!$E$33, " ") -> Angola | B84: HUAMBO | C84: LONGONJO | D84: 122996.1676 | E84: =IF(INTRO!$E$48="","",ROUND($D84*INTRO!$E$48,0)) -> 16777 | F84: =IF(INTRO!$E$49="","",ROUND($D84*INTRO!$E$49,0)) -> 34242 | G84: =IF(INTRO!$E$50="","",ROUND($D84*INTRO!$E$50,0)) -> 67426 | H84: 0 | I84: 4 | J84: 21 | K84: 21 | L84: 0 | M84: =IF(INTRO!$E$37="Endemic",IF($H84>0,IF($H84=4,"Unknown",IF($H84=99,"Stopped",$D84)),0),"Not required") -> 0 | N84: =IF(INTRO!$E$39="Endemic", IF($I84>0, IF($I84=4,"Unknown",IF($I84=99,"Stopped",$D84)), 0),"Not required") -> Unknown | O84: =IF(INTRO!$E$41="Endemic", IF($J84>1, IF($J84=4, "Unknown", IF($J84=99, "Surveillance", E84)), 0),"Not required") -> 16777 | P84: =IF(INTRO!$E$41="Endemic", IF($J84>1, IF($J84=4, "Unknown", IF($J84=99, "Surveillance", F84)), 0),"Not required") -> 34242 | Q84: =IF(INTRO!$E$41="Endemic", IF($J84>1, IF($J84=4, "Unknown", IF($J84=99, "Surveillance", ROUND(D84*INTRO!$E$51,0))), 0),"Not required") -> 28424 | R84: =IF(INTRO!$E$41="Endemic", IF($J84>1, IF($J84=4, "Unknown", IF($J84=99, "Surveillance", SUM($O84:$Q84))), 0),"Not required") -> 79443 | S84: =IF(INTRO!$E$43="Endemic", IF($K84>1, IF($K84=4, "Unknown", IF($K84=99, "Surveillance", ROUND(E84*0.75,0))), 0),"Not required") -> 12583 | T84: =IF(INTRO!$E$43="Endemic", IF($K84>1, IF($K84=4, "Unknown", IF($K84=99, "Surveillance", F84)), 0),"Not required") -> 34242 | U84: =IF(INTRO!$E$43="Endemic", IF($K84>1, IF($K84=4, "Unknown", IF($K84=99, "Surveillance", G84)), 0),"Not required") -> 67426 | V84: =IF(INTRO!$E$43="Endemic", IF($K84>1, IF($K84=4, "Unknown", IF($K84=99, "Surveillance", SUM($S84:$U84))), 0),"Not required") -> 114251 | W84: 0 | X84: 0 | Y84: 1 | Z84: 1
A85: =IF(INTRO!$E$33<>0,INTRO!$E$33, " ") -> Angola | B85: HUAMBO | C85: MUNGO | D85: 151458.0297 | E85: =IF(INTRO!$E$48="","",ROUND($D85*INTRO!$E$48,0)) -> 20659 | F85: =IF(INTRO!$E$49="","",ROUND($D85*INTRO!$E$49,0)) -> 42166 | G85: =IF(INTRO!$E$50="","",ROUND($D85*INTRO!$E$50,0)) -> 83029 | H85: 0 | I85: 1 | J85: 21 | K85: 21 | L85: 1 | M85: =IF(INTRO!$E$37="Endemic",IF($H85>0,IF($H85=4,"Unknown",IF($H85=99,"Stopped",$D85)),0),"Not required") -> 0 | N85: =IF(INTRO!$E$39="Endemic", IF($I85>0, IF($I85=4,"Unknown",IF($I85=99,"Stopped",$D85)), 0),"Not required") -> 151458.0297 | O85: =IF(INTRO!$E$41="Endemic", IF($J85>1, IF($J85=4, "Unknown", IF($J85=99, "Surveillance", E85)), 0),"Not required") -> 20659 | P85: =IF(INTRO!$E$41="Endemic", IF($J85>1, IF($J85=4, "Unknown", IF($J85=99, "Surveillance", F85)), 0),"Not required") -> 42166 | Q85: =IF(INTRO!$E$41="Endemic", IF($J85>1, IF($J85=4, "Unknown", IF($J85=99, "Surveillance", ROUND(D85*INTRO!$E$51,0))), 0),"Not required") -> 35002 | R85: =IF(INTRO!$E$41="Endemic", IF($J85>1, IF($J85=4, "Unknown", IF($J85=99, "Surveillance", SUM($O85:$Q85))), 0),"Not required") -> 97827 | S85: =IF(INTRO!$E$43="Endemic", IF($K85>1, IF($K85=4, "Unknown", IF($K85=99, "Surveillance", ROUND(E85*0.75,0))), 0),"Not required") -> 15494 | T85: =IF(INTRO!$E$43="Endemic", IF($K85>1, IF($K85=4, "Unknown", IF($K85=99, "Surveillance", F85)), 0),"Not required") -> 42166 | U85: =IF(INTRO!$E$43="Endemic", IF($K85>1, IF($K85=4, "Unknown", IF($K85=99, "Surveillance", G85)), 0),"Not required") -> 83029 | V85: =IF(INTRO!$E$43="Endemic", IF($K85>1, IF($K85=4, "Unknown", IF($K85=99, "Surveillance", SUM($S85:$U85))), 0),"Not required") -> 140689 | W85: 0 | X85: 1 | Y85: 1 | Z85: 1
A86: =IF(INTRO!$E$33<>0,INTRO!$E$33, " ") -> Angola | B86: HUAMBO | C86: UCUMA | D86: 73519.88494 | E86: =IF(INTRO!$E$48="","",ROUND($D86*INTRO!$E$48,0)) -> 10028 | F86: =IF(INTRO!$E$49="","",ROUND($D86*INTRO!$E$49,0)) -> 20468 | G86: =IF(INTRO!$E$50="","",ROUND($D86*INTRO!$E$50,0)) -> 40304 | H86: 0 | I86: 4 | J86: 21 | K86: 21 | L86: 0 | M86: =IF(INTRO!$E$37="Endemic",IF($H86>0,IF($H86=4,"Unknown",IF($H86=99,"Stopped",$D86)),0),"Not required") -> 0 | N86: =IF(INTRO!$E$39="Endemic", IF($I86>0, IF($I86=4,"Unknown",IF($I86=99,"Stopped",$D86)), 0),"Not required") -> Unknown | O86: =IF(INTRO!$E$41="Endemic", IF($J86>1, IF($J86=4, "Unknown", IF($J86=99, "Surveillance", E86)), 0),"Not required") -> 10028 | P86: =IF(INTRO!$E$41="Endemic", IF($J86>1, IF($J86=4, "Unknown", IF($J86=99, "Surveillance", F86)), 0),"Not required") -> 20468 | Q86: =IF(INTRO!$E$41="Endemic", IF($J86>1, IF($J86=4, "Unknown", IF($J86=99, "Surveillance", ROUND(D86*INTRO!$E$51,0))), 0),"Not required") -> 16990 | R86: =IF(INTRO!$E$41="Endemic", IF($J86>1, IF($J86=4, "Unknown", IF($J86=99, "Surveillance", SUM($O86:$Q86))), 0),"Not required") -> 47486 | S86: =IF(INTRO!$E$43="Endemic", IF($K86>1, IF($K86=4, "Unknown", IF($K86=99, "Surveillance", ROUND(E86*0.75,0))), 0),"Not required") -> 7521 | T86: =IF(INTRO!$E$43="Endemic", IF($K86>1, IF($K86=4, "Unknown", IF($K86=99, "Surveillance", F86)), 0),"Not required") -> 20468 | U86: =IF(INTRO!$E$43="Endemic", IF($K86>1, IF($K86=4, "Unknown", IF($K86=99, "Surveillance", G86)), 0),"Not required") -> 40304 | V86: =IF(INTRO!$E$43="Endemic", IF($K86>1, IF($K86=4, "Unknown", IF($K86=99, "Surveillance", SUM($S86:$U86))), 0),"Not required") -> 68293 | W86: 0 | X86: 0 | Y86: 1 | Z86: 1
A87: =IF(INTRO!$E$33<>0,INTRO!$E$33, " ") -> Angola | B87: HUILA | C87: CACONDA | D87: 219006.039 | E87: =IF(INTRO!$E$48="","",ROUND($D87*INTRO!$E$48,0)) -> 29872 | F87: =IF(INTRO!$E$49="","",ROUND($D87*INTRO!$E$49,0)) -> 60971 | G87: =IF(INTRO!$E$50="","",ROUND($D87*INTRO!$E$50,0)) -> 120059 | H87: 0 | I87: 4 | J87: 1 | K87: 3 | L87: 0 | M87: =IF(INTRO!$E$37="Endemic",IF($H87>0,IF($H87=4,"Unknown",IF($H87=99,"Stopped",$D87)),0),"Not required") -> 0 | N87: =IF(INTRO!$E$39="Endemic", IF($I87>0, IF($I87=4,"Unknown",IF($I87=99,"Stopped",$D87)), 0),"Not required") -> Unknown | O87: =IF(INTRO!$E$41="Endemic", IF($J87>1, IF($J87=4, "Unknown", IF($J87=99, "Surveillance", E87)), 0),"Not required") -> 0 | P87: =IF(INTRO!$E$41="Endemic", IF($J87>1, IF($J87=4, "Unknown", IF($J87=99, "Surveillance", F87)), 0),"Not required") -> 0 | Q87: =IF(INTRO!$E$41="Endemic", IF($J87>1, IF($J87=4, "Unknown", IF($J87=99, "Surveillance", ROUND(D87*INTRO!$E$51,0))), 0),"Not required") -> 0 | R87: =IF(INTRO!$E$41="Endemic", IF($J87>1, IF($J87=4, "Unknown", IF($J87=99, "Surveillance", SUM($O87:$Q87))), 0),"Not required") -> 0 | S87: =IF(INTRO!$E$43="Endemic", IF($K87>1, IF($K87=4, "Unknown", IF($K87=99, "Surveillance", ROUND(E87*0.75,0))), 0),"Not required") -> 22404 | T87: =IF(INTRO!$E$43="Endemic", IF($K87>1, IF($K87=4, "Unknown", IF($K87=99, "Surveillance", F87)), 0),"Not required") -> 60971 | U87: =IF(INTRO!$E$43="Endemic", IF($K87>1, IF($K87=4, "Unknown", IF($K87=99, "Surveillance", G87)), 0),"Not required") -> 120059 | V87: =IF(INTRO!$E$43="Endemic", IF($K87>1, IF($K87=4, "Unknown", IF($K87=99, "Surveillance", SUM($S87:$U87))), 0),"Not required") -> 203434 | W87: 0 | X87: 0 | Y87: 0 | Z87: 1
A88: =IF(INTRO!$E$33<>0,INTRO!$E$33, " ") -> Angola | B88: HUILA | C88: CACULA | D88: 178756.5256 | E88: =IF(INTRO!$E$48="","",ROUND($D88*INTRO!$E$48,0)) -> 24382 | F88: =IF(INTRO!$E$49="","",ROUND($D88*INTRO!$E$49,0)) -> 49766 | G88: =IF(INTRO!$E$50="","",ROUND($D88*INTRO!$E$50,0)) -> 97994 | H88: 0 | I88: 4 | J88: 0 | K88: 2 | L88: 0 | M88: =IF(INTRO!$E$37="Endemic",IF($H88>0,IF($H88=4,"Unknown",IF($H88=99,"Stopped",$D88)),0),"Not required") -> 0 | N88: =IF(INTRO!$E$39="Endemic", IF($I88>0, IF($I88=4,"Unknown",IF($I88=99,"Stopped",$D88)), 0),"Not required") -> Unknown | O88: =IF(INTRO!$E$41="Endemic", IF($J88>1, IF($J88=4, "Unknown", IF($J88=99, "Surveillance", E88)), 0),"Not required") -> 0 | P88: =IF(INTRO!$E$41="Endemic", IF($J88>1, IF($J88=4, "Unknown", IF($J88=99, "Surveillance", F88)), 0),"Not required") -> 0 | Q88: =IF(INTRO!$E$41="Endemic", IF($J88>1, IF($J88=4, "Unknown", IF($J88=99, "Surveillance", ROUND(D88*INTRO!$E$51,0))), 0),"Not required") -> 0 | R88: =IF(INTRO!$E$41="Endemic", IF($J88>1, IF($J88=4, "Unknown", IF($J88=99, "Surveillance", SUM($O88:$Q88))), 0),"Not required") -> 0 | S88: =IF(INTRO!$E$43="Endemic", IF($K88>1, IF($K88=4, "Unknown", IF($K88=99, "Surveillance", ROUND(E88*0.75,0))), 0),"Not required") -> 18287 | T88: =IF(INTRO!$E$43="Endemic", IF($K88>1, IF($K88=4, "Unknown", IF($K88=99, "Surveillance", F88)), 0),"Not required") -> 49766 | U88: =IF(INTRO!$E$43="Endemic", IF($K88>1, IF($K88=4, "Unknown", IF($K88=99, "Surveillance", G88)), 0),"Not required") -> 97994 | V88: =IF(INTRO!$E$43="Endemic", IF($K88>1, IF($K88=4, "Unknown", IF($K88=99, "Surveillance", SUM($S88:$U88))), 0),"Not required") -> 166047 | W88: 0 | X88: 0 | Y88: 0 | Z88: 1
A89: =IF(INTRO!$E$33<>0,INTRO!$E$33, " ") -> Angola | B89: HUILA | C89: CALUQUEMBE | D89: 234811.1531 | E89: =IF(INTRO!$E$48="","",ROUND($D89*INTRO!$E$48,0)) -> 32028 | F89: =IF(INTRO!$E$49="","",ROUND($D89*INTRO!$E$49,0)) -> 65371 | G89: =IF(INTRO!$E$50="","",ROUND($D89*INTRO!$E$50,0)) -> 128723 | H89: 0 | I89: 1 | J89: 1 | K89: 3 | L89: 0 | M89: =IF(INTRO!$E$37="Endemic",IF($H89>0,IF($H89=4,"Unknown",IF($H89=99,"Stopped",$D89)),0),"Not required") -> 0 | N89: =IF(INTRO!$E$39="Endemic", IF($I89>0, IF($I89=4,"Unknown",IF($I89=99,"Stopped",$D89)), 0),"Not required") -> 234811.1531 | O89: =IF(INTRO!$E$41="Endemic", IF($J89>1, IF($J89=4, "Unknown", IF($J89=99, "Surveillance", E89)), 0),"Not required") -> 0 | P89: =IF(INTRO!$E$41="Endemic", IF($J89>1, IF($J89=4, "Unknown", IF($J89=99, "Surveillance", F89)), 0),"Not required") -> 0 | Q89: =IF(INTRO!$E$41="Endemic", IF($J89>1, IF($J89=4, "Unknown", IF($J89=99, "Surveillance", ROUND(D89*INTRO!$E$51,0))), 0),"Not required") -> 0 | R89: =IF(INTRO!$E$41="Endemic", IF($J89>1, IF($J89=4, "Unknown", IF($J89=99, "Surveillance", SUM($O89:$Q89))), 0),"Not required") -> 0 | S89: =IF(INTRO!$E$43="Endemic", IF($K89>1, IF($K89=4, "Unknown", IF($K89=99, "Surveillance", ROUND(E89*0.75,0))), 0),"Not required") -> 24021 | T89: =IF(INTRO!$E$43="Endemic", IF($K89>1, IF($K89=4, "Unknown", IF($K89=99, "Surveillance", F89)), 0),"Not required") -> 65371 | U89: =IF(INTRO!$E$43="Endemic", IF($K89>1, IF($K89=4, "Unknown", IF($K89=99, "Surveillance", G89)), 0),"Not required") -> 128723 | V89: =IF(INTRO!$E$43="Endemic", IF($K89>1, IF($K89=4, "Unknown", IF($K89=99, "Surveillance", SUM($S89:$U89))), 0),"Not required") -> 218115 | W89: 0 | X89: 1 | Y89: 0 | Z89: 1
A90: =IF(INTRO!$E$33<>0,INTRO!$E$33, " ") -> Angola | B90: HUILA | C90: CHIBIA | D90: 248826.392 | E90: =IF(INTRO!$E$48="","",ROUND($D90*INTRO!$E$48,0)) -> 33940 | F90: =IF(INTRO!$E$49="","",ROUND($D90*INTRO!$E$49,0)) -> 69273 | G90: =IF(INTRO!$E$50="","",ROUND($D90*INTRO!$E$50,0)) -> 136407 | H90: 0 | I90: 4 | J90: 0 | K90: 3 | L90: 0 | M90: =IF(INTRO!$E$37="Endemic",IF($H90>0,IF($H90=4,"Unknown",IF($H90=99,"Stopped",$D90)),0),"Not required") -> 0 | N90: =IF(INTRO!$E$39="Endemic", IF($I90>0, IF($I90=4,"Unknown",IF($I90=99,"Stopped",$D90)), 0),"Not required") -> Unknown | O90: =IF(INTRO!$E$41="Endemic", IF($J90>1, IF($J90=4, "Unknown", IF($J90=99, "Surveillance", E90)), 0),"Not required") -> 0 | P90: =IF(INTRO!$E$41="Endemic", IF($J90>1, IF($J90=4, "Unknown", IF($J90=99, "Surveillance", F90)), 0),"Not required") -> 0 | Q90: =IF(INTRO!$E$41="Endemic", IF($J90>1, IF($J90=4, "Unknown", IF($J90=99, "Surveillance", ROUND(D90*INTRO!$E$51,0))), 0),"Not required") -> 0 | R90: =IF(INTRO!$E$41="Endemic", IF($J90>1, IF($J90=4, "Unknown", IF($J90=99, "Surveillance", SUM($O90:$Q90))), 0),"Not required") -> 0 | S90: =IF(INTRO!$E$43="Endemic", IF($K90>1, IF($K90=4, "Unknown", IF($K90=99, "Surveillance", ROUND(E90*0.75,0))), 0),"Not required") -> 25455 | T90: =IF(INTRO!$E$43="Endemic", IF($K90>1, IF($K90=4, "Unknown", IF($K90=99, "Surveillance", F90)), 0),"Not required") -> 69273 | U90: =IF(INTRO!$E$43="Endemic", IF($K90>1, IF($K90=4, "Unknown", IF($K90=99, "Surveillance", G90)), 0),"Not required") -> 136407 | V90: =IF(INTRO!$E$43="Endemic", IF($K90>1, IF($K90=4, "Unknown", IF($K90=99, "Surveillance", SUM($S90:$U90))), 0),"Not required") -> 231135 | W90: 0 | X90: 0 | Y90: 0 | Z90: 1
A91: =IF(INTRO!$E$33<>0,INTRO!$E$33, " ") -> Angola | B91: HUILA | C91: CHICOMBA | D91: 172009.4242 | E91: =IF(INTRO!$E$48="","",ROUND($D91*INTRO!$E$48,0)) -> 23462 | F91: =IF(INTRO!$E$49="","",ROUND($D91*INTRO!$E$49,0)) -> 47887 | G91: =IF(INTRO!$E$50="","",ROUND($D91*INTRO!$E$50,0)) -> 94296 | H91: 0 | I91: 1 | J91: 0 | K91: 3 | L91: 0 | M91: =IF(INTRO!$E$37="Endemic",IF($H91>0,IF($H91=4,"Unknown",IF($H91=99,"Stopped",$D91)),0),"Not required") -> 0 | N91: =IF(INTRO!$E$39="Endemic", IF($I91>0, IF($I91=4,"Unknown",IF($I91=99,"Stopped",$D91)), 0),"Not required") -> 172009.4242 | O91: =IF(INTRO!$E$41="Endemic", IF($J91>1, IF($J91=4, "Unknown", IF($J91=99, "Surveillance", E91)), 0),"Not required") -> 0 | P91: =IF(INTRO!$E$41="Endemic", IF($J91>1, IF($J91=4, "Unknown", IF($J91=99, "Surveillance", F91)), 0),"Not required") -> 0 | Q91: =IF(INTRO!$E$41="Endemic", IF($J91>1, IF($J91=4, "Unknown", IF($J91=99, "Surveillance", ROUND(D91*INTRO!$E$51,0))), 0),"Not required") -> 0 | R91: =IF(INTRO!$E$41="Endemic", IF($J91>1, IF($J91=4, "Unknown", IF($J91=99, "Surveillance", SUM($O91:$Q91))), 0),"Not required") -> 0 | S91: =IF(INTRO!$E$43="Endemic", IF($K91>1, IF($K91=4, "Unknown", IF($K91=99, "Surveillance", ROUND(E91*0.75,0))), 0),"Not required") -> 17597 | T91: =IF(INTRO!$E$43="Endemic", IF($K91>1, IF($K91=4, "Unknown", IF($K91=99, "Surveillance", F91)), 0),"Not required") -> 47887 | U91: =IF(INTRO!$E$43="Endemic", IF($K91>1, IF($K91=4, "Unknown", IF($K91=99, "Surveillance", G91)), 0),"Not required") -> 94296 | V91: =IF(INTRO!$E$43="Endemic", IF($K91>1, IF($K91=4, "Unknown", IF($K91=99, "Surveillance", SUM($S91:$U91))), 0),"Not required") -> 159780 | W91: 0 | X91: 1 | Y91: 0 | Z91: 1
A92: =IF(INTRO!$E$33<>0,INTRO!$E$33, " ") -> Angola | B92: HUILA | C92: CHIPINDO | D92: 84452.15103 | E92: =IF(INTRO!$E$48="","",ROUND($D92*INTRO!$E$48,0)) -> 11519 | F92: =IF(INTRO!$E$49="","",ROUND($D92*INTRO!$E$49,0)) -> 23511 | G92: =IF(INTRO!$E$50="","",ROUND($D92*INTRO!$E$50,0)) -> 46297 | H92: 1 | I92: 1 | J92: 1 | K92: 2 | L92: 0 | M92: =IF(INTRO!$E$37="Endemic",IF($H92>0,IF($H92=4,"Unknown",IF($H92=99,"Stopped",$D92)),0),"Not required") -> 84452.15103 | N92: =IF(INTRO!$E$39="Endemic", IF($I92>0, IF($I92=4,"Unknown",IF($I92=99,"Stopped",$D92)), 0),"Not required") -> 84452.15103 | O92: =IF(INTRO!$E$41="Endemic", IF($J92>1, IF($J92=4, "Unknown", IF($J92=99, "Surveillance", E92)), 0),"Not required") -> 0 | P92: =IF(INTRO!$E$41="Endemic", IF($J92>1, IF($J92=4, "Unknown", IF($J92=99, "Surveillance", F92)), 0),"Not required") -> 0 | Q92: =IF(INTRO!$E$41="Endemic", IF($J92>1, IF($J92=4, "Unknown", IF($J92=99, "Surveillance", ROUND(D92*INTRO!$E$51,0))), 0),"Not required") -> 0 | R92: =IF(INTRO!$E$41="Endemic", IF($J92>1, IF($J92=4, "Unknown", IF($J92=99, "Surveillance", SUM($O92:$Q92))), 0),"Not required") -> 0 | S92: =IF(INTRO!$E$43="Endemic", IF($K92>1, IF($K92=4, "Unknown", IF($K92=99, "Surveillance", ROUND(E92*0.75,0))), 0),"Not required") -> 8639 | T92: =IF(INTRO!$E$43="Endemic", IF($K92>1, IF($K92=4, "Unknown", IF($K92=99, "Surveillance", F92)), 0),"Not required") -> 23511 | U92: =IF(INTRO!$E$43="Endemic", IF($K92>1, IF($K92=4, "Unknown", IF($K92=99, "Surveillance", G92)), 0),"Not required") -> 46297 | V92: =IF(INTRO!$E$43="Endemic", IF($K92>1, IF($K92=4, "Unknown", IF($K92=99, "Surveillance", SUM($S92:$U92))), 0),"Not required") -> 78447 | W92: 1 | X92: 1 | Y92: 0 | Z92: 1
A93: =IF(INTRO!$E$33<>0,INTRO!$E$33, " ") -> Angola | B93: HUILA | C93: CUVANGO | D93: 102499.6189 | E93: =IF(INTRO!$E$48="","",ROUND($D93*INTRO!$E$48,0)) -> 13981 | F93: =IF(INTRO!$E$49="","",ROUND($D93*INTRO!$E$49,0)) -> 28536 | G93: =IF(INTRO!$E$50="","",ROUND($D93*INTRO!$E$50,0)) -> 56190 | H93: 1 | I93: 4 | J93: 0 | K93: 2 | L93: 1 | M93: =IF(INTRO!$E$37="Endemic",IF($H93>0,IF($H93=4,"Unknown",IF($H93=99,"Stopped",$D93)),0),"Not required") -> 102499.6189 | N93: =IF(INTRO!$E$39="Endemic", IF($I93>0, IF($I93=4,"Unknown",IF($I93=99,"Stopped",$D93)), 0),"Not required") -> Unknown | O93: =IF(INTRO!$E$41="Endemic", IF($J93>1, IF($J93=4, "Unknown", IF($J93=99, "Surveillance", E93)), 0),"Not required") -> 0 | P93: =IF(INTRO!$E$41="Endemic", IF($J93>1, IF($J93=4, "Unknown", IF($J93=99, "Surveillance", F93)), 0),"Not required") -> 0 | Q93: =IF(INTRO!$E$41="Endemic", IF($J93>1, IF($J93=4, "Unknown", IF($J93=99, "Surveillance", ROUND(D93*INTRO!$E$51,0))), 0),"Not required") -> 0 | R93: =IF(INTRO!$E$41="Endemic", IF($J93>1, IF($J93=4, "Unknown", IF($J93=99, "Surveillance", SUM($O93:$Q93))), 0),"Not required") -> 0 | S93: =IF(INTRO!$E$43="Endemic", IF($K93>1, IF($K93=4, "Unknown", IF($K93=99, "Surveillance", ROUND(E93*0.75,0))), 0),"Not required") -> 10486 | T93: =IF(INTRO!$E$43="Endemic", IF($K93>1, IF($K93=4, "Unknown", IF($K93=99, "Surveillance", F93)), 0),"Not required") -> 28536 | U93: =IF(INTRO!$E$43="Endemic", IF($K93>1, IF($K93=4, "Unknown", IF($K93=99, "Surveillance", G93)), 0),"Not required") -> 56190 | V93: =IF(INTRO!$E$43="Endemic", IF($K93>1, IF($K93=4, "Unknown", IF($K93=99, "Surveillance", SUM($S93:$U93))), 0),"Not required") -> 95212 | W93: 1 | X93: 0 | Y93: 0 | Z93: 1
A94: =IF(INTRO!$E$33<>0,INTRO!$E$33, " ") -> Angola | B94: HUILA | C94: GAMBOS | D94: 103698.8458 | E94: =IF(INTRO!$E$48="","",ROUND($D94*INTRO!$E$48,0)) -> 14145 | F94: =IF(INTRO!$E$49="","",ROUND($D94*INTRO!$E$49,0)) -> 28870 | G94: =IF(INTRO!$E$50="","",ROUND($D94*INTRO!$E$50,0)) -> 56848 | H94: 0 | I94: 4 | J94: 0 | K94: 2 | L94: 0 | M94: =IF(INTRO!$E$37="Endemic",IF($H94>0,IF($H94=4,"Unknown",IF($H94=99,"Stopped",$D94)),0),"Not required") -> 0 | N94: =IF(INTRO!$E$39="Endemic", IF($I94>0, IF($I94=4,"Unknown",IF($I94=99,"Stopped",$D94)), 0),"Not required") -> Unknown | O94: =IF(INTRO!$E$41="Endemic", IF($J94>1, IF($J94=4, "Unknown", IF($J94=99, "Surveillance", E94)), 0),"Not required") -> 0 | P94: =IF(INTRO!$E$41="Endemic", IF($J94>1, IF($J94=4, "Unknown", IF($J94=99, "Surveillance", F94)), 0),"Not required") -> 0 | Q94: =IF(INTRO!$E$41="Endemic", IF($J94>1, IF($J94=4, "Unknown", IF($J94=99, "Surveillance", ROUND(D94*INTRO!$E$51,0))), 0),"Not required") -> 0 | R94: =IF(INTRO!$E$41="Endemic", IF($J94>1, IF($J94=4, "Unknown", IF($J94=99, "Surveillance", SUM($O94:$Q94))), 0),"Not required") -> 0 | S94: =IF(INTRO!$E$43="Endemic", IF($K94>1, IF($K94=4, "Unknown", IF($K94=99, "Surveillance", ROUND(E94*0.75,0))), 0),"Not required") -> 10609 | T94: =IF(INTRO!$E$43="Endemic", IF($K94>1, IF($K94=4, "Unknown", IF($K94=99, "Surveillance", F94)), 0),"Not required") -> 28870 | U94: =IF(INTRO!$E$43="Endemic", IF($K94>1, IF($K94=4, "Unknown", IF($K94=99, "Surveillance", G94)), 0),"Not required") -> 56848 | V94: =IF(INTRO!$E$43="Endemic", IF($K94>1, IF($K94=4, "Unknown", IF($K94=99, "Surveillance", SUM($S94:$U94))), 0),"Not required") -> 96327 | W94: 0 | X94: 0 | Y94: 0 | Z94: 1
A95: =IF(INTRO!$E$33<>0,INTRO!$E$33, " ") -> Angola | B95: HUILA | C95: HUMPATA | D95: 116334.4992 | E95: =IF(INTRO!$E$48="","",ROUND($D95*INTRO!$E$48,0)) -> 15868 | F95: =IF(INTRO!$E$49="","",ROUND($D95*INTRO!$E$49,0)) -> 32388 | G95: =IF(INTRO!$E$50="","",ROUND($D95*INTRO!$E$50,0)) -> 63775 | H95: 0 | I95: 4 | J95: 1 | K95: 2 | L95: 0 | M95: =IF(INTRO!$E$37="Endemic",IF($H95>0,IF($H95=4,"Unknown",IF($H95=99,"Stopped",$D95)),0),"Not required") -> 0 | N95: =IF(INTRO!$E$39="Endemic", IF($I95>0, IF($I95=4,"Unknown",IF($I95=99,"Stopped",$D95)), 0),"Not required") -> Unknown | O95: =IF(INTRO!$E$41="Endemic", IF($J95>1, IF($J95=4, "Unknown", IF($J95=99, "Surveillance", E95)), 0),"Not required") -> 0 | P95: =IF(INTRO!$E$41="Endemic", IF($J95>1, IF($J95=4, "Unknown", IF($J95=99, "Surveillance", F95)), 0),"Not required") -> 0 | Q95: =IF(INTRO!$E$41="Endemic", IF($J95>1, IF($J95=4, "Unknown", IF($J95=99, "Surveillance", ROUND(D95*INTRO!$E$51,0))), 0),"Not required") -> 0 | R95: =IF(INTRO!$E$41="Endemic", IF($J95>1, IF($J95=4, "Unknown", IF($J95=99, "Surveillance", SUM($O95:$Q95))), 0),"Not required") -> 0 | S95: =IF(INTRO!$E$43="Endemic", IF($K95>1, IF($K95=4, "Unknown", IF($K95=99, "Surveillance", ROUND(E95*0.75,0))), 0),"Not required") -> 11901 | T95: =IF(INTRO!$E$43="Endemic", IF($K95>1, IF($K95=4, "Unknown", IF($K95=99, "Surveillance", F95)), 0),"Not required") -> 32388 | U95: =IF(INTRO!$E$43="Endemic", IF($K95>1, IF($K95=4, "Unknown", IF($K95=99, "Surveillance", G95)), 0),"Not required") -> 63775 | V95: =IF(INTRO!$E$43="Endemic", IF($K95>1, IF($K95=4, "Unknown", IF($K95=99, "Surveillance", SUM($S95:$U95))), 0),"Not required") -> 108064 | W95: 0 | X95: 0 | Y95: 0 | Z95: 1
A96: =IF(INTRO!$E$33<>0,INTRO!$E$33, " ") -> Angola | B96: HUILA | C96: JAMBA | D96: 137142.193 | E96: =IF(INTRO!$E$48="","",ROUND($D96*INTRO!$E$48,0)) -> 18706 | F96: =IF(INTRO!$E$49="","",ROUND($D96*INTRO!$E$49,0)) -> 38180 | G96: =IF(INTRO!$E$50="","",ROUND($D96*INTRO!$E$50,0)) -> 75181 | H96: 1 | I96: 4 | J96: 0 | K96: 3 | L96: 0 | M96: =IF(INTRO!$E$37="Endemic",IF($H96>0,IF($H96=4,"Unknown",IF($H96=99,"Stopped",$D96)),0),"Not required") -> 137142.193 | N96: =IF(INTRO!$E$39="Endemic", IF($I96>0, IF($I96=4,"Unknown",IF($I96=99,"Stopped",$D96)), 0),"Not required") -> Unknown | O96: =IF(INTRO!$E$41="Endemic", IF($J96>1, IF($J96=4, "Unknown", IF($J96=99, "Surveillance", E96)), 0),"Not required") -> 0 | P96: =IF(INTRO!$E$41="Endemic", IF($J96>1, IF($J96=4, "Unknown", IF($J96=99, "Surveillance", F96)), 0),"Not required") -> 0 | Q96: =IF(INTRO!$E$41="Endemic", IF($J96>1, IF($J96=4, "Unknown", IF($J96=99, "Surveillance", ROUND(D96*INTRO!$E$51,0))), 0),"Not required") -> 0 | R96: =IF(INTRO!$E$41="Endemic", IF($J96>1, IF($J96=4, "Unknown", IF($J96=99, "Surveillance", SUM($O96:$Q96))), 0),"Not required") -> 0 | S96: =IF(INTRO!$E$43="Endemic", IF($K96>1, IF($K96=4, "Unknown", IF($K96=99, "Surveillance", ROUND(E96*0.75,0))), 0),"Not required") -> 14030 | T96: =IF(INTRO!$E$43="Endemic", IF($K96>1, IF($K96=4, "Unknown", IF($K96=99, "Surveillance", F96)), 0),"Not required") -> 38180 | U96: =IF(INTRO!$E$43="Endemic", IF($K96>1, IF($K96=4, "Unknown", IF($K96=99, "Surveillance", G96)), 0),"Not required") -> 75181 | V96: =IF(INTRO!$E$43="Endemic", IF($K96>1, IF($K96=4, "Unknown", IF($K96=99, "Surveillance", SUM($S96:$U96))), 0),"Not required") -> 127391 | W96: 1 | X96: 0 | Y96: 0 | Z96: 1
A97: =IF(INTRO!$E$33<>0,INTRO!$E$33, " ") -> Angola | B97: HUILA | C97: LUBANGO | D97: 1013012.359 | E97: =IF(INTRO!$E$48="","",ROUND($D97*INTRO!$E$48,0)) -> 138175 | F97: =IF(INTRO!$E$49="","",ROUND($D97*INTRO!$E$49,0)) -> 282023 | G97: =IF(INTRO!$E$50="","",ROUND($D97*INTRO!$E$50,0)) -> 555333 | H97: 0 | I97: 4 | J97: 1 | K97: 3 | L97: 0 | M97: =IF(INTRO!$E$37="Endemic",IF($H97>0,IF($H97=4,"Unknown",IF($H97=99,"Stopped",$D97)),0),"Not required") -> 0 | N97: =IF(INTRO!$E$39="Endemic", IF($I97>0, IF($I97=4,"Unknown",IF($I97=99,"Stopped",$D97)), 0),"Not required") -> Unknown | O97: =IF(INTRO!$E$41="Endemic", IF($J97>1, IF($J97=4, "Unknown", IF($J97=99, "Surveillance", E97)), 0),"Not required") -> 0 | P97: =IF(INTRO!$E$41="Endemic", IF($J97>1, IF($J97=4, "Unknown", IF($J97=99, "Surveillance", F97)), 0),"Not required") -> 0 | Q97: =IF(INTRO!$E$41="Endemic", IF($J97>1, IF($J97=4, "Unknown", IF($J97=99, "Surveillance", ROUND(D97*INTRO!$E$51,0))), 0),"Not required") -> 0 | R97: =IF(INTRO!$E$41="Endemic", IF($J97>1, IF($J97=4, "Unknown", IF($J97=99, "Surveillance", SUM($O97:$Q97))), 0),"Not required") -> 0 | S97: =IF(INTRO!$E$43="Endemic", IF($K97>1, IF($K97=4, "Unknown", IF($K97=99, "Surveillance", ROUND(E97*0.75,0))), 0),"Not required") -> 103631 | T97: =IF(INTRO!$E$43="Endemic", IF($K97>1, IF($K97=4, "Unknown", IF($K97=99, "Surveillance", F97)), 0),"Not required") -> 282023 | U97: =IF(INTRO!$E$43="Endemic", IF($K97>1, IF($K97=4, "Unknown", IF($K97=99, "Surveillance", G97)), 0),"Not required") -> 555333 | V97: =IF(INTRO!$E$43="Endemic", IF($K97>1, IF($K97=4, "Unknown", IF($K97=99, "Surveillance", SUM($S97:$U97))), 0),"Not required") -> 940987 | W97: 0 | X97: 0 | Y97: 0 | Z97: 1
A98: =IF(INTRO!$E$33<>0,INTRO!$E$33, " ") -> Angola | B98: HUILA | C98: MATALA | D98: 342909.2736 | E98: =IF(INTRO!$E$48="","",ROUND($D98*INTRO!$E$48,0)) -> 46773 | F98: =IF(INTRO!$E$49="","",ROUND($D98*INTRO!$E$49,0)) -> 95466 | G98: =IF(INTRO!$E$50="","",ROUND($D98*INTRO!$E$50,0)) -> 187983 | H98: 0 | I98: 1 | J98: 1 | K98: 3 | L98: 0 | M98: =IF(INTRO!$E$37="Endemic",IF($H98>0,IF($H98=4,"Unknown",IF($H98=99,"Stopped",$D98)),0),"Not required") -> 0 | N98: =IF(INTRO!$E$39="Endemic", IF($I98>0, IF($I98=4,"Unknown",IF($I98=99,"Stopped",$D98)), 0),"Not required") -> 342909.2736 | O98: =IF(INTRO!$E$41="Endemic", IF($J98>1, IF($J98=4, "Unknown", IF($J98=99, "Surveillance", E98)), 0),"Not required") -> 0 | P98: =IF(INTRO!$E$41="Endemic", IF($J98>1, IF($J98=4, "Unknown", IF($J98=99, "Surveillance", F98)), 0),"Not required") -> 0 | Q98: =IF(INTRO!$E$41="Endemic", IF($J98>1, IF($J98=4, "Unknown", IF($J98=99, "Surveillance", ROUND(D98*INTRO!$E$51,0))), 0),"Not required") -> 0 | R98: =IF(INTRO!$E$41="Endemic", IF($J98>1, IF($J98=4, "Unknown", IF($J98=99, "Surveillance", SUM($O98:$Q98))), 0),"Not required") -> 0 | S98: =IF(INTRO!$E$43="Endemic", IF($K98>1, IF($K98=4, "Unknown", IF($K98=99, "Surveillance", ROUND(E98*0.75,0))), 0),"Not required") -> 35080 | T98: =IF(INTRO!$E$43="Endemic", IF($K98>1, IF($K98=4, "Unknown", IF($K98=99, "Surveillance", F98)), 0),"Not required") -> 95466 | U98: =IF(INTRO!$E$43="Endemic", IF($K98>1, IF($K98=4, "Unknown", IF($K98=99, "Surveillance", G98)), 0),"Not required") -> 187983 | V98: =IF(INTRO!$E$43="Endemic", IF($K98>1, IF($K98=4, "Unknown", IF($K98=99, "Surveillance", SUM($S98:$U98))), 0),"Not required") -> 318529 | W98: 0 | X98: 1 | Y98: 0 | Z98: 1
A99: =IF(INTRO!$E$33<>0,INTRO!$E$33, " ") -> Angola | B99: HUILA | C99: QUILENGUES | D99: 98312.34482 | E99: =IF(INTRO!$E$48="","",ROUND($D99*INTRO!$E$48,0)) -> 13410 | F99: =IF(INTRO!$E$49="","",ROUND($D99*INTRO!$E$49,0)) -> 27370 | G99: =IF(INTRO!$E$50="","",ROUND($D99*INTRO!$E$50,0)) -> 53895 | H99: 0 | I99: 1 | J99: 0 | K99: 3 | L99: 0 | M99: =IF(INTRO!$E$37="Endemic",IF($H99>0,IF($H99=4,"Unknown",IF($H99=99,"Stopped",$D99)),0),"Not required") -> 0 | N99: =IF(INTRO!$E$39="Endemic", IF($I99>0, IF($I99=4,"Unknown",IF($I99=99,"Stopped",$D99)), 0),"Not required") -> 98312.34482 | O99: =IF(INTRO!$E$41="Endemic", IF($J99>1, IF($J99=4, "Unknown", IF($J99=99, "Surveillance", E99)), 0),"Not required") -> 0 | P99: =IF(INTRO!$E$41="Endemic", IF($J99>1, IF($J99=4, "Unknown", IF($J99=99, "Surveillance", F99)), 0),"Not required") -> 0 | Q99: =IF(INTRO!$E$41="Endemic", IF($J99>1, IF($J99=4, "Unknown", IF($J99=99, "Surveillance", ROUND(D99*INTRO!$E$51,0))), 0),"Not required") -> 0 | R99: =IF(INTRO!$E$41="Endemic", IF($J99>1, IF($J99=4, "Unknown", IF($J99=99, "Surveillance", SUM($O99:$Q99))), 0),"Not required") -> 0 | S99: =IF(INTRO!$E$43="Endemic", IF($K99>1, IF($K99=4, "Unknown", IF($K99=99, "Surveillance", ROUND(E99*0.75,0))), 0),"Not required") -> 10058 | T99: =IF(INTRO!$E$43="Endemic", IF($K99>1, IF($K99=4, "Unknown", IF($K99=99, "Surveillance", F99)), 0),"Not required") -> 27370 | U99: =IF(INTRO!$E$43="Endemic", IF($K99>1, IF($K99=4, "Unknown", IF($K99=99, "Surveillance", G99)), 0),"Not required") -> 53895 | V99: =IF(INTRO!$E$43="Endemic", IF($K99>1, IF($K99=4, "Unknown", IF($K99=99, "Surveillance", SUM($S99:$U99))), 0),"Not required") -> 91323 | W99: 0 | X99: 1 | Y99: 0 | Z99: 1
A100: =IF(INTRO!$E$33<>0,INTRO!$E$33, " ") -> Angola | B100: HUILA | C100: QUIPUNGO | D100: 207390.3085 | E100: =IF(INTRO!$E$48="","",ROUND($D100*INTRO!$E$48,0)) -> 28288 | F100: =IF(INTRO!$E$49="","",ROUND($D100*INTRO!$E$49,0)) -> 57737 | G100: =IF(INTRO!$E$50="","",ROUND($D100*INTRO!$E$50,0)) -> 113691 | H100: 0 | I100: 1 | J100: 1 | K100: 3 | L100: 0 | M100: =IF(INTRO!$E$37="Endemic",IF($H100>0,IF($H100=4,"Unknown",IF($H100=99,"Stopped",$D100)),0),"Not required") -> 0 | N100: =IF(INTRO!$E$39="Endemic", IF($I100>0, IF($I100=4,"Unknown",IF($I100=99,"Stopped",$D100)), 0),"Not required") -> 207390.3085 | O100: =IF(INTRO!$E$41="Endemic", IF($J100>1, IF($J100=4, "Unknown", IF($J100=99, "Surveillance", E100)), 0),"Not required") -> 0 | P100: =IF(INTRO!$E$41="Endemic", IF($J100>1, IF($J100=4, "Unknown", IF($J100=99, "Surveillance", F100)), 0),"Not required") -> 0 | Q100: =IF(INTRO!$E$41="Endemic", IF($J100>1, IF($J100=4, "Unknown", IF($J100=99, "Surveillance", ROUND(D100*INTRO!$E$51,0))), 0),"Not required") -> 0 | R100: =IF(INTRO!$E$41="Endemic", IF($J100>1, IF($J100=4, "Unknown", IF($J100=99, "Surveillance", SUM($O100:$Q100))), 0),"Not required") -> 0 | S100: =IF(INTRO!$E$43="Endemic", IF($K100>1, IF($K100=4, "Unknown", IF($K100=99, "Surveillance", ROUND(E100*0.75,0))), 0),"Not required") -> 21216 | T100: =IF(INTRO!$E$43="Endemic", IF($K100>1, IF($K100=4, "Unknown", IF($K100=99, "Surveillance", F100)), 0),"Not required") -> 57737 | U100: =IF(INTRO!$E$43="Endemic", IF($K100>1, IF($K100=4, "Unknown", IF($K100=99, "Surveillance", G100)), 0),"Not required") -> 113691 | V100: =IF(INTRO!$E$43="Endemic", IF($K100>1, IF($K100=4, "Unknown", IF($K100=99, "Surveillance", SUM($S100:$U100))), 0),"Not required") -> 192644 | W100: 0 | X100: 1 | Y100: 0 | Z100: 1
A101: =IF(INTRO!$E$33<>0,INTRO!$E$33, " ") -> Angola | B101: LUANDA | C101: BELAS | D101: 367641.6139 | E101: =IF(INTRO!$E$48="","",ROUND($D101*INTRO!$E$48,0)) -> 50146 | F101: =IF(INTRO!$E$49="","",ROUND($D101*INTRO!$E$49,0)) -> 102351 | G101: =IF(INTRO!$E$50="","",ROUND($D101*INTRO!$E$50,0)) -> 201541 | H101: 0 | I101: 4 | J101: 1 | K101: 2 | L101: 1 | M101: =IF(INTRO!$E$37="Endemic",IF($H101>0,IF($H101=4,"Unknown",IF($H101=99,"Stopped",$D101)),0),"Not required") -> 0 | N101: =IF(INTRO!$E$39="Endemic", IF($I101>0, IF($I101=4,"Unknown",IF($I101=99,"Stopped",$D101)), 0),"Not required") -> Unknown | O101: =IF(INTRO!$E$41="Endemic", IF($J101>1, IF($J101=4, "Unknown", IF($J101=99, "Surveillance", E101)), 0),"Not required") -> 0 | P101: =IF(INTRO!$E$41="Endemic", IF($J101>1, IF($J101=4, "Unknown", IF($J101=99, "Surveillance", F101)), 0),"Not required") -> 0 | Q101: =IF(INTRO!$E$41="Endemic", IF($J101>1, IF($J101=4, "Unknown", IF($J101=99, "Surveillance", ROUND(D101*INTRO!$E$51,0))), 0),"Not required") -> 0 | R101: =IF(INTRO!$E$41="Endemic", IF($J101>1, IF($J101=4, "Unknown", IF($J101=99, "Surveillance", SUM($O101:$Q101))), 0),"Not required") -> 0 | S101: =IF(INTRO!$E$43="Endemic", IF($K101>1, IF($K101=4, "Unknown", IF($K101=99, "Surveillance", ROUND(E101*0.75,0))), 0),"Not required") -> 37610 | T101: =IF(INTRO!$E$43="Endemic", IF($K101>1, IF($K101=4, "Unknown", IF($K101=99, "Surveillance", F101)), 0),"Not required") -> 102351 | U101: =IF(INTRO!$E$43="Endemic", IF($K101>1, IF($K101=4, "Unknown", IF($K101=99, "Surveillance", G101)), 0),"Not required") -> 201541 | V101: =IF(INTRO!$E$43="Endemic", IF($K101>1, IF($K101=4, "Unknown", IF($K101=99, "Surveillance", SUM($S101:$U101))), 0),"Not required") -> 341502 | W101: 0 | X101: 0 | Y101: 0 | Z101: 1
A102: =IF(INTRO!$E$33<>0,INTRO!$E$33, " ") -> Angola | B102: LUANDA | C102: CACUACO | D102: 1176678.876 | E102: =IF(INTRO!$E$48="","",ROUND($D102*INTRO!$E$48,0)) -> 160499 | F102: =IF(INTRO!$E$49="","",ROUND($D102*INTRO!$E$49,0)) -> 327587 | G102: =IF(INTRO!$E$50="","",ROUND($D102*INTRO!$E$50,0)) -> 645055 | H102: 0 | I102: 4 | J102: 0 | K102: 2 | L102: 1 | M102: =IF(INTRO!$E$37="Endemic",IF($H102>0,IF($H102=4,"Unknown",IF($H102=99,"Stopped",$D102)),0),"Not required") -> 0 | N102: =IF(INTRO!$E$39="Endemic", IF($I102>0, IF($I102=4,"Unknown",IF($I102=99,"Stopped",$D102)), 0),"Not required") -> Unknown | O102: =IF(INTRO!$E$41="Endemic", IF($J102>1, IF($J102=4, "Unknown", IF($J102=99, "Surveillance", E102)), 0),"Not required") -> 0 | P102: =IF(INTRO!$E$41="Endemic", IF($J102>1, IF($J102=4, "Unknown", IF($J102=99, "Surveillance", F102)), 0),"Not required") -> 0 | Q102: =IF(INTRO!$E$41="Endemic", IF($J102>1, IF($J102=4, "Unknown", IF($J102=99, "Surveillance", ROUND(D102*INTRO!$E$51,0))), 0),"Not required") -> 0 | R102: =IF(INTRO!$E$41="Endemic", IF($J102>1, IF($J102=4, "Unknown", IF($J102=99, "Surveillance", SUM($O102:$Q102))), 0),"Not required") -> 0 | S102: =IF(INTRO!$E$43="Endemic", IF($K102>1, IF($K102=4, "Unknown", IF($K102=99, "Surveillance", ROUND(E102*0.75,0))), 0),"Not required") -> 120374 | T102: =IF(INTRO!$E$43="Endemic", IF($K102>1, IF($K102=4, "Unknown", IF($K102=99, "Surveillance", F102)), 0),"Not required") -> 327587 | U102: =IF(INTRO!$E$43="Endemic", IF($K102>1, IF($K102=4, "Unknown", IF($K102=99, "Surveillance", G102)), 0),"Not required") -> 645055 | V102: =IF(INTRO!$E$43="Endemic", IF($K102>1, IF($K102=4, "Unknown", IF($K102=99, "Surveillance", SUM($S102:$U102))), 0),"Not required") -> 1093016 | W102: 0 | X102: 0 | Y102: 0 | Z102: 1
A103: =IF(INTRO!$E$33<>0,INTRO!$E$33, " ") -> Angola | B103: LUANDA | C103: CAZENGA | D103: 1522574.088 | E103: =IF(INTRO!$E$48="","",ROUND($D103*INTRO!$E$48,0)) -> 207679 | F103: =IF(INTRO!$E$49="","",ROUND($D103*INTRO!$E$49,0)) -> 423885 | G103: =IF(INTRO!$E$50="","",ROUND($D103*INTRO!$E$50,0)) -> 834675 | H103: 0 | I103: 4 | J103: 1 | K103: 1 | L103: 1 | M103: =IF(INTRO!$E$37="Endemic",IF($H103>0,IF($H103=4,"Unknown",IF($H103=99,"Stopped",$D103)),0),"Not required") -> 0 | N103: =IF(INTRO!$E$39="Endemic", IF($I103>0, IF($I103=4,"Unknown",IF($I103=99,"Stopped",$D103)), 0),"Not required") -> Unknown | O103: =IF(INTRO!$E$41="Endemic", IF($J103>1, IF($J103=4, "Unknown", IF($J103=99, "Surveillance", E103)), 0),"Not required") -> 0 | P103: =IF(INTRO!$E$41="Endemic", IF($J103>1, IF($J103=4, "Unknown", IF($J103=99, "Surveillance", F103)), 0),"Not required") -> 0 | Q103: =IF(INTRO!$E$41="Endemic", IF($J103>1, IF($J103=4, "Unknown", IF($J103=99, "Surveillance", ROUND(D103*INTRO!$E$51,0))), 0),"Not required") -> 0 | R103: =IF(INTRO!$E$41="Endemic", IF($J103>1, IF($J103=4, "Unknown", IF($J103=99, "Surveillance", SUM($O103:$Q103))), 0),"Not required") -> 0 | S103: =IF(INTRO!$E$43="Endemic", IF($K103>1, IF($K103=4, "Unknown", IF($K103=99, "Surveillance", ROUND(E103*0.75,0))), 0),"Not required") -> 0 | T103: =IF(INTRO!$E$43="Endemic", IF($K103>1, IF($K103=4, "Unknown", IF($K103=99, "Surveillance", F103)), 0),"Not required") -> 0 | U103: =IF(INTRO!$E$43="Endemic", IF($K103>1, IF($K103=4, "Unknown", IF($K103=99, "Surveillance", G103)), 0),"Not required") -> 0 | V103: =IF(INTRO!$E$43="Endemic", IF($K103>1, IF($K103=4, "Unknown", IF($K103=99, "Surveillance", SUM($S103:$U103))), 0),"Not required") -> 0 | W103: 0 | X103: 0 | Y103: 0 | Z103: 0
A104: =IF(INTRO!$E$33<>0,INTRO!$E$33, " ") -> Angola | B104: LUANDA | C104: ICOLO E BENGO | D104: 123900.0704 | E104: =IF(INTRO!$E$48="","",ROUND($D104*INTRO!$E$48,0)) -> 16900 | F104: =IF(INTRO!$E$49="","",ROUND($D104*INTRO!$E$49,0)) -> 34494 | G104: =IF(INTRO!$E$50="","",ROUND($D104*INTRO!$E$50,0)) -> 67922 | H104: 0 | I104: 4 | J104: 2 | K104: 3 | L104: 0 | M104: =IF(INTRO!$E$37="Endemic",IF($H104>0,IF($H104=4,"Unknown",IF($H104=99,"Stopped",$D104)),0),"Not required") -> 0 | N104: =IF(INTRO!$E$39="Endemic", IF($I104>0, IF($I104=4,"Unknown",IF($I104=99,"Stopped",$D104)), 0),"Not required") -> Unknown | O104: =IF(INTRO!$E$41="Endemic", IF($J104>1, IF($J104=4, "Unknown", IF($J104=99, "Surveillance", E104)), 0),"Not required") -> 16900 | P104: =IF(INTRO!$E$41="Endemic", IF($J104>1, IF($J104=4, "Unknown", IF($J104=99, "Surveillance", F104)), 0),"Not required") -> 34494 | Q104: =IF(INTRO!$E$41="Endemic", IF($J104>1, IF($J104=4, "Unknown", IF($J104=99, "Surveillance", ROUND(D104*INTRO!$E$51,0))), 0),"Not required") -> 28633 | R104: =IF(INTRO!$E$41="Endemic", IF($J104>1, IF($J104=4, "Unknown", IF($J104=99, "Surveillance", SUM($O104:$Q104))), 0),"Not required") -> 80027 | S104: =IF(INTRO!$E$43="Endemic", IF($K104>1, IF($K104=4, "Unknown", IF($K104=99, "Surveillance", ROUND(E104*0.75,0))), 0),"Not required") -> 12675 | T104: =IF(INTRO!$E$43="Endemic", IF($K104>1, IF($K104=4, "Unknown", IF($K104=99, "Surveillance", F104)), 0),"Not required") -> 34494 | U104: =IF(INTRO!$E$43="Endemic", IF($K104>1, IF($K104=4, "Unknown", IF($K104=99, "Surveillance", G104)), 0),"Not required") -> 67922 | V104: =IF(INTRO!$E$43="Endemic", IF($K104>1, IF($K104=4, "Unknown", IF($K104=99, "Surveillance", SUM($S104:$U104))), 0),"Not required") -> 115091 | W104: 0 | X104: 0 | Y104: 1 | Z104: 1
A105: =IF(INTRO!$E$33<>0,INTRO!$E$33, " ") -> Angola | B105: LUANDA | C105: KILAMBA KIAXI | D105: 1150789.498 | E105: =IF(INTRO!$E$48="","",ROUND($D105*INTRO!$E$48,0)) -> 156968 | F105: =IF(INTRO!$E$49="","",ROUND($D105*INTRO!$E$49,0)) -> 320380 | G105: =IF(INTRO!$E$50="","",ROUND($D105*INTRO!$E$50,0)) -> 630863 | H105: 4 | I105: 4 | J105: 0 | K105: 1 | L105: 0 | M105: =IF(INTRO!$E$37="Endemic",IF($H105>0,IF($H105=4,"Unknown",IF($H105=99,"Stopped",$D105)),0),"Not required") -> Unknown | N105: =IF(INTRO!$E$39="Endemic", IF($I105>0, IF($I105=4,"Unknown",IF($I105=99,"Stopped",$D105)), 0),"Not required") -> Unknown | O105: =IF(INTRO!$E$41="Endemic", IF($J105>1, IF($J105=4, "Unknown", IF($J105=99, "Surveillance", E105)), 0),"Not required") -> 0 | P105: =IF(INTRO!$E$41="Endemic", IF($J105>1, IF($J105=4, "Unknown", IF($J105=99, "Surveillance", F105)), 0),"Not required") -> 0 | Q105: =IF(INTRO!$E$41="Endemic", IF($J105>1, IF($J105=4, "Unknown", IF($J105=99, "Surveillance", ROUND(D105*INTRO!$E$51,0))), 0),"Not required") -> 0 | R105: =IF(INTRO!$E$41="Endemic", IF($J105>1, IF($J105=4, "Unknown", IF($J105=99, "Surveillance", SUM($O105:$Q105))), 0),"Not required") -> 0 | S105: =IF(INTRO!$E$43="Endemic", IF($K105>1, IF($K105=4, "Unknown", IF($K105=99, "Surveillance", ROUND(E105*0.75,0))), 0),"Not required") -> 0 | T105: =IF(INTRO!$E$43="Endemic", IF($K105>1, IF($K105=4, "Unknown", IF($K105=99, "Surveillance", F105)), 0),"Not required") -> 0 | U105: =IF(INTRO!$E$43="Endemic", IF($K105>1, IF($K105=4, "Unknown", IF($K105=99, "Surveillance", G105)), 0),"Not required") -> 0 | V105: =IF(INTRO!$E$43="Endemic", IF($K105>1, IF($K105=4, "Unknown", IF($K105=99, "Surveillance", SUM($S105:$U105))), 0),"Not required") -> 0 | W105: 0 | X105: 0 | Y105: 0 | Z105: 0
A106: =IF(INTRO!$E$33<>0,INTRO!$E$33, " ") -> Angola | B106: LUANDA | C106: LUANDA | D106: 1830469.523 | E106: =IF(INTRO!$E$48="","",ROUND($D106*INTRO!$E$48,0)) -> 249676 | F106: =IF(INTRO!$E$49="","",ROUND($D106*INTRO!$E$49,0)) -> 509603 | G106: =IF(INTRO!$E$50="","",ROUND($D106*INTRO!$E$50,0)) -> 1003463 | H106: 0 | I106: 4 | J106: 2 | K106: 1 | L106: 1 | M106: =IF(INTRO!$E$37="Endemic",IF($H106>0,IF($H106=4,"Unknown",IF($H106=99,"Stopped",$D106)),0),"Not required") -> 0 | N106: =IF(INTRO!$E$39="Endemic", IF($I106>0, IF($I106=4,"Unknown",IF($I106=99,"Stopped",$D106)), 0),"Not required") -> Unknown | O106: =IF(INTRO!$E$41="Endemic", IF($J106>1, IF($J106=4, "Unknown", IF($J106=99, "Surveillance", E106)), 0),"Not required") -> 249676 | P106: =IF(INTRO!$E$41="Endemic", IF($J106>1, IF($J106=4, "Unknown", IF($J106=99, "Surveillance", F106)), 0),"Not required") -> 509603 | Q106: =IF(INTRO!$E$41="Endemic", IF($J106>1, IF($J106=4, "Unknown", IF($J106=99, "Surveillance", ROUND(D106*INTRO!$E$51,0))), 0),"Not required") -> 423022 | R106: =IF(INTRO!$E$41="Endemic", IF($J106>1, IF($J106=4, "Unknown", IF($J106=99, "Surveillance", SUM($O106:$Q106))), 0),"Not required") -> 1182301 | S106: =IF(INTRO!$E$43="Endemic", IF($K106>1, IF($K106=4, "Unknown", IF($K106=99, "Surveillance", ROUND(E106*0.75,0))), 0),"Not required") -> 0 | T106: =IF(INTRO!$E$43="Endemic", IF($K106>1, IF($K106=4, "Unknown", IF($K106=99, "Surveillance", F106)), 0),"Not required") -> 0 | U106: =IF(INTRO!$E$43="Endemic", IF($K106>1, IF($K106=4, "Unknown", IF($K106=99, "Surveillance", G106)), 0),"Not required") -> 0 | V106: =IF(INTRO!$E$43="Endemic", IF($K106>1, IF($K106=4, "Unknown", IF($K106=99, "Surveillance", SUM($S106:$U106))), 0),"Not required") -> 0 | W106: 0 | X106: 0 | Y106: 1 | Z106: 0
A107: =IF(INTRO!$E$33<>0,INTRO!$E$33, " ") -> Angola | B107: LUANDA | C107: QUIÇAMA | D107: 34562.4146 | E107: =IF(INTRO!$E$48="","",ROUND($D107*INTRO!$E$48,0)) -> 4714 | F107: =IF(INTRO!$E$49="","",ROUND($D107*INTRO!$E$49,0)) -> 9622 | G107: =IF(INTRO!$E$50="","",ROUND($D107*INTRO!$E$50,0)) -> 18947 | H107: 0 | I107: 4 | J107: 1 | K107: 3 | L107: 0 | M107: =IF(INTRO!$E$37="Endemic",IF($H107>0,IF($H107=4,"Unknown",IF($H107=99,"Stopped",$D107)),0),"Not required") -> 0 | N107: =IF(INTRO!$E$39="Endemic", IF($I107>0, IF($I107=4,"Unknown",IF($I107=99,"Stopped",$D107)), 0),"Not required") -> Unknown | O107: =IF(INTRO!$E$41="Endemic", IF($J107>1, IF($J107=4, "Unknown", IF($J107=99, "Surveillance", E107)), 0),"Not required") -> 0 | P107: =IF(INTRO!$E$41="Endemic", IF($J107>1, IF($J107=4, "Unknown", IF($J107=99, "Surveillance", F107)), 0),"Not required") -> 0 | Q107: =IF(INTRO!$E$41="Endemic", IF($J107>1, IF($J107=4, "Unknown", IF($J107=99, "Surveillance", ROUND(D107*INTRO!$E$51,0))), 0),"Not required") -> 0 | R107: =IF(INTRO!$E$41="Endemic", IF($J107>1, IF($J107=4, "Unknown", IF($J107=99, "Surveillance", SUM($O107:$Q107))), 0),"Not required") -> 0 | S107: =IF(INTRO!$E$43="Endemic", IF($K107>1, IF($K107=4, "Unknown", IF($K107=99, "Surveillance", ROUND(E107*0.75,0))), 0),"Not required") -> 3536 | T107: =IF(INTRO!$E$43="Endemic", IF($K107>1, IF($K107=4, "Unknown", IF($K107=99, "Surveillance", F107)), 0),"Not required") -> 9622 | U107: =IF(INTRO!$E$43="Endemic", IF($K107>1, IF($K107=4, "Unknown", IF($K107=99, "Surveillance", G107)), 0),"Not required") -> 18947 | V107: =IF(INTRO!$E$43="Endemic", IF($K107>1, IF($K107=4, "Unknown", IF($K107=99, "Surveillance", SUM($S107:$U107))), 0),"Not required") -> 32105 | W107: 0 | X107: 0 | Y107: 0 | Z107: 1
A108: =IF(INTRO!$E$33<>0,INTRO!$E$33, " ") -> Angola | B108: LUANDA | C108: TALATONA | D108: 970021.6046 | E108: =IF(INTRO!$E$48="","",ROUND($D108*INTRO!$E$48,0)) -> 132311 | F108: =IF(INTRO!$E$49="","",ROUND($D108*INTRO!$E$49,0)) -> 270054 | G108: =IF(INTRO!$E$50="","",ROUND($D108*INTRO!$E$50,0)) -> 531766 | H108: 0 | I108: 4 | J108: 1 | K108: 0 | L108: 0 | M108: =IF(INTRO!$E$37="Endemic",IF($H108>0,IF($H108=4,"Unknown",IF($H108=99,"Stopped",$D108)),0),"Not required") -> 0 | N108: =IF(INTRO!$E$39="Endemic", IF($I108>0, IF($I108=4,"Unknown",IF($I108=99,"Stopped",$D108)), 0),"Not required") -> Unknown | O108: =IF(INTRO!$E$41="Endemic", IF($J108>1, IF($J108=4, "Unknown", IF($J108=99, "Surveillance", E108)), 0),"Not required") -> 0 | P108: =IF(INTRO!$E$41="Endemic", IF($J108>1, IF($J108=4, "Unknown", IF($J108=99, "Surveillance", F108)), 0),"Not required") -> 0 | Q108: =IF(INTRO!$E$41="Endemic", IF($J108>1, IF($J108=4, "Unknown", IF($J108=99, "Surveillance", ROUND(D108*INTRO!$E$51,0))), 0),"Not required") -> 0 | R108: =IF(INTRO!$E$41="Endemic", IF($J108>1, IF($J108=4, "Unknown", IF($J108=99, "Surveillance", SUM($O108:$Q108))), 0),"Not required") -> 0 | S108: =IF(INTRO!$E$43="Endemic", IF($K108>1, IF($K108=4, "Unknown", IF($K108=99, "Surveillance", ROUND(E108*0.75,0))), 0),"Not required") -> 0 | T108: =IF(INTRO!$E$43="Endemic", IF($K108>1, IF($K108=4, "Unknown", IF($K108=99, "Surveillance", F108)), 0),"Not required") -> 0 | U108: =IF(INTRO!$E$43="Endemic", IF($K108>1, IF($K108=4, "Unknown", IF($K108=99, "Surveillance", G108)), 0),"Not required") -> 0 | V108: =IF(INTRO!$E$43="Endemic", IF($K108>1, IF($K108=4, "Unknown", IF($K108=99, "Surveillance", SUM($S108:$U108))), 0),"Not required") -> 0 | W108: 0 | X108: 0 | Y108: 0 | Z108: 0
A109: =IF(INTRO!$E$33<>0,INTRO!$E$33, " ") -> Angola | B109: LUANDA | C109: VIANA | D109: 2106071.265 | E109: =IF(INTRO!$E$48="","",ROUND($D109*INTRO!$E$48,0)) -> 287268 | F109: =IF(INTRO!$E$49="","",ROUND($D109*INTRO!$E$49,0)) -> 586330 | G109: =IF(INTRO!$E$50="","",ROUND($D109*INTRO!$E$50,0)) -> 1154548 | H109: 0 | I109: 4 | J109: 0 | K109: 2 | L109: 0 | M109: =IF(INTRO!$E$37="Endemic",IF($H109>0,IF($H109=4,"Unknown",IF($H109=99,"Stopped",$D109)),0),"Not required") -> 0 | N109: =IF(INTRO!$E$39="Endemic", IF($I109>0, IF($I109=4,"Unknown",IF($I109=99,"Stopped",$D109)), 0),"Not required") -> Unknown | O109: =IF(INTRO!$E$41="Endemic", IF($J109>1, IF($J109=4, "Unknown", IF($J109=99, "Surveillance", E109)), 0),"Not required") -> 0 | P109: =IF(INTRO!$E$41="Endemic", IF($J109>1, IF($J109=4, "Unknown", IF($J109=99, "Surveillance", F109)), 0),"Not required") -> 0 | Q109: =IF(INTRO!$E$41="Endemic", IF($J109>1, IF($J109=4, "Unknown", IF($J109=99, "Surveillance", ROUND(D109*INTRO!$E$51,0))), 0),"Not required") -> 0 | R109: =IF(INTRO!$E$41="Endemic", IF($J109>1, IF($J109=4, "Unknown", IF($J109=99, "Surveillance", SUM($O109:$Q109))), 0),"Not required") -> 0 | S109: =IF(INTRO!$E$43="Endemic", IF($K109>1, IF($K109=4, "Unknown", IF($K109=99, "Surveillance", ROUND(E109*0.75,0))), 0),"Not required") -> 215451 | T109: =IF(INTRO!$E$43="Endemic", IF($K109>1, IF($K109=4, "Unknown", IF($K109=99, "Surveillance", F109)), 0),"Not required") -> 586330 | U109: =IF(INTRO!$E$43="Endemic", IF($K109>1, IF($K109=4, "Unknown", IF($K109=99, "Surveillance", G109)), 0),"Not required") -> 1154548 | V109: =IF(INTRO!$E$43="Endemic", IF($K109>1, IF($K109=4, "Unknown", IF($K109=99, "Surveillance", SUM($S109:$U109))), 0),"Not required") -> 1956329 | W109: 0 | X109: 0 | Y109: 0 | Z109: 1
A110: =IF(INTRO!$E$33<>0,INTRO!$E$33, " ") -> Angola | B110: LUNDA NORTE | C110: CAMBULO | D110: 155529.2836 | E110: =IF(INTRO!$E$48="","",ROUND($D110*INTRO!$E$48,0)) -> 21214 | F110: =IF(INTRO!$E$49="","",ROUND($D110*INTRO!$E$49,0)) -> 43299 | G110: =IF(INTRO!$E$50="","",ROUND($D110*INTRO!$E$50,0)) -> 85261 | H110: 1 | I110: 1 | J110: 3 | K110: 0 | L110: 0 | M110: =IF(INTRO!$E$37="Endemic",IF($H110>0,IF($H110=4,"Unknown",IF($H110=99,"Stopped",$D110)),0),"Not required") -> 155529.2836 | N110: =IF(INTRO!$E$39="Endemic", IF($I110>0, IF($I110=4,"Unknown",IF($I110=99,"Stopped",$D110)), 0),"Not required") -> 155529.2836 | O110: =IF(INTRO!$E$41="Endemic", IF($J110>1, IF($J110=4, "Unknown", IF($J110=99, "Surveillance", E110)), 0),"Not required") -> 21214 | P110: =IF(INTRO!$E$41="Endemic", IF($J110>1, IF($J110=4, "Unknown", IF($J110=99, "Surveillance", F110)), 0),"Not required") -> 43299 | Q110: =IF(INTRO!$E$41="Endemic", IF($J110>1, IF($J110=4, "Unknown", IF($J110=99, "Surveillance", ROUND(D110*INTRO!$E$51,0))), 0),"Not required") -> 35943 | R110: =IF(INTRO!$E$41="Endemic", IF($J110>1, IF($J110=4, "Unknown", IF($J110=99, "Surveillance", SUM($O110:$Q110))), 0),"Not required") -> 100456 | S110: =IF(INTRO!$E$43="Endemic", IF($K110>1, IF($K110=4, "Unknown", IF($K110=99, "Surveillance", ROUND(E110*0.75,0))), 0),"Not required") -> 0 | T110: =IF(INTRO!$E$43="Endemic", IF($K110>1, IF($K110=4, "Unknown", IF($K110=99, "Surveillance", F110)), 0),"Not required") -> 0 | U110: =IF(INTRO!$E$43="Endemic", IF($K110>1, IF($K110=4, "Unknown", IF($K110=99, "Surveillance", G110)), 0),"Not required") -> 0 | V110: =IF(INTRO!$E$43="Endemic", IF($K110>1, IF($K110=4, "Unknown", IF($K110=99, "Surveillance", SUM($S110:$U110))), 0),"Not required") -> 0 | W110: 1 | X110: 1 | Y110: 2 | Z110: 0
A111: =IF(INTRO!$E$33<>0,INTRO!$E$33, " ") -> Angola | B111: LUNDA NORTE | C111: CAPENDA CAMULEMBA | D111: 75523.87004 | E111: =IF(INTRO!$E$48="","",ROUND($D111*INTRO!$E$48,0)) -> 10301 | F111: =IF(INTRO!$E$49="","",ROUND($D111*INTRO!$E$49,0)) -> 21026 | G111: =IF(INTRO!$E$50="","",ROUND($D111*INTRO!$E$50,0)) -> 41402 | H111: 0 | I111: 1 | J111: 3 | K111: 1 | L111: 0 | M111: =IF(INTRO!$E$37="Endemic",IF($H111>0,IF($H111=4,"Unknown",IF($H111=99,"Stopped",$D111)),0),"Not required") -> 0 | N111: =IF(INTRO!$E$39="Endemic", IF($I111>0, IF($I111=4,"Unknown",IF($I111=99,"Stopped",$D111)), 0),"Not required") -> 75523.87004 | O111: =IF(INTRO!$E$41="Endemic", IF($J111>1, IF($J111=4, "Unknown", IF($J111=99, "Surveillance", E111)), 0),"Not required") -> 10301 | P111: =IF(INTRO!$E$41="Endemic", IF($J111>1, IF($J111=4, "Unknown", IF($J111=99, "Surveillance", F111)), 0),"Not required") -> 21026 | Q111: =IF(INTRO!$E$41="Endemic", IF($J111>1, IF($J111=4, "Unknown", IF($J111=99, "Surveillance", ROUND(D111*INTRO!$E$51,0))), 0),"Not required") -> 17454 | R111: =IF(INTRO!$E$41="Endemic", IF($J111>1, IF($J111=4, "Unknown", IF($J111=99, "Surveillance", SUM($O111:$Q111))), 0),"Not required") -> 48781 | S111: =IF(INTRO!$E$43="Endemic", IF($K111>1, IF($K111=4, "Unknown", IF($K111=99, "Surveillance", ROUND(E111*0.75,0))), 0),"Not required") -> 0 | T111: =IF(INTRO!$E$43="Endemic", IF($K111>1, IF($K111=4, "Unknown", IF($K111=99, "Surveillance", F111)), 0),"Not required") -> 0 | U111: =IF(INTRO!$E$43="Endemic", IF($K111>1, IF($K111=4, "Unknown", IF($K111=99, "Surveillance", G111)), 0),"Not required") -> 0 | V111: =IF(INTRO!$E$43="Endemic", IF($K111>1, IF($K111=4, "Unknown", IF($K111=99, "Surveillance", SUM($S111:$U111))), 0),"Not required") -> 0 | W111: 0 | X111: 1 | Y111: 2 | Z111: 0
A112: =IF(INTRO!$E$33<>0,INTRO!$E$33, " ") -> Angola | B112: LUNDA NORTE | C112: CAUNGULA | D112: 36360.72755 | E112: =IF(INTRO!$E$48="","",ROUND($D112*INTRO!$E$48,0)) -> 4960 | F112: =IF(INTRO!$E$49="","",ROUND($D112*INTRO!$E$49,0)) -> 10123 | G112: =IF(INTRO!$E$50="","",ROUND($D112*INTRO!$E$50,0)) -> 19933 | H112: 0 | I112: 1 | J112: 2 | K112: 1 | L112: 0 | M112: =IF(INTRO!$E$37="Endemic",IF($H112>0,IF($H112=4,"Unknown",IF($H112=99,"Stopped",$D112)),0),"Not required") -> 0 | N112: =IF(INTRO!$E$39="Endemic", IF($I112>0, IF($I112=4,"Unknown",IF($I112=99,"Stopped",$D112)), 0),"Not required") -> 36360.72755 | O112: =IF(INTRO!$E$41="Endemic", IF($J112>1, IF($J112=4, "Unknown", IF($J112=99, "Surveillance", E112)), 0),"Not required") -> 4960 | P112: =IF(INTRO!$E$41="Endemic", IF($J112>1, IF($J112=4, "Unknown", IF($J112=99, "Surveillance", F112)), 0),"Not required") -> 10123 | Q112: =IF(INTRO!$E$41="Endemic", IF($J112>1, IF($J112=4, "Unknown", IF($J112=99, "Surveillance", ROUND(D112*INTRO!$E$51,0))), 0),"Not required") -> 8403 | R112: =IF(INTRO!$E$41="Endemic", IF($J112>1, IF($J112=4, "Unknown", IF($J112=99, "Surveillance", SUM($O112:$Q112))), 0),"Not required") -> 23486 | S112: =IF(INTRO!$E$43="Endemic", IF($K112>1, IF($K112=4, "Unknown", IF($K112=99, "Surveillance", ROUND(E112*0.75,0))), 0),"Not required") -> 0 | T112: =IF(INTRO!$E$43="Endemic", IF($K112>1, IF($K112=4, "Unknown", IF($K112=99, "Surveillance", F112)), 0),"Not required") -> 0 | U112: =IF(INTRO!$E$43="Endemic", IF($K112>1, IF($K112=4, "Unknown", IF($K112=99, "Surveillance", G112)), 0),"Not required") -> 0 | V112: =IF(INTRO!$E$43="Endemic", IF($K112>1, IF($K112=4, "Unknown", IF($K112=99, "Surveillance", SUM($S112:$U112))), 0),"Not required") -> 0 | W112: 0 | X112: 1 | Y112: 1 | Z112: 0
A113: =IF(INTRO!$E$33<>0,INTRO!$E$33, " ") -> Angola | B113: LUNDA NORTE | C113: CHITATO | D113: 245124.2932 | E113: =IF(INTRO!$E$48="","",ROUND($D113*INTRO!$E$48,0)) -> 33435 | F113: =IF(INTRO!$E$49="","",ROUND($D113*INTRO!$E$49,0)) -> 68243 | G113: =IF(INTRO!$E$50="","",ROUND($D113*INTRO!$E$50,0)) -> 134377 | H113: 0 | I113: 1 | J113: 3 | K113: 1 | L113: 0 | M113: =IF(INTRO!$E$37="Endemic",IF($H113>0,IF($H113=4,"Unknown",IF($H113=99,"Stopped",$D113)),0),"Not required") -> 0 | N113: =IF(INTRO!$E$39="Endemic", IF($I113>0, IF($I113=4,"Unknown",IF($I113=99,"Stopped",$D113)), 0),"Not required") -> 245124.2932 | O113: =IF(INTRO!$E$41="Endemic", IF($J113>1, IF($J113=4, "Unknown", IF($J113=99, "Surveillance", E113)), 0),"Not required") -> 33435 | P113: =IF(INTRO!$E$41="Endemic", IF($J113>1, IF($J113=4, "Unknown", IF($J113=99, "Surveillance", F113)), 0),"Not required") -> 68243 | Q113: =IF(INTRO!$E$41="Endemic", IF($J113>1, IF($J113=4, "Unknown", IF($J113=99, "Surveillance", ROUND(D113*INTRO!$E$51,0))), 0),"Not required") -> 56648 | R113: =IF(INTRO!$E$41="Endemic", IF($J113>1, IF($J113=4, "Unknown", IF($J113=99, "Surveillance", SUM($O113:$Q113))), 0),"Not required") -> 158326 | S113: =IF(INTRO!$E$43="Endemic", IF($K113>1, IF($K113=4, "Unknown", IF($K113=99, "Surveillance", ROUND(E113*0.75,0))), 0),"Not required") -> 0 | T113: =IF(INTRO!$E$43="Endemic", IF($K113>1, IF($K113=4, "Unknown", IF($K113=99, "Surveillance", F113)), 0),"Not required") -> 0 | U113: =IF(INTRO!$E$43="Endemic", IF($K113>1, IF($K113=4, "Unknown", IF($K113=99, "Surveillance", G113)), 0),"Not required") -> 0 | V113: =IF(INTRO!$E$43="Endemic", IF($K113>1, IF($K113=4, "Unknown", IF($K113=99, "Surveillance", SUM($S113:$U113))), 0),"Not required") -> 0 | W113: 0 | X113: 1 | Y113: 2 | Z113: 0
A114: =IF(INTRO!$E$33<>0,INTRO!$E$33, " ") -> Angola | B114: LUNDA NORTE | C114: CUANGO | D114: 237994.3252 | E114: =IF(INTRO!$E$48="","",ROUND($D114*INTRO!$E$48,0)) -> 32462 | F114: =IF(INTRO!$E$49="","",ROUND($D114*INTRO!$E$49,0)) -> 66258 | G114: =IF(INTRO!$E$50="","",ROUND($D114*INTRO!$E$50,0)) -> 130468 | H114: 0 | I114: 4 | J114: 2 | K114: 2 | L114: 0 | M114: =IF(INTRO!$E$37="Endemic",IF($H114>0,IF($H114=4,"Unknown",IF($H114=99,"Stopped",$D114)),0),"Not required") -> 0 | N114: =IF(INTRO!$E$39="Endemic", IF($I114>0, IF($I114=4,"Unknown",IF($I114=99,"Stopped",$D114)), 0),"Not required") -> Unknown | O114: =IF(INTRO!$E$41="Endemic", IF($J114>1, IF($J114=4, "Unknown", IF($J114=99, "Surveillance", E114)), 0),"Not required") -> 32462 | P114: =IF(INTRO!$E$41="Endemic", IF($J114>1, IF($J114=4, "Unknown", IF($J114=99, "Surveillance", F114)), 0),"Not required") -> 66258 | Q114: =IF(INTRO!$E$41="Endemic", IF($J114>1, IF($J114=4, "Unknown", IF($J114=99, "Surveillance", ROUND(D114*INTRO!$E$51,0))), 0),"Not required") -> 55000 | R114: =IF(INTRO!$E$41="Endemic", IF($J114>1, IF($J114=4, "Unknown", IF($J114=99, "Surveillance", SUM($O114:$Q114))), 0),"Not required") -> 153720 | S114: =IF(INTRO!$E$43="Endemic", IF($K114>1, IF($K114=4, "Unknown", IF($K114=99, "Surveillance", ROUND(E114*0.75,0))), 0),"Not required") -> 24347 | T114: =IF(INTRO!$E$43="Endemic", IF($K114>1, IF($K114=4, "Unknown", IF($K114=99, "Surveillance", F114)), 0),"Not required") -> 66258 | U114: =IF(INTRO!$E$43="Endemic", IF($K114>1, IF($K114=4, "Unknown", IF($K114=99, "Surveillance", G114)), 0),"Not required") -> 130468 | V114: =IF(INTRO!$E$43="Endemic", IF($K114>1, IF($K114=4, "Unknown", IF($K114=99, "Surveillance", SUM($S114:$U114))), 0),"Not required") -> 221073 | W114: 0 | X114: 0 | Y114: 1 | Z114: 1
A115: =IF(INTRO!$E$33<>0,INTRO!$E$33, " ") -> Angola | B115: LUNDA NORTE | C115: CUILO | D115: 27177.20214 | E115: =IF(INTRO!$E$48="","",ROUND($D115*INTRO!$E$48,0)) -> 3707 | F115: =IF(INTRO!$E$49="","",ROUND($D115*INTRO!$E$49,0)) -> 7566 | G115: =IF(INTRO!$E$50="","",ROUND($D115*INTRO!$E$50,0)) -> 14899 | H115: 1 | I115: 1 | J115: 2 | K115: 0 | L115: 0 | M115: =IF(INTRO!$E$37="Endemic",IF($H115>0,IF($H115=4,"Unknown",IF($H115=99,"Stopped",$D115)),0),"Not required") -> 27177.20214 | N115: =IF(INTRO!$E$39="Endemic", IF($I115>0, IF($I115=4,"Unknown",IF($I115=99,"Stopped",$D115)), 0),"Not required") -> 27177.20214 | O115: =IF(INTRO!$E$41="Endemic", IF($J115>1, IF($J115=4, "Unknown", IF($J115=99, "Surveillance", E115)), 0),"Not required") -> 3707 | P115: =IF(INTRO!$E$41="Endemic", IF($J115>1, IF($J115=4, "Unknown", IF($J115=99, "Surveillance", F115)), 0),"Not required") -> 7566 | Q115: =IF(INTRO!$E$41="Endemic", IF($J115>1, IF($J115=4, "Unknown", IF($J115=99, "Surveillance", ROUND(D115*INTRO!$E$51,0))), 0),"Not required") -> 6281 | R115: =IF(INTRO!$E$41="Endemic", IF($J115>1, IF($J115=4, "Unknown", IF($J115=99, "Surveillance", SUM($O115:$Q115))), 0),"Not required") -> 17554 | S115: =IF(INTRO!$E$43="Endemic", IF($K115>1, IF($K115=4, "Unknown", IF($K115=99, "Surveillance", ROUND(E115*0.75,0))), 0),"Not required") -> 0 | T115: =IF(INTRO!$E$43="Endemic", IF($K115>1, IF($K115=4, "Unknown", IF($K115=99, "Surveillance", F115)), 0),"Not required") -> 0 | U115: =IF(INTRO!$E$43="Endemic", IF($K115>1, IF($K115=4, "Unknown", IF($K115=99, "Surveillance", G115)), 0),"Not required") -> 0 | V115: =IF(INTRO!$E$43="Endemic", IF($K115>1, IF($K115=4, "Unknown", IF($K115=99, "Surveillance", SUM($S115:$U115))), 0),"Not required") -> 0 | W115: 1 | X115: 1 | Y115: 1 | Z115: 0
A116: =IF(INTRO!$E$33<>0,INTRO!$E$33, " ") -> Angola | B116: LUNDA NORTE | C116: LOVUA | D116: 16902.03222 | E116: =IF(INTRO!$E$48="","",ROUND($D116*INTRO!$E$48,0)) -> 2305 | F116: =IF(INTRO!$E$49="","",ROUND($D116*INTRO!$E$49,0)) -> 4706 | G116: =IF(INTRO!$E$50="","",ROUND($D116*INTRO!$E$50,0)) -> 9266 | H116: 0 | I116: 1 | J116: 2 | K116: 0 | L116: 0 | M116: =IF(INTRO!$E$37="Endemic",IF($H116>0,IF($H116=4,"Unknown",IF($H116=99,"Stopped",$D116)),0),"Not required") -> 0 | N116: =IF(INTRO!$E$39="Endemic", IF($I116>0, IF($I116=4,"Unknown",IF($I116=99,"Stopped",$D116)), 0),"Not required") -> 16902.03222 | O116: =IF(INTRO!$E$41="Endemic", IF($J116>1, IF($J116=4, "Unknown", IF($J116=99, "Surveillance", E116)), 0),"Not required") -> 2305 | P116: =IF(INTRO!$E$41="Endemic", IF($J116>1, IF($J116=4, "Unknown", IF($J116=99, "Surveillance", F116)), 0),"Not required") -> 4706 | Q116: =IF(INTRO!$E$41="Endemic", IF($J116>1, IF($J116=4, "Unknown", IF($J116=99, "Surveillance", ROUND(D116*INTRO!$E$51,0))), 0),"Not required") -> 3906 | R116: =IF(INTRO!$E$41="Endemic", IF($J116>1, IF($J116=4, "Unknown", IF($J116=99, "Surveillance", SUM($O116:$Q116))), 0),"Not required") -> 10917 | S116: =IF(INTRO!$E$43="Endemic", IF($K116>1, IF($K116=4, "Unknown", IF($K116=99, "Surveillance", ROUND(E116*0.75,0))), 0),"Not required") -> 0 | T116: =IF(INTRO!$E$43="Endemic", IF($K116>1, IF($K116=4, "Unknown", IF($K116=99, "Surveillance", F116)), 0),"Not required") -> 0 | U116: =IF(INTRO!$E$43="Endemic", IF($K116>1, IF($K116=4, "Unknown", IF($K116=99, "Surveillance", G116)), 0),"Not required") -> 0 | V116: =IF(INTRO!$E$43="Endemic", IF($K116>1, IF($K116=4, "Unknown", IF($K116=99, "Surveillance", SUM($S116:$U116))), 0),"Not required") -> 0 | W116: 0 | X116: 1 | Y116: 1 | Z116: 0
A117: =IF(INTRO!$E$33<>0,INTRO!$E$33, " ") -> Angola | B117: LUNDA NORTE | C117: LUBALO | D117: 26702.57409 | E117: =IF(INTRO!$E$48="","",ROUND($D117*INTRO!$E$48,0)) -> 3642 | F117: =IF(INTRO!$E$49="","",ROUND($D117*INTRO!$E$49,0)) -> 7434 | G117: =IF(INTRO!$E$50="","",ROUND($D117*INTRO!$E$50,0)) -> 14638 | H117: 0 | I117: 1 | J117: 3 | K117: 1 | L117: 0 | M117: =IF(INTRO!$E$37="Endemic",IF($H117>0,IF($H117=4,"Unknown",IF($H117=99,"Stopped",$D117)),0),"Not required") -> 0 | N117: =IF(INTRO!$E$39="Endemic", IF($I117>0, IF($I117=4,"Unknown",IF($I117=99,"Stopped",$D117)), 0),"Not required") -> 26702.57409 | O117: =IF(INTRO!$E$41="Endemic", IF($J117>1, IF($J117=4, "Unknown", IF($J117=99, "Surveillance", E117)), 0),"Not required") -> 3642 | P117: =IF(INTRO!$E$41="Endemic", IF($J117>1, IF($J117=4, "Unknown", IF($J117=99, "Surveillance", F117)), 0),"Not required") -> 7434 | Q117: =IF(INTRO!$E$41="Endemic", IF($J117>1, IF($J117=4, "Unknown", IF($J117=99, "Surveillance", ROUND(D117*INTRO!$E$51,0))), 0),"Not required") -> 6171 | R117: =IF(INTRO!$E$41="Endemic", IF($J117>1, IF($J117=4, "Unknown", IF($J117=99, "Surveillance", SUM($O117:$Q117))), 0),"Not required") -> 17247 | S117: =IF(INTRO!$E$43="Endemic", IF($K117>1, IF($K117=4, "Unknown", IF($K117=99, "Surveillance", ROUND(E117*0.75,0))), 0),"Not required") -> 0 | T117: =IF(INTRO!$E$43="Endemic", IF($K117>1, IF($K117=4, "Unknown", IF($K117=99, "Surveillance", F117)), 0),"Not required") -> 0 | U117: =IF(INTRO!$E$43="Endemic", IF($K117>1, IF($K117=4, "Unknown", IF($K117=99, "Surveillance", G117)), 0),"Not required") -> 0 | V117: =IF(INTRO!$E$43="Endemic", IF($K117>1, IF($K117=4, "Unknown", IF($K117=99, "Surveillance", SUM($S117:$U117))), 0),"Not required") -> 0 | W117: 0 | X117: 1 | Y117: 2 | Z117: 0
A118: =IF(INTRO!$E$33<>0,INTRO!$E$33, " ") -> Angola | B118: LUNDA NORTE | C118: LUCAPA | D118: 199819.4638 | E118: =IF(INTRO!$E$48="","",ROUND($D118*INTRO!$E$48,0)) -> 27255 | F118: =IF(INTRO!$E$49="","",ROUND($D118*INTRO!$E$49,0)) -> 55630 | G118: =IF(INTRO!$E$50="","",ROUND($D118*INTRO!$E$50,0)) -> 109541 | H118: 0 | I118: 1 | J118: 3 | K118: 0 | L118: 0 | M118: =IF(INTRO!$E$37="Endemic",IF($H118>0,IF($H118=4,"Unknown",IF($H118=99,"Stopped",$D118)),0),"Not required") -> 0 | N118: =IF(INTRO!$E$39="Endemic", IF($I118>0, IF($I118=4,"Unknown",IF($I118=99,"Stopped",$D118)), 0),"Not required") -> 199819.4638 | O118: =IF(INTRO!$E$41="Endemic", IF($J118>1, IF($J118=4, "Unknown", IF($J118=99, "Surveillance", E118)), 0),"Not required") -> 27255 | P118: =IF(INTRO!$E$41="Endemic", IF($J118>1, IF($J118=4, "Unknown", IF($J118=99, "Surveillance", F118)), 0),"Not required") -> 55630 | Q118: =IF(INTRO!$E$41="Endemic", IF($J118>1, IF($J118=4, "Unknown", IF($J118=99, "Surveillance", ROUND(D118*INTRO!$E$51,0))), 0),"Not required") -> 46178 | R118: =IF(INTRO!$E$41="Endemic", IF($J118>1, IF($J118=4, "Unknown", IF($J118=99, "Surveillance", SUM($O118:$Q118))), 0),"Not required") -> 129063 | S118: =IF(INTRO!$E$43="Endemic", IF($K118>1, IF($K118=4, "Unknown", IF($K118=99, "Surveillance", ROUND(E118*0.75,0))), 0),"Not required") -> 0 | T118: =IF(INTRO!$E$43="Endemic", IF($K118>1, IF($K118=4, "Unknown", IF($K118=99, "Surveillance", F118)), 0),"Not required") -> 0 | U118: =IF(INTRO!$E$43="Endemic", IF($K118>1, IF($K118=4, "Unknown", IF($K118=99, "Surveillance", G118)), 0),"Not required") -> 0 | V118: =IF(INTRO!$E$43="Endemic", IF($K118>1, IF($K118=4, "Unknown", IF($K118=99, "Surveillance", SUM($S118:$U118))), 0),"Not required") -> 0 | W118: 0 | X118: 1 | Y118: 2 | Z118: 0
A119: =IF(INTRO!$E$33<>0,INTRO!$E$33, " ") -> Angola | B119: LUNDA NORTE | C119: XA MUTEBA | D119: 62261.7076 | E119: =IF(INTRO!$E$48="","",ROUND($D119*INTRO!$E$48,0)) -> 8492 | F119: =IF(INTRO!$E$49="","",ROUND($D119*INTRO!$E$49,0)) -> 17334 | G119: =IF(INTRO!$E$50="","",ROUND($D119*INTRO!$E$50,0)) -> 34132 | H119: 1 | I119: 4 | J119: 3 | K119: 2 | L119: 0 | M119: =IF(INTRO!$E$37="Endemic",IF($H119>0,IF($H119=4,"Unknown",IF($H119=99,"Stopped",$D119)),0),"Not required") -> 62261.7076 | N119: =IF(INTRO!$E$39="Endemic", IF($I119>0, IF($I119=4,"Unknown",IF($I119=99,"Stopped",$D119)), 0),"Not required") -> Unknown | O119: =IF(INTRO!$E$41="Endemic", IF($J119>1, IF($J119=4, "Unknown", IF($J119=99, "Surveillance", E119)), 0),"Not required") -> 8492 | P119: =IF(INTRO!$E$41="Endemic", IF($J119>1, IF($J119=4, "Unknown", IF($J119=99, "Surveillance", F119)), 0),"Not required") -> 17334 | Q119: =IF(INTRO!$E$41="Endemic", IF($J119>1, IF($J119=4, "Unknown", IF($J119=99, "Surveillance", ROUND(D119*INTRO!$E$51,0))), 0),"Not required") -> 14389 | R119: =IF(INTRO!$E$41="Endemic", IF($J119>1, IF($J119=4, "Unknown", IF($J119=99, "Surveillance", SUM($O119:$Q119))), 0),"Not required") -> 40215 | S119: =IF(INTRO!$E$43="Endemic", IF($K119>1, IF($K119=4, "Unknown", IF($K119=99, "Surveillance", ROUND(E119*0.75,0))), 0),"Not required") -> 6369 | T119: =IF(INTRO!$E$43="Endemic", IF($K119>1, IF($K119=4, "Unknown", IF($K119=99, "Surveillance", F119)), 0),"Not required") -> 17334 | U119: =IF(INTRO!$E$43="Endemic", IF($K119>1, IF($K119=4, "Unknown", IF($K119=99, "Surveillance", G119)), 0),"Not required") -> 34132 | V119: =IF(INTRO!$E$43="Endemic", IF($K119>1, IF($K119=4, "Unknown", IF($K119=99, "Surveillance", SUM($S119:$U119))), 0),"Not required") -> 57835 | W119: 1 | X119: 0 | Y119: 2 | Z119: 1
A120: =IF(INTRO!$E$33<>0,INTRO!$E$33, " ") -> Angola | B120: LUNDA SUL | C120: CACOLO | D120: 41890.67169 | E120: =IF(INTRO!$E$48="","",ROUND($D120*INTRO!$E$48,0)) -> 5714 | F120: =IF(INTRO!$E$49="","",ROUND($D120*INTRO!$E$49,0)) -> 11662 | G120: =IF(INTRO!$E$50="","",ROUND($D120*INTRO!$E$50,0)) -> 22964 | H120: 1 | I120: 1 | J120: 3 | K120: 3 | L120: 0 | M120: =IF(INTRO!$E$37="Endemic",IF($H120>0,IF($H120=4,"Unknown",IF($H120=99,"Stopped",$D120)),0),"Not required") -> 41890.67169 | N120: =IF(INTRO!$E$39="Endemic", IF($I120>0, IF($I120=4,"Unknown",IF($I120=99,"Stopped",$D120)), 0),"Not required") -> 41890.67169 | O120: =IF(INTRO!$E$41="Endemic", IF($J120>1, IF($J120=4, "Unknown", IF($J120=99, "Surveillance", E120)), 0),"Not required") -> 5714 | P120: =IF(INTRO!$E$41="Endemic", IF($J120>1, IF($J120=4, "Unknown", IF($J120=99, "Surveillance", F120)), 0),"Not required") -> 11662 | Q120: =IF(INTRO!$E$41="Endemic", IF($J120>1, IF($J120=4, "Unknown", IF($J120=99, "Surveillance", ROUND(D120*INTRO!$E$51,0))), 0),"Not required") -> 9681 | R120: =IF(INTRO!$E$41="Endemic", IF($J120>1, IF($J120=4, "Unknown", IF($J120=99, "Surveillance", SUM($O120:$Q120))), 0),"Not required") -> 27057 | S120: =IF(INTRO!$E$43="Endemic", IF($K120>1, IF($K120=4, "Unknown", IF($K120=99, "Surveillance", ROUND(E120*0.75,0))), 0),"Not required") -> 4286 | T120: =IF(INTRO!$E$43="Endemic", IF($K120>1, IF($K120=4, "Unknown", IF($K120=99, "Surveillance", F120)), 0),"Not required") -> 11662 | U120: =IF(INTRO!$E$43="Endemic", IF($K120>1, IF($K120=4, "Unknown", IF($K120=99, "Surveillance", G120)), 0),"Not required") -> 22964 | V120: =IF(INTRO!$E$43="Endemic", IF($K120>1, IF($K120=4, "Unknown", IF($K120=99, "Surveillance", SUM($S120:$U120))), 0),"Not required") -> 38912 | W120: 1 | X120: 1 | Y120: 2 | Z120: 1
A121: =IF(INTRO!$E$33<>0,INTRO!$E$33, " ") -> Angola | B121: LUNDA SUL | C121: DALA | D121: 39389.90923 | E121: =IF(INTRO!$E$48="","",ROUND($D121*INTRO!$E$48,0)) -> 5373 | F121: =IF(INTRO!$E$49="","",ROUND($D121*INTRO!$E$49,0)) -> 10966 | G121: =IF(INTRO!$E$50="","",ROUND($D121*INTRO!$E$50,0)) -> 21594 | H121: 0 | I121: 1 | J121: 2 | K121: 0 | L121: 1 | M121: =IF(INTRO!$E$37="Endemic",IF($H121>0,IF($H121=4,"Unknown",IF($H121=99,"Stopped",$D121)),0),"Not required") -> 0 | N121: =IF(INTRO!$E$39="Endemic", IF($I121>0, IF($I121=4,"Unknown",IF($I121=99,"Stopped",$D121)), 0),"Not required") -> 39389.90923 | O121: =IF(INTRO!$E$41="Endemic", IF($J121>1, IF($J121=4, "Unknown", IF($J121=99, "Surveillance", E121)), 0),"Not required") -> 5373 | P121: =IF(INTRO!$E$41="Endemic", IF($J121>1, IF($J121=4, "Unknown", IF($J121=99, "Surveillance", F121)), 0),"Not required") -> 10966 | Q121: =IF(INTRO!$E$41="Endemic", IF($J121>1, IF($J121=4, "Unknown", IF($J121=99, "Surveillance", ROUND(D121*INTRO!$E$51,0))), 0),"Not required") -> 9103 | R121: =IF(INTRO!$E$41="Endemic", IF($J121>1, IF($J121=4, "Unknown", IF($J121=99, "Surveillance", SUM($O121:$Q121))), 0),"Not required") -> 25442 | S121: =IF(INTRO!$E$43="Endemic", IF($K121>1, IF($K121=4, "Unknown", IF($K121=99, "Surveillance", ROUND(E121*0.75,0))), 0),"Not required") -> 0 | T121: =IF(INTRO!$E$43="Endemic", IF($K121>1, IF($K121=4, "Unknown", IF($K121=99, "Surveillance", F121)), 0),"Not required") -> 0 | U121: =IF(INTRO!$E$43="Endemic", IF($K121>1, IF($K121=4, "Unknown", IF($K121=99, "Surveillance", G121)), 0),"Not required") -> 0 | V121: =IF(INTRO!$E$43="Endemic", IF($K121>1, IF($K121=4, "Unknown", IF($K121=99, "Surveillance", SUM($S121:$U121))), 0),"Not required") -> 0 | W121: 0 | X121: 1 | Y121: 1 | Z121: 0
A122: =IF(INTRO!$E$33<>0,INTRO!$E$33, " ") -> Angola | B122: LUNDA SUL | C122: MUCONDA | D122: 43686.87518 | E122: =IF(INTRO!$E$48="","",ROUND($D122*INTRO!$E$48,0)) -> 5959 | F122: =IF(INTRO!$E$49="","",ROUND($D122*INTRO!$E$49,0)) -> 12162 | G122: =IF(INTRO!$E$50="","",ROUND($D122*INTRO!$E$50,0)) -> 23949 | H122: 0 | I122: 1 | J122: 3 | K122: 1 | L122: 0 | M122: =IF(INTRO!$E$37="Endemic",IF($H122>0,IF($H122=4,"Unknown",IF($H122=99,"Stopped",$D122)),0),"Not required") -> 0 | N122: =IF(INTRO!$E$39="Endemic", IF($I122>0, IF($I122=4,"Unknown",IF($I122=99,"Stopped",$D122)), 0),"Not required") -> 43686.87518 | O122: =IF(INTRO!$E$41="Endemic", IF($J122>1, IF($J122=4, "Unknown", IF($J122=99, "Surveillance", E122)), 0),"Not required") -> 5959 | P122: =IF(INTRO!$E$41="Endemic", IF($J122>1, IF($J122=4, "Unknown", IF($J122=99, "Surveillance", F122)), 0),"Not required") -> 12162 | Q122: =IF(INTRO!$E$41="Endemic", IF($J122>1, IF($J122=4, "Unknown", IF($J122=99, "Surveillance", ROUND(D122*INTRO!$E$51,0))), 0),"Not required") -> 10096 | R122: =IF(INTRO!$E$41="Endemic", IF($J122>1, IF($J122=4, "Unknown", IF($J122=99, "Surveillance", SUM($O122:$Q122))), 0),"Not required") -> 28217 | S122: =IF(INTRO!$E$43="Endemic", IF($K122>1, IF($K122=4, "Unknown", IF($K122=99, "Surveillance", ROUND(E122*0.75,0))), 0),"Not required") -> 0 | T122: =IF(INTRO!$E$43="Endemic", IF($K122>1, IF($K122=4, "Unknown", IF($K122=99, "Surveillance", F122)), 0),"Not required") -> 0 | U122: =IF(INTRO!$E$43="Endemic", IF($K122>1, IF($K122=4, "Unknown", IF($K122=99, "Surveillance", G122)), 0),"Not required") -> 0 | V122: =IF(INTRO!$E$43="Endemic", IF($K122>1, IF($K122=4, "Unknown", IF($K122=99, "Surveillance", SUM($S122:$U122))), 0),"Not required") -> 0 | W122: 0 | X122: 1 | Y122: 2 | Z122: 0
A123: =IF(INTRO!$E$33<>0,INTRO!$E$33, " ") -> Angola | B123: LUNDA SUL | C123: SAURIMO | D123: 581081.848 | E123: =IF(INTRO!$E$48="","",ROUND($D123*INTRO!$E$48,0)) -> 79260 | F123: =IF(INTRO!$E$49="","",ROUND($D123*INTRO!$E$49,0)) -> 161773 | G123: =IF(INTRO!$E$50="","",ROUND($D123*INTRO!$E$50,0)) -> 318549 | H123: 1 | I123: 1 | J123: 3 | K123: 0 | L123: 0 | M123: =IF(INTRO!$E$37="Endemic",IF($H123>0,IF($H123=4,"Unknown",IF($H123=99,"Stopped",$D123)),0),"Not required") -> 581081.848 | N123: =IF(INTRO!$E$39="Endemic", IF($I123>0, IF($I123=4,"Unknown",IF($I123=99,"Stopped",$D123)), 0),"Not required") -> 581081.848 | O123: =IF(INTRO!$E$41="Endemic", IF($J123>1, IF($J123=4, "Unknown", IF($J123=99, "Surveillance", E123)), 0),"Not required") -> 79260 | P123: =IF(INTRO!$E$41="Endemic", IF($J123>1, IF($J123=4, "Unknown", IF($J123=99, "Surveillance", F123)), 0),"Not required") -> 161773 | Q123: =IF(INTRO!$E$41="Endemic", IF($J123>1, IF($J123=4, "Unknown", IF($J123=99, "Surveillance", ROUND(D123*INTRO!$E$51,0))), 0),"Not required") -> 134288 | R123: =IF(INTRO!$E$41="Endemic", IF($J123>1, IF($J123=4, "Unknown", IF($J123=99, "Surveillance", SUM($O123:$Q123))), 0),"Not required") -> 375321 | S123: =IF(INTRO!$E$43="Endemic", IF($K123>1, IF($K123=4, "Unknown", IF($K123=99, "Surveillance", ROUND(E123*0.75,0))), 0),"Not required") -> 0 | T123: =IF(INTRO!$E$43="Endemic", IF($K123>1, IF($K123=4, "Unknown", IF($K123=99, "Surveillance", F123)), 0),"Not required") -> 0 | U123: =IF(INTRO!$E$43="Endemic", IF($K123>1, IF($K123=4, "Unknown", IF($K123=99, "Surveillance", G123)), 0),"Not required") -> 0 | V123: =IF(INTRO!$E$43="Endemic", IF($K123>1, IF($K123=4, "Unknown", IF($K123=99, "Surveillance", SUM($S123:$U123))), 0),"Not required") -> 0 | W123: 1 | X123: 1 | Y123: 2 | Z123: 0
A124: =IF(INTRO!$E$33<>0,INTRO!$E$33, " ") -> Angola | B124: MALANJE | C124: CACULAMA (Mukari) | D124: 38999.6595 | E124: =IF(INTRO!$E$48="","",ROUND($D124*INTRO!$E$48,0)) -> 5320 | F124: =IF(INTRO!$E$49="","",ROUND($D124*INTRO!$E$49,0)) -> 10858 | G124: =IF(INTRO!$E$50="","",ROUND($D124*INTRO!$E$50,0)) -> 21380 | H124: 1 | I124: 4 | J124: 3 | K124: 2 | L124: 0 | M124: =IF(INTRO!$E$37="Endemic",IF($H124>0,IF($H124=4,"Unknown",IF($H124=99,"Stopped",$D124)),0),"Not required") -> 38999.6595 | N124: =IF(INTRO!$E$39="Endemic", IF($I124>0, IF($I124=4,"Unknown",IF($I124=99,"Stopped",$D124)), 0),"Not required") -> Unknown | O124: =IF(INTRO!$E$41="Endemic", IF($J124>1, IF($J124=4, "Unknown", IF($J124=99, "Surveillance", E124)), 0),"Not required") -> 5320 | P124: =IF(INTRO!$E$41="Endemic", IF($J124>1, IF($J124=4, "Unknown", IF($J124=99, "Surveillance", F124)), 0),"Not required") -> 10858 | Q124: =IF(INTRO!$E$41="Endemic", IF($J124>1, IF($J124=4, "Unknown", IF($J124=99, "Surveillance", ROUND(D124*INTRO!$E$51,0))), 0),"Not required") -> 9013 | R124: =IF(INTRO!$E$41="Endemic", IF($J124>1, IF($J124=4, "Unknown", IF($J124=99, "Surveillance", SUM($O124:$Q124))), 0),"Not required") -> 25191 | S124: =IF(INTRO!$E$43="Endemic", IF($K124>1, IF($K124=4, "Unknown", IF($K124=99, "Surveillance", ROUND(E124*0.75,0))), 0),"Not required") -> 3990 | T124: =IF(INTRO!$E$43="Endemic", IF($K124>1, IF($K124=4, "Unknown", IF($K124=99, "Surveillance", F124)), 0),"Not required") -> 10858 | U124: =IF(INTRO!$E$43="Endemic", IF($K124>1, IF($K124=4, "Unknown", IF($K124=99, "Surveillance", G124)), 0),"Not required") -> 21380 | V124: =IF(INTRO!$E$43="Endemic", IF($K124>1, IF($K124=4, "Unknown", IF($K124=99, "Surveillance", SUM($S124:$U124))), 0),"Not required") -> 36228 | W124: 1 | X124: 0 | Y124: 2 | Z124: 1
A125: =IF(INTRO!$E$33<>0,INTRO!$E$33, " ") -> Angola | B125: MALANJE | C125: CACUSO | D125: 92585.16635 | E125: =IF(INTRO!$E$48="","",ROUND($D125*INTRO!$E$48,0)) -> 12629 | F125: =IF(INTRO!$E$49="","",ROUND($D125*INTRO!$E$49,0)) -> 25776 | G125: =IF(INTRO!$E$50="","",ROUND($D125*INTRO!$E$50,0)) -> 50755 | H125: 0 | I125: 4 | J125: 3 | K125: 2 | L125: 0 | M125: =IF(INTRO!$E$37="Endemic",IF($H125>0,IF($H125=4,"Unknown",IF($H125=99,"Stopped",$D125)),0),"Not required") -> 0 | N125: =IF(INTRO!$E$39="Endemic", IF($I125>0, IF($I125=4,"Unknown",IF($I125=99,"Stopped",$D125)), 0),"Not required") -> Unknown | O125: =IF(INTRO!$E$41="Endemic", IF($J125>1, IF($J125=4, "Unknown", IF($J125=99, "Surveillance", E125)), 0),"Not required") -> 12629 | P125: =IF(INTRO!$E$41="Endemic", IF($J125>1, IF($J125=4, "Unknown", IF($J125=99, "Surveillance", F125)), 0),"Not required") -> 25776 | Q125: =IF(INTRO!$E$41="Endemic", IF($J125>1, IF($J125=4, "Unknown", IF($J125=99, "Surveillance", ROUND(D125*INTRO!$E$51,0))), 0),"Not required") -> 21396 | R125: =IF(INTRO!$E$41="Endemic", IF($J125>1, IF($J125=4, "Unknown", IF($J125=99, "Surveillance", SUM($O125:$Q125))), 0),"Not required") -> 59801 | S125: =IF(INTRO!$E$43="Endemic", IF($K125>1, IF($K125=4, "Unknown", IF($K125=99, "Surveillance", ROUND(E125*0.75,0))), 0),"Not required") -> 9472 | T125: =IF(INTRO!$E$43="Endemic", IF($K125>1, IF($K125=4, "Unknown", IF($K125=99, "Surveillance", F125)), 0),"Not required") -> 25776 | U125: =IF(INTRO!$E$43="Endemic", IF($K125>1, IF($K125=4, "Unknown", IF($K125=99, "Surveillance", G125)), 0),"Not required") -> 50755 | V125: =IF(INTRO!$E$43="Endemic", IF($K125>1, IF($K125=4, "Unknown", IF($K125=99, "Surveillance", SUM($S125:$U125))), 0),"Not required") -> 86003 | W125: 0 | X125: 0 | Y125: 2 | Z125: 1
A126: =IF(INTRO!$E$33<>0,INTRO!$E$33, " ") -> Angola | B126: MALANJE | C126: CAHOMBO | D126: 27859.61181 | E126: =IF(INTRO!$E$48="","",ROUND($D126*INTRO!$E$48,0)) -> 3800 | F126: =IF(INTRO!$E$49="","",ROUND($D126*INTRO!$E$49,0)) -> 7756 | G126: =IF(INTRO!$E$50="","",ROUND($D126*INTRO!$E$50,0)) -> 15273 | H126: 0 | I126: 4 | J126: 2 | K126: 3 | L126: 0 | M126: =IF(INTRO!$E$37="Endemic",IF($H126>0,IF($H126=4,"Unknown",IF($H126=99,"Stopped",$D126)),0),"Not required") -> 0 | N126: =IF(INTRO!$E$39="Endemic", IF($I126>0, IF($I126=4,"Unknown",IF($I126=99,"Stopped",$D126)), 0),"Not required") -> Unknown | O126: =IF(INTRO!$E$41="Endemic", IF($J126>1, IF($J126=4, "Unknown", IF($J126=99, "Surveillance", E126)), 0),"Not required") -> 3800 | P126: =IF(INTRO!$E$41="Endemic", IF($J126>1, IF($J126=4, "Unknown", IF($J126=99, "Surveillance", F126)), 0),"Not required") -> 7756 | Q126: =IF(INTRO!$E$41="Endemic", IF($J126>1, IF($J126=4, "Unknown", IF($J126=99, "Surveillance", ROUND(D126*INTRO!$E$51,0))), 0),"Not required") -> 6438 | R126: =IF(INTRO!$E$41="Endemic", IF($J126>1, IF($J126=4, "Unknown", IF($J126=99, "Surveillance", SUM($O126:$Q126))), 0),"Not required") -> 17994 | S126: =IF(INTRO!$E$43="Endemic", IF($K126>1, IF($K126=4, "Unknown", IF($K126=99, "Surveillance", ROUND(E126*0.75,0))), 0),"Not required") -> 2850 | T126: =IF(INTRO!$E$43="Endemic", IF($K126>1, IF($K126=4, "Unknown", IF($K126=99, "Surveillance", F126)), 0),"Not required") -> 7756 | U126: =IF(INTRO!$E$43="Endemic", IF($K126>1, IF($K126=4, "Unknown", IF($K126=99, "Surveillance", G126)), 0),"Not required") -> 15273 | V126: =IF(INTRO!$E$43="Endemic", IF($K126>1, IF($K126=4, "Unknown", IF($K126=99, "Surveillance", SUM($S126:$U126))), 0),"Not required") -> 25879 | W126: 0 | X126: 0 | Y126: 1 | Z126: 1
A127: =IF(INTRO!$E$33<>0,INTRO!$E$33, " ") -> Angola | B127: MALANJE | C127: CALANDULA | D127: 104150.2698 | E127: =IF(INTRO!$E$48="","",ROUND($D127*INTRO!$E$48,0)) -> 14206 | F127: =IF(INTRO!$E$49="","",ROUND($D127*INTRO!$E$49,0)) -> 28995 | G127: =IF(INTRO!$E$50="","",ROUND($D127*INTRO!$E$50,0)) -> 57095 | H127: 0 | I127: 4 | J127: 3 | K127: 3 | L127: 0 | M127: =IF(INTRO!$E$37="Endemic",IF($H127>0,IF($H127=4,"Unknown",IF($H127=99,"Stopped",$D127)),0),"Not required") -> 0 | N127: =IF(INTRO!$E$39="Endemic", IF($I127>0, IF($I127=4,"Unknown",IF($I127=99,"Stopped",$D127)), 0),"Not required") -> Unknown | O127: =IF(INTRO!$E$41="Endemic", IF($J127>1, IF($J127=4, "Unknown", IF($J127=99, "Surveillance", E127)), 0),"Not required") -> 14206 | P127: =IF(INTRO!$E$41="Endemic", IF($J127>1, IF($J127=4, "Unknown", IF($J127=99, "Surveillance", F127)), 0),"Not required") -> 28995 | Q127: =IF(INTRO!$E$41="Endemic", IF($J127>1, IF($J127=4, "Unknown", IF($J127=99, "Surveillance", ROUND(D127*INTRO!$E$51,0))), 0),"Not required") -> 24069 | R127: =IF(INTRO!$E$41="Endemic", IF($J127>1, IF($J127=4, "Unknown", IF($J127=99, "Surveillance", SUM($O127:$Q127))), 0),"Not required") -> 67270 | S127: =IF(INTRO!$E$43="Endemic", IF($K127>1, IF($K127=4, "Unknown", IF($K127=99, "Surveillance", ROUND(E127*0.75,0))), 0),"Not required") -> 10655 | T127: =IF(INTRO!$E$43="Endemic", IF($K127>1, IF($K127=4, "Unknown", IF($K127=99, "Surveillance", F127)), 0),"Not required") -> 28995 | U127: =IF(INTRO!$E$43="Endemic", IF($K127>1, IF($K127=4, "Unknown", IF($K127=99, "Surveillance", G127)), 0),"Not required") -> 57095 | V127: =IF(INTRO!$E$43="Endemic", IF($K127>1, IF($K127=4, "Unknown", IF($K127=99, "Surveillance", SUM($S127:$U127))), 0),"Not required") -> 96745 | W127: 0 | X127: 0 | Y127: 2 | Z127: 1
A128: =IF(INTRO!$E$33<>0,INTRO!$E$33, " ") -> Angola | B128: MALANJE | C128: CAMBUNDI CATEMBO | D128: 59981.3835 | E128: =IF(INTRO!$E$48="","",ROUND($D128*INTRO!$E$48,0)) -> 8181 | F128: =IF(INTRO!$E$49="","",ROUND($D128*INTRO!$E$49,0)) -> 16699 | G128: =IF(INTRO!$E$50="","",ROUND($D128*INTRO!$E$50,0)) -> 32882 | H128: 0 | I128: 4 | J128: 3 | K128: 2 | L128: 0 | M128: =IF(INTRO!$E$37="Endemic",IF($H128>0,IF($H128=4,"Unknown",IF($H128=99,"Stopped",$D128)),0),"Not required") -> 0 | N128: =IF(INTRO!$E$39="Endemic", IF($I128>0, IF($I128=4,"Unknown",IF($I128=99,"Stopped",$D128)), 0),"Not required") -> Unknown | O128: =IF(INTRO!$E$41="Endemic", IF($J128>1, IF($J128=4, "Unknown", IF($J128=99, "Surveillance", E128)), 0),"Not required") -> 8181 | P128: =IF(INTRO!$E$41="Endemic", IF($J128>1, IF($J128=4, "Unknown", IF($J128=99, "Surveillance", F128)), 0),"Not required") -> 16699 | Q128: =IF(INTRO!$E$41="Endemic", IF($J128>1, IF($J128=4, "Unknown", IF($J128=99, "Surveillance", ROUND(D128*INTRO!$E$51,0))), 0),"Not required") -> 13862 | R128: =IF(INTRO!$E$41="Endemic", IF($J128>1, IF($J128=4, "Unknown", IF($J128=99, "Surveillance", SUM($O128:$Q128))), 0),"Not required") -> 38742 | S128: =IF(INTRO!$E$43="Endemic", IF($K128>1, IF($K128=4, "Unknown", IF($K128=99, "Surveillance", ROUND(E128*0.75,0))), 0),"Not required") -> 6136 | T128: =IF(INTRO!$E$43="Endemic", IF($K128>1, IF($K128=4, "Unknown", IF($K128=99, "Surveillance", F128)), 0),"Not required") -> 16699 | U128: =IF(INTRO!$E$43="Endemic", IF($K128>1, IF($K128=4, "Unknown", IF($K128=99, "Surveillance", G128)), 0),"Not required") -> 32882 | V128: =IF(INTRO!$E$43="Endemic", IF($K128>1, IF($K128=4, "Unknown", IF($K128=99, "Surveillance", SUM($S128:$U128))), 0),"Not required") -> 55717 | W128: 0 | X128: 0 | Y128: 2 | Z128: 1
A129: =IF(INTRO!$E$33<>0,INTRO!$E$33, " ") -> Angola | B129: MALANJE | C129: CANGANDALA | D129: 58438.31497 | E129: =IF(INTRO!$E$48="","",ROUND($D129*INTRO!$E$48,0)) -> 7971 | F129: =IF(INTRO!$E$49="","",ROUND($D129*INTRO!$E$49,0)) -> 16269 | G129: =IF(INTRO!$E$50="","",ROUND($D129*INTRO!$E$50,0)) -> 32036 | H129: 1 | I129: 4 | J129: 2 | K129: 3 | L129: 0 | M129: =IF(INTRO!$E$37="Endemic",IF($H129>0,IF($H129=4,"Unknown",IF($H129=99,"Stopped",$D129)),0),"Not required") -> 58438.31497 | N129: =IF(INTRO!$E$39="Endemic", IF($I129>0, IF($I129=4,"Unknown",IF($I129=99,"Stopped",$D129)), 0),"Not required") -> Unknown | O129: =IF(INTRO!$E$41="Endemic", IF($J129>1, IF($J129=4, "Unknown", IF($J129=99, "Surveillance", E129)), 0),"Not required") -> 7971 | P129: =IF(INTRO!$E$41="Endemic", IF($J129>1, IF($J129=4, "Unknown", IF($J129=99, "Surveillance", F129)), 0),"Not required") -> 16269 | Q129: =IF(INTRO!$E$41="Endemic", IF($J129>1, IF($J129=4, "Unknown", IF($J129=99, "Surveillance", ROUND(D129*INTRO!$E$51,0))), 0),"Not required") -> 13505 | R129: =IF(INTRO!$E$41="Endemic", IF($J129>1, IF($J129=4, "Unknown", IF($J129=99, "Surveillance", SUM($O129:$Q129))), 0),"Not required") -> 37745 | S129: =IF(INTRO!$E$43="Endemic", IF($K129>1, IF($K129=4, "Unknown", IF($K129=99, "Surveillance", ROUND(E129*0.75,0))), 0),"Not required") -> 5978 | T129: =IF(INTRO!$E$43="Endemic", IF($K129>1, IF($K129=4, "Unknown", IF($K129=99, "Surveillance", F129)), 0),"Not required") -> 16269 | U129: =IF(INTRO!$E$43="Endemic", IF($K129>1, IF($K129=4, "Unknown", IF($K129=99, "Surveillance", G129)), 0),"Not required") -> 32036 | V129: =IF(INTRO!$E$43="Endemic", IF($K129>1, IF($K129=4, "Unknown", IF($K129=99, "Surveillance", SUM($S129:$U129))), 0),"Not required") -> 54283 | W129: 1 | X129: 0 | Y129: 1 | Z129: 1
A130: =IF(INTRO!$E$33<>0,INTRO!$E$33, " ") -> Angola | B130: MALANJE | C130: KIWABA NZOJI | D130: 20567.2155 | E130: =IF(INTRO!$E$48="","",ROUND($D130*INTRO!$E$48,0)) -> 2805 | F130: =IF(INTRO!$E$49="","",ROUND($D130*INTRO!$E$49,0)) -> 5726 | G130: =IF(INTRO!$E$50="","",ROUND($D130*INTRO!$E$50,0)) -> 11275 | H130: 0 | I130: 4 | J130: 3 | K130: 1 | L130: 0 | M130: =IF(INTRO!$E$37="Endemic",IF($H130>0,IF($H130=4,"Unknown",IF($H130=99,"Stopped",$D130)),0),"Not required") -> 0 | N130: =IF(INTRO!$E$39="Endemic", IF($I130>0, IF($I130=4,"Unknown",IF($I130=99,"Stopped",$D130)), 0),"Not required") -> Unknown | O130: =IF(INTRO!$E$41="Endemic", IF($J130>1, IF($J130=4, "Unknown", IF($J130=99, "Surveillance", E130)), 0),"Not required") -> 2805 | P130: =IF(INTRO!$E$41="Endemic", IF($J130>1, IF($J130=4, "Unknown", IF($J130=99, "Surveillance", F130)), 0),"Not required") -> 5726 | Q130: =IF(INTRO!$E$41="Endemic", IF($J130>1, IF($J130=4, "Unknown", IF($J130=99, "Surveillance", ROUND(D130*INTRO!$E$51,0))), 0),"Not required") -> 4753 | R130: =IF(INTRO!$E$41="Endemic", IF($J130>1, IF($J130=4, "Unknown", IF($J130=99, "Surveillance", SUM($O130:$Q130))), 0),"Not required") -> 13284 | S130: =IF(INTRO!$E$43="Endemic", IF($K130>1, IF($K130=4, "Unknown", IF($K130=99, "Surveillance", ROUND(E130*0.75,0))), 0),"Not required") -> 0 | T130: =IF(INTRO!$E$43="Endemic", IF($K130>1, IF($K130=4, "Unknown", IF($K130=99, "Surveillance", F130)), 0),"Not required") -> 0 | U130: =IF(INTRO!$E$43="Endemic", IF($K130>1, IF($K130=4, "Unknown", IF($K130=99, "Surveillance", G130)), 0),"Not required") -> 0 | V130: =IF(INTRO!$E$43="Endemic", IF($K130>1, IF($K130=4, "Unknown", IF($K130=99, "Surveillance", SUM($S130:$U130))), 0),"Not required") -> 0 | W130: 0 | X130: 0 | Y130: 2 | Z130: 0
A131: =IF(INTRO!$E$33<>0,INTRO!$E$33, " ") -> Angola | B131: MALANJE | C131: KUNDA DYA BASE | D131: 16345.13531 | E131: =IF(INTRO!$E$48="","",ROUND($D131*INTRO!$E$48,0)) -> 2229 | F131: =IF(INTRO!$E$49="","",ROUND($D131*INTRO!$E$49,0)) -> 4550 | G131: =IF(INTRO!$E$50="","",ROUND($D131*INTRO!$E$50,0)) -> 8960 | H131: 1 | I131: 4 | J131: 2 | K131: 2 | L131: 0 | M131: =IF(INTRO!$E$37="Endemic",IF($H131>0,IF($H131=4,"Unknown",IF($H131=99,"Stopped",$D131)),0),"Not required") -> 16345.13531 | N131: =IF(INTRO!$E$39="Endemic", IF($I131>0, IF($I131=4,"Unknown",IF($I131=99,"Stopped",$D131)), 0),"Not required") -> Unknown | O131: =IF(INTRO!$E$41="Endemic", IF($J131>1, IF($J131=4, "Unknown", IF($J131=99, "Surveillance", E131)), 0),"Not required") -> 2229 | P131: =IF(INTRO!$E$41="Endemic", IF($J131>1, IF($J131=4, "Unknown", IF($J131=99, "Surveillance", F131)), 0),"Not required") -> 4550 | Q131: =IF(INTRO!$E$41="Endemic", IF($J131>1, IF($J131=4, "Unknown", IF($J131=99, "Surveillance", ROUND(D131*INTRO!$E$51,0))), 0),"Not required") -> 3777 | R131: =IF(INTRO!$E$41="Endemic", IF($J131>1, IF($J131=4, "Unknown", IF($J131=99, "Surveillance", SUM($O131:$Q131))), 0),"Not required") -> 10556 | S131: =IF(INTRO!$E$43="Endemic", IF($K131>1, IF($K131=4, "Unknown", IF($K131=99, "Surveillance", ROUND(E131*0.75,0))), 0),"Not required") -> 1672 | T131: =IF(INTRO!$E$43="Endemic", IF($K131>1, IF($K131=4, "Unknown", IF($K131=99, "Surveillance", F131)), 0),"Not required") -> 4550 | U131: =IF(INTRO!$E$43="Endemic", IF($K131>1, IF($K131=4, "Unknown", IF($K131=99, "Surveillance", G131)), 0),"Not required") -> 8960 | V131: =IF(INTRO!$E$43="Endemic", IF($K131>1, IF($K131=4, "Unknown", IF($K131=99, "Surveillance", SUM($S131:$U131))), 0),"Not required") -> 15182 | W131: 1 | X131: 0 | Y131: 1 | Z131: 1
A132: =IF(INTRO!$E$33<>0,INTRO!$E$33, " ") -> Angola | B132: MALANJE | C132: LUQUEMBO | D132: 71078.18731 | E132: =IF(INTRO!$E$48="","",ROUND($D132*INTRO!$E$48,0)) -> 9695 | F132: =IF(INTRO!$E$49="","",ROUND($D132*INTRO!$E$49,0)) -> 19788 | G132: =IF(INTRO!$E$50="","",ROUND($D132*INTRO!$E$50,0)) -> 38965 | H132: 0 | I132: 4 | J132: 3 | K132: 3 | L132: 0 | M132: =IF(INTRO!$E$37="Endemic",IF($H132>0,IF($H132=4,"Unknown",IF($H132=99,"Stopped",$D132)),0),"Not required") -> 0 | N132: =IF(INTRO!$E$39="Endemic", IF($I132>0, IF($I132=4,"Unknown",IF($I132=99,"Stopped",$D132)), 0),"Not required") -> Unknown | O132: =IF(INTRO!$E$41="Endemic", IF($J132>1, IF($J132=4, "Unknown", IF($J132=99, "Surveillance", E132)), 0),"Not required") -> 9695 | P132: =IF(INTRO!$E$41="Endemic", IF($J132>1, IF($J132=4, "Unknown", IF($J132=99, "Surveillance", F132)), 0),"Not required") -> 19788 | Q132: =IF(INTRO!$E$41="Endemic", IF($J132>1, IF($J132=4, "Unknown", IF($J132=99, "Surveillance", ROUND(D132*INTRO!$E$51,0))), 0),"Not required") -> 16426 | R132: =IF(INTRO!$E$41="Endemic", IF($J132>1, IF($J132=4, "Unknown", IF($J132=99, "Surveillance", SUM($O132:$Q132))), 0),"Not required") -> 45909 | S132: =IF(INTRO!$E$43="Endemic", IF($K132>1, IF($K132=4, "Unknown", IF($K132=99, "Surveillance", ROUND(E132*0.75,0))), 0),"Not required") -> 7271 | T132: =IF(INTRO!$E$43="Endemic", IF($K132>1, IF($K132=4, "Unknown", IF($K132=99, "Surveillance", F132)), 0),"Not required") -> 19788 | U132: =IF(INTRO!$E$43="Endemic", IF($K132>1, IF($K132=4, "Unknown", IF($K132=99, "Surveillance", G132)), 0),"Not required") -> 38965 | V132: =IF(INTRO!$E$43="Endemic", IF($K132>1, IF($K132=4, "Unknown", IF($K132=99, "Surveillance", SUM($S132:$U132))), 0),"Not required") -> 66024 | W132: 0 | X132: 0 | Y132: 2 | Z132: 1
A133: =IF(INTRO!$E$33<>0,INTRO!$E$33, " ") -> Angola | B133: MALANJE | C133: MALANJE | D133: 656445.3992 | E133: =IF(INTRO!$E$48="","",ROUND($D133*INTRO!$E$48,0)) -> 89539 | F133: =IF(INTRO!$E$49="","",ROUND($D133*INTRO!$E$49,0)) -> 182754 | G133: =IF(INTRO!$E$50="","",ROUND($D133*INTRO!$E$50,0)) -> 359863 | H133: 0 | I133: 4 | J133: 3 | K133: 3 | L133: 0 | M133: =IF(INTRO!$E$37="Endemic",IF($H133>0,IF($H133=4,"Unknown",IF($H133=99,"Stopped",$D133)),0),"Not required") -> 0 | N133: =IF(INTRO!$E$39="Endemic", IF($I133>0, IF($I133=4,"Unknown",IF($I133=99,"Stopped",$D133)), 0),"Not required") -> Unknown | O133: =IF(INTRO!$E$41="Endemic", IF($J133>1, IF($J133=4, "Unknown", IF($J133=99, "Surveillance", E133)), 0),"Not required") -> 89539 | P133: =IF(INTRO!$E$41="Endemic", IF($J133>1, IF($J133=4, "Unknown", IF($J133=99, "Surveillance", F133)), 0),"Not required") -> 182754 | Q133: =IF(INTRO!$E$41="Endemic", IF($J133>1, IF($J133=4, "Unknown", IF($J133=99, "Surveillance", ROUND(D133*INTRO!$E$51,0))), 0),"Not required") -> 151705 | R133: =IF(INTRO!$E$41="Endemic", IF($J133>1, IF($J133=4, "Unknown", IF($J133=99, "Surveillance", SUM($O133:$Q133))), 0),"Not required") -> 423998 | S133: =IF(INTRO!$E$43="Endemic", IF($K133>1, IF($K133=4, "Unknown", IF($K133=99, "Surveillance", ROUND(E133*0.75,0))), 0),"Not required") -> 67154 | T133: =IF(INTRO!$E$43="Endemic", IF($K133>1, IF($K133=4, "Unknown", IF($K133=99, "Surveillance", F133)), 0),"Not required") -> 182754 | U133: =IF(INTRO!$E$43="Endemic", IF($K133>1, IF($K133=4, "Unknown", IF($K133=99, "Surveillance", G133)), 0),"Not required") -> 359863 | V133: =IF(INTRO!$E$43="Endemic", IF($K133>1, IF($K133=4, "Unknown", IF($K133=99, "Surveillance", SUM($S133:$U133))), 0),"Not required") -> 609771 | W133: 0 | X133: 0 | Y133: 2 | Z133: 1
A134: =IF(INTRO!$E$33<>0,INTRO!$E$33, " ") -> Angola | B134: MALANJE | C134: MARIMBA | D134: 33907.42789 | E134: =IF(INTRO!$E$48="","",ROUND($D134*INTRO!$E$48,0)) -> 4625 | F134: =IF(INTRO!$E$49="","",ROUND($D134*INTRO!$E$49,0)) -> 9440 | G134: =IF(INTRO!$E$50="","",ROUND($D134*INTRO!$E$50,0)) -> 18588 | H134: 1 | I134: 4 | J134: 3 | K134: 2 | L134: 0 | M134: =IF(INTRO!$E$37="Endemic",IF($H134>0,IF($H134=4,"Unknown",IF($H134=99,"Stopped",$D134)),0),"Not required") -> 33907.42789 | N134: =IF(INTRO!$E$39="Endemic", IF($I134>0, IF($I134=4,"Unknown",IF($I134=99,"Stopped",$D134)), 0),"Not required") -> Unknown | O134: =IF(INTRO!$E$41="Endemic", IF($J134>1, IF($J134=4, "Unknown", IF($J134=99, "Surveillance", E134)), 0),"Not required") -> 4625 | P134: =IF(INTRO!$E$41="Endemic", IF($J134>1, IF($J134=4, "Unknown", IF($J134=99, "Surveillance", F134)), 0),"Not required") -> 9440 | Q134: =IF(INTRO!$E$41="Endemic", IF($J134>1, IF($J134=4, "Unknown", IF($J134=99, "Surveillance", ROUND(D134*INTRO!$E$51,0))), 0),"Not required") -> 7836 | R134: =IF(INTRO!$E$41="Endemic", IF($J134>1, IF($J134=4, "Unknown", IF($J134=99, "Surveillance", SUM($O134:$Q134))), 0),"Not required") -> 21901 | S134: =IF(INTRO!$E$43="Endemic", IF($K134>1, IF($K134=4, "Unknown", IF($K134=99, "Surveillance", ROUND(E134*0.75,0))), 0),"Not required") -> 3469 | T134: =IF(INTRO!$E$43="Endemic", IF($K134>1, IF($K134=4, "Unknown", IF($K134=99, "Surveillance", F134)), 0),"Not required") -> 9440 | U134: =IF(INTRO!$E$43="Endemic", IF($K134>1, IF($K134=4, "Unknown", IF($K134=99, "Surveillance", G134)), 0),"Not required") -> 18588 | V134: =IF(INTRO!$E$43="Endemic", IF($K134>1, IF($K134=4, "Unknown", IF($K134=99, "Surveillance", SUM($S134:$U134))), 0),"Not required") -> 31497 | W134: 1 | X134: 0 | Y134: 2 | Z134: 1
A135: =IF(INTRO!$E$33<>0,INTRO!$E$33, " ") -> Angola | B135: MALANJE | C135: MASSANGO | D135: 42632.14618 | E135: =IF(INTRO!$E$48="","",ROUND($D135*INTRO!$E$48,0)) -> 5815 | F135: =IF(INTRO!$E$49="","",ROUND($D135*INTRO!$E$49,0)) -> 11869 | G135: =IF(INTRO!$E$50="","",ROUND($D135*INTRO!$E$50,0)) -> 23371 | H135: 0 | I135: 4 | J135: 3 | K135: 1 | L135: 0 | M135: =IF(INTRO!$E$37="Endemic",IF($H135>0,IF($H135=4,"Unknown",IF($H135=99,"Stopped",$D135)),0),"Not required") -> 0 | N135: =IF(INTRO!$E$39="Endemic", IF($I135>0, IF($I135=4,"Unknown",IF($I135=99,"Stopped",$D135)), 0),"Not required") -> Unknown | O135: =IF(INTRO!$E$41="Endemic", IF($J135>1, IF($J135=4, "Unknown", IF($J135=99, "Surveillance", E135)), 0),"Not required") -> 5815 | P135: =IF(INTRO!$E$41="Endemic", IF($J135>1, IF($J135=4, "Unknown", IF($J135=99, "Surveillance", F135)), 0),"Not required") -> 11869 | Q135: =IF(INTRO!$E$41="Endemic", IF($J135>1, IF($J135=4, "Unknown", IF($J135=99, "Surveillance", ROUND(D135*INTRO!$E$51,0))), 0),"Not required") -> 9852 | R135: =IF(INTRO!$E$41="Endemic", IF($J135>1, IF($J135=4, "Unknown", IF($J135=99, "Surveillance", SUM($O135:$Q135))), 0),"Not required") -> 27536 | S135: =IF(INTRO!$E$43="Endemic", IF($K135>1, IF($K135=4, "Unknown", IF($K135=99, "Surveillance", ROUND(E135*0.75,0))), 0),"Not required") -> 0 | T135: =IF(INTRO!$E$43="Endemic", IF($K135>1, IF($K135=4, "Unknown", IF($K135=99, "Surveillance", F135)), 0),"Not required") -> 0 | U135: =IF(INTRO!$E$43="Endemic", IF($K135>1, IF($K135=4, "Unknown", IF($K135=99, "Surveillance", G135)), 0),"Not required") -> 0 | V135: =IF(INTRO!$E$43="Endemic", IF($K135>1, IF($K135=4, "Unknown", IF($K135=99, "Surveillance", SUM($S135:$U135))), 0),"Not required") -> 0 | W135: 0 | X135: 0 | Y135: 2 | Z135: 0
A136: =IF(INTRO!$E$33<>0,INTRO!$E$33, " ") -> Angola | B136: MALANJE | C136: QUELA | D136: 27131.8488 | E136: =IF(INTRO!$E$48="","",ROUND($D136*INTRO!$E$48,0)) -> 3701 | F136: =IF(INTRO!$E$49="","",ROUND($D136*INTRO!$E$49,0)) -> 7554 | G136: =IF(INTRO!$E$50="","",ROUND($D136*INTRO!$E$50,0)) -> 14874 | H136: 1 | I136: 4 | J136: 3 | K136: 2 | L136: 0 | M136: =IF(INTRO!$E$37="Endemic",IF($H136>0,IF($H136=4,"Unknown",IF($H136=99,"Stopped",$D136)),0),"Not required") -> 27131.8488 | N136: =IF(INTRO!$E$39="Endemic", IF($I136>0, IF($I136=4,"Unknown",IF($I136=99,"Stopped",$D136)), 0),"Not required") -> Unknown | O136: =IF(INTRO!$E$41="Endemic", IF($J136>1, IF($J136=4, "Unknown", IF($J136=99, "Surveillance", E136)), 0),"Not required") -> 3701 | P136: =IF(INTRO!$E$41="Endemic", IF($J136>1, IF($J136=4, "Unknown", IF($J136=99, "Surveillance", F136)), 0),"Not required") -> 7554 | Q136: =IF(INTRO!$E$41="Endemic", IF($J136>1, IF($J136=4, "Unknown", IF($J136=99, "Surveillance", ROUND(D136*INTRO!$E$51,0))), 0),"Not required") -> 6270 | R136: =IF(INTRO!$E$41="Endemic", IF($J136>1, IF($J136=4, "Unknown", IF($J136=99, "Surveillance", SUM($O136:$Q136))), 0),"Not required") -> 17525 | S136: =IF(INTRO!$E$43="Endemic", IF($K136>1, IF($K136=4, "Unknown", IF($K136=99, "Surveillance", ROUND(E136*0.75,0))), 0),"Not required") -> 2776 | T136: =IF(INTRO!$E$43="Endemic", IF($K136>1, IF($K136=4, "Unknown", IF($K136=99, "Surveillance", F136)), 0),"Not required") -> 7554 | U136: =IF(INTRO!$E$43="Endemic", IF($K136>1, IF($K136=4, "Unknown", IF($K136=99, "Surveillance", G136)), 0),"Not required") -> 14874 | V136: =IF(INTRO!$E$43="Endemic", IF($K136>1, IF($K136=4, "Unknown", IF($K136=99, "Surveillance", SUM($S136:$U136))), 0),"Not required") -> 25204 | W136: 1 | X136: 0 | Y136: 2 | Z136: 1
A137: =IF(INTRO!$E$33<>0,INTRO!$E$33, " ") -> Angola | B137: MALANJE | C137: QUIRIMA | D137: 27371.27228 | E137: =IF(INTRO!$E$48="","",ROUND($D137*INTRO!$E$48,0)) -> 3733 | F137: =IF(INTRO!$E$49="","",ROUND($D137*INTRO!$E$49,0)) -> 7620 | G137: =IF(INTRO!$E$50="","",ROUND($D137*INTRO!$E$50,0)) -> 15005 | H137: 0 | I137: 4 | J137: 3 | K137: 2 | L137: 0 | M137: =IF(INTRO!$E$37="Endemic",IF($H137>0,IF($H137=4,"Unknown",IF($H137=99,"Stopped",$D137)),0),"Not required") -> 0 | N137: =IF(INTRO!$E$39="Endemic", IF($I137>0, IF($I137=4,"Unknown",IF($I137=99,"Stopped",$D137)), 0),"Not required") -> Unknown | O137: =IF(INTRO!$E$41="Endemic", IF($J137>1, IF($J137=4, "Unknown", IF($J137=99, "Surveillance", E137)), 0),"Not required") -> 3733 | P137: =IF(INTRO!$E$41="Endemic", IF($J137>1, IF($J137=4, "Unknown", IF($J137=99, "Surveillance", F137)), 0),"Not required") -> 7620 | Q137: =IF(INTRO!$E$41="Endemic", IF($J137>1, IF($J137=4, "Unknown", IF($J137=99, "Surveillance", ROUND(D137*INTRO!$E$51,0))), 0),"Not required") -> 6326 | R137: =IF(INTRO!$E$41="Endemic", IF($J137>1, IF($J137=4, "Unknown", IF($J137=99, "Surveillance", SUM($O137:$Q137))), 0),"Not required") -> 17679 | S137: =IF(INTRO!$E$43="Endemic", IF($K137>1, IF($K137=4, "Unknown", IF($K137=99, "Surveillance", ROUND(E137*0.75,0))), 0),"Not required") -> 2800 | T137: =IF(INTRO!$E$43="Endemic", IF($K137>1, IF($K137=4, "Unknown", IF($K137=99, "Surveillance", F137)), 0),"Not required") -> 7620 | U137: =IF(INTRO!$E$43="Endemic", IF($K137>1, IF($K137=4, "Unknown", IF($K137=99, "Surveillance", G137)), 0),"Not required") -> 15005 | V137: =IF(INTRO!$E$43="Endemic", IF($K137>1, IF($K137=4, "Unknown", IF($K137=99, "Surveillance", SUM($S137:$U137))), 0),"Not required") -> 25425 | W137: 0 | X137: 0 | Y137: 2 | Z137: 1
A138: =IF(INTRO!$E$33<>0,INTRO!$E$33, " ") -> Angola | B138: MOXICO | C138: ALTO ZAMBEZE | D138: 144275.3252 | E138: =IF(INTRO!$E$48="","",ROUND($D138*INTRO!$E$48,0)) -> 19679 | F138: =IF(INTRO!$E$49="","",ROUND($D138*INTRO!$E$49,0)) -> 40166 | G138: =IF(INTRO!$E$50="","",ROUND($D138*INTRO!$E$50,0)) -> 79092 | H138: 0 | I138: 4 | J138: 2 | K138: 3 | L138: 0 | M138: =IF(INTRO!$E$37="Endemic",IF($H138>0,IF($H138=4,"Unknown",IF($H138=99,"Stopped",$D138)),0),"Not required") -> 0 | N138: =IF(INTRO!$E$39="Endemic", IF($I138>0, IF($I138=4,"Unknown",IF($I138=99,"Stopped",$D138)), 0),"Not required") -> Unknown | O138: =IF(INTRO!$E$41="Endemic", IF($J138>1, IF($J138=4, "Unknown", IF($J138=99, "Surveillance", E138)), 0),"Not required") -> 19679 | P138: =IF(INTRO!$E$41="Endemic", IF($J138>1, IF($J138=4, "Unknown", IF($J138=99, "Surveillance", F138)), 0),"Not required") -> 40166 | Q138: =IF(INTRO!$E$41="Endemic", IF($J138>1, IF($J138=4, "Unknown", IF($J138=99, "Surveillance", ROUND(D138*INTRO!$E$51,0))), 0),"Not required") -> 33342 | R138: =IF(INTRO!$E$41="Endemic", IF($J138>1, IF($J138=4, "Unknown", IF($J138=99, "Surveillance", SUM($O138:$Q138))), 0),"Not required") -> 93187 | S138: =IF(INTRO!$E$43="Endemic", IF($K138>1, IF($K138=4, "Unknown", IF($K138=99, "Surveillance", ROUND(E138*0.75,0))), 0),"Not required") -> 14759 | T138: =IF(INTRO!$E$43="Endemic", IF($K138>1, IF($K138=4, "Unknown", IF($K138=99, "Surveillance", F138)), 0),"Not required") -> 40166 | U138: =IF(INTRO!$E$43="Endemic", IF($K138>1, IF($K138=4, "Unknown", IF($K138=99, "Surveillance", G138)), 0),"Not required") -> 79092 | V138: =IF(INTRO!$E$43="Endemic", IF($K138>1, IF($K138=4, "Unknown", IF($K138=99, "Surveillance", SUM($S138:$U138))), 0),"Not required") -> 134017 | W138: 0 | X138: 0 | Y138: 1 | Z138: 1
A139: =IF(INTRO!$E$33<>0,INTRO!$E$33, " ") -> Angola | B139: MOXICO | C139: BUNDAS (LUMBALA NGUIMBO) | D139: 90410.31515 | E139: =IF(INTRO!$E$48="","",ROUND($D139*INTRO!$E$48,0)) -> 12332 | F139: =IF(INTRO!$E$49="","",ROUND($D139*INTRO!$E$49,0)) -> 25170 | G139: =IF(INTRO!$E$50="","",ROUND($D139*INTRO!$E$50,0)) -> 49563 | H139: 0 | I139: 4 | J139: 2 | K139: 2 | L139: 0 | M139: =IF(INTRO!$E$37="Endemic",IF($H139>0,IF($H139=4,"Unknown",IF($H139=99,"Stopped",$D139)),0),"Not required") -> 0 | N139: =IF(INTRO!$E$39="Endemic", IF($I139>0, IF($I139=4,"Unknown",IF($I139=99,"Stopped",$D139)), 0),"Not required") -> Unknown | O139: =IF(INTRO!$E$41="Endemic", IF($J139>1, IF($J139=4, "Unknown", IF($J139=99, "Surveillance", E139)), 0),"Not required") -> 12332 | P139: =IF(INTRO!$E$41="Endemic", IF($J139>1, IF($J139=4, "Unknown", IF($J139=99, "Surveillance", F139)), 0),"Not required") -> 25170 | Q139: =IF(INTRO!$E$41="Endemic", IF($J139>1, IF($J139=4, "Unknown", IF($J139=99, "Surveillance", ROUND(D139*INTRO!$E$51,0))), 0),"Not required") -> 20894 | R139: =IF(INTRO!$E$41="Endemic", IF($J139>1, IF($J139=4, "Unknown", IF($J139=99, "Surveillance", SUM($O139:$Q139))), 0),"Not required") -> 58396 | S139: =IF(INTRO!$E$43="Endemic", IF($K139>1, IF($K139=4, "Unknown", IF($K139=99, "Surveillance", ROUND(E139*0.75,0))), 0),"Not required") -> 9249 | T139: =IF(INTRO!$E$43="Endemic", IF($K139>1, IF($K139=4, "Unknown", IF($K139=99, "Surveillance", F139)), 0),"Not required") -> 25170 | U139: =IF(INTRO!$E$43="Endemic", IF($K139>1, IF($K139=4, "Unknown", IF($K139=99, "Surveillance", G139)), 0),"Not required") -> 49563 | V139: =IF(INTRO!$E$43="Endemic", IF($K139>1, IF($K139=4, "Unknown", IF($K139=99, "Surveillance", SUM($S139:$U139))), 0),"Not required") -> 83982 | W139: 0 | X139: 0 | Y139: 1 | Z139: 1
A140: =IF(INTRO!$E$33<>0,INTRO!$E$33, " ") -> Angola | B140: MOXICO | C140: CAMANONGUE | D140: 44449.44425 | E140: =IF(INTRO!$E$48="","",ROUND($D140*INTRO!$E$48,0)) -> 6063 | F140: =IF(INTRO!$E$49="","",ROUND($D140*INTRO!$E$49,0)) -> 12375 | G140: =IF(INTRO!$E$50="","",ROUND($D140*INTRO!$E$50,0)) -> 24367 | H140: 0 | I140: 1 | J140: 2 | K140: 0 | L140: 0 | M140: =IF(INTRO!$E$37="Endemic",IF($H140>0,IF($H140=4,"Unknown",IF($H140=99,"Stopped",$D140)),0),"Not required") -> 0 | N140: =IF(INTRO!$E$39="Endemic", IF($I140>0, IF($I140=4,"Unknown",IF($I140=99,"Stopped",$D140)), 0),"Not required") -> 44449.44425 | O140: =IF(INTRO!$E$41="Endemic", IF($J140>1, IF($J140=4, "Unknown", IF($J140=99, "Surveillance", E140)), 0),"Not required") -> 6063 | P140: =IF(INTRO!$E$41="Endemic", IF($J140>1, IF($J140=4, "Unknown", IF($J140=99, "Surveillance", F140)), 0),"Not required") -> 12375 | Q140: =IF(INTRO!$E$41="Endemic", IF($J140>1, IF($J140=4, "Unknown", IF($J140=99, "Surveillance", ROUND(D140*INTRO!$E$51,0))), 0),"Not required") -> 10272 | R140: =IF(INTRO!$E$41="Endemic", IF($J140>1, IF($J140=4, "Unknown", IF($J140=99, "Surveillance", SUM($O140:$Q140))), 0),"Not required") -> 28710 | S140: =IF(INTRO!$E$43="Endemic", IF($K140>1, IF($K140=4, "Unknown", IF($K140=99, "Surveillance", ROUND(E140*0.75,0))), 0),"Not required") -> 0 | T140: =IF(INTRO!$E$43="Endemic", IF($K140>1, IF($K140=4, "Unknown", IF($K140=99, "Surveillance", F140)), 0),"Not required") -> 0 | U140: =IF(INTRO!$E$43="Endemic", IF($K140>1, IF($K140=4, "Unknown", IF($K140=99, "Surveillance", G140)), 0),"Not required") -> 0 | V140: =IF(INTRO!$E$43="Endemic", IF($K140>1, IF($K140=4, "Unknown", IF($K140=99, "Surveillance", SUM($S140:$U140))), 0),"Not required") -> 0 | W140: 0 | X140: 1 | Y140: 1 | Z140: 0
A141: =IF(INTRO!$E$33<>0,INTRO!$E$33, " ") -> Angola | B141: MOXICO | C141: CAMEIA (LUMEJE) | D141: 38346.78225 | E141: =IF(INTRO!$E$48="","",ROUND($D141*INTRO!$E$48,0)) -> 5231 | F141: =IF(INTRO!$E$49="","",ROUND($D141*INTRO!$E$49,0)) -> 10676 | G141: =IF(INTRO!$E$50="","",ROUND($D141*INTRO!$E$50,0)) -> 21022 | H141: 0 | I141: 4 | J141: 1 | K141: 1 | L141: 0 | M141: =IF(INTRO!$E$37="Endemic",IF($H141>0,IF($H141=4,"Unknown",IF($H141=99,"Stopped",$D141)),0),"Not required") -> 0 | N141: =IF(INTRO!$E$39="Endemic", IF($I141>0, IF($I141=4,"Unknown",IF($I141=99,"Stopped",$D141)), 0),"Not required") -> Unknown | O141: =IF(INTRO!$E$41="Endemic", IF($J141>1, IF($J141=4, "Unknown", IF($J141=99, "Surveillance", E141)), 0),"Not required") -> 0 | P141: =IF(INTRO!$E$41="Endemic", IF($J141>1, IF($J141=4, "Unknown", IF($J141=99, "Surveillance", F141)), 0),"Not required") -> 0 | Q141: =IF(INTRO!$E$41="Endemic", IF($J141>1, IF($J141=4, "Unknown", IF($J141=99, "Surveillance", ROUND(D141*INTRO!$E$51,0))), 0),"Not required") -> 0 | R141: =IF(INTRO!$E$41="Endemic", IF($J141>1, IF($J141=4, "Unknown", IF($J141=99, "Surveillance", SUM($O141:$Q141))), 0),"Not required") -> 0 | S141: =IF(INTRO!$E$43="Endemic", IF($K141>1, IF($K141=4, "Unknown", IF($K141=99, "Surveillance", ROUND(E141*0.75,0))), 0),"Not required") -> 0 | T141: =IF(INTRO!$E$43="Endemic", IF($K141>1, IF($K141=4, "Unknown", IF($K141=99, "Surveillance", F141)), 0),"Not required") -> 0 | U141: =IF(INTRO!$E$43="Endemic", IF($K141>1, IF($K141=4, "Unknown", IF($K141=99, "Surveillance", G141)), 0),"Not required") -> 0 | V141: =IF(INTRO!$E$43="Endemic", IF($K141>1, IF($K141=4, "Unknown", IF($K141=99, "Surveillance", SUM($S141:$U141))), 0),"Not required") -> 0 | W141: 0 | X141: 0 | Y141: 0 | Z141: 0
A142: =IF(INTRO!$E$33<>0,INTRO!$E$33, " ") -> Angola | B142: MOXICO | C142: LEUA | D142: 42225.02079 | E142: =IF(INTRO!$E$48="","",ROUND($D142*INTRO!$E$48,0)) -> 5759 | F142: =IF(INTRO!$E$49="","",ROUND($D142*INTRO!$E$49,0)) -> 11755 | G142: =IF(INTRO!$E$50="","",ROUND($D142*INTRO!$E$50,0)) -> 23148 | H142: 0 | I142: 1 | J142: 1 | K142: 0 | L142: 0 | M142: =IF(INTRO!$E$37="Endemic",IF($H142>0,IF($H142=4,"Unknown",IF($H142=99,"Stopped",$D142)),0),"Not required") -> 0 | N142: =IF(INTRO!$E$39="Endemic", IF($I142>0, IF($I142=4,"Unknown",IF($I142=99,"Stopped",$D142)), 0),"Not required") -> 42225.02079 | O142: =IF(INTRO!$E$41="Endemic", IF($J142>1, IF($J142=4, "Unknown", IF($J142=99, "Surveillance", E142)), 0),"Not required") -> 0 | P142: =IF(INTRO!$E$41="Endemic", IF($J142>1, IF($J142=4, "Unknown", IF($J142=99, "Surveillance", F142)), 0),"Not required") -> 0 | Q142: =IF(INTRO!$E$41="Endemic", IF($J142>1, IF($J142=4, "Unknown", IF($J142=99, "Surveillance", ROUND(D142*INTRO!$E$51,0))), 0),"Not required") -> 0 | R142: =IF(INTRO!$E$41="Endemic", IF($J142>1, IF($J142=4, "Unknown", IF($J142=99, "Surveillance", SUM($O142:$Q142))), 0),"Not required") -> 0 | S142: =IF(INTRO!$E$43="Endemic", IF($K142>1, IF($K142=4, "Unknown", IF($K142=99, "Surveillance", ROUND(E142*0.75,0))), 0),"Not required") -> 0 | T142: =IF(INTRO!$E$43="Endemic", IF($K142>1, IF($K142=4, "Unknown", IF($K142=99, "Surveillance", F142)), 0),"Not required") -> 0 | U142: =IF(INTRO!$E$43="Endemic", IF($K142>1, IF($K142=4, "Unknown", IF($K142=99, "Surveillance", G142)), 0),"Not required") -> 0 | V142: =IF(INTRO!$E$43="Endemic", IF($K142>1, IF($K142=4, "Unknown", IF($K142=99, "Surveillance", SUM($S142:$U142))), 0),"Not required") -> 0 | W142: 0 | X142: 1 | Y142: 0 | Z142: 0
A143: =IF(INTRO!$E$33<>0,INTRO!$E$33, " ") -> Angola | B143: MOXICO | C143: LUACANO | D143: 27001.0624 | E143: =IF(INTRO!$E$48="","",ROUND($D143*INTRO!$E$48,0)) -> 3683 | F143: =IF(INTRO!$E$49="","",ROUND($D143*INTRO!$E$49,0)) -> 7517 | G143: =IF(INTRO!$E$50="","",ROUND($D143*INTRO!$E$50,0)) -> 14802 | H143: 0 | I143: 1 | J143: 2 | K143: 1 | L143: 0 | M143: =IF(INTRO!$E$37="Endemic",IF($H143>0,IF($H143=4,"Unknown",IF($H143=99,"Stopped",$D143)),0),"Not required") -> 0 | N143: =IF(INTRO!$E$39="Endemic", IF($I143>0, IF($I143=4,"Unknown",IF($I143=99,"Stopped",$D143)), 0),"Not required") -> 27001.0624 | O143: =IF(INTRO!$E$41="Endemic", IF($J143>1, IF($J143=4, "Unknown", IF($J143=99, "Surveillance", E143)), 0),"Not required") -> 3683 | P143: =IF(INTRO!$E$41="Endemic", IF($J143>1, IF($J143=4, "Unknown", IF($J143=99, "Surveillance", F143)), 0),"Not required") -> 7517 | Q143: =IF(INTRO!$E$41="Endemic", IF($J143>1, IF($J143=4, "Unknown", IF($J143=99, "Surveillance", ROUND(D143*INTRO!$E$51,0))), 0),"Not required") -> 6240 | R143: =IF(INTRO!$E$41="Endemic", IF($J143>1, IF($J143=4, "Unknown", IF($J143=99, "Surveillance", SUM($O143:$Q143))), 0),"Not required") -> 17440 | S143: =IF(INTRO!$E$43="Endemic", IF($K143>1, IF($K143=4, "Unknown", IF($K143=99, "Surveillance", ROUND(E143*0.75,0))), 0),"Not required") -> 0 | T143: =IF(INTRO!$E$43="Endemic", IF($K143>1, IF($K143=4, "Unknown", IF($K143=99, "Surveillance", F143)), 0),"Not required") -> 0 | U143: =IF(INTRO!$E$43="Endemic", IF($K143>1, IF($K143=4, "Unknown", IF($K143=99, "Surveillance", G143)), 0),"Not required") -> 0 | V143: =IF(INTRO!$E$43="Endemic", IF($K143>1, IF($K143=4, "Unknown", IF($K143=99, "Surveillance", SUM($S143:$U143))), 0),"Not required") -> 0 | W143: 0 | X143: 1 | Y143: 1 | Z143: 0
A144: =IF(INTRO!$E$33<>0,INTRO!$E$33, " ") -> Angola | B144: MOXICO | C144: LUAU | D144: 116373.5242 | E144: =IF(INTRO!$E$48="","",ROUND($D144*INTRO!$E$48,0)) -> 15873 | F144: =IF(INTRO!$E$49="","",ROUND($D144*INTRO!$E$49,0)) -> 32398 | G144: =IF(INTRO!$E$50="","",ROUND($D144*INTRO!$E$50,0)) -> 63796 | H144: 0 | I144: 4 | J144: 1 | K144: 1 | L144: 0 | M144: =IF(INTRO!$E$37="Endemic",IF($H144>0,IF($H144=4,"Unknown",IF($H144=99,"Stopped",$D144)),0),"Not required") -> 0 | N144: =IF(INTRO!$E$39="Endemic", IF($I144>0, IF($I144=4,"Unknown",IF($I144=99,"Stopped",$D144)), 0),"Not required") -> Unknown | O144: =IF(INTRO!$E$41="Endemic", IF($J144>1, IF($J144=4, "Unknown", IF($J144=99, "Surveillance", E144)), 0),"Not required") -> 0 | P144: =IF(INTRO!$E$41="Endemic", IF($J144>1, IF($J144=4, "Unknown", IF($J144=99, "Surveillance", F144)), 0),"Not required") -> 0 | Q144: =IF(INTRO!$E$41="Endemic", IF($J144>1, IF($J144=4, "Unknown", IF($J144=99, "Surveillance", ROUND(D144*INTRO!$E$51,0))), 0),"Not required") -> 0 | R144: =IF(INTRO!$E$41="Endemic", IF($J144>1, IF($J144=4, "Unknown", IF($J144=99, "Surveillance", SUM($O144:$Q144))), 0),"Not required") -> 0 | S144: =IF(INTRO!$E$43="Endemic", IF($K144>1, IF($K144=4, "Unknown", IF($K144=99, "Surveillance", ROUND(E144*0.75,0))), 0),"Not required") -> 0 | T144: =IF(INTRO!$E$43="Endemic", IF($K144>1, IF($K144=4, "Unknown", IF($K144=99, "Surveillance", F144)), 0),"Not required") -> 0 | U144: =IF(INTRO!$E$43="Endemic", IF($K144>1, IF($K144=4, "Unknown", IF($K144=99, "Surveillance", G144)), 0),"Not required") -> 0 | V144: =IF(INTRO!$E$43="Endemic", IF($K144>1, IF($K144=4, "Unknown", IF($K144=99, "Surveillance", SUM($S144:$U144))), 0),"Not required") -> 0 | W144: 0 | X144: 0 | Y144: 0 | Z144: 0
A145: =IF(INTRO!$E$33<>0,INTRO!$E$33, " ") -> Angola | B145: MOXICO | C145: LUCHAZES | D145: 18799.4897 | E145: =IF(INTRO!$E$48="","",ROUND($D145*INTRO!$E$48,0)) -> 2564 | F145: =IF(INTRO!$E$49="","",ROUND($D145*INTRO!$E$49,0)) -> 5234 | G145: =IF(INTRO!$E$50="","",ROUND($D145*INTRO!$E$50,0)) -> 10306 | H145: 0 | I145: 4 | J145: 2 | K145: 1 | L145: 0 | M145: =IF(INTRO!$E$37="Endemic",IF($H145>0,IF($H145=4,"Unknown",IF($H145=99,"Stopped",$D145)),0),"Not required") -> 0 | N145: =IF(INTRO!$E$39="Endemic", IF($I145>0, IF($I145=4,"Unknown",IF($I145=99,"Stopped",$D145)), 0),"Not required") -> Unknown | O145: =IF(INTRO!$E$41="Endemic", IF($J145>1, IF($J145=4, "Unknown", IF($J145=99, "Surveillance", E145)), 0),"Not required") -> 2564 | P145: =IF(INTRO!$E$41="Endemic", IF($J145>1, IF($J145=4, "Unknown", IF($J145=99, "Surveillance", F145)), 0),"Not required") -> 5234 | Q145: =IF(INTRO!$E$41="Endemic", IF($J145>1, IF($J145=4, "Unknown", IF($J145=99, "Surveillance", ROUND(D145*INTRO!$E$51,0))), 0),"Not required") -> 4345 | R145: =IF(INTRO!$E$41="Endemic", IF($J145>1, IF($J145=4, "Unknown", IF($J145=99, "Surveillance", SUM($O145:$Q145))), 0),"Not required") -> 12143 | S145: =IF(INTRO!$E$43="Endemic", IF($K145>1, IF($K145=4, "Unknown", IF($K145=99, "Surveillance", ROUND(E145*0.75,0))), 0),"Not required") -> 0 | T145: =IF(INTRO!$E$43="Endemic", IF($K145>1, IF($K145=4, "Unknown", IF($K145=99, "Surveillance", F145)), 0),"Not required") -> 0 | U145: =IF(INTRO!$E$43="Endemic", IF($K145>1, IF($K145=4, "Unknown", IF($K145=99, "Surveillance", G145)), 0),"Not required") -> 0 | V145: =IF(INTRO!$E$43="Endemic", IF($K145>1, IF($K145=4, "Unknown", IF($K145=99, "Surveillance", SUM($S145:$U145))), 0),"Not required") -> 0 | W145: 0 | X145: 0 | Y145: 1 | Z145: 0
A146: =IF(INTRO!$E$33<>0,INTRO!$E$33, " ") -> Angola | B146: MOXICO | C146: MOXICO/LUENA | D146: 464974.1155 | E146: =IF(INTRO!$E$48="","",ROUND($D146*INTRO!$E$48,0)) -> 63422 | F146: =IF(INTRO!$E$49="","",ROUND($D146*INTRO!$E$49,0)) -> 129449 | G146: =IF(INTRO!$E$50="","",ROUND($D146*INTRO!$E$50,0)) -> 254899 | H146: 0 | I146: 1 | J146: 2 | K146: 1 | L146: 0 | M146: =IF(INTRO!$E$37="Endemic",IF($H146>0,IF($H146=4,"Unknown",IF($H146=99,"Stopped",$D146)),0),"Not required") -> 0 | N146: =IF(INTRO!$E$39="Endemic", IF($I146>0, IF($I146=4,"Unknown",IF($I146=99,"Stopped",$D146)), 0),"Not required") -> 464974.1155 | O146: =IF(INTRO!$E$41="Endemic", IF($J146>1, IF($J146=4, "Unknown", IF($J146=99, "Surveillance", E146)), 0),"Not required") -> 63422 | P146: =IF(INTRO!$E$41="Endemic", IF($J146>1, IF($J146=4, "Unknown", IF($J146=99, "Surveillance", F146)), 0),"Not required") -> 129449 | Q146: =IF(INTRO!$E$41="Endemic", IF($J146>1, IF($J146=4, "Unknown", IF($J146=99, "Surveillance", ROUND(D146*INTRO!$E$51,0))), 0),"Not required") -> 107456 | R146: =IF(INTRO!$E$41="Endemic", IF($J146>1, IF($J146=4, "Unknown", IF($J146=99, "Surveillance", SUM($O146:$Q146))), 0),"Not required") -> 300327 | S146: =IF(INTRO!$E$43="Endemic", IF($K146>1, IF($K146=4, "Unknown", IF($K146=99, "Surveillance", ROUND(E146*0.75,0))), 0),"Not required") -> 0 | T146: =IF(INTRO!$E$43="Endemic", IF($K146>1, IF($K146=4, "Unknown", IF($K146=99, "Surveillance", F146)), 0),"Not required") -> 0 | U146: =IF(INTRO!$E$43="Endemic", IF($K146>1, IF($K146=4, "Unknown", IF($K146=99, "Surveillance", G146)), 0),"Not required") -> 0 | V146: =IF(INTRO!$E$43="Endemic", IF($K146>1, IF($K146=4, "Unknown", IF($K146=99, "Surveillance", SUM($S146:$U146))), 0),"Not required") -> 0 | W146: 0 | X146: 1 | Y146: 1 | Z146: 0
A147: =IF(INTRO!$E$33<>0,INTRO!$E$33, " ") -> Angola | B147: NAMIBE | C147: BIBALA | D147: 86443.47938 | E147: =IF(INTRO!$E$48="","",ROUND($D147*INTRO!$E$48,0)) -> 11791 | F147: =IF(INTRO!$E$49="","",ROUND($D147*INTRO!$E$49,0)) -> 24066 | G147: =IF(INTRO!$E$50="","",ROUND($D147*INTRO!$E$50,0)) -> 47388 | H147: 0 | I147: 4 | J147: 1 | K147: 3 | L147: 0 | M147: =IF(INTRO!$E$37="Endemic",IF($H147>0,IF($H147=4,"Unknown",IF($H147=99,"Stopped",$D147)),0),"Not required") -> 0 | N147: =IF(INTRO!$E$39="Endemic", IF($I147>0, IF($I147=4,"Unknown",IF($I147=99,"Stopped",$D147)), 0),"Not required") -> Unknown | O147: =IF(INTRO!$E$41="Endemic", IF($J147>1, IF($J147=4, "Unknown", IF($J147=99, "Surveillance", E147)), 0),"Not required") -> 0 | P147: =IF(INTRO!$E$41="Endemic", IF($J147>1, IF($J147=4, "Unknown", IF($J147=99, "Surveillance", F147)), 0),"Not required") -> 0 | Q147: =IF(INTRO!$E$41="Endemic", IF($J147>1, IF($J147=4, "Unknown", IF($J147=99, "Surveillance", ROUND(D147*INTRO!$E$51,0))), 0),"Not required") -> 0 | R147: =IF(INTRO!$E$41="Endemic", IF($J147>1, IF($J147=4, "Unknown", IF($J147=99, "Surveillance", SUM($O147:$Q147))), 0),"Not required") -> 0 | S147: =IF(INTRO!$E$43="Endemic", IF($K147>1, IF($K147=4, "Unknown", IF($K147=99, "Surveillance", ROUND(E147*0.75,0))), 0),"Not required") -> 8843 | T147: =IF(INTRO!$E$43="Endemic", IF($K147>1, IF($K147=4, "Unknown", IF($K147=99, "Surveillance", F147)), 0),"Not required") -> 24066 | U147: =IF(INTRO!$E$43="Endemic", IF($K147>1, IF($K147=4, "Unknown", IF($K147=99, "Surveillance", G147)), 0),"Not required") -> 47388 | V147: =IF(INTRO!$E$43="Endemic", IF($K147>1, IF($K147=4, "Unknown", IF($K147=99, "Surveillance", SUM($S147:$U147))), 0),"Not required") -> 80297 | W147: 0 | X147: 0 | Y147: 0 | Z147: 1
A148: =IF(INTRO!$E$33<>0,INTRO!$E$33, " ") -> Angola | B148: NAMIBE | C148: CAMUCUIO | D148: 67474.17832 | E148: =IF(INTRO!$E$48="","",ROUND($D148*INTRO!$E$48,0)) -> 9203 | F148: =IF(INTRO!$E$49="","",ROUND($D148*INTRO!$E$49,0)) -> 18785 | G148: =IF(INTRO!$E$50="","",ROUND($D148*INTRO!$E$50,0)) -> 36989 | H148: 0 | I148: 4 | J148: 1 | K148: 3 | L148: 0 | M148: =IF(INTRO!$E$37="Endemic",IF($H148>0,IF($H148=4,"Unknown",IF($H148=99,"Stopped",$D148)),0),"Not required") -> 0 | N148: =IF(INTRO!$E$39="Endemic", IF($I148>0, IF($I148=4,"Unknown",IF($I148=99,"Stopped",$D148)), 0),"Not required") -> Unknown | O148: =IF(INTRO!$E$41="Endemic", IF($J148>1, IF($J148=4, "Unknown", IF($J148=99, "Surveillance", E148)), 0),"Not required") -> 0 | P148: =IF(INTRO!$E$41="Endemic", IF($J148>1, IF($J148=4, "Unknown", IF($J148=99, "Surveillance", F148)), 0),"Not required") -> 0 | Q148: =IF(INTRO!$E$41="Endemic", IF($J148>1, IF($J148=4, "Unknown", IF($J148=99, "Surveillance", ROUND(D148*INTRO!$E$51,0))), 0),"Not required") -> 0 | R148: =IF(INTRO!$E$41="Endemic", IF($J148>1, IF($J148=4, "Unknown", IF($J148=99, "Surveillance", SUM($O148:$Q148))), 0),"Not required") -> 0 | S148: =IF(INTRO!$E$43="Endemic", IF($K148>1, IF($K148=4, "Unknown", IF($K148=99, "Surveillance", ROUND(E148*0.75,0))), 0),"Not required") -> 6902 | T148: =IF(INTRO!$E$43="Endemic", IF($K148>1, IF($K148=4, "Unknown", IF($K148=99, "Surveillance", F148)), 0),"Not required") -> 18785 | U148: =IF(INTRO!$E$43="Endemic", IF($K148>1, IF($K148=4, "Unknown", IF($K148=99, "Surveillance", G148)), 0),"Not required") -> 36989 | V148: =IF(INTRO!$E$43="Endemic", IF($K148>1, IF($K148=4, "Unknown", IF($K148=99, "Surveillance", SUM($S148:$U148))), 0),"Not required") -> 62676 | W148: 0 | X148: 0 | Y148: 0 | Z148: 1
A149: =IF(INTRO!$E$33<>0,INTRO!$E$33, " ") -> Angola | B149: NAMIBE | C149: MOÇAMEDES | D149: 392032.222 | E149: =IF(INTRO!$E$48="","",ROUND($D149*INTRO!$E$48,0)) -> 53473 | F149: =IF(INTRO!$E$49="","",ROUND($D149*INTRO!$E$49,0)) -> 109142 | G149: =IF(INTRO!$E$50="","",ROUND($D149*INTRO!$E$50,0)) -> 214912 | H149: 0 | I149: 4 | J149: 0 | K149: 2 | L149: 0 | M149: =IF(INTRO!$E$37="Endemic",IF($H149>0,IF($H149=4,"Unknown",IF($H149=99,"Stopped",$D149)),0),"Not required") -> 0 | N149: =IF(INTRO!$E$39="Endemic", IF($I149>0, IF($I149=4,"Unknown",IF($I149=99,"Stopped",$D149)), 0),"Not required") -> Unknown | O149: =IF(INTRO!$E$41="Endemic", IF($J149>1, IF($J149=4, "Unknown", IF($J149=99, "Surveillance", E149)), 0),"Not required") -> 0 | P149: =IF(INTRO!$E$41="Endemic", IF($J149>1, IF($J149=4, "Unknown", IF($J149=99, "Surveillance", F149)), 0),"Not required") -> 0 | Q149: =IF(INTRO!$E$41="Endemic", IF($J149>1, IF($J149=4, "Unknown", IF($J149=99, "Surveillance", ROUND(D149*INTRO!$E$51,0))), 0),"Not required") -> 0 | R149: =IF(INTRO!$E$41="Endemic", IF($J149>1, IF($J149=4, "Unknown", IF($J149=99, "Surveillance", SUM($O149:$Q149))), 0),"Not required") -> 0 | S149: =IF(INTRO!$E$43="Endemic", IF($K149>1, IF($K149=4, "Unknown", IF($K149=99, "Surveillance", ROUND(E149*0.75,0))), 0),"Not required") -> 40105 | T149: =IF(INTRO!$E$43="Endemic", IF($K149>1, IF($K149=4, "Unknown", IF($K149=99, "Surveillance", F149)), 0),"Not required") -> 109142 | U149: =IF(INTRO!$E$43="Endemic", IF($K149>1, IF($K149=4, "Unknown", IF($K149=99, "Surveillance", G149)), 0),"Not required") -> 214912 | V149: =IF(INTRO!$E$43="Endemic", IF($K149>1, IF($K149=4, "Unknown", IF($K149=99, "Surveillance", SUM($S149:$U149))), 0),"Not required") -> 364159 | W149: 0 | X149: 0 | Y149: 0 | Z149: 1
A150: =IF(INTRO!$E$33<>0,INTRO!$E$33, " ") -> Angola | B150: NAMIBE | C150: TOMBWA | D150: 74368.94179 | E150: =IF(INTRO!$E$48="","",ROUND($D150*INTRO!$E$48,0)) -> 10144 | F150: =IF(INTRO!$E$49="","",ROUND($D150*INTRO!$E$49,0)) -> 20704 | G150: =IF(INTRO!$E$50="","",ROUND($D150*INTRO!$E$50,0)) -> 40769 | H150: 0 | I150: 4 | J150: 1 | K150: 1 | L150: 0 | M150: =IF(INTRO!$E$37="Endemic",IF($H150>0,IF($H150=4,"Unknown",IF($H150=99,"Stopped",$D150)),0),"Not required") -> 0 | N150: =IF(INTRO!$E$39="Endemic", IF($I150>0, IF($I150=4,"Unknown",IF($I150=99,"Stopped",$D150)), 0),"Not required") -> Unknown | O150: =IF(INTRO!$E$41="Endemic", IF($J150>1, IF($J150=4, "Unknown", IF($J150=99, "Surveillance", E150)), 0),"Not required") -> 0 | P150: =IF(INTRO!$E$41="Endemic", IF($J150>1, IF($J150=4, "Unknown", IF($J150=99, "Surveillance", F150)), 0),"Not required") -> 0 | Q150: =IF(INTRO!$E$41="Endemic", IF($J150>1, IF($J150=4, "Unknown", IF($J150=99, "Surveillance", ROUND(D150*INTRO!$E$51,0))), 0),"Not required") -> 0 | R150: =IF(INTRO!$E$41="Endemic", IF($J150>1, IF($J150=4, "Unknown", IF($J150=99, "Surveillance", SUM($O150:$Q150))), 0),"Not required") -> 0 | S150: =IF(INTRO!$E$43="Endemic", IF($K150>1, IF($K150=4, "Unknown", IF($K150=99, "Surveillance", ROUND(E150*0.75,0))), 0),"Not required") -> 0 | T150: =IF(INTRO!$E$43="Endemic", IF($K150>1, IF($K150=4, "Unknown", IF($K150=99, "Surveillance", F150)), 0),"Not required") -> 0 | U150: =IF(INTRO!$E$43="Endemic", IF($K150>1, IF($K150=4, "Unknown", IF($K150=99, "Surveillance", G150)), 0),"Not required") -> 0 | V150: =IF(INTRO!$E$43="Endemic", IF($K150>1, IF($K150=4, "Unknown", IF($K150=99, "Surveillance", SUM($S150:$U150))), 0),"Not required") -> 0 | W150: 0 | X150: 0 | Y150: 0 | Z150: 0
A151: =IF(INTRO!$E$33<>0,INTRO!$E$33, " ") -> Angola | B151: NAMIBE | C151: VIREI | D151: 43480.1483 | E151: =IF(INTRO!$E$48="","",ROUND($D151*INTRO!$E$48,0)) -> 5931 | F151: =IF(INTRO!$E$49="","",ROUND($D151*INTRO!$E$49,0)) -> 12105 | G151: =IF(INTRO!$E$50="","",ROUND($D151*INTRO!$E$50,0)) -> 23836 | H151: 0 | I151: 4 | J151: 1 | K151: 1 | L151: 0 | M151: =IF(INTRO!$E$37="Endemic",IF($H151>0,IF($H151=4,"Unknown",IF($H151=99,"Stopped",$D151)),0),"Not required") -> 0 | N151: =IF(INTRO!$E$39="Endemic", IF($I151>0, IF($I151=4,"Unknown",IF($I151=99,"Stopped",$D151)), 0),"Not required") -> Unknown | O151: =IF(INTRO!$E$41="Endemic", IF($J151>1, IF($J151=4, "Unknown", IF($J151=99, "Surveillance", E151)), 0),"Not required") -> 0 | P151: =IF(INTRO!$E$41="Endemic", IF($J151>1, IF($J151=4, "Unknown", IF($J151=99, "Surveillance", F151)), 0),"Not required") -> 0 | Q151: =IF(INTRO!$E$41="Endemic", IF($J151>1, IF($J151=4, "Unknown", IF($J151=99, "Surveillance", ROUND(D151*INTRO!$E$51,0))), 0),"Not required") -> 0 | R151: =IF(INTRO!$E$41="Endemic", IF($J151>1, IF($J151=4, "Unknown", IF($J151=99, "Surveillance", SUM($O151:$Q151))), 0),"Not required") -> 0 | S151: =IF(INTRO!$E$43="Endemic", IF($K151>1, IF($K151=4, "Unknown", IF($K151=99, "Surveillance", ROUND(E151*0.75,0))), 0),"Not required") -> 0 | T151: =IF(INTRO!$E$43="Endemic", IF($K151>1, IF($K151=4, "Unknown", IF($K151=99, "Surveillance", F151)), 0),"Not required") -> 0 | U151: =IF(INTRO!$E$43="Endemic", IF($K151>1, IF($K151=4, "Unknown", IF($K151=99, "Surveillance", G151)), 0),"Not required") -> 0 | V151: =IF(INTRO!$E$43="Endemic", IF($K151>1, IF($K151=4, "Unknown", IF($K151=99, "Surveillance", SUM($S151:$U151))), 0),"Not required") -> 0 | W151: 0 | X151: 0 | Y151: 0 | Z151: 0
A152: =IF(INTRO!$E$33<>0,INTRO!$E$33, " ") -> Angola | B152: UIGE | C152: AMBUILA | D152: 23365.41154 | E152: =IF(INTRO!$E$48="","",ROUND($D152*INTRO!$E$48,0)) -> 3187 | F152: =IF(INTRO!$E$49="","",ROUND($D152*INTRO!$E$49,0)) -> 6505 | G152: =IF(INTRO!$E$50="","",ROUND($D152*INTRO!$E$50,0)) -> 12809 | H152: 1 | I152: 4 | J152: 31 | K152: 21 | L152: 1 | M152: =IF(INTRO!$E$37="Endemic",IF($H152>0,IF($H152=4,"Unknown",IF($H152=99,"Stopped",$D152)),0),"Not required") -> 23365.41154 | N152: =IF(INTRO!$E$39="Endemic", IF($I152>0, IF($I152=4,"Unknown",IF($I152=99,"Stopped",$D152)), 0),"Not required") -> Unknown | O152: =IF(INTRO!$E$41="Endemic", IF($J152>1, IF($J152=4, "Unknown", IF($J152=99, "Surveillance", E152)), 0),"Not required") -> 3187 | P152: =IF(INTRO!$E$41="Endemic", IF($J152>1, IF($J152=4, "Unknown", IF($J152=99, "Surveillance", F152)), 0),"Not required") -> 6505 | Q152: =IF(INTRO!$E$41="Endemic", IF($J152>1, IF($J152=4, "Unknown", IF($J152=99, "Surveillance", ROUND(D152*INTRO!$E$51,0))), 0),"Not required") -> 5400 | R152: =IF(INTRO!$E$41="Endemic", IF($J152>1, IF($J152=4, "Unknown", IF($J152=99, "Surveillance", SUM($O152:$Q152))), 0),"Not required") -> 15092 | S152: =IF(INTRO!$E$43="Endemic", IF($K152>1, IF($K152=4, "Unknown", IF($K152=99, "Surveillance", ROUND(E152*0.75,0))), 0),"Not required") -> 2390 | T152: =IF(INTRO!$E$43="Endemic", IF($K152>1, IF($K152=4, "Unknown", IF($K152=99, "Surveillance", F152)), 0),"Not required") -> 6505 | U152: =IF(INTRO!$E$43="Endemic", IF($K152>1, IF($K152=4, "Unknown", IF($K152=99, "Surveillance", G152)), 0),"Not required") -> 12809 | V152: =IF(INTRO!$E$43="Endemic", IF($K152>1, IF($K152=4, "Unknown", IF($K152=99, "Surveillance", SUM($S152:$U152))), 0),"Not required") -> 21704 | W152: 1 | X152: 0 | Y152: 3 | Z152: 1
A153: =IF(INTRO!$E$33<>0,INTRO!$E$33, " ") -> Angola | B153: UIGE | C153: BEMBE | D153: 42499.25033 | E153: =IF(INTRO!$E$48="","",ROUND($D153*INTRO!$E$48,0)) -> 5797 | F153: =IF(INTRO!$E$49="","",ROUND($D153*INTRO!$E$49,0)) -> 11832 | G153: =IF(INTRO!$E$50="","",ROUND($D153*INTRO!$E$50,0)) -> 23298 | H153: 0 | I153: 4 | J153: 22 | K153: 21 | L153: 0 | M153: =IF(INTRO!$E$37="Endemic",IF($H153>0,IF($H153=4,"Unknown",IF($H153=99,"Stopped",$D153)),0),"Not required") -> 0 | N153: =IF(INTRO!$E$39="Endemic", IF($I153>0, IF($I153=4,"Unknown",IF($I153=99,"Stopped",$D153)), 0),"Not required") -> Unknown | O153: =IF(INTRO!$E$41="Endemic", IF($J153>1, IF($J153=4, "Unknown", IF($J153=99, "Surveillance", E153)), 0),"Not required") -> 5797 | P153: =IF(INTRO!$E$41="Endemic", IF($J153>1, IF($J153=4, "Unknown", IF($J153=99, "Surveillance", F153)), 0),"Not required") -> 11832 | Q153: =IF(INTRO!$E$41="Endemic", IF($J153>1, IF($J153=4, "Unknown", IF($J153=99, "Surveillance", ROUND(D153*INTRO!$E$51,0))), 0),"Not required") -> 9822 | R153: =IF(INTRO!$E$41="Endemic", IF($J153>1, IF($J153=4, "Unknown", IF($J153=99, "Surveillance", SUM($O153:$Q153))), 0),"Not required") -> 27451 | S153: =IF(INTRO!$E$43="Endemic", IF($K153>1, IF($K153=4, "Unknown", IF($K153=99, "Surveillance", ROUND(E153*0.75,0))), 0),"Not required") -> 4348 | T153: =IF(INTRO!$E$43="Endemic", IF($K153>1, IF($K153=4, "Unknown", IF($K153=99, "Surveillance", F153)), 0),"Not required") -> 11832 | U153: =IF(INTRO!$E$43="Endemic", IF($K153>1, IF($K153=4, "Unknown", IF($K153=99, "Surveillance", G153)), 0),"Not required") -> 23298 | V153: =IF(INTRO!$E$43="Endemic", IF($K153>1, IF($K153=4, "Unknown", IF($K153=99, "Surveillance", SUM($S153:$U153))), 0),"Not required") -> 39478 | W153: 0 | X153: 0 | Y153: 2 | Z153: 1
A154: =IF(INTRO!$E$33<>0,INTRO!$E$33, " ") -> Angola | B154: UIGE | C154: BUENGAS | D154: 73828.92054 | E154: =IF(INTRO!$E$48="","",ROUND($D154*INTRO!$E$48,0)) -> 10070 | F154: =IF(INTRO!$E$49="","",ROUND($D154*INTRO!$E$49,0)) -> 20554 | G154: =IF(INTRO!$E$50="","",ROUND($D154*INTRO!$E$50,0)) -> 40473 | H154: 0 | I154: 4 | J154: 31 | K154: 21 | L154: 0 | M154: =IF(INTRO!$E$37="Endemic",IF($H154>0,IF($H154=4,"Unknown",IF($H154=99,"Stopped",$D154)),0),"Not required") -> 0 | N154: =IF(INTRO!$E$39="Endemic", IF($I154>0, IF($I154=4,"Unknown",IF($I154=99,"Stopped",$D154)), 0),"Not required") -> Unknown | O154: =IF(INTRO!$E$41="Endemic", IF($J154>1, IF($J154=4, "Unknown", IF($J154=99, "Surveillance", E154)), 0),"Not required") -> 10070 | P154: =IF(INTRO!$E$41="Endemic", IF($J154>1, IF($J154=4, "Unknown", IF($J154=99, "Surveillance", F154)), 0),"Not required") -> 20554 | Q154: =IF(INTRO!$E$41="Endemic", IF($J154>1, IF($J154=4, "Unknown", IF($J154=99, "Surveillance", ROUND(D154*INTRO!$E$51,0))), 0),"Not required") -> 17062 | R154: =IF(INTRO!$E$41="Endemic", IF($J154>1, IF($J154=4, "Unknown", IF($J154=99, "Surveillance", SUM($O154:$Q154))), 0),"Not required") -> 47686 | S154: =IF(INTRO!$E$43="Endemic", IF($K154>1, IF($K154=4, "Unknown", IF($K154=99, "Surveillance", ROUND(E154*0.75,0))), 0),"Not required") -> 7553 | T154: =IF(INTRO!$E$43="Endemic", IF($K154>1, IF($K154=4, "Unknown", IF($K154=99, "Surveillance", F154)), 0),"Not required") -> 20554 | U154: =IF(INTRO!$E$43="Endemic", IF($K154>1, IF($K154=4, "Unknown", IF($K154=99, "Surveillance", G154)), 0),"Not required") -> 40473 | V154: =IF(INTRO!$E$43="Endemic", IF($K154>1, IF($K154=4, "Unknown", IF($K154=99, "Surveillance", SUM($S154:$U154))), 0),"Not required") -> 68580 | W154: 0 | X154: 0 | Y154: 3 | Z154: 1
A155: =IF(INTRO!$E$33<>0,INTRO!$E$33, " ") -> Angola | B155: UIGE | C155: BUNGO | D155: 47914.22901 | E155: =IF(INTRO!$E$48="","",ROUND($D155*INTRO!$E$48,0)) -> 6536 | F155: =IF(INTRO!$E$49="","",ROUND($D155*INTRO!$E$49,0)) -> 13339 | G155: =IF(INTRO!$E$50="","",ROUND($D155*INTRO!$E$50,0)) -> 26267 | H155: 0 | I155: 1 | J155: 31 | K155: 21 | L155: 1 | M155: =IF(INTRO!$E$37="Endemic",IF($H155>0,IF($H155=4,"Unknown",IF($H155=99,"Stopped",$D155)),0),"Not required") -> 0 | N155: =IF(INTRO!$E$39="Endemic", IF($I155>0, IF($I155=4,"Unknown",IF($I155=99,"Stopped",$D155)), 0),"Not required") -> 47914.22901 | O155: =IF(INTRO!$E$41="Endemic", IF($J155>1, IF($J155=4, "Unknown", IF($J155=99, "Surveillance", E155)), 0),"Not required") -> 6536 | P155: =IF(INTRO!$E$41="Endemic", IF($J155>1, IF($J155=4, "Unknown", IF($J155=99, "Surveillance", F155)), 0),"Not required") -> 13339 | Q155: =IF(INTRO!$E$41="Endemic", IF($J155>1, IF($J155=4, "Unknown", IF($J155=99, "Surveillance", ROUND(D155*INTRO!$E$51,0))), 0),"Not required") -> 11073 | R155: =IF(INTRO!$E$41="Endemic", IF($J155>1, IF($J155=4, "Unknown", IF($J155=99, "Surveillance", SUM($O155:$Q155))), 0),"Not required") -> 30948 | S155: =IF(INTRO!$E$43="Endemic", IF($K155>1, IF($K155=4, "Unknown", IF($K155=99, "Surveillance", ROUND(E155*0.75,0))), 0),"Not required") -> 4902 | T155: =IF(INTRO!$E$43="Endemic", IF($K155>1, IF($K155=4, "Unknown", IF($K155=99, "Surveillance", F155)), 0),"Not required") -> 13339 | U155: =IF(INTRO!$E$43="Endemic", IF($K155>1, IF($K155=4, "Unknown", IF($K155=99, "Surveillance", G155)), 0),"Not required") -> 26267 | V155: =IF(INTRO!$E$43="Endemic", IF($K155>1, IF($K155=4, "Unknown", IF($K155=99, "Surveillance", SUM($S155:$U155))), 0),"Not required") -> 44508 | W155: 0 | X155: 1 | Y155: 3 | Z155: 1
A156: =IF(INTRO!$E$33<>0,INTRO!$E$33, " ") -> Angola | B156: UIGE | C156: CANGOLA | D156: 69278.81964 | E156: =IF(INTRO!$E$48="","",ROUND($D156*INTRO!$E$48,0)) -> 9450 | F156: =IF(INTRO!$E$49="","",ROUND($D156*INTRO!$E$49,0)) -> 19287 | G156: =IF(INTRO!$E$50="","",ROUND($D156*INTRO!$E$50,0)) -> 37979 | H156: 0 | I156: 4 | J156: 31 | K156: 11 | L156: 0 | M156: =IF(INTRO!$E$37="Endemic",IF($H156>0,IF($H156=4,"Unknown",IF($H156=99,"Stopped",$D156)),0),"Not required") -> 0 | N156: =IF(INTRO!$E$39="Endemic", IF($I156>0, IF($I156=4,"Unknown",IF($I156=99,"Stopped",$D156)), 0),"Not required") -> Unknown | O156: =IF(INTRO!$E$41="Endemic", IF($J156>1, IF($J156=4, "Unknown", IF($J156=99, "Surveillance", E156)), 0),"Not required") -> 9450 | P156: =IF(INTRO!$E$41="Endemic", IF($J156>1, IF($J156=4, "Unknown", IF($J156=99, "Surveillance", F156)), 0),"Not required") -> 19287 | Q156: =IF(INTRO!$E$41="Endemic", IF($J156>1, IF($J156=4, "Unknown", IF($J156=99, "Surveillance", ROUND(D156*INTRO!$E$51,0))), 0),"Not required") -> 16010 | R156: =IF(INTRO!$E$41="Endemic", IF($J156>1, IF($J156=4, "Unknown", IF($J156=99, "Surveillance", SUM($O156:$Q156))), 0),"Not required") -> 44747 | S156: =IF(INTRO!$E$43="Endemic", IF($K156>1, IF($K156=4, "Unknown", IF($K156=99, "Surveillance", ROUND(E156*0.75,0))), 0),"Not required") -> 7088 | T156: =IF(INTRO!$E$43="Endemic", IF($K156>1, IF($K156=4, "Unknown", IF($K156=99, "Surveillance", F156)), 0),"Not required") -> 19287 | U156: =IF(INTRO!$E$43="Endemic", IF($K156>1, IF($K156=4, "Unknown", IF($K156=99, "Surveillance", G156)), 0),"Not required") -> 37979 | V156: =IF(INTRO!$E$43="Endemic", IF($K156>1, IF($K156=4, "Unknown", IF($K156=99, "Surveillance", SUM($S156:$U156))), 0),"Not required") -> 64354 | W156: 0 | X156: 0 | Y156: 3 | Z156: 1
A157: =IF(INTRO!$E$33<>0,INTRO!$E$33, " ") -> Angola | B157: UIGE | C157: DAMBA | D157: 85726.26366 | E157: =IF(INTRO!$E$48="","",ROUND($D157*INTRO!$E$48,0)) -> 11693 | F157: =IF(INTRO!$E$49="","",ROUND($D157*INTRO!$E$49,0)) -> 23866 | G157: =IF(INTRO!$E$50="","",ROUND($D157*INTRO!$E$50,0)) -> 46995 | H157: 0 | I157: 4 | J157: 31 | K157: 21 | L157: 0 | M157: =IF(INTRO!$E$37="Endemic",IF($H157>0,IF($H157=4,"Unknown",IF($H157=99,"Stopped",$D157)),0),"Not required") -> 0 | N157: =IF(INTRO!$E$39="Endemic", IF($I157>0, IF($I157=4,"Unknown",IF($I157=99,"Stopped",$D157)), 0),"Not required") -> Unknown | O157: =IF(INTRO!$E$41="Endemic", IF($J157>1, IF($J157=4, "Unknown", IF($J157=99, "Surveillance", E157)), 0),"Not required") -> 11693 | P157: =IF(INTRO!$E$41="Endemic", IF($J157>1, IF($J157=4, "Unknown", IF($J157=99, "Surveillance", F157)), 0),"Not required") -> 23866 | Q157: =IF(INTRO!$E$41="Endemic", IF($J157>1, IF($J157=4, "Unknown", IF($J157=99, "Surveillance", ROUND(D157*INTRO!$E$51,0))), 0),"Not required") -> 19811 | R157: =IF(INTRO!$E$41="Endemic", IF($J157>1, IF($J157=4, "Unknown", IF($J157=99, "Surveillance", SUM($O157:$Q157))), 0),"Not required") -> 55370 | S157: =IF(INTRO!$E$43="Endemic", IF($K157>1, IF($K157=4, "Unknown", IF($K157=99, "Surveillance", ROUND(E157*0.75,0))), 0),"Not required") -> 8770 | T157: =IF(INTRO!$E$43="Endemic", IF($K157>1, IF($K157=4, "Unknown", IF($K157=99, "Surveillance", F157)), 0),"Not required") -> 23866 | U157: =IF(INTRO!$E$43="Endemic", IF($K157>1, IF($K157=4, "Unknown", IF($K157=99, "Surveillance", G157)), 0),"Not required") -> 46995 | V157: =IF(INTRO!$E$43="Endemic", IF($K157>1, IF($K157=4, "Unknown", IF($K157=99, "Surveillance", SUM($S157:$U157))), 0),"Not required") -> 79631 | W157: 0 | X157: 0 | Y157: 3 | Z157: 1
A158: =IF(INTRO!$E$33<>0,INTRO!$E$33, " ") -> Angola | B158: UIGE | C158: MAQUELA DO ZOMBO | D158: 164237.1262 | E158: =IF(INTRO!$E$48="","",ROUND($D158*INTRO!$E$48,0)) -> 22402 | F158: =IF(INTRO!$E$49="","",ROUND($D158*INTRO!$E$49,0)) -> 45724 | G158: =IF(INTRO!$E$50="","",ROUND($D158*INTRO!$E$50,0)) -> 90035 | H158: 0 | I158: 4 | J158: 31 | K158: 21 | L158: 0 | M158: =IF(INTRO!$E$37="Endemic",IF($H158>0,IF($H158=4,"Unknown",IF($H158=99,"Stopped",$D158)),0),"Not required") -> 0 | N158: =IF(INTRO!$E$39="Endemic", IF($I158>0, IF($I158=4,"Unknown",IF($I158=99,"Stopped",$D158)), 0),"Not required") -> Unknown | O158: =IF(INTRO!$E$41="Endemic", IF($J158>1, IF($J158=4, "Unknown", IF($J158=99, "Surveillance", E158)), 0),"Not required") -> 22402 | P158: =IF(INTRO!$E$41="Endemic", IF($J158>1, IF($J158=4, "Unknown", IF($J158=99, "Surveillance", F158)), 0),"Not required") -> 45724 | Q158: =IF(INTRO!$E$41="Endemic", IF($J158>1, IF($J158=4, "Unknown", IF($J158=99, "Surveillance", ROUND(D158*INTRO!$E$51,0))), 0),"Not required") -> 37955 | R158: =IF(INTRO!$E$41="Endemic", IF($J158>1, IF($J158=4, "Unknown", IF($J158=99, "Surveillance", SUM($O158:$Q158))), 0),"Not required") -> 106081 | S158: =IF(INTRO!$E$43="Endemic", IF($K158>1, IF($K158=4, "Unknown", IF($K158=99, "Surveillance", ROUND(E158*0.75,0))), 0),"Not required") -> 16802 | T158: =IF(INTRO!$E$43="Endemic", IF($K158>1, IF($K158=4, "Unknown", IF($K158=99, "Surveillance", F158)), 0),"Not required") -> 45724 | U158: =IF(INTRO!$E$43="Endemic", IF($K158>1, IF($K158=4, "Unknown", IF($K158=99, "Surveillance", G158)), 0),"Not required") -> 90035 | V158: =IF(INTRO!$E$43="Endemic", IF($K158>1, IF($K158=4, "Unknown", IF($K158=99, "Surveillance", SUM($S158:$U158))), 0),"Not required") -> 152561 | W158: 0 | X158: 0 | Y158: 3 | Z158: 1
A159: =IF(INTRO!$E$33<>0,INTRO!$E$33, " ") -> Angola | B159: UIGE | C159: MILUNGA | D159: 65251.86431 | E159: =IF(INTRO!$E$48="","",ROUND($D159*INTRO!$E$48,0)) -> 8900 | F159: =IF(INTRO!$E$49="","",ROUND($D159*INTRO!$E$49,0)) -> 18166 | G159: =IF(INTRO!$E$50="","",ROUND($D159*INTRO!$E$50,0)) -> 35771 | H159: 0 | I159: 4 | J159: 31 | K159: 21 | L159: 0 | M159: =IF(INTRO!$E$37="Endemic",IF($H159>0,IF($H159=4,"Unknown",IF($H159=99,"Stopped",$D159)),0),"Not required") -> 0 | N159: =IF(INTRO!$E$39="Endemic", IF($I159>0, IF($I159=4,"Unknown",IF($I159=99,"Stopped",$D159)), 0),"Not required") -> Unknown | O159: =IF(INTRO!$E$41="Endemic", IF($J159>1, IF($J159=4, "Unknown", IF($J159=99, "Surveillance", E159)), 0),"Not required") -> 8900 | P159: =IF(INTRO!$E$41="Endemic", IF($J159>1, IF($J159=4, "Unknown", IF($J159=99, "Surveillance", F159)), 0),"Not required") -> 18166 | Q159: =IF(INTRO!$E$41="Endemic", IF($J159>1, IF($J159=4, "Unknown", IF($J159=99, "Surveillance", ROUND(D159*INTRO!$E$51,0))), 0),"Not required") -> 15080 | R159: =IF(INTRO!$E$41="Endemic", IF($J159>1, IF($J159=4, "Unknown", IF($J159=99, "Surveillance", SUM($O159:$Q159))), 0),"Not required") -> 42146 | S159: =IF(INTRO!$E$43="Endemic", IF($K159>1, IF($K159=4, "Unknown", IF($K159=99, "Surveillance", ROUND(E159*0.75,0))), 0),"Not required") -> 6675 | T159: =IF(INTRO!$E$43="Endemic", IF($K159>1, IF($K159=4, "Unknown", IF($K159=99, "Surveillance", F159)), 0),"Not required") -> 18166 | U159: =IF(INTRO!$E$43="Endemic", IF($K159>1, IF($K159=4, "Unknown", IF($K159=99, "Surveillance", G159)), 0),"Not required") -> 35771 | V159: =IF(INTRO!$E$43="Endemic", IF($K159>1, IF($K159=4, "Unknown", IF($K159=99, "Surveillance", SUM($S159:$U159))), 0),"Not required") -> 60612 | W159: 0 | X159: 0 | Y159: 3 | Z159: 1
A160: =IF(INTRO!$E$33<>0,INTRO!$E$33, " ") -> Angola | B160: UIGE | C160: MUCABA | D160: 56710.66887 | E160: =IF(INTRO!$E$48="","",ROUND($D160*INTRO!$E$48,0)) -> 7735 | F160: =IF(INTRO!$E$49="","",ROUND($D160*INTRO!$E$49,0)) -> 15788 | G160: =IF(INTRO!$E$50="","",ROUND($D160*INTRO!$E$50,0)) -> 31089 | H160: 0 | I160: 4 | J160: 31 | K160: 11 | L160: 0 | M160: =IF(INTRO!$E$37="Endemic",IF($H160>0,IF($H160=4,"Unknown",IF($H160=99,"Stopped",$D160)),0),"Not required") -> 0 | N160: =IF(INTRO!$E$39="Endemic", IF($I160>0, IF($I160=4,"Unknown",IF($I160=99,"Stopped",$D160)), 0),"Not required") -> Unknown | O160: =IF(INTRO!$E$41="Endemic", IF($J160>1, IF($J160=4, "Unknown", IF($J160=99, "Surveillance", E160)), 0),"Not required") -> 7735 | P160: =IF(INTRO!$E$41="Endemic", IF($J160>1, IF($J160=4, "Unknown", IF($J160=99, "Surveillance", F160)), 0),"Not required") -> 15788 | Q160: =IF(INTRO!$E$41="Endemic", IF($J160>1, IF($J160=4, "Unknown", IF($J160=99, "Surveillance", ROUND(D160*INTRO!$E$51,0))), 0),"Not required") -> 13106 | R160: =IF(INTRO!$E$41="Endemic", IF($J160>1, IF($J160=4, "Unknown", IF($J160=99, "Surveillance", SUM($O160:$Q160))), 0),"Not required") -> 36629 | S160: =IF(INTRO!$E$43="Endemic", IF($K160>1, IF($K160=4, "Unknown", IF($K160=99, "Surveillance", ROUND(E160*0.75,0))), 0),"Not required") -> 5801 | T160: =IF(INTRO!$E$43="Endemic", IF($K160>1, IF($K160=4, "Unknown", IF($K160=99, "Surveillance", F160)), 0),"Not required") -> 15788 | U160: =IF(INTRO!$E$43="Endemic", IF($K160>1, IF($K160=4, "Unknown", IF($K160=99, "Surveillance", G160)), 0),"Not required") -> 31089 | V160: =IF(INTRO!$E$43="Endemic", IF($K160>1, IF($K160=4, "Unknown", IF($K160=99, "Surveillance", SUM($S160:$U160))), 0),"Not required") -> 52678 | W160: 0 | X160: 0 | Y160: 3 | Z160: 1
A161: =IF(INTRO!$E$33<>0,INTRO!$E$33, " ") -> Angola | B161: UIGE | C161: NEGAGE | D161: 177401.1989 | E161: =IF(INTRO!$E$48="","",ROUND($D161*INTRO!$E$48,0)) -> 24198 | F161: =IF(INTRO!$E$49="","",ROUND($D161*INTRO!$E$49,0)) -> 49388 | G161: =IF(INTRO!$E$50="","",ROUND($D161*INTRO!$E$50,0)) -> 97251 | H161: 0 | I161: 1 | J161: 31 | K161: 21 | L161: 1 | M161: =IF(INTRO!$E$37="Endemic",IF($H161>0,IF($H161=4,"Unknown",IF($H161=99,"Stopped",$D161)),0),"Not required") -> 0 | N161: =IF(INTRO!$E$39="Endemic", IF($I161>0, IF($I161=4,"Unknown",IF($I161=99,"Stopped",$D161)), 0),"Not required") -> 177401.1989 | O161: =IF(INTRO!$E$41="Endemic", IF($J161>1, IF($J161=4, "Unknown", IF($J161=99, "Surveillance", E161)), 0),"Not required") -> 24198 | P161: =IF(INTRO!$E$41="Endemic", IF($J161>1, IF($J161=4, "Unknown", IF($J161=99, "Surveillance", F161)), 0),"Not required") -> 49388 | Q161: =IF(INTRO!$E$41="Endemic", IF($J161>1, IF($J161=4, "Unknown", IF($J161=99, "Surveillance", ROUND(D161*INTRO!$E$51,0))), 0),"Not required") -> 40997 | R161: =IF(INTRO!$E$41="Endemic", IF($J161>1, IF($J161=4, "Unknown", IF($J161=99, "Surveillance", SUM($O161:$Q161))), 0),"Not required") -> 114583 | S161: =IF(INTRO!$E$43="Endemic", IF($K161>1, IF($K161=4, "Unknown", IF($K161=99, "Surveillance", ROUND(E161*0.75,0))), 0),"Not required") -> 18149 | T161: =IF(INTRO!$E$43="Endemic", IF($K161>1, IF($K161=4, "Unknown", IF($K161=99, "Surveillance", F161)), 0),"Not required") -> 49388 | U161: =IF(INTRO!$E$43="Endemic", IF($K161>1, IF($K161=4, "Unknown", IF($K161=99, "Surveillance", G161)), 0),"Not required") -> 97251 | V161: =IF(INTRO!$E$43="Endemic", IF($K161>1, IF($K161=4, "Unknown", IF($K161=99, "Surveillance", SUM($S161:$U161))), 0),"Not required") -> 164788 | W161: 0 | X161: 1 | Y161: 3 | Z161: 1
A162: =IF(INTRO!$E$33<>0,INTRO!$E$33, " ") -> Angola | B162: UIGE | C162: PURI | D162: 48890.90807 | E162: =IF(INTRO!$E$48="","",ROUND($D162*INTRO!$E$48,0)) -> 6669 | F162: =IF(INTRO!$E$49="","",ROUND($D162*INTRO!$E$49,0)) -> 13611 | G162: =IF(INTRO!$E$50="","",ROUND($D162*INTRO!$E$50,0)) -> 26802 | H162: 1 | I162: 1 | J162: 22 | K162: 21 | L162: 0 | M162: =IF(INTRO!$E$37="Endemic",IF($H162>0,IF($H162=4,"Unknown",IF($H162=99,"Stopped",$D162)),0),"Not required") -> 48890.90807 | N162: =IF(INTRO!$E$39="Endemic", IF($I162>0, IF($I162=4,"Unknown",IF($I162=99,"Stopped",$D162)), 0),"Not required") -> 48890.90807 | O162: =IF(INTRO!$E$41="Endemic", IF($J162>1, IF($J162=4, "Unknown", IF($J162=99, "Surveillance", E162)), 0),"Not required") -> 6669 | P162: =IF(INTRO!$E$41="Endemic", IF($J162>1, IF($J162=4, "Unknown", IF($J162=99, "Surveillance", F162)), 0),"Not required") -> 13611 | Q162: =IF(INTRO!$E$41="Endemic", IF($J162>1, IF($J162=4, "Unknown", IF($J162=99, "Surveillance", ROUND(D162*INTRO!$E$51,0))), 0),"Not required") -> 11299 | R162: =IF(INTRO!$E$41="Endemic", IF($J162>1, IF($J162=4, "Unknown", IF($J162=99, "Surveillance", SUM($O162:$Q162))), 0),"Not required") -> 31579 | S162: =IF(INTRO!$E$43="Endemic", IF($K162>1, IF($K162=4, "Unknown", IF($K162=99, "Surveillance", ROUND(E162*0.75,0))), 0),"Not required") -> 5002 | T162: =IF(INTRO!$E$43="Endemic", IF($K162>1, IF($K162=4, "Unknown", IF($K162=99, "Surveillance", F162)), 0),"Not required") -> 13611 | U162: =IF(INTRO!$E$43="Endemic", IF($K162>1, IF($K162=4, "Unknown", IF($K162=99, "Surveillance", G162)), 0),"Not required") -> 26802 | V162: =IF(INTRO!$E$43="Endemic", IF($K162>1, IF($K162=4, "Unknown", IF($K162=99, "Surveillance", SUM($S162:$U162))), 0),"Not required") -> 45415 | W162: 1 | X162: 1 | Y162: 2 | Z162: 1
A163: =IF(INTRO!$E$33<>0,INTRO!$E$33, " ") -> Angola | B163: UIGE | C163: QUIMBELE | D163: 176031.1059 | E163: =IF(INTRO!$E$48="","",ROUND($D163*INTRO!$E$48,0)) -> 24011 | F163: =IF(INTRO!$E$49="","",ROUND($D163*INTRO!$E$49,0)) -> 49007 | G163: =IF(INTRO!$E$50="","",ROUND($D163*INTRO!$E$50,0)) -> 96500 | H163: 0 | I163: 4 | J163: 31 | K163: 21 | L163: 1 | M163: =IF(INTRO!$E$37="Endemic",IF($H163>0,IF($H163=4,"Unknown",IF($H163=99,"Stopped",$D163)),0),"Not required") -> 0 | N163: =IF(INTRO!$E$39="Endemic", IF($I163>0, IF($I163=4,"Unknown",IF($I163=99,"Stopped",$D163)), 0),"Not required") -> Unknown | O163: =IF(INTRO!$E$41="Endemic", IF($J163>1, IF($J163=4, "Unknown", IF($J163=99, "Surveillance", E163)), 0),"Not required") -> 24011 | P163: =IF(INTRO!$E$41="Endemic", IF($J163>1, IF($J163=4, "Unknown", IF($J163=99, "Surveillance", F163)), 0),"Not required") -> 49007 | Q163: =IF(INTRO!$E$41="Endemic", IF($J163>1, IF($J163=4, "Unknown", IF($J163=99, "Surveillance", ROUND(D163*INTRO!$E$51,0))), 0),"Not required") -> 40681 | R163: =IF(INTRO!$E$41="Endemic", IF($J163>1, IF($J163=4, "Unknown", IF($J163=99, "Surveillance", SUM($O163:$Q163))), 0),"Not required") -> 113699 | S163: =IF(INTRO!$E$43="Endemic", IF($K163>1, IF($K163=4, "Unknown", IF($K163=99, "Surveillance", ROUND(E163*0.75,0))), 0),"Not required") -> 18008 | T163: =IF(INTRO!$E$43="Endemic", IF($K163>1, IF($K163=4, "Unknown", IF($K163=99, "Surveillance", F163)), 0),"Not required") -> 49007 | U163: =IF(INTRO!$E$43="Endemic", IF($K163>1, IF($K163=4, "Unknown", IF($K163=99, "Surveillance", G163)), 0),"Not required") -> 96500 | V163: =IF(INTRO!$E$43="Endemic", IF($K163>1, IF($K163=4, "Unknown", IF($K163=99, "Surveillance", SUM($S163:$U163))), 0),"Not required") -> 163515 | W163: 0 | X163: 0 | Y163: 3 | Z163: 1
A164: =IF(INTRO!$E$33<>0,INTRO!$E$33, " ") -> Angola | B164: UIGE | C164: QUITEXE | D164: 44230.06061 | E164: =IF(INTRO!$E$48="","",ROUND($D164*INTRO!$E$48,0)) -> 6033 | F164: =IF(INTRO!$E$49="","",ROUND($D164*INTRO!$E$49,0)) -> 12314 | G164: =IF(INTRO!$E$50="","",ROUND($D164*INTRO!$E$50,0)) -> 24247 | H164: 1 | I164: 1 | J164: 31 | K164: 21 | L164: 1 | M164: =IF(INTRO!$E$37="Endemic",IF($H164>0,IF($H164=4,"Unknown",IF($H164=99,"Stopped",$D164)),0),"Not required") -> 44230.06061 | N164: =IF(INTRO!$E$39="Endemic", IF($I164>0, IF($I164=4,"Unknown",IF($I164=99,"Stopped",$D164)), 0),"Not required") -> 44230.06061 | O164: =IF(INTRO!$E$41="Endemic", IF($J164>1, IF($J164=4, "Unknown", IF($J164=99, "Surveillance", E164)), 0),"Not required") -> 6033 | P164: =IF(INTRO!$E$41="Endemic", IF($J164>1, IF($J164=4, "Unknown", IF($J164=99, "Surveillance", F164)), 0),"Not required") -> 12314 | Q164: =IF(INTRO!$E$41="Endemic", IF($J164>1, IF($J164=4, "Unknown", IF($J164=99, "Surveillance", ROUND(D164*INTRO!$E$51,0))), 0),"Not required") -> 10222 | R164: =IF(INTRO!$E$41="Endemic", IF($J164>1, IF($J164=4, "Unknown", IF($J164=99, "Surveillance", SUM($O164:$Q164))), 0),"Not required") -> 28569 | S164: =IF(INTRO!$E$43="Endemic", IF($K164>1, IF($K164=4, "Unknown", IF($K164=99, "Surveillance", ROUND(E164*0.75,0))), 0),"Not required") -> 4525 | T164: =IF(INTRO!$E$43="Endemic", IF($K164>1, IF($K164=4, "Unknown", IF($K164=99, "Surveillance", F164)), 0),"Not required") -> 12314 | U164: =IF(INTRO!$E$43="Endemic", IF($K164>1, IF($K164=4, "Unknown", IF($K164=99, "Surveillance", G164)), 0),"Not required") -> 24247 | V164: =IF(INTRO!$E$43="Endemic", IF($K164>1, IF($K164=4, "Unknown", IF($K164=99, "Surveillance", SUM($S164:$U164))), 0),"Not required") -> 41086 | W164: 1 | X164: 1 | Y164: 3 | Z164: 1
A165: =IF(INTRO!$E$33<>0,INTRO!$E$33, " ") -> Angola | B165: UIGE | C165: SANZA POMBO | D165: 88199.60317 | E165: =IF(INTRO!$E$48="","",ROUND($D165*INTRO!$E$48,0)) -> 12030 | F165: =IF(INTRO!$E$49="","",ROUND($D165*INTRO!$E$49,0)) -> 24555 | G165: =IF(INTRO!$E$50="","",ROUND($D165*INTRO!$E$50,0)) -> 48351 | H165: 0 | I165: 4 | J165: 31 | K165: 21 | L165: 1 | M165: =IF(INTRO!$E$37="Endemic",IF($H165>0,IF($H165=4,"Unknown",IF($H165=99,"Stopped",$D165)),0),"Not required") -> 0 | N165: =IF(INTRO!$E$39="Endemic", IF($I165>0, IF($I165=4,"Unknown",IF($I165=99,"Stopped",$D165)), 0),"Not required") -> Unknown | O165: =IF(INTRO!$E$41="Endemic", IF($J165>1, IF($J165=4, "Unknown", IF($J165=99, "Surveillance", E165)), 0),"Not required") -> 12030 | P165: =IF(INTRO!$E$41="Endemic", IF($J165>1, IF($J165=4, "Unknown", IF($J165=99, "Surveillance", F165)), 0),"Not required") -> 24555 | Q165: =IF(INTRO!$E$41="Endemic", IF($J165>1, IF($J165=4, "Unknown", IF($J165=99, "Surveillance", ROUND(D165*INTRO!$E$51,0))), 0),"Not required") -> 20383 | R165: =IF(INTRO!$E$41="Endemic", IF($J165>1, IF($J165=4, "Unknown", IF($J165=99, "Surveillance", SUM($O165:$Q165))), 0),"Not required") -> 56968 | S165: =IF(INTRO!$E$43="Endemic", IF($K165>1, IF($K165=4, "Unknown", IF($K165=99, "Surveillance", ROUND(E165*0.75,0))), 0),"Not required") -> 9023 | T165: =IF(INTRO!$E$43="Endemic", IF($K165>1, IF($K165=4, "Unknown", IF($K165=99, "Surveillance", F165)), 0),"Not required") -> 24555 | U165: =IF(INTRO!$E$43="Endemic", IF($K165>1, IF($K165=4, "Unknown", IF($K165=99, "Surveillance", G165)), 0),"Not required") -> 48351 | V165: =IF(INTRO!$E$43="Endemic", IF($K165>1, IF($K165=4, "Unknown", IF($K165=99, "Surveillance", SUM($S165:$U165))), 0),"Not required") -> 81929 | W165: 0 | X165: 0 | Y165: 3 | Z165: 1
A166: =IF(INTRO!$E$33<>0,INTRO!$E$33, " ") -> Angola | B166: UIGE | C166: SONGO | D166: 79547.66118 | E166: =IF(INTRO!$E$48="","",ROUND($D166*INTRO!$E$48,0)) -> 10850 | F166: =IF(INTRO!$E$49="","",ROUND($D166*INTRO!$E$49,0)) -> 22146 | G166: =IF(INTRO!$E$50="","",ROUND($D166*INTRO!$E$50,0)) -> 43608 | H166: 1 | I166: 1 | J166: 31 | K166: 21 | L166: 1 | M166: =IF(INTRO!$E$37="Endemic",IF($H166>0,IF($H166=4,"Unknown",IF($H166=99,"Stopped",$D166)),0),"Not required") -> 79547.66118 | N166: =IF(INTRO!$E$39="Endemic", IF($I166>0, IF($I166=4,"Unknown",IF($I166=99,"Stopped",$D166)), 0),"Not required") -> 79547.66118 | O166: =IF(INTRO!$E$41="Endemic", IF($J166>1, IF($J166=4, "Unknown", IF($J166=99, "Surveillance", E166)), 0),"Not required") -> 10850 | P166: =IF(INTRO!$E$41="Endemic", IF($J166>1, IF($J166=4, "Unknown", IF($J166=99, "Surveillance", F166)), 0),"Not required") -> 22146 | Q166: =IF(INTRO!$E$41="Endemic", IF($J166>1, IF($J166=4, "Unknown", IF($J166=99, "Surveillance", ROUND(D166*INTRO!$E$51,0))), 0),"Not required") -> 18383 | R166: =IF(INTRO!$E$41="Endemic", IF($J166>1, IF($J166=4, "Unknown", IF($J166=99, "Surveillance", SUM($O166:$Q166))), 0),"Not required") -> 51379 | S166: =IF(INTRO!$E$43="Endemic", IF($K166>1, IF($K166=4, "Unknown", IF($K166=99, "Surveillance", ROUND(E166*0.75,0))), 0),"Not required") -> 8138 | T166: =IF(INTRO!$E$43="Endemic", IF($K166>1, IF($K166=4, "Unknown", IF($K166=99, "Surveillance", F166)), 0),"Not required") -> 22146 | U166: =IF(INTRO!$E$43="Endemic", IF($K166>1, IF($K166=4, "Unknown", IF($K166=99, "Surveillance", G166)), 0),"Not required") -> 43608 | V166: =IF(INTRO!$E$43="Endemic", IF($K166>1, IF($K166=4, "Unknown", IF($K166=99, "Surveillance", SUM($S166:$U166))), 0),"Not required") -> 73892 | W166: 1 | X166: 1 | Y166: 3 | Z166: 1
A167: =IF(INTRO!$E$33<>0,INTRO!$E$33, " ") -> Angola | B167: UIGE | C167: UIGE | D167: 669574.6658 | E167: =IF(INTRO!$E$48="","",ROUND($D167*INTRO!$E$48,0)) -> 91330 | F167: =IF(INTRO!$E$49="","",ROUND($D167*INTRO!$E$49,0)) -> 186410 | G167: =IF(INTRO!$E$50="","",ROUND($D167*INTRO!$E$50,0)) -> 367061 | H167: 0 | I167: 4 | J167: 31 | K167: 21 | L167: 1 | M167: =IF(INTRO!$E$37="Endemic",IF($H167>0,IF($H167=4,"Unknown",IF($H167=99,"Stopped",$D167)),0),"Not required") -> 0 | N167: =IF(INTRO!$E$39="Endemic", IF($I167>0, IF($I167=4,"Unknown",IF($I167=99,"Stopped",$D167)), 0),"Not required") -> Unknown | O167: =IF(INTRO!$E$41="Endemic", IF($J167>1, IF($J167=4, "Unknown", IF($J167=99, "Surveillance", E167)), 0),"Not required") -> 91330 | P167: =IF(INTRO!$E$41="Endemic", IF($J167>1, IF($J167=4, "Unknown", IF($J167=99, "Surveillance", F167)), 0),"Not required") -> 186410 | Q167: =IF(INTRO!$E$41="Endemic", IF($J167>1, IF($J167=4, "Unknown", IF($J167=99, "Surveillance", ROUND(D167*INTRO!$E$51,0))), 0),"Not required") -> 154739 | R167: =IF(INTRO!$E$41="Endemic", IF($J167>1, IF($J167=4, "Unknown", IF($J167=99, "Surveillance", SUM($O167:$Q167))), 0),"Not required") -> 432479 | S167: =IF(INTRO!$E$43="Endemic", IF($K167>1, IF($K167=4, "Unknown", IF($K167=99, "Surveillance", ROUND(E167*0.75,0))), 0),"Not required") -> 68498 | T167: =IF(INTRO!$E$43="Endemic", IF($K167>1, IF($K167=4, "Unknown", IF($K167=99, "Surveillance", F167)), 0),"Not required") -> 186410 | U167: =IF(INTRO!$E$43="Endemic", IF($K167>1, IF($K167=4, "Unknown", IF($K167=99, "Surveillance", G167)), 0),"Not required") -> 367061 | V167: =IF(INTRO!$E$43="Endemic", IF($K167>1, IF($K167=4, "Unknown", IF($K167=99, "Surveillance", SUM($S167:$U167))), 0),"Not required") -> 621969 | W167: 0 | X167: 0 | Y167: 3 | Z167: 1
A168: =IF(INTRO!$E$33<>0,INTRO!$E$33, " ") -> Angola | B168: ZAIRE | C168: CUIMBA | D168: 91288.90441 | E168: =IF(INTRO!$E$48="","",ROUND($D168*INTRO!$E$48,0)) -> 12452 | F168: =IF(INTRO!$E$49="","",ROUND($D168*INTRO!$E$49,0)) -> 25415 | G168: =IF(INTRO!$E$50="","",ROUND($D168*INTRO!$E$50,0)) -> 50045 | H168: 0 | I168: 4 | J168: 22 | K168: 21 | L168: 0 | M168: =IF(INTRO!$E$37="Endemic",IF($H168>0,IF($H168=4,"Unknown",IF($H168=99,"Stopped",$D168)),0),"Not required") -> 0 | N168: =IF(INTRO!$E$39="Endemic", IF($I168>0, IF($I168=4,"Unknown",IF($I168=99,"Stopped",$D168)), 0),"Not required") -> Unknown | O168: =IF(INTRO!$E$41="Endemic", IF($J168>1, IF($J168=4, "Unknown", IF($J168=99, "Surveillance", E168)), 0),"Not required") -> 12452 | P168: =IF(INTRO!$E$41="Endemic", IF($J168>1, IF($J168=4, "Unknown", IF($J168=99, "Surveillance", F168)), 0),"Not required") -> 25415 | Q168: =IF(INTRO!$E$41="Endemic", IF($J168>1, IF($J168=4, "Unknown", IF($J168=99, "Surveillance", ROUND(D168*INTRO!$E$51,0))), 0),"Not required") -> 21097 | R168: =IF(INTRO!$E$41="Endemic", IF($J168>1, IF($J168=4, "Unknown", IF($J168=99, "Surveillance", SUM($O168:$Q168))), 0),"Not required") -> 58964 | S168: =IF(INTRO!$E$43="Endemic", IF($K168>1, IF($K168=4, "Unknown", IF($K168=99, "Surveillance", ROUND(E168*0.75,0))), 0),"Not required") -> 9339 | T168: =IF(INTRO!$E$43="Endemic", IF($K168>1, IF($K168=4, "Unknown", IF($K168=99, "Surveillance", F168)), 0),"Not required") -> 25415 | U168: =IF(INTRO!$E$43="Endemic", IF($K168>1, IF($K168=4, "Unknown", IF($K168=99, "Surveillance", G168)), 0),"Not required") -> 50045 | V168: =IF(INTRO!$E$43="Endemic", IF($K168>1, IF($K168=4, "Unknown", IF($K168=99, "Surveillance", SUM($S168:$U168))), 0),"Not required") -> 84799 | W168: 0 | X168: 0 | Y168: 1 | Z168: 1
A169: =IF(INTRO!$E$33<>0,INTRO!$E$33, " ") -> Angola | B169: ZAIRE | C169: MBANZA KONGO | D169: 237907.8374 | E169: =IF(INTRO!$E$48="","",ROUND($D169*INTRO!$E$48,0)) -> 32451 | F169: =IF(INTRO!$E$49="","",ROUND($D169*INTRO!$E$49,0)) -> 66234 | G169: =IF(INTRO!$E$50="","",ROUND($D169*INTRO!$E$50,0)) -> 130421 | H169: 0 | I169: 4 | J169: 22 | K169: 21 | L169: 0 | M169: =IF(INTRO!$E$37="Endemic",IF($H169>0,IF($H169=4,"Unknown",IF($H169=99,"Stopped",$D169)),0),"Not required") -> 0 | N169: =IF(INTRO!$E$39="Endemic", IF($I169>0, IF($I169=4,"Unknown",IF($I169=99,"Stopped",$D169)), 0),"Not required") -> Unknown | O169: =IF(INTRO!$E$41="Endemic", IF($J169>1, IF($J169=4, "Unknown", IF($J169=99, "Surveillance", E169)), 0),"Not required") -> 32451 | P169: =IF(INTRO!$E$41="Endemic", IF($J169>1, IF($J169=4, "Unknown", IF($J169=99, "Surveillance", F169)), 0),"Not required") -> 66234 | Q169: =IF(INTRO!$E$41="Endemic", IF($J169>1, IF($J169=4, "Unknown", IF($J169=99, "Surveillance", ROUND(D169*INTRO!$E$51,0))), 0),"Not required") -> 54981 | R169: =IF(INTRO!$E$41="Endemic", IF($J169>1, IF($J169=4, "Unknown", IF($J169=99, "Surveillance", SUM($O169:$Q169))), 0),"Not required") -> 153666 | S169: =IF(INTRO!$E$43="Endemic", IF($K169>1, IF($K169=4, "Unknown", IF($K169=99, "Surveillance", ROUND(E169*0.75,0))), 0),"Not required") -> 24338 | T169: =IF(INTRO!$E$43="Endemic", IF($K169>1, IF($K169=4, "Unknown", IF($K169=99, "Surveillance", F169)), 0),"Not required") -> 66234 | U169: =IF(INTRO!$E$43="Endemic", IF($K169>1, IF($K169=4, "Unknown", IF($K169=99, "Surveillance", G169)), 0),"Not required") -> 130421 | V169: =IF(INTRO!$E$43="Endemic", IF($K169>1, IF($K169=4, "Unknown", IF($K169=99, "Surveillance", SUM($S169:$U169))), 0),"Not required") -> 220993 | W169: 0 | X169: 0 | Y169: 1 | Z169: 1
A170: =IF(INTRO!$E$33<>0,INTRO!$E$33, " ") -> Angola | B170: ZAIRE | C170: NOQUI | D170: 31505.80996 | E170: =IF(INTRO!$E$48="","",ROUND($D170*INTRO!$E$48,0)) -> 4297 | F170: =IF(INTRO!$E$49="","",ROUND($D170*INTRO!$E$49,0)) -> 8771 | G170: =IF(INTRO!$E$50="","",ROUND($D170*INTRO!$E$50,0)) -> 17271 | H170: 0 | I170: 4 | J170: 21 | K170: 21 | L170: 1 | M170: =IF(INTRO!$E$37="Endemic",IF($H170>0,IF($H170=4,"Unknown",IF($H170=99,"Stopped",$D170)),0),"Not required") -> 0 | N170: =IF(INTRO!$E$39="Endemic", IF($I170>0, IF($I170=4,"Unknown",IF($I170=99,"Stopped",$D170)), 0),"Not required") -> Unknown | O170: =IF(INTRO!$E$41="Endemic", IF($J170>1, IF($J170=4, "Unknown", IF($J170=99, "Surveillance", E170)), 0),"Not required") -> 4297 | P170: =IF(INTRO!$E$41="Endemic", IF($J170>1, IF($J170=4, "Unknown", IF($J170=99, "Surveillance", F170)), 0),"Not required") -> 8771 | Q170: =IF(INTRO!$E$41="Endemic", IF($J170>1, IF($J170=4, "Unknown", IF($J170=99, "Surveillance", ROUND(D170*INTRO!$E$51,0))), 0),"Not required") -> 7281 | R170: =IF(INTRO!$E$41="Endemic", IF($J170>1, IF($J170=4, "Unknown", IF($J170=99, "Surveillance", SUM($O170:$Q170))), 0),"Not required") -> 20349 | S170: =IF(INTRO!$E$43="Endemic", IF($K170>1, IF($K170=4, "Unknown", IF($K170=99, "Surveillance", ROUND(E170*0.75,0))), 0),"Not required") -> 3223 | T170: =IF(INTRO!$E$43="Endemic", IF($K170>1, IF($K170=4, "Unknown", IF($K170=99, "Surveillance", F170)), 0),"Not required") -> 8771 | U170: =IF(INTRO!$E$43="Endemic", IF($K170>1, IF($K170=4, "Unknown", IF($K170=99, "Surveillance", G170)), 0),"Not required") -> 17271 | V170: =IF(INTRO!$E$43="Endemic", IF($K170>1, IF($K170=4, "Unknown", IF($K170=99, "Surveillance", SUM($S170:$U170))), 0),"Not required") -> 29265 | W170: 0 | X170: 0 | Y170: 1 | Z170: 1
A171: =IF(INTRO!$E$33<>0,INTRO!$E$33, " ") -> Angola | B171: ZAIRE | C171: NZETO | D171: 63093.88878 | E171: =IF(INTRO!$E$48="","",ROUND($D171*INTRO!$E$48,0)) -> 8606 | F171: =IF(INTRO!$E$49="","",ROUND($D171*INTRO!$E$49,0)) -> 17565 | G171: =IF(INTRO!$E$50="","",ROUND($D171*INTRO!$E$50,0)) -> 34588 | H171: 0 | I171: 4 | J171: 11 | K171: 11 | L171: 1 | M171: =IF(INTRO!$E$37="Endemic",IF($H171>0,IF($H171=4,"Unknown",IF($H171=99,"Stopped",$D171)),0),"Not required") -> 0 | N171: =IF(INTRO!$E$39="Endemic", IF($I171>0, IF($I171=4,"Unknown",IF($I171=99,"Stopped",$D171)), 0),"Not required") -> Unknown | O171: =IF(INTRO!$E$41="Endemic", IF($J171>1, IF($J171=4, "Unknown", IF($J171=99, "Surveillance", E171)), 0),"Not required") -> 8606 | P171: =IF(INTRO!$E$41="Endemic", IF($J171>1, IF($J171=4, "Unknown", IF($J171=99, "Surveillance", F171)), 0),"Not required") -> 17565 | Q171: =IF(INTRO!$E$41="Endemic", IF($J171>1, IF($J171=4, "Unknown", IF($J171=99, "Surveillance", ROUND(D171*INTRO!$E$51,0))), 0),"Not required") -> 14581 | R171: =IF(INTRO!$E$41="Endemic", IF($J171>1, IF($J171=4, "Unknown", IF($J171=99, "Surveillance", SUM($O171:$Q171))), 0),"Not required") -> 40752 | S171: =IF(INTRO!$E$43="Endemic", IF($K171>1, IF($K171=4, "Unknown", IF($K171=99, "Surveillance", ROUND(E171*0.75,0))), 0),"Not required") -> 6455 | T171: =IF(INTRO!$E$43="Endemic", IF($K171>1, IF($K171=4, "Unknown", IF($K171=99, "Surveillance", F171)), 0),"Not required") -> 17565 | U171: =IF(INTRO!$E$43="Endemic", IF($K171>1, IF($K171=4, "Unknown", IF($K171=99, "Surveillance", G171)), 0),"Not required") -> 34588 | V171: =IF(INTRO!$E$43="Endemic", IF($K171>1, IF($K171=4, "Unknown", IF($K171=99, "Surveillance", SUM($S171:$U171))), 0),"Not required") -> 58608 | W171: 0 | X171: 0 | Y171: 1 | Z171: 1
A172: =IF(INTRO!$E$33<>0,INTRO!$E$33, " ") -> Angola | B172: ZAIRE | C172: SOYO | D172: 299713.9021 | E172: =IF(INTRO!$E$48="","",ROUND($D172*INTRO!$E$48,0)) -> 40881 | F172: =IF(INTRO!$E$49="","",ROUND($D172*INTRO!$E$49,0)) -> 83440 | G172: =IF(INTRO!$E$50="","",ROUND($D172*INTRO!$E$50,0)) -> 164303 | H172: 0 | I172: 4 | J172: 22 | K172: 21 | L172: 1 | M172: =IF(INTRO!$E$37="Endemic",IF($H172>0,IF($H172=4,"Unknown",IF($H172=99,"Stopped",$D172)),0),"Not required") -> 0 | N172: =IF(INTRO!$E$39="Endemic", IF($I172>0, IF($I172=4,"Unknown",IF($I172=99,"Stopped",$D172)), 0),"Not required") -> Unknown | O172: =IF(INTRO!$E$41="Endemic", IF($J172>1, IF($J172=4, "Unknown", IF($J172=99, "Surveillance", E172)), 0),"Not required") -> 40881 | P172: =IF(INTRO!$E$41="Endemic", IF($J172>1, IF($J172=4, "Unknown", IF($J172=99, "Surveillance", F172)), 0),"Not required") -> 83440 | Q172: =IF(INTRO!$E$41="Endemic", IF($J172>1, IF($J172=4, "Unknown", IF($J172=99, "Surveillance", ROUND(D172*INTRO!$E$51,0))), 0),"Not required") -> 69264 | R172: =IF(INTRO!$E$41="Endemic", IF($J172>1, IF($J172=4, "Unknown", IF($J172=99, "Surveillance", SUM($O172:$Q172))), 0),"Not required") -> 193585 | S172: =IF(INTRO!$E$43="Endemic", IF($K172>1, IF($K172=4, "Unknown", IF($K172=99, "Surveillance", ROUND(E172*0.75,0))), 0),"Not required") -> 30661 | T172: =IF(INTRO!$E$43="Endemic", IF($K172>1, IF($K172=4, "Unknown", IF($K172=99, "Surveillance", F172)), 0),"Not required") -> 83440 | U172: =IF(INTRO!$E$43="Endemic", IF($K172>1, IF($K172=4, "Unknown", IF($K172=99, "Surveillance", G172)), 0),"Not required") -> 164303 | V172: =IF(INTRO!$E$43="Endemic", IF($K172>1, IF($K172=4, "Unknown", IF($K172=99, "Surveillance", SUM($S172:$U172))), 0),"Not required") -> 278404 | W172: 0 | X172: 0 | Y172: 1 | Z172: 1
A173: =IF(INTRO!$E$33<>0,INTRO!$E$33, " ") -> Angola | B173: ZAIRE | C173: TOMBOCO | D173: 60720.74853 | E173: =IF(INTRO!$E$48="","",ROUND($D173*INTRO!$E$48,0)) -> 8282 | F173: =IF(INTRO!$E$49="","",ROUND($D173*INTRO!$E$49,0)) -> 16905 | G173: =IF(INTRO!$E$50="","",ROUND($D173*INTRO!$E$50,0)) -> 33287 | H173: 1 | I173: 4 | J173: 22 | K173: 11 | L173: 1 | M173: =IF(INTRO!$E$37="Endemic",IF($H173>0,IF($H173=4,"Unknown",IF($H173=99,"Stopped",$D173)),0),"Not required") -> 60720.74853 | N173: =IF(INTRO!$E$39="Endemic", IF($I173>0, IF($I173=4,"Unknown",IF($I173=99,"Stopped",$D173)), 0),"Not required") -> Unknown | O173: =IF(INTRO!$E$41="Endemic", IF($J173>1, IF($J173=4, "Unknown", IF($J173=99, "Surveillance", E173)), 0),"Not required") -> 8282 | P173: =IF(INTRO!$E$41="Endemic", IF($J173>1, IF($J173=4, "Unknown", IF($J173=99, "Surveillance", F173)), 0),"Not required") -> 16905 | Q173: =IF(INTRO!$E$41="Endemic", IF($J173>1, IF($J173=4, "Unknown", IF($J173=99, "Surveillance", ROUND(D173*INTRO!$E$51,0))), 0),"Not required") -> 14033 | R173: =IF(INTRO!$E$41="Endemic", IF($J173>1, IF($J173=4, "Unknown", IF($J173=99, "Surveillance", SUM($O173:$Q173))), 0),"Not required") -> 39220 | S173: =IF(INTRO!$E$43="Endemic", IF($K173>1, IF($K173=4, "Unknown", IF($K173=99, "Surveillance", ROUND(E173*0.75,0))), 0),"Not required") -> 6212 | T173: =IF(INTRO!$E$43="Endemic", IF($K173>1, IF($K173=4, "Unknown", IF($K173=99, "Surveillance", F173)), 0),"Not required") -> 16905 | U173: =IF(INTRO!$E$43="Endemic", IF($K173>1, IF($K173=4, "Unknown", IF($K173=99, "Surveillance", G173)), 0),"Not required") -> 33287 | V173: =IF(INTRO!$E$43="Endemic", IF($K173>1, IF($K173=4, "Unknown", IF($K173=99, "Surveillance", SUM($S173:$U173))), 0),"Not required") -> 56404 | W173: 1 | X173: 0 | Y173: 1 | Z173: 1

Sheet ALB_MBD
A1: Albendazole (ALB) and Mebendazole (MBD) | I1: Select medicine for treatment of STH for each age group
A2: Administrative structure, eligible population by age group, treatment plan and information about tablets | I2: ALB | K2: ALB | L2: ALB
A4: TOTAL | F4: =SUBTOTAL(9,F$10:F$1010) -> 3469611 | G4: =SUBTOTAL(9,G$10:G$1010) -> 0 | J4: =SUBTOTAL(9,J$10:J$1010) -> 1606229 | K4: 5089269 | M4: 4224610 | N4: 10920108 | O4: 3469611 | P4: 0 | Q4: 3469611 | R4: 10920108 | S4: 0 | T4: 10920108 | U4: 0 | V4: 0 | W4: 0
A6: Country administrative structure | D6: Treatment plan | F6: People targeted by PELF with ALB | G6: Loa endemic areas | I6: Target population for STH | O6: Albendazole (ALB) | U6: Mebendazole (MBD)
A7: Country | B7: Province/State | C7: District | D7: LF | E7: STH | G7: Population | H7: Rounds planned | I7: PreSAC | K7: SAC | L7: WRA | N7: Total | O7: Total required | P7: Remaining in stock (LF) | Q7: Tablets to be procured (LF) | R7: Total required | S7: Remaining in stock (STH) | T7: Tablets to be procured (STH) | U7: Total required | V7: Remaining in stock | W7: Tablets to be procured
I8: Rounds | J8: People | K8: People | L8: Rounds | M8: People
A10: =IF(AND(INTRO!$E$37="Non-endemic",INTRO!$E$41="Non-endemic")," ",IF(COUNTRY_INFO!A10=0," ",COUNTRY_INFO!A10)) -> Angola | B10: =IF(AND(INTRO!$E$37="Non-endemic",INTRO!$E$41="Non-endemic")," ",IF(COUNTRY_INFO!B10=0," ",COUNTRY_INFO!B10)) -> BENGO | C10: =IF(AND(INTRO!$E$37="Non-endemic",INTRO!$E$41="Non-endemic")," ",IF(COUNTRY_INFO!C10=0," ",COUNTRY_INFO!C10)) -> AMBRIZ | D10: =IF(AND(INTRO!$E$37="Non-endemic",INTRO!$E$41="Non-endemic"),0,COUNTRY_INFO!W10) -> 1 | E10: =IF(AND(INTRO!$E$37="Non-endemic",INTRO!$E$41="Non-endemic"),0,COUNTRY_INFO!Y10) -> 0 | F10: =IF($D10=1,IVM!G10,0) -> 26646 | G10: =IF($D10=0, " ", IF(COUNTRY_INFO!$H10=1, IF(COUNTRY_INFO!$L10=1, 0," ")," ")) -> 0 | H10: 2 | I10: 0 | J10: =IF(OR(COUNTRY_INFO!O10="Unknown",COUNTRY_INFO!O10="Surveillance",COUNTRY_INFO!O10="Not required",COUNTRY_INFO!O10=0),0,IF(INTRO!$E$39="Non-endemic",IF(AND($E10<>0,$I10=""),IF($F10=0,COUNTRY_INFO!O10*$E10,COUNTRY_INFO!O10*($E10-$D10)),IF(AND($E10<>0,$I10<>0),IF($F10=0,COUNTRY_INFO!O10*$I10,COUNTRY_INFO!O10*($I10-$D10)),0)),IF($I10="",COUNTRY_INFO!O10*$E10,COUNTRY_INFO!O10*$I10))) -> 0 | K10: =MAX(0,IF(OR(COUNTRY_INFO!P10="Unknown",COUNTRY_INFO!P10="Surveillance",COUNTRY_INFO!P10="Not required",COUNTRY_INFO!P10=0),0,IF($E10<>0,IF($D10=0,COUNTRY_INFO!P10*$E10,COUNTRY_INFO!P10*$E10-($F10*COUNTRY_INFO!$P10/(COUNTRY_INFO!$F10+COUNTRY_INFO!$G10)+IF($G10=" ",0,COUNTRY_INFO!$P10/(COUNTRY_INFO!$F10+COUNTRY_INFO!$G10)*$G10*$H10))),0))) -> 0 | M10: =MAX(0,IF(OR(COUNTRY_INFO!Q10="Unknown",COUNTRY_INFO!Q10="Surveillance",COUNTRY_INFO!Q10="Not required",COUNTRY_INFO!Q10=0),0,IF($E10<>0,IF($D10=0,COUNTRY_INFO!Q10*MIN($E10,$L10),COUNTRY_INFO!Q10*MIN($E10,$L10)-($F10*COUNTRY_INFO!$Q10/(COUNTRY_INFO!$F10+COUNTRY_INFO!$G10)+IF($G10=" ",0,COUNTRY_INFO!$Q10/(COUNTRY_INFO!$F10+COUNTRY_INFO!$G10)*$G10*$H10))),0))) -> 0 | N10: =ROUND($J10,0)+ROUND($K10,0)+ROUND($M10,0) -> 0 | O10: =$F10+IF(OR(G10=0,G10=" "),0,G10*H10) -> 26646 | Q10: =IF($O10>$P10, $O10-$P10,0) -> 26646 | R10: =ROUND((IF($I$2="ALB",$J10,0)+IF($K$2="ALB",$K10,0)+IF($L$2="ALB",$M10,0)),0) -> 0 | T10: =IF($R10>$S10,$R10-$S10,0) -> 0 | U10: =ROUND((IF($I$2="MBD",$J10,0)+IF($K$2="MBD",$K10,0)+IF($L$2="MBD",$M10,0)),0) -> 0 | W10: =IF($U10>$V10,$U10-$V10,0) -> 0
A11: =IF(AND(INTRO!$E$37="Non-endemic",INTRO!$E$41="Non-endemic")," ",IF(COUNTRY_INFO!A11=0," ",COUNTRY_INFO!A11)) -> Angola | B11: =IF(AND(INTRO!$E$37="Non-endemic",INTRO!$E$41="Non-endemic")," ",IF(COUNTRY_INFO!B11=0," ",COUNTRY_INFO!B11)) -> BENGO | C11: =IF(AND(INTRO!$E$37="Non-endemic",INTRO!$E$41="Non-endemic")," ",IF(COUNTRY_INFO!C11=0," ",COUNTRY_INFO!C11)) -> BULA ATUMBA | D11: =IF(AND(INTRO!$E$37="Non-endemic",INTRO!$E$41="Non-endemic"),0,COUNTRY_INFO!W11) -> 1 | E11: =IF(AND(INTRO!$E$37="Non-endemic",INTRO!$E$41="Non-endemic"),0,COUNTRY_INFO!Y11) -> 2 | F11: =IF($D11=1,IVM!G11,0) -> 15786 | G11: =IF($D11=0, " ", IF(COUNTRY_INFO!$H11=1, IF(COUNTRY_INFO!$L11=1, 0," ")," ")) -> 0 | H11: 2 | I11: 2 | J11: =IF(OR(COUNTRY_INFO!O11="Unknown",COUNTRY_INFO!O11="Surveillance",COUNTRY_INFO!O11="Not required",COUNTRY_INFO!O11=0),0,IF(INTRO!$E$39="Non-endemic",IF(AND($E11<>0,$I11=""),IF($F11=0,COUNTRY_INFO!O11*$E11,COUNTRY_INFO!O11*($E11-$D11)),IF(AND($E11<>0,$I11<>0),IF($F11=0,COUNTRY_INFO!O11*$I11,COUNTRY_INFO!O11*($I11-$D11)),0)),IF($I11="",COUNTRY_INFO!O11*$E11,COUNTRY_INFO!O11*$I11))) -> 5210 | K11: =MAX(0,IF(OR(COUNTRY_INFO!P11="Unknown",COUNTRY_INFO!P11="Surveillance",COUNTRY_INFO!P11="Not required",COUNTRY_INFO!P11=0),0,IF($E11<>0,IF($D11=0,COUNTRY_INFO!P11*$E11,COUNTRY_INFO!P11*$E11-($F11*COUNTRY_INFO!$P11/(COUNTRY_INFO!$F11+COUNTRY_INFO!$G11)+IF($G11=" ",0,COUNTRY_INFO!$P11/(COUNTRY_INFO!$F11+COUNTRY_INFO!$G11)*$G11*$H11))),0))) -> 5317 | M11: =MAX(0,IF(OR(COUNTRY_INFO!Q11="Unknown",COUNTRY_INFO!Q11="Surveillance",COUNTRY_INFO!Q11="Not required",COUNTRY_INFO!Q11=0),0,IF($E11<>0,IF($D11=0,COUNTRY_INFO!Q11*MIN($E11,$L11),COUNTRY_INFO!Q11*MIN($E11,$L11)-($F11*COUNTRY_INFO!$Q11/(COUNTRY_INFO!$F11+COUNTRY_INFO!$G11)+IF($G11=" ",0,COUNTRY_INFO!$Q11/(COUNTRY_INFO!$F11+COUNTRY_INFO!$G11)*$G11*$H11))),0))) -> 4413 | N11: 14940 | O11: =$F11+IF(OR(G11=0,G11=" "),0,G11*H11) -> 15786 | Q11: 15786 | R11: 14940 | T11: 14940 | U11: 0 | W11: 0
A12: =IF(AND(INTRO!$E$37="Non-endemic",INTRO!$E$41="Non-endemic")," ",IF(COUNTRY_INFO!A12=0," ",COUNTRY_INFO!A12)) -> Angola | B12: =IF(AND(INTRO!$E$37="Non-endemic",INTRO!$E$41="Non-endemic")," ",IF(COUNTRY_INFO!B12=0," ",COUNTRY_INFO!B12)) -> BENGO | C12: =IF(AND(INTRO!$E$37="Non-endemic",INTRO!$E$41="Non-endemic")," ",IF(COUNTRY_INFO!C12=0," ",COUNTRY_INFO!C12)) -> DANDE | D12: =IF(AND(INTRO!$E$37="Non-endemic",INTRO!$E$41="Non-endemic"),0,COUNTRY_INFO!W12) -> 1 | E12: =IF(AND(INTRO!$E$37="Non-endemic",INTRO!$E$41="Non-endemic"),0,COUNTRY_INFO!Y12) -> 0 | F12: =IF($D12=1,IVM!G12,0) -> 261079 | G12: =IF($D12=0, " ", IF(COUNTRY_INFO!$H12=1, IF(COUNTRY_INFO!$L12=1, 0," ")," ")) -> 0 | H12: 2 | I12: 0 | J12: =IF(OR(COUNTRY_INFO!O12="Unknown",COUNTRY_INFO!O12="Surveillance",COUNTRY_INFO!O12="Not required",COUNTRY_INFO!O12=0),0,IF(INTRO!$E$39="Non-endemic",IF(AND($E12<>0,$I12=""),IF($F12=0,COUNTRY_INFO!O12*$E12,COUNTRY_INFO!O12*($E12-$D12)),IF(AND($E12<>0,$I12<>0),IF($F12=0,COUNTRY_INFO!O12*$I12,COUNTRY_INFO!O12*($I12-$D12)),0)),IF($I12="",COUNTRY_INFO!O12*$E12,COUNTRY_INFO!O12*$I12))) -> 0 | K12: =MAX(0,IF(OR(COUNTRY_INFO!P12="Unknown",COUNTRY_INFO!P12="Surveillance",COUNTRY_INFO!P12="Not required",COUNTRY_INFO!P12=0),0,IF($E12<>0,IF($D12=0,COUNTRY_INFO!P12*$E12,COUNTRY_INFO!P12*$E12-($F12*COUNTRY_INFO!$P12/(COUNTRY_INFO!$F12+COUNTRY_INFO!$G12)+IF($G12=" ",0,COUNTRY_INFO!$P12/(COUNTRY_INFO!$F12+COUNTRY_INFO!$G12)*$G12*$H12))),0))) -> 0 | M12: =MAX(0,IF(OR(COUNTRY_INFO!Q12="Unknown",COUNTRY_INFO!Q12="Surveillance",COUNTRY_INFO!Q12="Not required",COUNTRY_INFO!Q12=0),0,IF($E12<>0,IF($D12=0,COUNTRY_INFO!Q12*MIN($E12,$L12),COUNTRY_INFO!Q12*MIN($E12,$L12)-($F12*COUNTRY_INFO!$Q12/(COUNTRY_INFO!$F12+COUNTRY_INFO!$G12)+IF($G12=" ",0,COUNTRY_INFO!$Q12/(COUNTRY_INFO!$F12+COUNTRY_INFO!$G12)*$G12*$H12))),0))) -> 0 | N12: 0 | O12: 261079 | Q12: 261079 | R12: 0 | T12: 0 | U12: 0 | W12: 0
A13: =IF(AND(INTRO!$E$37="Non-endemic",INTRO!$E$41="Non-endemic")," ",IF(COUNTRY_INFO!A13=0," ",COUNTRY_INFO!A13)) -> Angola | B13: =IF(AND(INTRO!$E$37="Non-endemic",INTRO!$E$41="Non-endemic")," ",IF(COUNTRY_INFO!B13=0," ",COUNTRY_INFO!B13)) -> BENGO | C13: =IF(AND(INTRO!$E$37="Non-endemic",INTRO!$E$41="Non-endemic")," ",IF(COUNTRY_INFO!C13=0," ",COUNTRY_INFO!C13)) -> DEMBOS | D13: =IF(AND(INTRO!$E$37="Non-endemic",INTRO!$E$41="Non-endemic"),0,COUNTRY_INFO!W13) -> 1 | E13: =IF(AND(INTRO!$E$37="Non-endemic",INTRO!$E$41="Non-endemic"),0,COUNTRY_INFO!Y13) -> 2 | F13: =IF($D13=1,IVM!G13,0) -> 35264 | G13: =IF($D13=0, " ", IF(COUNTRY_INFO!$H13=1, IF(COUNTRY_INFO!$L13=1, 0," ")," ")) -> 0 | H13: 2 | I13: 2 | J13: =IF(OR(COUNTRY_INFO!O13="Unknown",COUNTRY_INFO!O13="Surveillance",COUNTRY_INFO!O13="Not required",COUNTRY_INFO!O13=0),0,IF(INTRO!$E$39="Non-endemic",IF(AND($E13<>0,$I13=""),IF($F13=0,COUNTRY_INFO!O13*$E13,COUNTRY_INFO!O13*($E13-$D13)),IF(AND($E13<>0,$I13<>0),IF($F13=0,COUNTRY_INFO!O13*$I13,COUNTRY_INFO!O13*($I13-$D13)),0)),IF($I13="",COUNTRY_INFO!O13*$E13,COUNTRY_INFO!O13*$I13))) -> 11638 | K13: =MAX(0,IF(OR(COUNTRY_INFO!P13="Unknown",COUNTRY_INFO!P13="Surveillance",COUNTRY_INFO!P13="Not required",COUNTRY_INFO!P13=0),0,IF($E13<>0,IF($D13=0,COUNTRY_INFO!P13*$E13,COUNTRY_INFO!P13*$E13-($F13*COUNTRY_INFO!$P13/(COUNTRY_INFO!$F13+COUNTRY_INFO!$G13)+IF($G13=" ",0,COUNTRY_INFO!$P13/(COUNTRY_INFO!$F13+COUNTRY_INFO!$G13)*$G13*$H13))),0))) -> 11877 | M13: =MAX(0,IF(OR(COUNTRY_INFO!Q13="Unknown",COUNTRY_INFO!Q13="Surveillance",COUNTRY_INFO!Q13="Not required",COUNTRY_INFO!Q13=0),0,IF($E13<>0,IF($D13=0,COUNTRY_INFO!Q13*MIN($E13,$L13),COUNTRY_INFO!Q13*MIN($E13,$L13)-($F13*COUNTRY_INFO!$Q13/(COUNTRY_INFO!$F13+COUNTRY_INFO!$G13)+IF($G13=" ",0,COUNTRY_INFO!$Q13/(COUNTRY_INFO!$F13+COUNTRY_INFO!$G13)*$G13*$H13))),0))) -> 9859 | N13: 33374 | O13: 35264 | Q13: 35264 | R13: 33374 | T13: 33374 | U13: 0 | W13: 0
